Workbook

Sheet PI vs gap
A1: Measurement | B1: Hall
A2: Type | B2: Gap dependence
A4: Project | B4: ='10 mm'!B5 -> 504314
A5: PS serial no | B5: ='10 mm'!B7 -> 2410102
A7: Measurement date | B7: =LEFT('10 mm'!B4,10) -> 26-09-2024
A11: Nominal gap [mm] | B11: Encoder [counts] | C11: Encoder [mm] | D11: PI [T^2mm^3] | E11: PI spec [T^2mm^3] | F11: Encoder value at 10 mm gap:
A12: ='10 mm'!$B$53 -> 10 | B12: ='10 mm'!$B$55 -> 19.7631 | C12: =-1*($F$12-B12)+10 -> 10 | D12: ='10 mm'!$K$3 -> 10598.34344 | F12: 19.7631
A13: ='15 mm'!$B$53 -> 15 | B13: ='15 mm'!$B$55 -> 24.7652 | C13: =-1*($F$12-B13)+10 -> 15.0021 | D13: ='15 mm'!$K$3 -> 7229.127088
A14: ='20 mm'!$B$53 -> 20 | B14: ='20 mm'!$B$55 -> 29.7649 | C14: 20.0018 | D14: ='20 mm'!$K$3 -> 4998.035388
A15: ='30 mm'!$B$53 -> 30 | B15: ='30 mm'!$B$55 -> 39.762 | C15: 29.9989 | D15: ='30 mm'!$K$3 -> 2461.259631
A16: ='100 mm'!$B$53 -> 100 | B16: ='100 mm'!$B$55 -> 109.7614 | C16: 99.9983 | D16: ='100 mm'!$K$3 -> 39.19960351
A47: Measuring series at larger gaps:
A48: Reference magnet
A49: Tref | B49: 21.38 | C49: degC
A50: Hall ref field | B50: 0.505 | C50: T
A51: NMR ref field | B51: 0.50627 | C51: T
A53: Offset from Faro

Sheet 10 mm
A1: =IF('DF raw data'!A1="","",'DF raw data'!A1) -> Number of header lines | B1: =IF('DF raw data'!B1="","",'DF raw data'!B1) -> 54 | C1: =IF('DF raw data'!C1="","",'DF raw data'!C1) ->  | D1: =IF('DF raw data'!D1="","",'DF raw data'!D1) ->  | F1: T_coeff | G1: -0.001 | H1: /degC | J1: IBy total | K1: =J1267*1000 -> 17.0934608 | L1: muTm | M1: =L1267*1000 -> -18.45411281 | R1: DF ref | S1: 1
A2: =IF('DF raw data'!A2="","",'DF raw data'!A2) -> Measured by | B2: =IF('DF raw data'!B2="","",'DF raw data'!B2) -> Danfysik | C2: =IF('DF raw data'!C2="","",'DF raw data'!C2) ->  | D2: =IF('DF raw data'!D2="","",'DF raw data'!D2) ->  | F2: Tcorr | G2: 20 | H2: degC | J2: JBy total | K2: =K1267 -> 1.074768745 | L2: muTm^2 | M2: =M1267 -> -0.789489405
A3: =IF('DF raw data'!A3="","",'DF raw data'!A3) -> Operator | B3: =IF('DF raw data'!B3="","",'DF raw data'!B3) -> PMHA | C3: =IF('DF raw data'!C3="","",'DF raw data'!C3) ->  | D3: =IF('DF raw data'!D3="","",'DF raw data'!D3) ->  | F3: Step | G3: =A68-A67 -> 0.5 | H3: mm | J3: PI total | K3: =N1267 -> 10598.34344 | L3: T^2mm^3
A4: =IF('DF raw data'!A4="","",'DF raw data'!A4) -> Data-time | B4: =IF('DF raw data'!B4="","",'DF raw data'!B4) -> 26-09-2024, 10:01:29 | C4: =IF('DF raw data'!C4="","",'DF raw data'!C4) ->  | D4: =IF('DF raw data'!D4="","",'DF raw data'!D4) -> 
A5: =IF('DF raw data'!A5="","",'DF raw data'!A5) -> Project | B5: =IF('DF raw data'!B5="","",'DF raw data'!B5) -> 504314 | C5: =IF('DF raw data'!C5="","",'DF raw data'!C5) ->  | D5: Bamb avr | F5: =(AVERAGE(B67:B107) + AVERAGE(B1227:B1267))/2 -> -1.183450863e-05 | G5: =(AVERAGE(C67:C107) + AVERAGE(C1227:C1267))/2 -> 0.0001226807439 | H5: =(AVERAGE(D67:D107) + AVERAGE(D1227:D1267))/2 -> -2.271377598e-05
A6: =IF('DF raw data'!A6="","",'DF raw data'!A6) -> Magnet type | B6: =IF('DF raw data'!B6="","",'DF raw data'!B6) -> Dipole | C6: =IF('DF raw data'!C6="","",'DF raw data'!C6) -> 
A7: =IF('DF raw data'!A7="","",'DF raw data'!A7) -> Magnet nr. | B7: =IF('DF raw data'!B7="","",'DF raw data'!B7) -> 2410102 | C7: =IF('DF raw data'!C7="","",'DF raw data'!C7) -> 
A8: =IF('DF raw data'!A8="","",'DF raw data'!A8) -> Meas. number | B8: =IF('DF raw data'!B8="","",'DF raw data'!B8) -> 701 | C8: =IF('DF raw data'!C8="","",'DF raw data'!C8) -> 
A9: =IF('DF raw data'!A9="","",'DF raw data'!A9) -> Add. info | B9: =IF('DF raw data'!B9="","",'DF raw data'!B9) -> Y-alignment scan 4) | C9: =IF('DF raw data'!C9="","",'DF raw data'!C9) ->  | D9: =IF('DF raw data'!D9="","",'DF raw data'!D9) -> 
A10: =IF('DF raw data'!A10="","",'DF raw data'!A10) -> Device | B10: =IF('DF raw data'!B10="","",'DF raw data'!B10) -> (HAL) HALL-PROBE | C10: =IF('DF raw data'!C10="","",'DF raw data'!C10) ->  | D10: =IF('DF raw data'!D10="","",'DF raw data'!D10) -> 
A11: =IF('DF raw data'!A11="","",'DF raw data'!A11) -> Goal | B11: =IF('DF raw data'!B11="","",'DF raw data'!B11) -> (AXI) AXis Integral (Line, EFB) | C11: =IF('DF raw data'!C11="","",'DF raw data'!C11) ->  | D11: =IF('DF raw data'!D11="","",'DF raw data'!D11) -> 
A12: =IF('DF raw data'!A12="","",'DF raw data'!A12) -> Power supply mode | B12: =IF('DF raw data'!B12="","",'DF raw data'!B12) -> (PM) Permanent Magnet (no MPS in use) | C12: =IF('DF raw data'!C12="","",'DF raw data'!C12) ->  | D12: =IF('DF raw data'!D12="","",'DF raw data'!D12) -> 
A13: =IF('DF raw data'!A13="","",'DF raw data'!A13) -> Data format | B13: =IF('DF raw data'!B13="","",'DF raw data'!B13) -> Raw data text file | C13: =IF('DF raw data'!C13="","",'DF raw data'!C13) ->  | D13: =IF('DF raw data'!D13="","",'DF raw data'!D13) -> 
A14: =IF('DF raw data'!A14="","",'DF raw data'!A14) -> Direction of the pos. x-axis | B14: =IF('DF raw data'!B14="","",'DF raw data'!B14) -> See test program | C14: =IF('DF raw data'!C14="","",'DF raw data'!C14) ->  | D14: =IF('DF raw data'!D14="","",'DF raw data'!D14) -> 
A15: =IF('DF raw data'!A15="","",'DF raw data'!A15) -> Direction of the pos. y-axis | B15: =IF('DF raw data'!B15="","",'DF raw data'!B15) -> Vertical up | C15: =IF('DF raw data'!C15="","",'DF raw data'!C15) ->  | D15: =IF('DF raw data'!D15="","",'DF raw data'!D15) -> 
A16: =IF('DF raw data'!A16="","",'DF raw data'!A16) -> Direction of the pos. z-axis | B16: =IF('DF raw data'!B16="","",'DF raw data'!B16) -> See test program | C16: =IF('DF raw data'!C16="","",'DF raw data'!C16) ->  | D16: =IF('DF raw data'!D16="","",'DF raw data'!D16) -> 
A17: =IF('DF raw data'!A17="","",'DF raw data'!A17) -> Mapper type | B17: =IF('DF raw data'!B17="","",'DF raw data'!B17) -> Precision Hall Mapper | C17: =IF('DF raw data'!C17="","",'DF raw data'!C17) ->  | D17: =IF('DF raw data'!D17="","",'DF raw data'!D17) -> 
A18: =IF('DF raw data'!A18="","",'DF raw data'!A18) -> Mapper Danfysik Reg. Number | B18: =IF('DF raw data'!B18="","",'DF raw data'!B18) -> 2033-D (mapper 1) | C18: =IF('DF raw data'!C18="","",'DF raw data'!C18) ->  | D18: =IF('DF raw data'!D18="","",'DF raw data'!D18) -> 
A19: =IF('DF raw data'!A19="","",'DF raw data'!A19) -> Measurement consept | B19: =IF('DF raw data'!B19="","",'DF raw data'!B19) -> Square line grid | C19: =IF('DF raw data'!C19="","",'DF raw data'!C19) ->  | D19: =IF('DF raw data'!D19="","",'DF raw data'!D19) -> 
A20: =IF('DF raw data'!A20="","",'DF raw data'!A20) -> Mode | B20: =IF('DF raw data'!B20="","",'DF raw data'!B20) -> On-the-fly measurement | C20: =IF('DF raw data'!C20="","",'DF raw data'!C20) ->  | D20: =IF('DF raw data'!D20="","",'DF raw data'!D20) -> 
A21: =IF('DF raw data'!A21="","",'DF raw data'!A21) ->  | B21: =IF('DF raw data'!B21="","",'DF raw data'!B21) ->  | C21: =IF('DF raw data'!C21="","",'DF raw data'!C21) ->  | D21: =IF('DF raw data'!D21="","",'DF raw data'!D21) -> 
A22: =IF('DF raw data'!A22="","",'DF raw data'!A22) -> Probe Name | B22: =IF('DF raw data'!B22="","",'DF raw data'!B22) -> ID12_By | C22: =IF('DF raw data'!C22="","",'DF raw data'!C22) ->  | D22: =IF('DF raw data'!D22="","",'DF raw data'!D22) -> 
A23: =IF('DF raw data'!A23="","",'DF raw data'!A23) -> Probe Type | B23: =IF('DF raw data'!B23="","",'DF raw data'!B23) -> DF_ID_3D_Bxyz | C23: =IF('DF raw data'!C23="","",'DF raw data'!C23) ->  | D23: =IF('DF raw data'!D23="","",'DF raw data'!D23) -> 
A24: =IF('DF raw data'!A24="","",'DF raw data'!A24) -> Probe Danfysik Reg. Number | B24: =IF('DF raw data'!B24="","",'DF raw data'!B24) -> 2277 | C24: =IF('DF raw data'!C24="","",'DF raw data'!C24) ->  | D24: =IF('DF raw data'!D24="","",'DF raw data'!D24) -> 
A25: =IF('DF raw data'!A25="","",'DF raw data'!A25) -> Probe Axis | B25: =IF('DF raw data'!B25="","",'DF raw data'!B25) -> By | C25: =IF('DF raw data'!C25="","",'DF raw data'!C25) ->  | D25: =IF('DF raw data'!D25="","",'DF raw data'!D25) -> 
A26: =IF('DF raw data'!A26="","",'DF raw data'!A26) -> Probe Current Supply | B26: =IF('DF raw data'!B26="","",'DF raw data'!B26) -> 1825-D | C26: =IF('DF raw data'!C26="","",'DF raw data'!C26) ->  | D26: =IF('DF raw data'!D26="","",'DF raw data'!D26) -> 
A27: =IF('DF raw data'!A27="","",'DF raw data'!A27) -> Probe Gain Correction | B27: =IF('DF raw data'!B27="","",'DF raw data'!B27) -> 0.99599 | C27: =IF('DF raw data'!C27="","",'DF raw data'!C27) ->  | D27: =IF('DF raw data'!D27="","",'DF raw data'!D27) -> 
A28: =IF('DF raw data'!A28="","",'DF raw data'!A28) -> Probe Offset Correction | B28: =IF('DF raw data'!B28="","",'DF raw data'!B28) -> 0.0027595 | C28: =IF('DF raw data'!C28="","",'DF raw data'!C28) ->  | D28: =IF('DF raw data'!D28="","",'DF raw data'!D28) -> 
A29: =IF('DF raw data'!A29="","",'DF raw data'!A29) -> DVM Number | B29: =IF('DF raw data'!B29="","",'DF raw data'!B29) -> 2 | C29: =IF('DF raw data'!C29="","",'DF raw data'!C29) ->  | D29: =IF('DF raw data'!D29="","",'DF raw data'!D29) -> 
A30: =IF('DF raw data'!A30="","",'DF raw data'!A30) -> DVM Type | B30: =IF('DF raw data'!B30="","",'DF raw data'!B30) -> K2701 | C30: =IF('DF raw data'!C30="","",'DF raw data'!C30) ->  | D30: =IF('DF raw data'!D30="","",'DF raw data'!D30) -> 
A31: =IF('DF raw data'!A31="","",'DF raw data'!A31) -> DVM Danfysik Reg. Number | B31: =IF('DF raw data'!B31="","",'DF raw data'!B31) -> 1743-D | C31: =IF('DF raw data'!C31="","",'DF raw data'!C31) ->  | D31: =IF('DF raw data'!D31="","",'DF raw data'!D31) -> 
A32: =IF('DF raw data'!A32="","",'DF raw data'!A32) -> Probe Name | B32: =IF('DF raw data'!B32="","",'DF raw data'!B32) -> ID12_Bx | C32: =IF('DF raw data'!C32="","",'DF raw data'!C32) ->  | D32: =IF('DF raw data'!D32="","",'DF raw data'!D32) -> 
A33: =IF('DF raw data'!A33="","",'DF raw data'!A33) -> Probe Type | B33: =IF('DF raw data'!B33="","",'DF raw data'!B33) -> DF_ID_3D_Bxyz | C33: =IF('DF raw data'!C33="","",'DF raw data'!C33) ->  | D33: =IF('DF raw data'!D33="","",'DF raw data'!D33) -> 
A34: =IF('DF raw data'!A34="","",'DF raw data'!A34) -> Probe Danfysik Reg. Number | B34: =IF('DF raw data'!B34="","",'DF raw data'!B34) -> 2277 | C34: =IF('DF raw data'!C34="","",'DF raw data'!C34) ->  | D34: =IF('DF raw data'!D34="","",'DF raw data'!D34) -> 
A35: =IF('DF raw data'!A35="","",'DF raw data'!A35) -> Probe Axis | B35: =IF('DF raw data'!B35="","",'DF raw data'!B35) -> Bx | C35: =IF('DF raw data'!C35="","",'DF raw data'!C35) ->  | D35: =IF('DF raw data'!D35="","",'DF raw data'!D35) -> 
A36: =IF('DF raw data'!A36="","",'DF raw data'!A36) -> Probe Current Supply | B36: =IF('DF raw data'!B36="","",'DF raw data'!B36) -> 1825-D | C36: =IF('DF raw data'!C36="","",'DF raw data'!C36) ->  | D36: =IF('DF raw data'!D36="","",'DF raw data'!D36) -> 
A37: =IF('DF raw data'!A37="","",'DF raw data'!A37) -> Probe Gain Correction | B37: =IF('DF raw data'!B37="","",'DF raw data'!B37) -> 1 | C37: =IF('DF raw data'!C37="","",'DF raw data'!C37) ->  | D37: =IF('DF raw data'!D37="","",'DF raw data'!D37) -> 
A38: =IF('DF raw data'!A38="","",'DF raw data'!A38) -> Probe Offset Correction | B38: =IF('DF raw data'!B38="","",'DF raw data'!B38) -> -0.17537 | C38: =IF('DF raw data'!C38="","",'DF raw data'!C38) ->  | D38: =IF('DF raw data'!D38="","",'DF raw data'!D38) -> 
A39: =IF('DF raw data'!A39="","",'DF raw data'!A39) -> DVM Number | B39: =IF('DF raw data'!B39="","",'DF raw data'!B39) -> 3 | C39: =IF('DF raw data'!C39="","",'DF raw data'!C39) ->  | D39: =IF('DF raw data'!D39="","",'DF raw data'!D39) -> 
A40: =IF('DF raw data'!A40="","",'DF raw data'!A40) -> DVM Type | B40: =IF('DF raw data'!B40="","",'DF raw data'!B40) -> K2701 | C40: =IF('DF raw data'!C40="","",'DF raw data'!C40) ->  | D40: =IF('DF raw data'!D40="","",'DF raw data'!D40) -> 
A41: =IF('DF raw data'!A41="","",'DF raw data'!A41) -> DVM Danfysik Reg. Number | B41: =IF('DF raw data'!B41="","",'DF raw data'!B41) -> 1744-D | C41: =IF('DF raw data'!C41="","",'DF raw data'!C41) ->  | D41: =IF('DF raw data'!D41="","",'DF raw data'!D41) -> 
A42: =IF('DF raw data'!A42="","",'DF raw data'!A42) -> Probe Name | B42: =IF('DF raw data'!B42="","",'DF raw data'!B42) -> ID12_Bz | C42: =IF('DF raw data'!C42="","",'DF raw data'!C42) ->  | D42: =IF('DF raw data'!D42="","",'DF raw data'!D42) -> 
A43: =IF('DF raw data'!A43="","",'DF raw data'!A43) -> Probe Type | B43: =IF('DF raw data'!B43="","",'DF raw data'!B43) -> DF_ID_3D_Bxyz | C43: =IF('DF raw data'!C43="","",'DF raw data'!C43) ->  | D43: =IF('DF raw data'!D43="","",'DF raw data'!D43) -> 
A44: =IF('DF raw data'!A44="","",'DF raw data'!A44) -> Probe Danfysik Reg. Number | B44: =IF('DF raw data'!B44="","",'DF raw data'!B44) -> 2277 | C44: =IF('DF raw data'!C44="","",'DF raw data'!C44) ->  | D44: =IF('DF raw data'!D44="","",'DF raw data'!D44) -> 
A45: =IF('DF raw data'!A45="","",'DF raw data'!A45) -> Probe Axis | B45: =IF('DF raw data'!B45="","",'DF raw data'!B45) -> Bz | C45: =IF('DF raw data'!C45="","",'DF raw data'!C45) ->  | D45: =IF('DF raw data'!D45="","",'DF raw data'!D45) -> 
A46: =IF('DF raw data'!A46="","",'DF raw data'!A46) -> Probe Current Supply | B46: =IF('DF raw data'!B46="","",'DF raw data'!B46) -> 1825-D | C46: =IF('DF raw data'!C46="","",'DF raw data'!C46) ->  | D46: =IF('DF raw data'!D46="","",'DF raw data'!D46) -> 
A47: =IF('DF raw data'!A47="","",'DF raw data'!A47) -> Probe Gain Correction | B47: =IF('DF raw data'!B47="","",'DF raw data'!B47) -> 1 | C47: =IF('DF raw data'!C47="","",'DF raw data'!C47) ->  | D47: =IF('DF raw data'!D47="","",'DF raw data'!D47) -> 
A48: =IF('DF raw data'!A48="","",'DF raw data'!A48) -> Probe Offset Correction | B48: =IF('DF raw data'!B48="","",'DF raw data'!B48) -> 0.0073107 | C48: =IF('DF raw data'!C48="","",'DF raw data'!C48) ->  | D48: =IF('DF raw data'!D48="","",'DF raw data'!D48) -> 
A49: =IF('DF raw data'!A49="","",'DF raw data'!A49) -> DVM Number | B49: =IF('DF raw data'!B49="","",'DF raw data'!B49) -> 8 | C49: =IF('DF raw data'!C49="","",'DF raw data'!C49) ->  | D49: =IF('DF raw data'!D49="","",'DF raw data'!D49) -> 
A50: =IF('DF raw data'!A50="","",'DF raw data'!A50) -> DVM Type | B50: =IF('DF raw data'!B50="","",'DF raw data'!B50) -> K2700 | C50: =IF('DF raw data'!C50="","",'DF raw data'!C50) ->  | D50: =IF('DF raw data'!D50="","",'DF raw data'!D50) -> 
A51: =IF('DF raw data'!A51="","",'DF raw data'!A51) -> DVM Danfysik Reg. Number | B51: =IF('DF raw data'!B51="","",'DF raw data'!B51) -> 1756-D | C51: =IF('DF raw data'!C51="","",'DF raw data'!C51) ->  | D51: =IF('DF raw data'!D51="","",'DF raw data'!D51) -> 
A52: =IF('DF raw data'!A52="","",'DF raw data'!A52) -> NTC voltage | B52: =IF('DF raw data'!B52="","",'DF raw data'!B52) -> 0.42454 | C52: =IF('DF raw data'!C52="","",'DF raw data'!C52) ->  | D52: =IF('DF raw data'!D52="","",'DF raw data'!D52) -> 
A53: =IF('DF raw data'!A53="","",'DF raw data'!A53) -> PS-Gap: | B53: =IF('DF raw data'!B53="","",'DF raw data'!B53) -> 10 | C53: =IF('DF raw data'!C53="","",'DF raw data'!C53) ->  | D53: =IF('DF raw data'!D53="","",'DF raw data'!D53) -> 
A54: =IF('DF raw data'!A54="","",'DF raw data'!A54) -> PS-Temperature: | B54: =IF('DF raw data'!B54="","",'DF raw data'!B54) -> 24 | C54: =IF('DF raw data'!C54="","",'DF raw data'!C54) ->  | D54: =IF('DF raw data'!D54="","",'DF raw data'!D54) -> 
A55: =IF('DF raw data'!A55="","",'DF raw data'!A55) -> PS-Encoder: | B55: =IF('DF raw data'!B55="","",'DF raw data'!B55) -> 19.7631 | C55: =IF('DF raw data'!C55="","",'DF raw data'!C55) ->  | D55: =IF('DF raw data'!D55="","",'DF raw data'!D55) -> 
A56: =IF('DF raw data'!A56="","",'DF raw data'!A56) ->  | B56: =IF('DF raw data'!B56="","",'DF raw data'!B56) -> 
A57: =IF('DF raw data'!A57="","",'DF raw data'!A57) -> Monitor-Index | B57: =IF('DF raw data'!B57="","",'DF raw data'!B57) -> [1,1,4]
A58: =IF('DF raw data'!A58="","",'DF raw data'!A58) ->  | B58: =IF('DF raw data'!B58="","",'DF raw data'!B58) -> 
A59: =IF('DF raw data'!A59="","",'DF raw data'!A59) -> Time [s] | B59: =IF('DF raw data'!B59="","",'DF raw data'!B59) -> Y [mm]
A60: =IF('DF raw data'!A60="","",'DF raw data'!A60) ->  | B60: =IF('DF raw data'!B60="","",'DF raw data'!B60) -> 
A61: =IF('DF raw data'!A61="","",'DF raw data'!A61) -> 207.8 | B61: =IF('DF raw data'!B61="","",'DF raw data'!B61) -> 31.75
A62: =IF('DF raw data'!A62="","",'DF raw data'!A62) ->  | B62: =IF('DF raw data'!B62="","",'DF raw data'!B62) -> 
A63: =IF('DF raw data'!A63="","",'DF raw data'!A63) -> Measurement-Index | B63: =IF('DF raw data'!B63="","",'DF raw data'!B63) -> [1,1,1201,2]
A64: =IF('DF raw data'!A64="","",'DF raw data'!A64) ->  | B64: =IF('DF raw data'!B64="","",'DF raw data'!B64) -> 
A65: =IF('DF raw data'!A65="","",'DF raw data'!A65) -> Z [mm] | B65: =IF('DF raw data'!B65="","",'DF raw data'!B65) -> By [T] | C65: =IF('DF raw data'!C65="","",'DF raw data'!C65) -> Bx [T] | D65: =IF('DF raw data'!D65="","",'DF raw data'!D65) -> Bz [T] | F65: By_corr | G65: Bx_corr | H65: Bz_corr | J65: Iy | K65: Jy | L65: Ix | M65: Jx | N65: PI
A66: =IF('DF raw data'!A66="","",'DF raw data'!A66) -> [1, 0, 0, 0] | B66: =IF('DF raw data'!B66="","",'DF raw data'!B66) ->  | C66: =IF('DF raw data'!C66="","",'DF raw data'!C66) ->  | D66: =IF('DF raw data'!D66="","",'DF raw data'!D66) -> 
A67: =IF('DF raw data'!A67="","",'DF raw data'!A67) -> -300 | B67: =IF('DF raw data'!B67="","",'DF raw data'!B67) -> 1.14714e-07 | C67: =IF('DF raw data'!C67="","",'DF raw data'!C67) -> 0.000172691 | D67: =IF('DF raw data'!D67="","",'DF raw data'!D67) -> -2.49748e-05 | F67: =(1-$G$1*($B$54-$G$2))*(B67-F$5) -> 1.199701952e-05 | G67: =(1-$G$1*($B$54-$G$2))*(C67-G$5) -> 5.021029712e-05 | H67: =(1-$G$1*($B$54-$G$2))*(D67-H$5) -> -2.27006812e-06 | J67: =F67*$G$3+J66 -> 5.998509762e-06 | K67: =J67*$G$3+K66 -> 2.999254881e-06 | L67: =G67*$G$3+L66 -> 2.510514856e-05 | M67: =L67*$G$3+M66 -> 1.255257428e-05 | N67: =(J67^2+L67^2)*$G$3+N66 -> 3.331253018e-10
A68: =IF('DF raw data'!A68="","",'DF raw data'!A68) -> -299.5 | B68: =IF('DF raw data'!B68="","",'DF raw data'!B68) -> -8.59647e-06 | C68: =IF('DF raw data'!C68="","",'DF raw data'!C68) -> 0.000181522 | D68: =IF('DF raw data'!D68="","",'DF raw data'!D68) -> -2.44166e-05 | F68: 3.250990789e-06 | G68: 5.907662112e-05 | H68: -1.70963532e-06 | J68: =F68*$G$3+J67 -> 7.624005157e-06 | K68: =J68*$G$3+K67 -> 6.81125746e-06 | L68: =G68*$G$3+L67 -> 5.464345912e-05 | M68: =L68*$G$3+M67 -> 3.987430384e-05 | N68: =(J68^2+L68^2)*$G$3+N67 -> 1.855141842e-09
A69: =IF('DF raw data'!A69="","",'DF raw data'!A69) -> -299 | B69: =IF('DF raw data'!B69="","",'DF raw data'!B69) -> -1.45538e-05 | C69: =IF('DF raw data'!C69="","",'DF raw data'!C69) -> 0.000180023 | D69: =IF('DF raw data'!D69="","",'DF raw data'!D69) -> -2.31518e-05 | F69: -2.730168531e-06 | G69: 5.757162512e-05 | H69: -4.397761205e-07 | J69: 6.258920891e-06 | K69: 9.940717905e-06 | L69: 8.342927168e-05 | M69: 8.158893968e-05 | N69: 5.354950574e-09
A70: =IF('DF raw data'!A70="","",'DF raw data'!A70) -> -298.5 | B70: =IF('DF raw data'!B70="","",'DF raw data'!B70) -> -9.62202e-06 | C70: =IF('DF raw data'!C70="","",'DF raw data'!C70) -> 0.000171184 | D70: =IF('DF raw data'!D70="","",'DF raw data'!D70) -> -2.19526e-05 | F70: 2.221338589e-06 | G70: 4.869726912e-05 | H70: 7.642206795e-07 | J70: 7.369590185e-06 | K70: 1.3625513e-05 | L70: 0.0001077779062 | M70: 0.0001354778928 | N70: 1.119014454e-08
A71: =IF('DF raw data'!A71="","",'DF raw data'!A71) -> -298 | B71: =IF('DF raw data'!B71="","",'DF raw data'!B71) -> -9.23883e-06 | C71: =IF('DF raw data'!C71="","",'DF raw data'!C71) -> 0.000172417 | D71: =IF('DF raw data'!D71="","",'DF raw data'!D71) -> -2.14931e-05 | F71: 2.606061349e-06 | G71: 4.993520112e-05 | H71: 1.22555868e-06 | J71: 8.67262086e-06 | K71: 1.796182343e-05 | L71: 0.0001327455068 | M71: 0.0002018506462 | N71: 2.003843651e-08
A72: =IF('DF raw data'!A72="","",'DF raw data'!A72) -> -297.5 | B72: =IF('DF raw data'!B72="","",'DF raw data'!B72) -> 4.08368e-06 | C72: =IF('DF raw data'!C72="","",'DF raw data'!C72) -> 0.00017546 | D72: =IF('DF raw data'!D72="","",'DF raw data'!D72) -> -2.21127e-05 | F72: 1.598186139e-05 | G72: 5.299037312e-05 | H72: 6.034802795e-07 | J72: 1.666355155e-05 | K72: 2.62935992e-05 | L72: 0.0001592406934 | M72: 0.0002814709929 | N72: 3.285607269e-08
A73: =IF('DF raw data'!A73="","",'DF raw data'!A73) -> -297 | B73: =IF('DF raw data'!B73="","",'DF raw data'!B73) -> -3.72955e-06 | C73: =IF('DF raw data'!C73="","",'DF raw data'!C73) -> 0.00017626 | D73: =IF('DF raw data'!D73="","",'DF raw data'!D73) -> -2.31225e-05 | F73: 8.137378469e-06 | G73: 5.379357312e-05 | H73: -4.103589205e-07 | J73: 2.073224079e-05 | K73: 3.66597196e-05 | L73: 0.0001861374799 | M73: 0.0003745397329 | N73: 5.039456631e-08
A74: =IF('DF raw data'!A74="","",'DF raw data'!A74) -> -296.5 | B74: =IF('DF raw data'!B74="","",'DF raw data'!B74) -> -1.16699e-06 | C74: =IF('DF raw data'!C74="","",'DF raw data'!C74) -> 0.000183654 | D74: =IF('DF raw data'!D74="","",'DF raw data'!D74) -> -2.3644e-05 | F74: 1.071018871e-05 | G74: 6.121714912e-05 | H74: -9.339449205e-07 | J74: 2.608733514e-05 | K74: 4.970338717e-05 | L74: 0.0002167460545 | M74: 0.0004829127601 | N74: 7.422426691e-08
A75: =IF('DF raw data'!A75="","",'DF raw data'!A75) -> -296 | B75: =IF('DF raw data'!B75="","",'DF raw data'!B75) -> -1.41054e-05 | C75: =IF('DF raw data'!C75="","",'DF raw data'!C75) -> 0.000191325 | D75: =IF('DF raw data'!D75="","",'DF raw data'!D75) -> -2.34058e-05 | F75: -2.279974931e-06 | G75: 6.891883312e-05 | H75: -6.947921205e-07 | J75: 2.494734768e-05 | K75: 6.217706101e-05 | L75: 0.000251205471 | M75: 0.0006085154956 | N75: 1.060875463e-07
A76: =IF('DF raw data'!A76="","",'DF raw data'!A76) -> -295.5 | B76: =IF('DF raw data'!B76="","",'DF raw data'!B76) -> -4.88197e-06 | C76: =IF('DF raw data'!C76="","",'DF raw data'!C76) -> 0.000177976 | D76: =IF('DF raw data'!D76="","",'DF raw data'!D76) -> -2.31756e-05 | F76: 6.980348789e-06 | G76: 5.551643712e-05 | H76: -4.636713205e-07 | J76: 2.843752207e-05 | K76: 7.639582204e-05 | L76: 0.0002789636896 | M76: 0.0007479973404 | N76: 1.454022627e-07
A77: =IF('DF raw data'!A77="","",'DF raw data'!A77) -> -295 | B77: =IF('DF raw data'!B77="","",'DF raw data'!B77) -> -1.3529e-05 | C77: =IF('DF raw data'!C77="","",'DF raw data'!C77) -> 0.000170451 | D77: =IF('DF raw data'!D77="","",'DF raw data'!D77) -> -2.31531e-05 | F77: -1.701269331e-06 | G77: 4.796133712e-05 | H77: -4.410813205e-07 | J77: 2.758688741e-05 | K77: 9.018926575e-05 | L77: 0.0003029443582 | M77: 0.0008994695195 | N77: 1.91670423e-07
A78: =IF('DF raw data'!A78="","",'DF raw data'!A78) -> -294.5 | B78: =IF('DF raw data'!B78="","",'DF raw data'!B78) -> -1.0518e-05 | C78: =IF('DF raw data'!C78="","",'DF raw data'!C78) -> 0.000172471 | D78: =IF('DF raw data'!D78="","",'DF raw data'!D78) -> -2.30807e-05 | F78: 1.321774669e-06 | G78: 4.998941712e-05 | H78: -3.683917205e-07 | J78: 2.824777474e-05 | K78: 0.0001043131531 | L78: 0.0003279390667 | M78: 0.001063439053 | N78: 2.458414071e-07
A79: =IF('DF raw data'!A79="","",'DF raw data'!A79) -> -294 | B79: =IF('DF raw data'!B79="","",'DF raw data'!B79) -> -1.58351e-05 | C79: =IF('DF raw data'!C79="","",'DF raw data'!C79) -> 0.000180521 | D79: =IF('DF raw data'!D79="","",'DF raw data'!D79) -> -2.26942e-05 | F79: -4.016593731e-06 | G79: 5.807161712e-05 | H79: 1.965427951e-08 | J79: 2.623947787e-05 | K79: 0.0001174328921 | L79: 0.0003569748753 | M79: 0.001241926491 | N79: 3.09901193e-07
A80: =IF('DF raw data'!A80="","",'DF raw data'!A80) -> -293.5 | B80: =IF('DF raw data'!B80="","",'DF raw data'!B80) -> -1.31444e-05 | C80: =IF('DF raw data'!C80="","",'DF raw data'!C80) -> 0.000183425 | D80: =IF('DF raw data'!D80="","",'DF raw data'!D80) -> -2.23321e-05 | F80: -1.315130931e-06 | G80: 6.098723312e-05 | H80: 3.832026795e-07 | J80: 2.558191241e-05 | K80: 0.0001302238483 | L80: 0.0003874684919 | M80: 0.001435660736 | N80: 3.852943262e-07
A81: =IF('DF raw data'!A81="","",'DF raw data'!A81) -> -293 | B81: =IF('DF raw data'!B81="","",'DF raw data'!B81) -> -8.46984e-06 | C81: =IF('DF raw data'!C81="","",'DF raw data'!C81) -> 0.000180665 | D81: =IF('DF raw data'!D81="","",'DF raw data'!D81) -> -2.20716e-05 | F81: 3.378127309e-06 | G81: 5.821619312e-05 | H81: 6.447446795e-07 | J81: 2.727097606e-05 | K81: 0.0001438593363 | L81: 0.0004165765884 | M81: 0.001643949031 | N81: 4.724342063e-07
A82: =IF('DF raw data'!A82="","",'DF raw data'!A82) -> -292.5 | B82: =IF('DF raw data'!B82="","",'DF raw data'!B82) -> -1.41694e-05 | C82: =IF('DF raw data'!C82="","",'DF raw data'!C82) -> 0.000182349 | D82: =IF('DF raw data'!D82="","",'DF raw data'!D82) -> -2.1749e-05 | F82: -2.344230931e-06 | G82: 5.990692912e-05 | H82: 9.686350795e-07 | J82: 2.60988606e-05 | K82: 0.0001569087666 | L82: 0.000446530053 | M82: 0.001867214057 | N82: 5.724693257e-07
A83: =IF('DF raw data'!A83="","",'DF raw data'!A83) -> -292 | B83: =IF('DF raw data'!B83="","",'DF raw data'!B83) -> -1.10427e-06 | C83: =IF('DF raw data'!C83="","",'DF raw data'!C83) -> 0.000180108 | D83: =IF('DF raw data'!D83="","",'DF raw data'!D83) -> -2.19148e-05 | F83: 1.077315959e-05 | G83: 5.765696512e-05 | H83: 8.021718795e-07 | J83: 3.148544039e-05 | K83: 0.0001726514868 | L83: 0.0004753585355 | M83: 0.002104893325 | N83: 6.859478608e-07
A84: =IF('DF raw data'!A84="","",'DF raw data'!A84) -> -291.5 | B84: =IF('DF raw data'!B84="","",'DF raw data'!B84) -> -2.32287e-06 | C84: =IF('DF raw data'!C84="","",'DF raw data'!C84) -> 0.000167835 | D84: =IF('DF raw data'!D84="","",'DF raw data'!D84) -> -1.88214e-05 | F84: 9.549685189e-06 | G84: 4.533487312e-05 | H84: 3.90794548e-06 | J84: 3.626028299e-05 | K84: 0.0001907816283 | L84: 0.0004980259721 | M84: 0.002353906311 | N84: 8.106201993e-07
A85: =IF('DF raw data'!A85="","",'DF raw data'!A85) -> -291 | B85: =IF('DF raw data'!B85="","",'DF raw data'!B85) -> -3.66022e-06 | C85: =IF('DF raw data'!C85="","",'DF raw data'!C85) -> 0.000160736 | D85: =IF('DF raw data'!D85="","",'DF raw data'!D85) -> -3.09947e-05 | F85: 8.206985789e-06 | G85: 3.820747712e-05 | H85: -8.31404772e-06 | J85: 4.036377588e-05 | K85: 0.0002109635162 | L85: 0.0005171297107 | M85: 0.002612471166 | N85: 9.451463853e-07
A86: =IF('DF raw data'!A86="","",'DF raw data'!A86) -> -290.5 | B86: =IF('DF raw data'!B86="","",'DF raw data'!B86) -> -1.17368e-05 | C86: =IF('DF raw data'!C86="","",'DF raw data'!C86) -> 0.000176381 | D86: =IF('DF raw data'!D86="","",'DF raw data'!D86) -> -2.02145e-05 | F86: 9.809946868e-08 | G86: 5.391505712e-05 | H86: 2.50927308e-06 | J86: 4.041282561e-05 | K86: 0.000231169929 | L86: 0.0005440872392 | M86: 0.002884514786 | N86: 1.093978445e-06
A87: =IF('DF raw data'!A87="","",'DF raw data'!A87) -> -290 | B87: =IF('DF raw data'!B87="","",'DF raw data'!B87) -> 4.33767e-06 | C87: =IF('DF raw data'!C87="","",'DF raw data'!C87) -> 0.000180219 | D87: =IF('DF raw data'!D87="","",'DF raw data'!D87) -> -1.82796e-05 | F87: 1.623686735e-05 | G87: 5.776840912e-05 | H87: 4.45191268e-06 | J87: 4.853125929e-05 | K87: 0.0002554355587 | L87: 0.0005729714438 | M87: 0.003171000508 | N87: 1.259304225e-06
A88: =IF('DF raw data'!A88="","",'DF raw data'!A88) -> -289.5 | B88: =IF('DF raw data'!B88="","",'DF raw data'!B88) -> -8.27404e-06 | C88: =IF('DF raw data'!C88="","",'DF raw data'!C88) -> 0.000173399 | D88: =IF('DF raw data'!D88="","",'DF raw data'!D88) -> -2.6754e-05 | F88: 3.574710509e-06 | G88: 5.092112912e-05 | H88: -4.05638492e-06 | J88: 5.031861454e-05 | K88: 0.0002805948659 | L88: 0.0005984320083 | M88: 0.003470216512 | N88: 1.439630641e-06
A89: =IF('DF raw data'!A89="","",'DF raw data'!A89) -> -289 | B89: =IF('DF raw data'!B89="","",'DF raw data'!B89) -> -1.11e-05 | C89: =IF('DF raw data'!C89="","",'DF raw data'!C89) -> 0.000171916 | D89: =IF('DF raw data'!D89="","",'DF raw data'!D89) -> -1.56643e-05 | F89: 7.374466687e-07 | G89: 4.943219712e-05 | H89: 7.07767388e-06 | J89: 5.068733788e-05 | K89: 0.0003059385349 | L89: 0.0006231481069 | M89: 0.003781790565 | N89: 1.635072025e-06
A90: =IF('DF raw data'!A90="","",'DF raw data'!A90) -> -288.5 | B90: =IF('DF raw data'!B90="","",'DF raw data'!B90) -> -1.41103e-05 | C90: =IF('DF raw data'!C90="","",'DF raw data'!C90) -> 0.000177791 | D90: =IF('DF raw data'!D90="","",'DF raw data'!D90) -> -1.43665e-05 | F90: -2.284894531e-06 | G90: 5.533069712e-05 | H90: 8.38066508e-06 | J90: 4.954489061e-05 | K90: 0.0003307109802 | L90: 0.0006508134555 | M90: 0.004107197293 | N90: 1.84807845e-06
A91: =IF('DF raw data'!A91="","",'DF raw data'!A91) -> -288 | B91: =IF('DF raw data'!B91="","",'DF raw data'!B91) -> -8.72607e-06 | C91: =IF('DF raw data'!C91="","",'DF raw data'!C91) -> 0.000178149 | D91: =IF('DF raw data'!D91="","",'DF raw data'!D91) -> -2.20189e-05 | F91: 3.120872389e-06 | G91: 5.569012912e-05 | H91: 6.976554795e-07 | J91: 5.110532681e-05 | K91: 0.0003562636436 | L91: 0.00067865852 | M91: 0.004446526553 | N91: 2.079673021e-06
A92: =IF('DF raw data'!A92="","",'DF raw data'!A92) -> -287.5 | B92: =IF('DF raw data'!B92="","",'DF raw data'!B92) -> -3.92346e-06 | C92: =IF('DF raw data'!C92="","",'DF raw data'!C92) -> 0.000178299 | D92: =IF('DF raw data'!D92="","",'DF raw data'!D92) -> -1.97552e-05 | F92: 7.942692829e-06 | G92: 5.584072912e-05 | H92: 2.97041028e-06 | J92: 5.507667322e-05 | K92: 0.0003838019802 | L92: 0.0007065788846 | M92: 0.004799815995 | N92: 2.330816601e-06
A93: =IF('DF raw data'!A93="","",'DF raw data'!A93) -> -287 | B93: =IF('DF raw data'!B93="","",'DF raw data'!B93) -> -7.70772e-06 | C93: =IF('DF raw data'!C93="","",'DF raw data'!C93) -> 0.000170608 | D93: =IF('DF raw data'!D93="","",'DF raw data'!D93) -> -1.17034e-05 | F93: 4.143295789e-06 | G93: 4.811896512e-05 | H93: 1.105441748e-05 | J93: 5.714832112e-05 | K93: 0.0004123761408 | L93: 0.0007306383671 | M93: 0.005165135179 | N93: 2.599365778e-06
A94: =IF('DF raw data'!A94="","",'DF raw data'!A94) -> -286.5 | B94: =IF('DF raw data'!B94="","",'DF raw data'!B94) -> -5.01834e-06 | C94: =IF('DF raw data'!C94="","",'DF raw data'!C94) -> 0.000167182 | D94: =IF('DF raw data'!D94="","",'DF raw data'!D94) -> -1.04531e-05 | F94: 6.843433309e-06 | G94: 4.467926112e-05 | H94: 1.230971868e-05 | J94: 6.057003777e-05 | K94: 0.0004426611596 | L94: 0.0007529779977 | M94: 0.005541624178 | N94: 2.884688075e-06
A95: =IF('DF raw data'!A95="","",'DF raw data'!A95) -> -286 | B95: =IF('DF raw data'!B95="","",'DF raw data'!B95) -> 7.42058e-07 | C95: =IF('DF raw data'!C95="","",'DF raw data'!C95) -> 0.000168726 | D95: =IF('DF raw data'!D95="","",'DF raw data'!D95) -> -4.75918e-06 | F95: 1.26268729e-05 | G95: 4.622943712e-05 | H95: 1.802641436e-05 | J95: 6.688347422e-05 | K95: 0.0004761028968 | L95: 0.0007760927163 | M95: 0.005929670536 | N95: 3.188084727e-06
A96: =IF('DF raw data'!A96="","",'DF raw data'!A96) -> -285.5 | B96: =IF('DF raw data'!B96="","",'DF raw data'!B96) -> -3.41878e-06 | C96: =IF('DF raw data'!C96="","",'DF raw data'!C96) -> 0.000171768 | D96: =IF('DF raw data'!D96="","",'DF raw data'!D96) -> -7.97559e-06 | F96: 8.449391549e-06 | G96: 4.928360512e-05 | H96: 1.479713872e-05 | J96: 7.110816999e-05 | K96: 0.0005116569818 | L96: 0.0008007345188 | M96: 0.006330037795 | N96: 3.511200798e-06
A97: =IF('DF raw data'!A97="","",'DF raw data'!A97) -> -285 | B97: =IF('DF raw data'!B97="","",'DF raw data'!B97) -> -8.41072e-06 | C97: =IF('DF raw data'!C97="","",'DF raw data'!C97) -> 0.000173837 | D97: =IF('DF raw data'!D97="","",'DF raw data'!D97) -> -1.42081e-05 | F97: 3.437483789e-06 | G97: 5.136088112e-05 | H97: 8.53969868e-06 | J97: 7.282691189e-05 | K97: 0.0005480704377 | L97: 0.0008264149594 | M97: 0.006743245275 | N97: 3.85533352e-06
A98: =IF('DF raw data'!A98="","",'DF raw data'!A98) -> -284.5 | B98: =IF('DF raw data'!B98="","",'DF raw data'!B98) -> -4.9522e-06 | C98: =IF('DF raw data'!C98="","",'DF raw data'!C98) -> 0.000174471 | D98: =IF('DF raw data'!D98="","",'DF raw data'!D98) -> -1.35091e-05 | F98: 6.909837869e-06 | G98: 5.199741712e-05 | H98: 9.24149468e-06 | J98: 7.628183082e-05 | K98: 0.0005862113531 | L98: 0.000852413668 | M98: 0.007169452109 | N98: 4.221547509e-06
A99: =IF('DF raw data'!A99="","",'DF raw data'!A99) -> -284 | B99: =IF('DF raw data'!B99="","",'DF raw data'!B99) -> -1.27635e-05 | C99: =IF('DF raw data'!C99="","",'DF raw data'!C99) -> 0.000169567 | D99: =IF('DF raw data'!D99="","",'DF raw data'!D99) -> -1.81775e-05 | F99: -9.327073313e-07 | G99: 4.707380112e-05 | H99: 4.55442108e-06 | J99: 7.581547716e-05 | K99: 0.0006241190917 | L99: 0.0008759505685 | M99: 0.007607427393 | N99: 4.608066202e-06
A100: =IF('DF raw data'!A100="","",'DF raw data'!A100) -> -283.5 | B100: =IF('DF raw data'!B100="","",'DF raw data'!B100) -> -1.35312e-05 | C100: =IF('DF raw data'!C100="","",'DF raw data'!C100) -> 0.00017285 | D100: =IF('DF raw data'!D100="","",'DF raw data'!D100) -> -1.8511e-05 | F100: -1.703478131e-06 | G100: 5.036993312e-05 | H100: 4.21958708e-06 | J100: 7.496373809e-05 | K100: 0.0006616009607 | L100: 0.0009011355351 | M100: 0.008057995161 | N100: 5.016898609e-06
A101: =IF('DF raw data'!A101="","",'DF raw data'!A101) -> -283 | B101: =IF('DF raw data'!B101="","",'DF raw data'!B101) -> 4.27501e-06 | C101: =IF('DF raw data'!C101="","",'DF raw data'!C101) -> 0.000181504 | D101: =IF('DF raw data'!D101="","",'DF raw data'!D101) -> -2.0271e-05 | F101: 1.617395671e-05 | G101: 5.905854912e-05 | H101: 2.45254708e-06 | J101: 8.305071645e-05 | K101: 0.000703126319 | L101: 0.0009306648096 | M101: 0.008523327566 | N101: 5.453415814e-06
A102: =IF('DF raw data'!A102="","",'DF raw data'!A102) -> -282.5 | B102: =IF('DF raw data'!B102="","",'DF raw data'!B102) -> -9.23584e-06 | C102: =IF('DF raw data'!C102="","",'DF raw data'!C102) -> 0.000183314 | D102: =IF('DF raw data'!D102="","",'DF raw data'!D102) -> -2.52543e-05 | F102: 2.609063309e-06 | G102: 6.087578912e-05 | H102: -2.55068612e-06 | J102: 8.43552481e-05 | K102: 0.000745303943 | L102: 0.0009611027042 | M102: 0.009003878918 | N102: 5.918832922e-06
A103: =IF('DF raw data'!A103="","",'DF raw data'!A103) -> -282 | B103: =IF('DF raw data'!B103="","",'DF raw data'!B103) -> -1.34084e-05 | C103: =IF('DF raw data'!C103="","",'DF raw data'!C103) -> 0.000182145 | D103: =IF('DF raw data'!D103="","",'DF raw data'!D103) -> -1.13743e-05 | F103: -1.580186931e-06 | G103: 5.970211312e-05 | H103: 1.138483388e-05 | J103: 8.356515463e-05 | K103: 0.0007870865203 | L103: 0.0009909537608 | M103: 0.009499355798 | N103: 6.413319167e-06
A104: =IF('DF raw data'!A104="","",'DF raw data'!A104) -> -281.5 | B104: =IF('DF raw data'!B104="","",'DF raw data'!B104) -> 1.5212e-06 | C104: =IF('DF raw data'!C104="","",'DF raw data'!C104) -> 0.000166953 | D104: =IF('DF raw data'!D104="","",'DF raw data'!D104) -> -2.12186e-05 | F104: 1.340913147e-05 | G104: 4.444934512e-05 | H104: 1.50115668e-06 | J104: 9.026972037e-05 | K104: 0.0008322213805 | L104: 0.001013178433 | M104: 0.01000594501 | N104: 6.930658747e-06
A105: =IF('DF raw data'!A105="","",'DF raw data'!A105) -> -281 | B105: =IF('DF raw data'!B105="","",'DF raw data'!B105) -> -9.09986e-06 | C105: =IF('DF raw data'!C105="","",'DF raw data'!C105) -> 0.000164387 | D105: =IF('DF raw data'!D105="","",'DF raw data'!D105) -> -3.8132e-05 | F105: 2.745587229e-06 | G105: 4.187308112e-05 | H105: -1.547989692e-05 | J105: 9.164251398e-05 | K105: 0.0008780426375 | L105: 0.001034114974 | M105: 0.0105230025 | N105: 7.469554812e-06
A106: =IF('DF raw data'!A106="","",'DF raw data'!A106) -> -280.5 | B106: =IF('DF raw data'!B106="","",'DF raw data'!B106) -> -1.07701e-05 | C106: =IF('DF raw data'!C106="","",'DF raw data'!C106) -> 0.000176859 | D106: =IF('DF raw data'!D106="","",'DF raw data'!D106) -> -2.95019e-05 | F106: 1.068666269e-06 | G106: 5.439496912e-05 | H106: -6.81527652e-06 | J106: 9.217684712e-05 | K106: 0.0009241310611 | L106: 0.001061312458 | M106: 0.01105365873 | N106: 8.036995165e-06
A107: =IF('DF raw data'!A107="","",'DF raw data'!A107) -> -280 | B107: =IF('DF raw data'!B107="","",'DF raw data'!B107) -> -1.44949e-05 | C107: =IF('DF raw data'!C107="","",'DF raw data'!C107) -> 0.00018422 | D107: =IF('DF raw data'!D107="","",'DF raw data'!D107) -> -1.52239e-05 | F107: -2.671032931e-06 | G107: 6.178541312e-05 | H107: 7.51983548e-06 | J107: 9.084133065e-05 | K107: 0.0009695517264 | L107: 0.001092205165 | M107: 0.01159976131 | N107: 8.6375773e-06
A108: =IF('DF raw data'!A108="","",'DF raw data'!A108) -> -279.5 | B108: =IF('DF raw data'!B108="","",'DF raw data'!B108) -> -1.50004e-05 | C108: =IF('DF raw data'!C108="","",'DF raw data'!C108) -> 0.000176285 | D108: =IF('DF raw data'!D108="","",'DF raw data'!D108) -> -2.44722e-05 | F108: -3.178554931e-06 | G108: 5.381867312e-05 | H108: -1.76545772e-06 | J108: 8.925205319e-05 | K108: 0.001014177753 | L108: 0.001119114502 | M108: 0.01215931856 | N108: 9.267768898e-06
A109: =IF('DF raw data'!A109="","",'DF raw data'!A109) -> -279 | B109: =IF('DF raw data'!B109="","",'DF raw data'!B109) -> -1.5836e-05 | C109: =IF('DF raw data'!C109="","",'DF raw data'!C109) -> 0.000178445 | D109: =IF('DF raw data'!D109="","",'DF raw data'!D109) -> -2.13058e-05 | F109: -4.017497331e-06 | G109: 5.598731312e-05 | H109: 1.41360788e-06 | J109: 8.724330452e-05 | K109: 0.001057799405 | L109: 0.001147108158 | M109: 0.01273287264 | N109: 9.929503158e-06
A110: =IF('DF raw data'!A110="","",'DF raw data'!A110) -> -278.5 | B110: =IF('DF raw data'!B110="","",'DF raw data'!B110) -> -6.62119e-06 | C110: =IF('DF raw data'!C110="","",'DF raw data'!C110) -> 0.000190139 | D110: =IF('DF raw data'!D110="","",'DF raw data'!D110) -> -7.8583e-06 | F110: 5.234171909e-06 | G110: 6.772808912e-05 | H110: 1.491489788e-05 | J110: 8.986039048e-05 | K110: 0.0011027296 | L110: 0.001180972203 | M110: 0.01332335874 | N110: 1.063088828e-05
A111: =IF('DF raw data'!A111="","",'DF raw data'!A111) -> -278 | B111: =IF('DF raw data'!B111="","",'DF raw data'!B111) -> -1.66591e-05 | C111: =IF('DF raw data'!C111="","",'DF raw data'!C111) -> 0.000184168 | D111: =IF('DF raw data'!D111="","",'DF raw data'!D111) -> -3.58713e-05 | F111: -4.843889731e-06 | G111: 6.173320512e-05 | H111: -1.321015412e-05 | J111: 8.743844561e-05 | K111: 0.001146448823 | L111: 0.001211838805 | M111: 0.01392927815 | N111: 1.136898766e-05
A112: =IF('DF raw data'!A112="","",'DF raw data'!A112) -> -277.5 | B112: =IF('DF raw data'!B112="","",'DF raw data'!B112) -> -1.38511e-05 | C112: =IF('DF raw data'!C112="","",'DF raw data'!C112) -> 0.000176976 | D112: =IF('DF raw data'!D112="","",'DF raw data'!D112) -> -1.90075e-05 | F112: -2.024657731e-06 | G112: 5.451243712e-05 | H112: 3.72110108e-06 | J112: 8.642611674e-05 | K112: 0.001189661882 | L112: 0.001239095024 | M112: 0.01454882566 | N112: 1.214040064e-05
A113: =IF('DF raw data'!A113="","",'DF raw data'!A113) -> -277 | B113: =IF('DF raw data'!B113="","",'DF raw data'!B113) -> -4.56028e-06 | C113: =IF('DF raw data'!C113="","",'DF raw data'!C113) -> 0.000176446 | D113: =IF('DF raw data'!D113="","",'DF raw data'!D113) -> -2.57673e-05 | F113: 7.303325549e-06 | G113: 5.398031712e-05 | H113: -3.06573812e-06 | J113: 9.007777952e-05 | K113: 0.001234700771 | L113: 0.001266085182 | M113: 0.01518186825 | N113: 1.294594348e-05
A114: =IF('DF raw data'!A114="","",'DF raw data'!A114) -> -276.5 | B114: =IF('DF raw data'!B114="","",'DF raw data'!B114) -> -1.98053e-05 | C114: =IF('DF raw data'!C114="","",'DF raw data'!C114) -> 0.000176316 | D114: =IF('DF raw data'!D114="","",'DF raw data'!D114) -> -2.21902e-05 | F114: -8.002674531e-06 | G114: 5.384979712e-05 | H114: 5.256702795e-07 | J114: 8.607644225e-05 | K114: 0.001277738993 | L114: 0.001293010081 | M114: 0.01582837329 | N114: 1.37855856e-05
A115: =IF('DF raw data'!A115="","",'DF raw data'!A115) -> -276 | B115: =IF('DF raw data'!B115="","",'DF raw data'!B115) -> -3.02726e-06 | C115: =IF('DF raw data'!C115="","",'DF raw data'!C115) -> 0.000178722 | D115: =IF('DF raw data'!D115="","",'DF raw data'!D115) -> -1.94696e-05 | F115: 8.842477629e-06 | G115: 5.626542112e-05 | H115: 3.25715268e-06 | J115: 9.049768107e-05 | K115: 0.001322987833 | L115: 0.001321142791 | M115: 0.01648894469 | N115: 1.466238965e-05
A116: =IF('DF raw data'!A116="","",'DF raw data'!A116) -> -275.5 | B116: =IF('DF raw data'!B116="","",'DF raw data'!B116) -> -1.43144e-07 | C116: =IF('DF raw data'!C116="","",'DF raw data'!C116) -> 0.000174203 | D116: =IF('DF raw data'!D116="","",'DF raw data'!D116) -> -2.23796e-05 | F116: 1.173813009e-05 | G116: 5.172834512e-05 | H116: 3.355126795e-07 | J116: 9.636674611e-05 | K116: 0.001371171206 | L116: 0.001347006964 | M116: 0.01716244817 | N116: 1.55742468e-05
A117: =IF('DF raw data'!A117="","",'DF raw data'!A117) -> -275 | B117: =IF('DF raw data'!B117="","",'DF raw data'!B117) -> -7.63716e-06 | C117: =IF('DF raw data'!C117="","",'DF raw data'!C117) -> 0.000169431 | D117: =IF('DF raw data'!D117="","",'DF raw data'!D117) -> -2.20827e-05 | F117: 4.214138029e-06 | G117: 4.693725712e-05 | H117: 6.336002795e-07 | J117: 9.847381513e-05 | K117: 0.001420408114 | L117: 0.001370475593 | M117: 0.01784768596 | N117: 1.651819703e-05
A118: =IF('DF raw data'!A118="","",'DF raw data'!A118) -> -274.5 | B118: =IF('DF raw data'!B118="","",'DF raw data'!B118) -> -1.55101e-05 | C118: =IF('DF raw data'!C118="","",'DF raw data'!C118) -> 0.000169222 | D118: =IF('DF raw data'!D118="","",'DF raw data'!D118) -> -2.83406e-05 | F118: -3.690293731e-06 | G118: 4.672742112e-05 | H118: -5.64933132e-06 | J118: 9.662866826e-05 | K118: 0.001468722448 | L118: 0.001393839303 | M118: 0.01854460562 | N118: 1.749425958e-05
A119: =IF('DF raw data'!A119="","",'DF raw data'!A119) -> -274 | B119: =IF('DF raw data'!B119="","",'DF raw data'!B119) -> -2.17349e-05 | C119: =IF('DF raw data'!C119="","",'DF raw data'!C119) -> 0.000176647 | D119: =IF('DF raw data'!D119="","",'DF raw data'!D119) -> -1.16407e-05 | F119: -9.939992931e-06 | G119: 5.418212112e-05 | H119: 1.111736828e-05 | J119: 9.16586718e-05 | K119: 0.001514551784 | L119: 0.001420930364 | M119: 0.0192550708 | N119: 1.850798178e-05
A120: =IF('DF raw data'!A120="","",'DF raw data'!A120) -> -273.5 | B120: =IF('DF raw data'!B120="","",'DF raw data'!B120) -> -7.12044e-06 | C120: =IF('DF raw data'!C120="","",'DF raw data'!C120) -> 0.000180344 | D120: =IF('DF raw data'!D120="","",'DF raw data'!D120) -> -2.80264e-05 | F120: 4.732924909e-06 | G120: 5.789390912e-05 | H120: -5.33387452e-06 | J120: 9.402513425e-05 | K120: 0.001561564351 | L120: 0.001449877318 | M120: 0.01998000946 | N120: 1.956347426e-05
A121: =IF('DF raw data'!A121="","",'DF raw data'!A121) -> -273 | B121: =IF('DF raw data'!B121="","",'DF raw data'!B121) -> -5.77918e-06 | C121: =IF('DF raw data'!C121="","",'DF raw data'!C121) -> 0.000182818 | D121: =IF('DF raw data'!D121="","",'DF raw data'!D121) -> -2.28387e-05 | F121: 6.079549949e-06 | G121: 6.037780512e-05 | H121: -1.254237205e-07 | J121: 9.706490922e-05 | K121: 0.001610096805 | L121: 0.001480066221 | M121: 0.02072004257 | N121: 2.066348307e-05
A122: =IF('DF raw data'!A122="","",'DF raw data'!A122) -> -272.5 | B122: =IF('DF raw data'!B122="","",'DF raw data'!B122) -> -1.91049e-05 | C122: =IF('DF raw data'!C122="","",'DF raw data'!C122) -> 0.000171835 | D122: =IF('DF raw data'!D122="","",'DF raw data'!D122) -> -1.56872e-05 | F122: -7.299472931e-06 | G122: 4.935087312e-05 | H122: 7.05468228e-06 | J122: 9.341517276e-05 | K122: 0.001656804392 | L122: 0.001504741657 | M122: 0.0214724134 | N122: 2.179997e-05
A123: =IF('DF raw data'!A123="","",'DF raw data'!A123) -> -272 | B123: =IF('DF raw data'!B123="","",'DF raw data'!B123) -> -1.6159e-05 | C123: =IF('DF raw data'!C123="","",'DF raw data'!C123) -> 0.000164449 | D123: =IF('DF raw data'!D123="","",'DF raw data'!D123) -> -1.69671e-05 | F123: -4.341789331e-06 | G123: 4.193532912e-05 | H123: 5.76966268e-06 | J123: 9.124427809e-05 | K123: 0.001702426531 | L123: 0.001525709322 | M123: 0.02223526806 | N123: 2.296802722e-05
A124: =IF('DF raw data'!A124="","",'DF raw data'!A124) -> -271.5 | B124: =IF('DF raw data'!B124="","",'DF raw data'!B124) -> -4.17798e-06 | C124: =IF('DF raw data'!C124="","",'DF raw data'!C124) -> 0.000166918 | D124: =IF('DF raw data'!D124="","",'DF raw data'!D124) -> -2.22906e-05 | F124: 7.687154749e-06 | G124: 4.441420512e-05 | H124: 4.248686795e-07 | J124: 9.508785547e-05 | K124: 0.001749970459 | L124: 0.001547916425 | M124: 0.02300922627 | N124: 2.41705707e-05
A125: =IF('DF raw data'!A125="","",'DF raw data'!A125) -> -271 | B125: =IF('DF raw data'!B125="","",'DF raw data'!B125) -> -6.15757e-06 | C125: =IF('DF raw data'!C125="","",'DF raw data'!C125) -> 0.000168107 | D125: =IF('DF raw data'!D125="","",'DF raw data'!D125) -> -3.19213e-05 | F125: 5.699646389e-06 | G125: 4.560796112e-05 | H125: -9.24435412e-06 | J125: 9.793767866e-05 | K125: 0.001798939298 | L125: 0.001570720405 | M125: 0.02379458647 | N125: 2.540894789e-05
A126: =IF('DF raw data'!A126="","",'DF raw data'!A126) -> -270.5 | B126: =IF('DF raw data'!B126="","",'DF raw data'!B126) -> -1.46849e-05 | C126: =IF('DF raw data'!C126="","",'DF raw data'!C126) -> 0.000174946 | D126: =IF('DF raw data'!D126="","",'DF raw data'!D126) -> -1.68382e-05 | F126: -2.861792931e-06 | G126: 5.247431712e-05 | H126: 5.89907828e-06 | J126: 9.65067822e-05 | K126: 0.001847192689 | L126: 0.001596957564 | M126: 0.02459306525 | N126: 2.66887414e-05
A127: =IF('DF raw data'!A127="","",'DF raw data'!A127) -> -270 | B127: =IF('DF raw data'!B127="","",'DF raw data'!B127) -> -1.65403e-05 | C127: =IF('DF raw data'!C127="","",'DF raw data'!C127) -> 0.000177916 | D127: =IF('DF raw data'!D127="","",'DF raw data'!D127) -> -2.15687e-05 | F127: -4.724614531e-06 | G127: 5.545619712e-05 | H127: 1.14965628e-06 | J127: 9.414447493e-05 | K127: 0.001894264927 | L127: 0.001624685662 | M127: 0.02540540809 | N127: 2.801297474e-05
A128: =IF('DF raw data'!A128="","",'DF raw data'!A128) -> -269.5 | B128: =IF('DF raw data'!B128="","",'DF raw data'!B128) -> -1.35949e-05 | C128: =IF('DF raw data'!C128="","",'DF raw data'!C128) -> 0.000174623 | D128: =IF('DF raw data'!D128="","",'DF raw data'!D128) -> -1.90995e-05 | F128: -1.767432931e-06 | G128: 5.215002512e-05 | H128: 3.62873308e-06 | J128: =F128*$G$3+J127 -> 9.326075847e-05 | K128: =J128*$G$3+K127 -> 0.001940895306 | L128: =G128*$G$3+L127 -> 0.001650760675 | M128: =L128*$G$3+M127 -> 0.02623078842 | N128: =(J128^2+L128^2)*$G$3+N127 -> 2.937982893e-05
A129: =IF('DF raw data'!A129="","",'DF raw data'!A129) -> -269 | B129: =IF('DF raw data'!B129="","",'DF raw data'!B129) -> -1.27563e-05 | C129: =IF('DF raw data'!C129="","",'DF raw data'!C129) -> 0.000175414 | D129: =IF('DF raw data'!D129="","",'DF raw data'!D129) -> -2.93877e-05 | F129: -9.254785313e-07 | G129: 5.294418912e-05 | H129: -6.70061972e-06 | J129: 9.27980192e-05 | K129: 0.001987294315 | L129: 0.001677232769 | M129: 0.02706940481 | N129: 3.079068955e-05
A130: =IF('DF raw data'!A130="","",'DF raw data'!A130) -> -268.5 | B130: =IF('DF raw data'!B130="","",'DF raw data'!B130) -> -1.04492e-05 | C130: =IF('DF raw data'!C130="","",'DF raw data'!C130) -> 0.000176867 | D130: =IF('DF raw data'!D130="","",'DF raw data'!D130) -> -3.05782e-05 | F130: 1.390849869e-06 | G130: 5.440300112e-05 | H130: -7.89588172e-06 | J130: 9.349344413e-05 | K130: 0.002034041037 | L130: 0.00170443427 | M130: 0.02792162194 | N130: 3.224760815e-05
A131: =IF('DF raw data'!A131="","",'DF raw data'!A131) -> -268 | B131: =IF('DF raw data'!B131="","",'DF raw data'!B131) -> 1.79371e-07 | C131: =IF('DF raw data'!C131="","",'DF raw data'!C131) -> 0.000182254 | D131: =IF('DF raw data'!D131="","",'DF raw data'!D131) -> -2.57147e-05 | F131: =(1-$G$1*($B$54-$G$2))*(B131-F$5) -> 1.206193515e-05 | G131: =(1-$G$1*($B$54-$G$2))*(C131-G$5) -> 5.981154912e-05 | H131: =(1-$G$1*($B$54-$G$2))*(D131-H$5) -> -3.01292772e-06 | J131: 9.952441171e-05 | K131: 0.002083803243 | L131: 0.001734340044 | M131: 0.02878879196 | N131: 3.37565284e-05
A132: =IF('DF raw data'!A132="","",'DF raw data'!A132) -> -267.5 | B132: =IF('DF raw data'!B132="","",'DF raw data'!B132) -> -1.30169e-05 | C132: =IF('DF raw data'!C132="","",'DF raw data'!C132) -> 0.000184683 | D132: =IF('DF raw data'!D132="","",'DF raw data'!D132) -> -2.14133e-05 | F132: -1.187120931e-06 | G132: 6.225026512e-05 | H132: 1.30567788e-06 | J132: 9.893085124e-05 | K132: 0.002133268669 | L132: 0.001765465177 | M132: 0.02967152455 | N132: 3.53198557e-05
A133: =IF('DF raw data'!A133="","",'DF raw data'!A133) -> -267 | B133: =IF('DF raw data'!B133="","",'DF raw data'!B133) -> -2.70738e-06 | C133: =IF('DF raw data'!C133="","",'DF raw data'!C133) -> 0.000178134 | D133: =IF('DF raw data'!D133="","",'DF raw data'!D133) -> -1.87019e-05 | F133: 9.163637149e-06 | G133: 5.567506912e-05 | H133: 4.02792348e-06 | J133: 0.0001035126698 | K133: 0.002185025004 | L133: 0.001793302712 | M133: 0.03056817591 | N133: 3.693318045e-05
A134: =IF('DF raw data'!A134="","",'DF raw data'!A134) -> -266.5 | B134: =IF('DF raw data'!B134="","",'DF raw data'!B134) -> -1.01957e-05 | C134: =IF('DF raw data'!C134="","",'DF raw data'!C134) -> 0.000171189 | D134: =IF('DF raw data'!D134="","",'DF raw data'!D134) -> -2.65906e-05 | F134: 1.645363869e-06 | G134: 4.870228912e-05 | H134: -3.89233132e-06 | J134: 0.0001043353518 | K134: 0.00223719268 | L134: 0.001817653856 | M134: 0.03147700284 | N134: 3.859055615e-05
A135: =IF('DF raw data'!A135="","",'DF raw data'!A135) -> -266 | B135: =IF('DF raw data'!B135="","",'DF raw data'!B135) -> 4.47189e-08 | C135: =IF('DF raw data'!C135="","",'DF raw data'!C135) -> 0.000178776 | D135: =IF('DF raw data'!D135="","",'DF raw data'!D135) -> -1.55995e-05 | F135: 1.192674444e-05 | G135: 5.631963712e-05 | H135: 7.14273308e-06 | J135: 0.000110298724 | K135: 0.002292342042 | L135: 0.001845813675 | M135: 0.03239990967 | N135: 4.030015311e-05
A136: =IF('DF raw data'!A136="","",'DF raw data'!A136) -> -265.5 | B136: =IF('DF raw data'!B136="","",'DF raw data'!B136) -> -1.82649e-05 | C136: =IF('DF raw data'!C136="","",'DF raw data'!C136) -> 0.000175893 | D136: =IF('DF raw data'!D136="","",'DF raw data'!D136) -> -2.69936e-05 | F136: -6.456112931e-06 | G136: 5.342510512e-05 | H136: -4.29694332e-06 | J136: 0.0001070706675 | K136: 0.002345877375 | L136: 0.001872526227 | M136: 0.03333617279 | N136: 4.205906241e-05
A137: =IF('DF raw data'!A137="","",'DF raw data'!A137) -> -265 | B137: =IF('DF raw data'!B137="","",'DF raw data'!B137) -> -4.60487e-07 | C137: =IF('DF raw data'!C137="","",'DF raw data'!C137) -> 0.000178333 | D137: =IF('DF raw data'!D137="","",'DF raw data'!D137) -> -2.66469e-05 | F137: 1.141951772e-05 | G137: 5.587486512e-05 | H137: -3.94885652e-06 | J137: 0.0001127804264 | K137: 0.002402267589 | L137: 0.00190046366 | M137: 0.03428640462 | N137: 4.387130319e-05
A138: =IF('DF raw data'!A138="","",'DF raw data'!A138) -> -264.5 | B138: =IF('DF raw data'!B138="","",'DF raw data'!B138) -> -6.16925e-06 | C138: =IF('DF raw data'!C138="","",'DF raw data'!C138) -> 0.000173644 | D138: =IF('DF raw data'!D138="","",'DF raw data'!D138) -> -1.32443e-05 | F138: 5.687919669e-06 | G138: 5.116710912e-05 | H138: 9.50735388e-06 | J138: 0.0001156243862 | K138: 0.002460079782 | L138: 0.001926047214 | M138: 0.03524942823 | N138: 4.573281662e-05
A139: =IF('DF raw data'!A139="","",'DF raw data'!A139) -> -264 | B139: =IF('DF raw data'!B139="","",'DF raw data'!B139) -> 3.06023e-07 | C139: =IF('DF raw data'!C139="","",'DF raw data'!C139) -> 0.000174752 | D139: =IF('DF raw data'!D139="","",'DF raw data'!D139) -> -2.3491e-05 | F139: 1.218909376e-05 | G139: 5.227954112e-05 | H139: -7.803329205e-07 | J139: 0.0001217189331 | K139: 0.002520939248 | L139: 0.001952186985 | M139: 0.03622552172 | N139: 4.764574138e-05
A140: =IF('DF raw data'!A140="","",'DF raw data'!A140) -> -263.5 | B140: =IF('DF raw data'!B140="","",'DF raw data'!B140) -> -1.01358e-05 | C140: =IF('DF raw data'!C140="","",'DF raw data'!C140) -> 0.000176529 | D140: =IF('DF raw data'!D140="","",'DF raw data'!D140) -> -1.98835e-05 | F140: 1.705503469e-06 | G140: 5.406364912e-05 | H140: 2.84159708e-06 | J140: 0.0001225716848 | K140: 0.002582225091 | L140: 0.00197921881 | M140: 0.03721513112 | N140: 4.961190684e-05
A141: =IF('DF raw data'!A141="","",'DF raw data'!A141) -> -263 | B141: =IF('DF raw data'!B141="","",'DF raw data'!B141) -> -1.99473e-06 | C141: =IF('DF raw data'!C141="","",'DF raw data'!C141) -> 0.000175047 | D141: =IF('DF raw data'!D141="","",'DF raw data'!D141) -> -3.14829e-05 | F141: 9.879137749e-06 | G141: 5.257572112e-05 | H141: -8.80420052e-06 | J141: 0.0001275112537 | K141: 0.002645980718 | L141: 0.00200550667 | M141: 0.03821788446 | N141: 5.16310649e-05
A142: =IF('DF raw data'!A142="","",'DF raw data'!A142) -> -262.5 | B142: =IF('DF raw data'!B142="","",'DF raw data'!B142) -> -1.07165e-05 | C142: =IF('DF raw data'!C142="","",'DF raw data'!C142) -> 0.00016564 | D142: =IF('DF raw data'!D142="","",'DF raw data'!D142) -> -1.33725e-05 | F142: 1.122480669e-06 | G142: 4.313109312e-05 | H142: 9.37864108e-06 | J142: 0.000128072494 | K142: 0.002710016965 | L142: 0.002027072217 | M142: 0.03923142057 | N142: 5.369377707e-05
A143: =IF('DF raw data'!A143="","",'DF raw data'!A143) -> -262 | B143: =IF('DF raw data'!B143="","",'DF raw data'!B143) -> -2.77287e-06 | C143: =IF('DF raw data'!C143="","",'DF raw data'!C143) -> 0.000168898 | D143: =IF('DF raw data'!D143="","",'DF raw data'!D143) -> -1.67385e-05 | F143: 9.097885189e-06 | G143: 4.640212512e-05 | H143: 5.99917708e-06 | J143: 0.0001326214366 | K143: 0.002776327683 | L143: 0.002050273279 | M143: 0.04025655721 | N143: 5.580438155e-05
A144: =IF('DF raw data'!A144="","",'DF raw data'!A144) -> -261.5 | B144: =IF('DF raw data'!B144="","",'DF raw data'!B144) -> -1.3859e-05 | C144: =IF('DF raw data'!C144="","",'DF raw data'!C144) -> 0.000169476 | D144: =IF('DF raw data'!D144="","",'DF raw data'!D144) -> -6.65988e-06 | F144: -2.032589331e-06 | G144: 4.698243712e-05 | H144: 1.611811156e-05 | J144: 0.000131605142 | K144: 0.002842130254 | L144: 0.002073764498 | M144: 0.04129343945 | N144: 5.796329111e-05
A145: =IF('DF raw data'!A145="","",'DF raw data'!A145) -> -261 | B145: =IF('DF raw data'!B145="","",'DF raw data'!B145) -> -5.33138e-06 | C145: =IF('DF raw data'!C145="","",'DF raw data'!C145) -> 0.000177305 | D145: =IF('DF raw data'!D145="","",'DF raw data'!D145) -> -2.1932e-05 | F145: 6.529141149e-06 | G145: 5.484275312e-05 | H145: 7.849030795e-07 | J145: 0.0001348697125 | K145: 0.00290956511 | L145: 0.002101185874 | M145: 0.04234403239 | N145: 6.017987706e-05
A146: =IF('DF raw data'!A146="","",'DF raw data'!A146) -> -260.5 | B146: =IF('DF raw data'!B146="","",'DF raw data'!B146) -> -7.63617e-06 | C146: =IF('DF raw data'!C146="","",'DF raw data'!C146) -> 0.000174355 | D146: =IF('DF raw data'!D146="","",'DF raw data'!D146) -> -2.2685e-05 | F146: 4.215131989e-06 | G146: 5.188095312e-05 | H146: 2.889107951e-08 | J146: 0.0001369772785 | K146: 0.002978053749 | L146: 0.002127126351 | M146: 0.04340759557 | N146: 6.245159171e-05
A147: =IF('DF raw data'!A147="","",'DF raw data'!A147) -> -260 | B147: =IF('DF raw data'!B147="","",'DF raw data'!B147) -> -8.02484e-06 | C147: =IF('DF raw data'!C147="","",'DF raw data'!C147) -> 0.000170428 | D147: =IF('DF raw data'!D147="","",'DF raw data'!D147) -> -1.69598e-05 | F147: 3.824907309e-06 | G147: 4.793824512e-05 | H147: 5.77699188e-06 | J147: 0.0001388897322 | K147: 0.003047498615 | L147: 0.002151095473 | M147: 0.0444831433 | N147: 6.477484275e-05
A148: =IF('DF raw data'!A148="","",'DF raw data'!A148) -> -259.5 | B148: =IF('DF raw data'!B148="","",'DF raw data'!B148) -> -1.007e-05 | C148: =IF('DF raw data'!C148="","",'DF raw data'!C148) -> 0.000164904 | D148: =IF('DF raw data'!D148="","",'DF raw data'!D148) -> -2.22631e-05 | F148: 1.771566669e-06 | G148: 4.239214912e-05 | H148: 4.524786795e-07 | J148: 0.0001397755155 | K148: 0.003117386373 | L148: 0.002172291548 | M148: 0.04556928908 | N148: 6.714403664e-05
A149: =IF('DF raw data'!A149="","",'DF raw data'!A149) -> -259 | B149: =IF('DF raw data'!B149="","",'DF raw data'!B149) -> -5.26396e-07 | C149: =IF('DF raw data'!C149="","",'DF raw data'!C149) -> 0.000173122 | D149: =IF('DF raw data'!D149="","",'DF raw data'!D149) -> -2.39872e-05 | F149: 1.135334508e-05 | G149: 5.064302112e-05 | H149: -1.27851772e-06 | J149: 0.0001454521881 | K149: 0.003190112467 | L149: 0.002197613059 | M149: 0.04666809561 | N149: 6.956936638e-05
A150: =IF('DF raw data'!A150="","",'DF raw data'!A150) -> -258.5 | B150: =IF('DF raw data'!B150="","",'DF raw data'!B150) -> -2.00937e-06 | C150: =IF('DF raw data'!C150="","",'DF raw data'!C150) -> 0.000169249 | D150: =IF('DF raw data'!D150="","",'DF raw data'!D150) -> -8.6549e-06 | F150: 9.864439189e-06 | G150: 4.675452912e-05 | H150: 1.411511148e-05 | J150: 0.0001503844077 | K150: 0.003265304671 | L150: 0.002220990323 | M150: 0.04777859077 | N150: 7.204707313e-05
A151: =IF('DF raw data'!A151="","",'DF raw data'!A151) -> -258 | B151: =IF('DF raw data'!B151="","",'DF raw data'!B151) -> -2.01257e-05 | C151: =IF('DF raw data'!C151="","",'DF raw data'!C151) -> 0.000171035 | D151: =IF('DF raw data'!D151="","",'DF raw data'!D151) -> -2.41008e-05 | F151: -8.324356131e-06 | G151: 4.854767312e-05 | H151: -1.39257212e-06 | J151: 0.0001462222296 | K151: 0.003338415786 | L151: 0.00224526416 | M151: 0.04890122285 | N151: 7.457836917e-05
A152: =IF('DF raw data'!A152="","",'DF raw data'!A152) -> -257.5 | B152: =IF('DF raw data'!B152="","",'DF raw data'!B152) -> -1.83309e-05 | C152: =IF('DF raw data'!C152="","",'DF raw data'!C152) -> 0.000166462 | D152: =IF('DF raw data'!D152="","",'DF raw data'!D152) -> -2.39563e-05 | F152: -6.522376931e-06 | G152: 4.395638112e-05 | H152: -1.24749412e-06 | J152: 0.0001429610411 | K152: 0.003409896306 | L152: 0.00226724235 | M152: 0.05003484402 | N152: 7.715878204e-05
A153: =IF('DF raw data'!A153="","",'DF raw data'!A153) -> -257 | B153: =IF('DF raw data'!B153="","",'DF raw data'!B153) -> -1.59062e-05 | C153: =IF('DF raw data'!C153="","",'DF raw data'!C153) -> 0.000165243 | D153: =IF('DF raw data'!D153="","",'DF raw data'!D153) -> -1.20042e-05 | F153: -4.087978131e-06 | G153: 4.273250512e-05 | H153: 1.075241428e-05 | J153: 0.0001409170521 | K153: 0.003480354832 | L153: 0.002288608603 | M153: 0.05117914832 | N153: 7.978757551e-05
A154: =IF('DF raw data'!A154="","",'DF raw data'!A154) -> -256.5 | B154: =IF('DF raw data'!B154="","",'DF raw data'!B154) -> -1.71766e-05 | C154: =IF('DF raw data'!C154="","",'DF raw data'!C154) -> 0.000166474 | D154: =IF('DF raw data'!D154="","",'DF raw data'!D154) -> -2.60048e-05 | F154: -5.363459731e-06 | G154: 4.396842912e-05 | H154: -3.30418812e-06 | J154: 0.0001382353222 | K154: 0.003549472494 | L154: 0.002310592817 | M154: 0.05233444473 | N154: 8.24665496e-05
A155: =IF('DF raw data'!A155="","",'DF raw data'!A155) -> -256 | B155: =IF('DF raw data'!B155="","",'DF raw data'!B155) -> -1.31479e-05 | C155: =IF('DF raw data'!C155="","",'DF raw data'!C155) -> 0.0001729 | D155: =IF('DF raw data'!D155="","",'DF raw data'!D155) -> -1.83383e-05 | F155: -1.318644931e-06 | G155: 5.042013312e-05 | H155: 4.39297788e-06 | J155: 0.0001375759997 | K155: 0.003618260493 | L155: 0.002335802884 | M155: 0.05350234618 | N155: 8.520400073e-05
A156: =IF('DF raw data'!A156="","",'DF raw data'!A156) -> -255.5 | B156: =IF('DF raw data'!B156="","",'DF raw data'!B156) -> -3.54397e-06 | C156: =IF('DF raw data'!C156="","",'DF raw data'!C156) -> 0.000175915 | D156: =IF('DF raw data'!D156="","",'DF raw data'!D156) -> -1.23413e-05 | F156: 8.323700789e-06 | G156: 5.344719312e-05 | H156: 1.041396588e-05 | J156: 0.0001417378501 | K156: 0.003689129418 | L156: 0.00236252648 | M156: 0.05468360942 | N156: 8.800481123e-05
A157: =IF('DF raw data'!A157="","",'DF raw data'!A157) -> -255 | B157: =IF('DF raw data'!B157="","",'DF raw data'!B157) -> -1.39225e-05 | C157: =IF('DF raw data'!C157="","",'DF raw data'!C157) -> 0.000177173 | D157: =IF('DF raw data'!D157="","",'DF raw data'!D157) -> -9.02188e-06 | F157: -2.096343331e-06 | G157: 5.471022512e-05 | H157: 1.374666356e-05 | J157: 0.0001406896785 | K157: 0.003759474258 | L157: 0.002389881593 | M157: 0.05587855021 | N157: 9.087047504e-05
A158: =IF('DF raw data'!A158="","",'DF raw data'!A158) -> -254.5 | B158: =IF('DF raw data'!B158="","",'DF raw data'!B158) -> -1.29632e-05 | C158: =IF('DF raw data'!C158="","",'DF raw data'!C158) -> 0.000168279 | D158: =IF('DF raw data'!D158="","",'DF raw data'!D158) -> -5.44228e-06 | F158: -1.133206131e-06 | G158: 4.578064912e-05 | H158: 1.734058196e-05 | J158: 0.0001401230754 | K158: 0.003829535795 | L158: 0.002412771918 | M158: 0.05708493617 | N158: 9.379102644e-05
A159: =IF('DF raw data'!A159="","",'DF raw data'!A159) -> -254 | B159: =IF('DF raw data'!B159="","",'DF raw data'!B159) -> -1.10941e-05 | C159: =IF('DF raw data'!C159="","",'DF raw data'!C159) -> 0.000171905 | D159: =IF('DF raw data'!D159="","",'DF raw data'!D159) -> -2.49227e-05 | F159: 7.433702687e-07 | G159: 4.942115312e-05 | H159: -2.21775972e-06 | J159: 0.0001404947605 | K159: 0.003899783176 | L159: 0.002437482494 | M159: 0.05830367742 | N159: 9.677155628e-05
A160: =IF('DF raw data'!A160="","",'DF raw data'!A160) -> -253.5 | B160: =IF('DF raw data'!B160="","",'DF raw data'!B160) -> -1.72375e-05 | C160: =IF('DF raw data'!C160="","",'DF raw data'!C160) -> 0.000173769 | D160: =IF('DF raw data'!D160="","",'DF raw data'!D160) -> -3.092e-05 | F160: -5.424603331e-06 | G160: 5.129260912e-05 | H160: -8.23904892e-06 | J160: 0.0001377824589 | K160: 0.003968674405 | L160: 0.002463128799 | M160: 0.05953524182 | N160: 9.981455002e-05
A161: =IF('DF raw data'!A161="","",'DF raw data'!A161) -> -253 | B161: =IF('DF raw data'!B161="","",'DF raw data'!B161) -> -2.10956e-05 | C161: =IF('DF raw data'!C161="","",'DF raw data'!C161) -> 0.000171213 | D161: =IF('DF raw data'!D161="","",'DF raw data'!D161) -> -1.00471e-05 | F161: -9.298135731e-06 | G161: 4.872638512e-05 | H161: 1.271734268e-05 | J161: 0.000133133391 | K161: 0.004035241101 | L161: 0.002487491991 | M161: 0.06077898781 | N161: 0.0001029172205
A162: =IF('DF raw data'!A162="","",'DF raw data'!A162) -> -252.5 | B162: =IF('DF raw data'!B162="","",'DF raw data'!B162) -> -2.29456e-05 | C162: =IF('DF raw data'!C162="","",'DF raw data'!C162) -> 0.000169164 | D162: =IF('DF raw data'!D162="","",'DF raw data'!D162) -> -1.86095e-05 | F162: -1.115553573e-05 | G162: 4.666918912e-05 | H162: 4.12069308e-06 | J162: 0.0001275556231 | K162: 0.004099018912 | L162: 0.002510826586 | M162: 0.06203440111 | N162: 0.0001060774808
A163: =IF('DF raw data'!A163="","",'DF raw data'!A163) -> -252 | B163: =IF('DF raw data'!B163="","",'DF raw data'!B163) -> -1.24468e-05 | C163: =IF('DF raw data'!C163="","",'DF raw data'!C163) -> 0.000176326 | D163: =IF('DF raw data'!D163="","",'DF raw data'!D163) -> -1.2938e-05 | F163: -6.147405313e-07 | G163: 5.385983712e-05 | H163: 9.81487908e-06 | J163: 0.0001272482529 | K163: 0.004162643039 | L163: 0.002537756504 | M163: 0.06330327936 | N163: 0.0001093056809
A164: =IF('DF raw data'!A164="","",'DF raw data'!A164) -> -251.5 | B164: =IF('DF raw data'!B164="","",'DF raw data'!B164) -> -8.58736e-08 | C164: =IF('DF raw data'!C164="","",'DF raw data'!C164) -> 0.000182985 | D164: =IF('DF raw data'!D164="","",'DF raw data'!D164) -> -1.17326e-05 | F164: 1.179562957e-05 | G164: 6.054547312e-05 | H164: 1.102510068e-05 | J164: 0.0001331460676 | K164: 0.004229216072 | L164: 0.002568029241 | M164: 0.06458729398 | N164: 0.0001126119319
A165: =IF('DF raw data'!A165="","",'DF raw data'!A165) -> -251 | B165: =IF('DF raw data'!B165="","",'DF raw data'!B165) -> -2.08942e-05 | C165: =IF('DF raw data'!C165="","",'DF raw data'!C165) -> 0.00017963 | D165: =IF('DF raw data'!D165="","",'DF raw data'!D165) -> -2.41966e-05 | F165: -9.095930131e-06 | G165: 5.717705312e-05 | H165: -1.48875532e-06 | J165: 0.0001285981026 | K165: 0.004293515124 | L165: 0.002596617768 | M165: 0.06588560286 | N165: 0.0001159914125
A166: =IF('DF raw data'!A166="","",'DF raw data'!A166) -> -250.5 | B166: =IF('DF raw data'!B166="","",'DF raw data'!B166) -> -2.52462e-05 | C166: =IF('DF raw data'!C166="","",'DF raw data'!C166) -> 0.00017345 | D166: =IF('DF raw data'!D166="","",'DF raw data'!D166) -> -2.58984e-05 | F166: -1.346533813e-05 | G166: 5.097233312e-05 | H166: -3.19736252e-06 | J166: 0.0001218654335 | K166: 0.00435444784 | L166: 0.002622103934 | M166: 0.06719665483 | N166: 0.0001194365527
A167: =IF('DF raw data'!A167="","",'DF raw data'!A167) -> -250 | B167: =IF('DF raw data'!B167="","",'DF raw data'!B167) -> -8.91766e-06 | C167: =IF('DF raw data'!C167="","",'DF raw data'!C167) -> 0.000168592 | D167: =IF('DF raw data'!D167="","",'DF raw data'!D167) -> -2.28988e-05 | F167: 2.928516029e-06 | G167: 4.609490112e-05 | H167: -1.857641205e-07 | J167: 0.0001233296915 | K167: 0.004416112686 | L167: 0.002645151385 | M167: 0.06851923052 | N167: 0.0001229425707
A168: =IF('DF raw data'!A168="","",'DF raw data'!A168) -> -249.5 | B168: =IF('DF raw data'!B168="","",'DF raw data'!B168) -> -1.58367e-05 | C168: =IF('DF raw data'!C168="","",'DF raw data'!C168) -> 0.00017295 | D168: =IF('DF raw data'!D168="","",'DF raw data'!D168) -> -1.82493e-05 | F168: -4.018200131e-06 | G168: 5.047033312e-05 | H168: 4.48233388e-06 | J168: 0.0001213205915 | K168: 0.004476772982 | L168: 0.002670386551 | M168: 0.0698544238 | N168: 0.0001265154122
A169: =IF('DF raw data'!A169="","",'DF raw data'!A169) -> -249 | B169: =IF('DF raw data'!B169="","",'DF raw data'!B169) -> -1.14181e-05 | C169: =IF('DF raw data'!C169="","",'DF raw data'!C169) -> 0.000176793 | D169: =IF('DF raw data'!D169="","",'DF raw data'!D169) -> -1.90741e-05 | F169: 4.180742687e-07 | G169: 5.432870512e-05 | H169: 3.65423468e-06 | J169: 0.0001215296286 | K169: 0.004537537796 | L169: 0.002697550904 | M169: 0.07120319925 | N169: 0.0001301611874
A170: =IF('DF raw data'!A170="","",'DF raw data'!A170) -> -248.5 | B170: =IF('DF raw data'!B170="","",'DF raw data'!B170) -> -8.59631e-06 | C170: =IF('DF raw data'!C170="","",'DF raw data'!C170) -> 0.000174426 | D170: =IF('DF raw data'!D170="","",'DF raw data'!D170) -> -2.35039e-05 | F170: 3.251151429e-06 | G170: 5.195223712e-05 | H170: -7.932845205e-07 | J170: 0.0001231552043 | K170: 0.004599115398 | L170: 0.002723527022 | M170: 0.07256496276 | N170: 0.0001338775707
A171: =IF('DF raw data'!A171="","",'DF raw data'!A171) -> -248 | B171: =IF('DF raw data'!B171="","",'DF raw data'!B171) -> -7.57074e-06 | C171: =IF('DF raw data'!C171="","",'DF raw data'!C171) -> 0.000170683 | D171: =IF('DF raw data'!D171="","",'DF raw data'!D171) -> -2.57248e-05 | F171: 4.280823709e-06 | G171: 4.819426512e-05 | H171: -3.02306812e-06 | J171: 0.0001252956162 | K171: 0.004661763206 | L171: 0.002747624155 | M171: 0.07393877484 | N171: 0.0001376601394
A172: =IF('DF raw data'!A172="","",'DF raw data'!A172) -> -247.5 | B172: =IF('DF raw data'!B172="","",'DF raw data'!B172) -> -1.21285e-05 | C172: =IF('DF raw data'!C172="","",'DF raw data'!C172) -> 0.000171572 | D172: =IF('DF raw data'!D172="","",'DF raw data'!D172) -> -8.34329e-06 | F172: -2.951673313e-07 | G172: 4.908682112e-05 | H172: 1.442796792e-05 | J172: 0.0001251480325 | K172: 0.004724337223 | L172: 0.002772167565 | M172: 0.07532485862 | N172: 0.0001415104269
A173: =IF('DF raw data'!A173="","",'DF raw data'!A173) -> -247 | B173: =IF('DF raw data'!B173="","",'DF raw data'!B173) -> -3.34535e-06 | C173: =IF('DF raw data'!C173="","",'DF raw data'!C173) -> 0.000172319 | D173: =IF('DF raw data'!D173="","",'DF raw data'!D173) -> -2.30594e-05 | F173: 8.523115269e-06 | G173: 4.983680912e-05 | H173: -3.470065205e-07 | J173: 0.0001294095901 | K173: 0.004789042018 | L173: 0.00279708597 | M173: 0.07672340161 | N173: 0.0001454306453
A174: =IF('DF raw data'!A174="","",'DF raw data'!A174) -> -246.5 | B174: =IF('DF raw data'!B174="","",'DF raw data'!B174) -> -1.42956e-05 | C174: =IF('DF raw data'!C174="","",'DF raw data'!C174) -> 0.00016541 | D174: =IF('DF raw data'!D174="","",'DF raw data'!D174) -> -2.41023e-05 | F174: -2.470935731e-06 | G174: 4.290017312e-05 | H174: -1.39407812e-06 | J174: 0.0001281741223 | K174: 0.004853129079 | L174: 0.002818536057 | M174: 0.07813266963 | N174: 0.0001494109324
A175: =IF('DF raw data'!A175="","",'DF raw data'!A175) -> -246 | B175: =IF('DF raw data'!B175="","",'DF raw data'!B175) -> -1.9931e-05 | C175: =IF('DF raw data'!C175="","",'DF raw data'!C175) -> 0.000160569 | D175: =IF('DF raw data'!D175="","",'DF raw data'!D175) -> -2.85591e-05 | F175: -8.128877331e-06 | G175: 3.803980912e-05 | H175: -5.86870532e-06 | J175: 0.0001241096836 | K175: 0.004915183921 | L175: 0.002837555961 | M175: 0.07955144761 | N175: 0.0001534444959
A176: =IF('DF raw data'!A176="","",'DF raw data'!A176) -> -245.5 | B176: =IF('DF raw data'!B176="","",'DF raw data'!B176) -> -1.86596e-05 | C176: =IF('DF raw data'!C176="","",'DF raw data'!C176) -> 0.00016151 | D176: =IF('DF raw data'!D176="","",'DF raw data'!D176) -> -1.02952e-05 | F176: -6.852391731e-06 | G176: 3.898457312e-05 | H176: 1.246825028e-05 | J176: 0.0001206834877 | K176: 0.004975525665 | L176: 0.002857048248 | M176: 0.08097997174 | N176: 0.0001575331405
A177: =IF('DF raw data'!A177="","",'DF raw data'!A177) -> -245 | B177: =IF('DF raw data'!B177="","",'DF raw data'!B177) -> -1.27668e-05 | C177: =IF('DF raw data'!C177="","",'DF raw data'!C177) -> 0.000164988 | D177: =IF('DF raw data'!D177="","",'DF raw data'!D177) -> -1.36932e-05 | F177: -9.360205313e-07 | G177: 4.247648512e-05 | H177: 9.05665828e-06 | J177: 0.0001202154775 | K177: 0.005035633403 | L177: 0.00287828649 | M177: 0.08241911498 | N177: 0.0001616826329
A178: =IF('DF raw data'!A178="","",'DF raw data'!A178) -> -244.5 | B178: =IF('DF raw data'!B178="","",'DF raw data'!B178) -> -1.52658e-05 | C178: =IF('DF raw data'!C178="","",'DF raw data'!C178) -> 0.000160499 | D178: =IF('DF raw data'!D178="","",'DF raw data'!D178) -> -9.46846e-06 | F178: -3.445016531e-06 | G178: 3.796952912e-05 | H178: 1.329829724e-05 | J178: 0.0001184929692 | K178: 0.005094879888 | L178: 0.002897271255 | M178: 0.08386775061 | N178: 0.0001658867436
A179: =IF('DF raw data'!A179="","",'DF raw data'!A179) -> -244 | B179: =IF('DF raw data'!B179="","",'DF raw data'!B179) -> -1.80201e-05 | C179: =IF('DF raw data'!C179="","",'DF raw data'!C179) -> 0.000162919 | D179: =IF('DF raw data'!D179="","",'DF raw data'!D179) -> -1.20107e-05 | F179: -6.210333731e-06 | G179: 4.039920912e-05 | H179: 1.074588828e-05 | J179: 0.0001153878023 | K179: 0.005152573789 | L179: 0.002917470859 | M179: 0.08532648604 | N179: 0.0001701492189
A180: =IF('DF raw data'!A180="","",'DF raw data'!A180) -> -243.5 | B180: =IF('DF raw data'!B180="","",'DF raw data'!B180) -> -2.65103e-06 | C180: =IF('DF raw data'!C180="","",'DF raw data'!C180) -> 0.000168629 | D180: =IF('DF raw data'!D180="","",'DF raw data'!D180) -> -6.66986e-06 | F180: 9.220212549e-06 | G180: 4.613204912e-05 | H180: 1.610809164e-05 | J180: 0.0001199979086 | K180: 0.005212572743 | L180: 0.002940536884 | M180: 0.08679675448 | N180: 0.0001744797972
A181: =IF('DF raw data'!A181="","",'DF raw data'!A181) -> -243 | B181: =IF('DF raw data'!B181="","",'DF raw data'!B181) -> -5.0169e-06 | C181: =IF('DF raw data'!C181="","",'DF raw data'!C181) -> 0.000178466 | D181: =IF('DF raw data'!D181="","",'DF raw data'!D181) -> -1.33391e-05 | F181: 6.844879069e-06 | G181: 5.600839712e-05 | H181: 9.41217468e-06 | J181: 0.0001234203481 | K181: 0.005274282917 | L181: 0.002968541083 | M181: 0.08828102502 | N181: 0.0001788935316
A182: =IF('DF raw data'!A182="","",'DF raw data'!A182) -> -242.5 | B182: =IF('DF raw data'!B182="","",'DF raw data'!B182) -> -1.82718e-05 | C182: =IF('DF raw data'!C182="","",'DF raw data'!C182) -> 0.000171894 | D182: =IF('DF raw data'!D182="","",'DF raw data'!D182) -> -1.57836e-05 | F182: -6.463040531e-06 | G182: 4.941010912e-05 | H182: 6.95789668e-06 | J182: 0.0001201888279 | K182: 0.005334377331 | L182: 0.002993246137 | M182: 0.08977764809 | N182: 0.0001833805155
A183: =IF('DF raw data'!A183="","",'DF raw data'!A183) -> -242 | B183: =IF('DF raw data'!B183="","",'DF raw data'!B183) -> -1.69893e-05 | C183: =IF('DF raw data'!C183="","",'DF raw data'!C183) -> 0.000156883 | D183: =IF('DF raw data'!D183="","",'DF raw data'!D183) -> -2.12793e-05 | F183: -5.175410531e-06 | G183: 3.433906512e-05 | H183: 1.44021388e-06 | J183: 0.0001176011226 | K183: 0.005393177893 | L183: 0.00301041567 | M183: 0.09128285593 | N183: 0.0001879187317
A184: =IF('DF raw data'!A184="","",'DF raw data'!A184) -> -241.5 | B184: =IF('DF raw data'!B184="","",'DF raw data'!B184) -> -2.28176e-05 | C184: =IF('DF raw data'!C184="","",'DF raw data'!C184) -> 0.000157355 | D184: =IF('DF raw data'!D184="","",'DF raw data'!D184) -> -1.79129e-05 | F184: -1.102702373e-05 | G184: 3.481295312e-05 | H184: 4.82007948e-06 | J184: 0.0001120876108 | K184: 0.005449221698 | L184: 0.003027822146 | M184: 0.092796767 | N184: 0.000192508867
A185: =IF('DF raw data'!A185="","",'DF raw data'!A185) -> -241 | B185: =IF('DF raw data'!B185="","",'DF raw data'!B185) -> -4.49859e-06 | C185: =IF('DF raw data'!C185="","",'DF raw data'!C185) -> 0.000168709 | D185: =IF('DF raw data'!D185="","",'DF raw data'!D185) -> -2.24546e-05 | F185: 7.365262309e-06 | G185: 4.621236912e-05 | H185: 2.602126795e-07 | J185: 0.0001157702419 | K185: 0.005507106819 | L185: 0.003050928331 | M185: 0.09432223117 | N185: 0.0001971696502
A186: =IF('DF raw data'!A186="","",'DF raw data'!A186) -> -240.5 | B186: =IF('DF raw data'!B186="","",'DF raw data'!B186) -> -1.69207e-05 | C186: =IF('DF raw data'!C186="","",'DF raw data'!C186) -> 0.000176782 | D186: =IF('DF raw data'!D186="","",'DF raw data'!D186) -> -2.51957e-05 | F186: -5.106536131e-06 | G186: 5.431766112e-05 | H186: -2.49185172e-06 | J186: 0.0001132169738 | K186: 0.005563715306 | L186: 0.003078087161 | M186: 0.09586127475 | N186: 0.0002019133696
A187: =IF('DF raw data'!A187="","",'DF raw data'!A187) -> -240 | B187: =IF('DF raw data'!B187="","",'DF raw data'!B187) -> -1.08394e-05 | C187: =IF('DF raw data'!C187="","",'DF raw data'!C187) -> 0.000175355 | D187: =IF('DF raw data'!D187="","",'DF raw data'!D187) -> -2.28697e-05 | F187: 9.990890687e-07 | G187: 5.288495312e-05 | H187: -1.565477205e-07 | J187: 0.0001137165184 | K187: 0.005620573565 | L187: 0.003104529638 | M187: 0.09741353957 | N187: 0.0002067388874
A188: =IF('DF raw data'!A188="","",'DF raw data'!A188) -> -239.5 | B188: =IF('DF raw data'!B188="","",'DF raw data'!B188) -> -2.8139e-05 | C188: =IF('DF raw data'!C188="","",'DF raw data'!C188) -> 0.000161881 | D188: =IF('DF raw data'!D188="","",'DF raw data'!D188) -> -8.83992e-06 | F188: -1.636970933e-05 | G188: 3.935705712e-05 | H188: 1.39293514e-05 | J188: 0.0001055316637 | K188: 0.005673339397 | L188: 0.003124208166 | M188: 0.09897564365 | N188: 0.0002116247942
A189: =IF('DF raw data'!A189="","",'DF raw data'!A189) -> -239 | B189: =IF('DF raw data'!B189="","",'DF raw data'!B189) -> -9.11702e-06 | C189: =IF('DF raw data'!C189="","",'DF raw data'!C189) -> 0.000159313 | D189: =IF('DF raw data'!D189="","",'DF raw data'!D189) -> -1.20527e-05 | F189: 2.728358589e-06 | G189: 3.677878512e-05 | H189: 1.070372028e-05 | J189: 0.000106895843 | K189: 0.005726787318 | L189: 0.003142597559 | M189: 0.1005469424 | N189: 0.0002165684673
A190: =IF('DF raw data'!A190="","",'DF raw data'!A190) -> -238.5 | B190: =IF('DF raw data'!B190="","",'DF raw data'!B190) -> -2.79461e-05 | C190: =IF('DF raw data'!C190="","",'DF raw data'!C190) -> 0.000160803 | D190: =IF('DF raw data'!D190="","",'DF raw data'!D190) -> -1.0276e-05 | F190: -1.617603773e-05 | G190: 3.827474512e-05 | H190: 1.248752708e-05 | J190: 9.880782414e-05 | K190: 0.005776191231 | L190: 0.003161734932 | M190: 0.1021278099 | N190: 0.0002215716327
A191: =IF('DF raw data'!A191="","",'DF raw data'!A191) -> -238 | B191: =IF('DF raw data'!B191="","",'DF raw data'!B191) -> -7.5771e-06 | C191: =IF('DF raw data'!C191="","",'DF raw data'!C191) -> 0.000171952 | D191: =IF('DF raw data'!D191="","",'DF raw data'!D191) -> -1.59566e-05 | F191: 4.274438269e-06 | G191: 4.946834112e-05 | H191: 6.78420468e-06 | J191: 0.0001009450433 | K191: 0.005826663752 | L191: 0.003186469102 | M191: 0.1037210444 | N191: 0.0002266535203
A192: =IF('DF raw data'!A192="","",'DF raw data'!A192) -> -237.5 | B192: =IF('DF raw data'!B192="","",'DF raw data'!B192) -> -2.68503e-05 | C192: =IF('DF raw data'!C192="","",'DF raw data'!C192) -> 0.000168083 | D192: =IF('DF raw data'!D192="","",'DF raw data'!D192) -> -2.08727e-05 | F192: -1.507585453e-05 | G192: 4.558386512e-05 | H192: 1.84844028e-06 | J192: =F192*$G$3+J191 -> 9.340711601e-05 | K192: =J192*$G$3+K191 -> 0.00587336731 | L192: =G192*$G$3+L191 -> 0.003209261035 | M192: =L192*$G$3+M191 -> 0.105325675 | N192: =(J192^2+L192^2)*$G$3+N191 -> 0.0002318075609
A193: =IF('DF raw data'!A193="","",'DF raw data'!A193) -> -237 | B193: =IF('DF raw data'!B193="","",'DF raw data'!B193) -> -3.99803e-06 | C193: =IF('DF raw data'!C193="","",'DF raw data'!C193) -> 0.000169907 | D193: =IF('DF raw data'!D193="","",'DF raw data'!D193) -> -4.24615e-06 | F193: 7.867824549e-06 | G193: 4.741516112e-05 | H193: 1.854149648e-05 | J193: 9.734102828e-05 | K193: 0.005922037824 | L193: 0.003232968615 | M193: 0.1069421593 | N193: 0.0002370383416
A194: =IF('DF raw data'!A194="","",'DF raw data'!A194) -> -236.5 | B194: =IF('DF raw data'!B194="","",'DF raw data'!B194) -> -2.5067e-05 | C194: =IF('DF raw data'!C194="","",'DF raw data'!C194) -> 0.000164836 | D194: =IF('DF raw data'!D194="","",'DF raw data'!D194) -> -5.85385e-06 | F194: -1.328542133e-05 | G194: 4.232387712e-05 | H194: 1.692736568e-05 | J194: 9.069831761e-05 | K194: 0.005967386983 | L194: 0.003254130554 | M194: 0.1085692245 | N194: 0.0002423371375
A195: =IF('DF raw data'!A195="","",'DF raw data'!A195) -> -236 | B195: =IF('DF raw data'!B195="","",'DF raw data'!B195) -> -4.75481e-07 | C195: =IF('DF raw data'!C195="","",'DF raw data'!C195) -> 0.000162135 | D195: =IF('DF raw data'!D195="","",'DF raw data'!D195) -> -3.5399e-06 | F195: =(1-$G$1*($B$54-$G$2))*(B195-F$5) -> 1.140446374e-05 | G195: =(1-$G$1*($B$54-$G$2))*(C195-G$5) -> 3.961207312e-05 | H195: =(1-$G$1*($B$54-$G$2))*(D195-H$5) -> 1.925057148e-05 | J195: 9.640054949e-05 | K195: 0.006015587258 | L195: 0.00327393659 | M195: 0.1102061928 | N195: 0.0002477011145
A196: =IF('DF raw data'!A196="","",'DF raw data'!A196) -> -235.5 | B196: =IF('DF raw data'!B196="","",'DF raw data'!B196) -> -1.26273e-05 | C196: =IF('DF raw data'!C196="","",'DF raw data'!C196) -> 0.000163825 | D196: =IF('DF raw data'!D196="","",'DF raw data'!D196) -> -2.9188e-05 | F196: -7.959625313e-07 | G196: 4.130883312e-05 | H196: -6.50012092e-06 | J196: 9.600256822e-05 | K196: 0.006063588542 | L196: 0.003294591007 | M196: 0.1118534883 | N196: 0.0002531328877
A197: =IF('DF raw data'!A197="","",'DF raw data'!A197) -> -235 | B197: =IF('DF raw data'!B197="","",'DF raw data'!B197) -> -8.67192e-06 | C197: =IF('DF raw data'!C197="","",'DF raw data'!C197) -> 0.000168264 | D197: =IF('DF raw data'!D197="","",'DF raw data'!D197) -> -6.86849e-06 | F197: 3.175238989e-06 | G197: 4.576558912e-05 | H197: 1.590866712e-05 | J197: 9.759018772e-05 | K197: 0.006112383636 | L197: 0.003317473801 | M197: 0.1135122252 | N197: 0.0002586404658
A198: =IF('DF raw data'!A198="","",'DF raw data'!A198) -> -234.5 | B198: =IF('DF raw data'!B198="","",'DF raw data'!B198) -> -1.12882e-05 | C198: =IF('DF raw data'!C198="","",'DF raw data'!C198) -> 0.00017656 | D198: =IF('DF raw data'!D198="","",'DF raw data'!D198) -> -2.00696e-05 | F198: 5.484938687e-07 | G198: 5.409477312e-05 | H198: 2.65475268e-06 | J198: 9.786443465e-05 | K198: 0.006161315853 | L198: 0.003344521188 | M198: 0.1151844858 | N198: 0.0002642381655
A199: =IF('DF raw data'!A199="","",'DF raw data'!A199) -> -234 | B199: =IF('DF raw data'!B199="","",'DF raw data'!B199) -> -6.8075e-06 | C199: =IF('DF raw data'!C199="","",'DF raw data'!C199) -> 0.000168303 | D199: =IF('DF raw data'!D199="","",'DF raw data'!D199) -> -1.74808e-05 | F199: 5.047116669e-06 | G199: 4.580474512e-05 | H199: 5.25390788e-06 | J199: 0.000100387993 | K199: 0.00621150985 | L199: 0.003367423561 | M199: 0.1168681976 | N199: 0.0002699129751
A200: =IF('DF raw data'!A200="","",'DF raw data'!A200) -> -233.5 | B200: =IF('DF raw data'!B200="","",'DF raw data'!B200) -> -2.82672e-05 | C200: =IF('DF raw data'!C200="","",'DF raw data'!C200) -> 0.000163039 | D200: =IF('DF raw data'!D200="","",'DF raw data'!D200) -> -8.99344e-06 | F200: -1.649842213e-05 | G200: 4.051968912e-05 | H200: 1.377521732e-05 | J200: 9.213878192e-05 | K200: 0.006257579241 | L200: 0.003387683405 | M200: 0.1185620393 | N200: 0.0002756554193
... 1079 more rows

Sheet 15 mm
A1: =IF('DF raw data'!E1="","",'DF raw data'!E1) -> Number of header lines | B1: =IF('DF raw data'!F1="","",'DF raw data'!F1) -> 54 | C1: =IF('DF raw data'!C1="","",'DF raw data'!C1) ->  | D1: =IF('DF raw data'!D1="","",'DF raw data'!D1) ->  | F1: T_coeff | G1: -0.001 | H1: /degC | J1: IBy total | K1: =J1267*1000 -> 5.063461017 | L1: muTm | M1: =L1267*1000 -> -32.89351258 | R1: DF ref | S1: 1
A2: =IF('DF raw data'!E2="","",'DF raw data'!E2) -> Measured by | B2: =IF('DF raw data'!F2="","",'DF raw data'!F2) -> Danfysik | C2: =IF('DF raw data'!C2="","",'DF raw data'!C2) ->  | D2: =IF('DF raw data'!D2="","",'DF raw data'!D2) ->  | F2: Tcorr | G2: 20 | H2: degC | J2: JBy total | K2: =K1267 -> -1.745865841 | L2: muTm^2 | M2: =M1267 -> -6.415582916
A3: =IF('DF raw data'!E3="","",'DF raw data'!E3) -> Operator | B3: =IF('DF raw data'!F3="","",'DF raw data'!F3) -> PMHA | C3: =IF('DF raw data'!C3="","",'DF raw data'!C3) ->  | D3: =IF('DF raw data'!D3="","",'DF raw data'!D3) ->  | F3: Step | G3: =A68-A67 -> 0.5 | H3: mm | J3: PI total | K3: =N1267 -> 7229.127088 | L3: T^2mm^3
A4: =IF('DF raw data'!E4="","",'DF raw data'!E4) -> Data-time | B4: =IF('DF raw data'!F4="","",'DF raw data'!F4) -> 26-09-2024, 10:34:27 | C4: =IF('DF raw data'!C4="","",'DF raw data'!C4) ->  | D4: =IF('DF raw data'!D4="","",'DF raw data'!D4) -> 
A5: =IF('DF raw data'!E5="","",'DF raw data'!E5) -> Project | B5: =IF('DF raw data'!F5="","",'DF raw data'!F5) -> 504314 | C5: =IF('DF raw data'!C5="","",'DF raw data'!C5) ->  | D5: Bamb avr | F5: =(AVERAGE(B67:B107) + AVERAGE(B1227:B1267))/2 -> -9.433702965e-06 | G5: =(AVERAGE(C67:C107) + AVERAGE(C1227:C1267))/2 -> 0.0001373431695 | H5: =(AVERAGE(D67:D107) + AVERAGE(D1227:D1267))/2 -> -2.704108415e-05
A6: =IF('DF raw data'!E6="","",'DF raw data'!E6) -> Magnet type | B6: =IF('DF raw data'!F6="","",'DF raw data'!F6) -> Dipole | C6: =IF('DF raw data'!C6="","",'DF raw data'!C6) -> 
A7: =IF('DF raw data'!E7="","",'DF raw data'!E7) -> Magnet nr. | B7: =IF('DF raw data'!F7="","",'DF raw data'!F7) -> 2410102 | C7: =IF('DF raw data'!C7="","",'DF raw data'!C7) -> 
A8: =IF('DF raw data'!E8="","",'DF raw data'!E8) -> Meas. number | B8: =IF('DF raw data'!F8="","",'DF raw data'!F8) -> 708 | C8: =IF('DF raw data'!C8="","",'DF raw data'!C8) -> 
A9: =IF('DF raw data'!E9="","",'DF raw data'!E9) -> Add. info | B9: =IF('DF raw data'!F9="","",'DF raw data'!F9) ->  | C9: =IF('DF raw data'!C9="","",'DF raw data'!C9) ->  | D9: =IF('DF raw data'!D9="","",'DF raw data'!D9) -> 
A10: =IF('DF raw data'!E10="","",'DF raw data'!E10) -> Device | B10: =IF('DF raw data'!F10="","",'DF raw data'!F10) -> (HAL) HALL-PROBE | C10: =IF('DF raw data'!C10="","",'DF raw data'!C10) ->  | D10: =IF('DF raw data'!D10="","",'DF raw data'!D10) -> 
A11: =IF('DF raw data'!E11="","",'DF raw data'!E11) -> Goal | B11: =IF('DF raw data'!F11="","",'DF raw data'!F11) -> (AXI) AXis Integral (Line, EFB) | C11: =IF('DF raw data'!C11="","",'DF raw data'!C11) ->  | D11: =IF('DF raw data'!D11="","",'DF raw data'!D11) -> 
A12: =IF('DF raw data'!E12="","",'DF raw data'!E12) -> Power supply mode | B12: =IF('DF raw data'!F12="","",'DF raw data'!F12) -> (PM) Permanent Magnet (no MPS in use) | C12: =IF('DF raw data'!C12="","",'DF raw data'!C12) ->  | D12: =IF('DF raw data'!D12="","",'DF raw data'!D12) -> 
A13: =IF('DF raw data'!E13="","",'DF raw data'!E13) -> Data format | B13: =IF('DF raw data'!F13="","",'DF raw data'!F13) -> Raw data text file | C13: =IF('DF raw data'!C13="","",'DF raw data'!C13) ->  | D13: =IF('DF raw data'!D13="","",'DF raw data'!D13) -> 
A14: =IF('DF raw data'!E14="","",'DF raw data'!E14) -> Direction of the pos. x-axis | B14: =IF('DF raw data'!F14="","",'DF raw data'!F14) -> See test program | C14: =IF('DF raw data'!C14="","",'DF raw data'!C14) ->  | D14: =IF('DF raw data'!D14="","",'DF raw data'!D14) -> 
A15: =IF('DF raw data'!E15="","",'DF raw data'!E15) -> Direction of the pos. y-axis | B15: =IF('DF raw data'!F15="","",'DF raw data'!F15) -> Vertical up | C15: =IF('DF raw data'!C15="","",'DF raw data'!C15) ->  | D15: =IF('DF raw data'!D15="","",'DF raw data'!D15) -> 
A16: =IF('DF raw data'!E16="","",'DF raw data'!E16) -> Direction of the pos. z-axis | B16: =IF('DF raw data'!F16="","",'DF raw data'!F16) -> See test program | C16: =IF('DF raw data'!C16="","",'DF raw data'!C16) ->  | D16: =IF('DF raw data'!D16="","",'DF raw data'!D16) -> 
A17: =IF('DF raw data'!E17="","",'DF raw data'!E17) -> Mapper type | B17: =IF('DF raw data'!F17="","",'DF raw data'!F17) -> Precision Hall Mapper | C17: =IF('DF raw data'!C17="","",'DF raw data'!C17) ->  | D17: =IF('DF raw data'!D17="","",'DF raw data'!D17) -> 
A18: =IF('DF raw data'!E18="","",'DF raw data'!E18) -> Mapper Danfysik Reg. Number | B18: =IF('DF raw data'!F18="","",'DF raw data'!F18) -> 2033-D (mapper 1) | C18: =IF('DF raw data'!C18="","",'DF raw data'!C18) ->  | D18: =IF('DF raw data'!D18="","",'DF raw data'!D18) -> 
A19: =IF('DF raw data'!E19="","",'DF raw data'!E19) -> Measurement consept | B19: =IF('DF raw data'!F19="","",'DF raw data'!F19) -> Square line grid | C19: =IF('DF raw data'!C19="","",'DF raw data'!C19) ->  | D19: =IF('DF raw data'!D19="","",'DF raw data'!D19) -> 
A20: =IF('DF raw data'!E20="","",'DF raw data'!E20) -> Mode | B20: =IF('DF raw data'!F20="","",'DF raw data'!F20) -> On-the-fly measurement | C20: =IF('DF raw data'!C20="","",'DF raw data'!C20) ->  | D20: =IF('DF raw data'!D20="","",'DF raw data'!D20) -> 
A21: =IF('DF raw data'!E21="","",'DF raw data'!E21) ->  | B21: =IF('DF raw data'!F21="","",'DF raw data'!F21) ->  | C21: =IF('DF raw data'!C21="","",'DF raw data'!C21) ->  | D21: =IF('DF raw data'!D21="","",'DF raw data'!D21) -> 
A22: =IF('DF raw data'!E22="","",'DF raw data'!E22) -> Probe Name | B22: =IF('DF raw data'!F22="","",'DF raw data'!F22) -> ID12_By | C22: =IF('DF raw data'!C22="","",'DF raw data'!C22) ->  | D22: =IF('DF raw data'!D22="","",'DF raw data'!D22) -> 
A23: =IF('DF raw data'!E23="","",'DF raw data'!E23) -> Probe Type | B23: =IF('DF raw data'!F23="","",'DF raw data'!F23) -> DF_ID_3D_Bxyz | C23: =IF('DF raw data'!C23="","",'DF raw data'!C23) ->  | D23: =IF('DF raw data'!D23="","",'DF raw data'!D23) -> 
A24: =IF('DF raw data'!E24="","",'DF raw data'!E24) -> Probe Danfysik Reg. Number | B24: =IF('DF raw data'!F24="","",'DF raw data'!F24) -> 2277 | C24: =IF('DF raw data'!C24="","",'DF raw data'!C24) ->  | D24: =IF('DF raw data'!D24="","",'DF raw data'!D24) -> 
A25: =IF('DF raw data'!E25="","",'DF raw data'!E25) -> Probe Axis | B25: =IF('DF raw data'!F25="","",'DF raw data'!F25) -> By | C25: =IF('DF raw data'!C25="","",'DF raw data'!C25) ->  | D25: =IF('DF raw data'!D25="","",'DF raw data'!D25) -> 
A26: =IF('DF raw data'!E26="","",'DF raw data'!E26) -> Probe Current Supply | B26: =IF('DF raw data'!F26="","",'DF raw data'!F26) -> 1825-D | C26: =IF('DF raw data'!C26="","",'DF raw data'!C26) ->  | D26: =IF('DF raw data'!D26="","",'DF raw data'!D26) -> 
A27: =IF('DF raw data'!E27="","",'DF raw data'!E27) -> Probe Gain Correction | B27: =IF('DF raw data'!F27="","",'DF raw data'!F27) -> 0.99599 | C27: =IF('DF raw data'!C27="","",'DF raw data'!C27) ->  | D27: =IF('DF raw data'!D27="","",'DF raw data'!D27) -> 
A28: =IF('DF raw data'!E28="","",'DF raw data'!E28) -> Probe Offset Correction | B28: =IF('DF raw data'!F28="","",'DF raw data'!F28) -> 0.0027595 | C28: =IF('DF raw data'!C28="","",'DF raw data'!C28) ->  | D28: =IF('DF raw data'!D28="","",'DF raw data'!D28) -> 
A29: =IF('DF raw data'!E29="","",'DF raw data'!E29) -> DVM Number | B29: =IF('DF raw data'!F29="","",'DF raw data'!F29) -> 2 | C29: =IF('DF raw data'!C29="","",'DF raw data'!C29) ->  | D29: =IF('DF raw data'!D29="","",'DF raw data'!D29) -> 
A30: =IF('DF raw data'!E30="","",'DF raw data'!E30) -> DVM Type | B30: =IF('DF raw data'!F30="","",'DF raw data'!F30) -> K2701 | C30: =IF('DF raw data'!C30="","",'DF raw data'!C30) ->  | D30: =IF('DF raw data'!D30="","",'DF raw data'!D30) -> 
A31: =IF('DF raw data'!E31="","",'DF raw data'!E31) -> DVM Danfysik Reg. Number | B31: =IF('DF raw data'!F31="","",'DF raw data'!F31) -> 1743-D | C31: =IF('DF raw data'!C31="","",'DF raw data'!C31) ->  | D31: =IF('DF raw data'!D31="","",'DF raw data'!D31) -> 
A32: =IF('DF raw data'!E32="","",'DF raw data'!E32) -> Probe Name | B32: =IF('DF raw data'!F32="","",'DF raw data'!F32) -> ID12_Bx | C32: =IF('DF raw data'!C32="","",'DF raw data'!C32) ->  | D32: =IF('DF raw data'!D32="","",'DF raw data'!D32) -> 
A33: =IF('DF raw data'!E33="","",'DF raw data'!E33) -> Probe Type | B33: =IF('DF raw data'!F33="","",'DF raw data'!F33) -> DF_ID_3D_Bxyz | C33: =IF('DF raw data'!C33="","",'DF raw data'!C33) ->  | D33: =IF('DF raw data'!D33="","",'DF raw data'!D33) -> 
A34: =IF('DF raw data'!E34="","",'DF raw data'!E34) -> Probe Danfysik Reg. Number | B34: =IF('DF raw data'!F34="","",'DF raw data'!F34) -> 2277 | C34: =IF('DF raw data'!C34="","",'DF raw data'!C34) ->  | D34: =IF('DF raw data'!D34="","",'DF raw data'!D34) -> 
A35: =IF('DF raw data'!E35="","",'DF raw data'!E35) -> Probe Axis | B35: =IF('DF raw data'!F35="","",'DF raw data'!F35) -> Bx | C35: =IF('DF raw data'!C35="","",'DF raw data'!C35) ->  | D35: =IF('DF raw data'!D35="","",'DF raw data'!D35) -> 
A36: =IF('DF raw data'!E36="","",'DF raw data'!E36) -> Probe Current Supply | B36: =IF('DF raw data'!F36="","",'DF raw data'!F36) -> 1825-D | C36: =IF('DF raw data'!C36="","",'DF raw data'!C36) ->  | D36: =IF('DF raw data'!D36="","",'DF raw data'!D36) -> 
A37: =IF('DF raw data'!E37="","",'DF raw data'!E37) -> Probe Gain Correction | B37: =IF('DF raw data'!F37="","",'DF raw data'!F37) -> 1 | C37: =IF('DF raw data'!C37="","",'DF raw data'!C37) ->  | D37: =IF('DF raw data'!D37="","",'DF raw data'!D37) -> 
A38: =IF('DF raw data'!E38="","",'DF raw data'!E38) -> Probe Offset Correction | B38: =IF('DF raw data'!F38="","",'DF raw data'!F38) -> -0.17537 | C38: =IF('DF raw data'!C38="","",'DF raw data'!C38) ->  | D38: =IF('DF raw data'!D38="","",'DF raw data'!D38) -> 
A39: =IF('DF raw data'!E39="","",'DF raw data'!E39) -> DVM Number | B39: =IF('DF raw data'!F39="","",'DF raw data'!F39) -> 3 | C39: =IF('DF raw data'!C39="","",'DF raw data'!C39) ->  | D39: =IF('DF raw data'!D39="","",'DF raw data'!D39) -> 
A40: =IF('DF raw data'!E40="","",'DF raw data'!E40) -> DVM Type | B40: =IF('DF raw data'!F40="","",'DF raw data'!F40) -> K2701 | C40: =IF('DF raw data'!C40="","",'DF raw data'!C40) ->  | D40: =IF('DF raw data'!D40="","",'DF raw data'!D40) -> 
A41: =IF('DF raw data'!E41="","",'DF raw data'!E41) -> DVM Danfysik Reg. Number | B41: =IF('DF raw data'!F41="","",'DF raw data'!F41) -> 1744-D | C41: =IF('DF raw data'!C41="","",'DF raw data'!C41) ->  | D41: =IF('DF raw data'!D41="","",'DF raw data'!D41) -> 
A42: =IF('DF raw data'!E42="","",'DF raw data'!E42) -> Probe Name | B42: =IF('DF raw data'!F42="","",'DF raw data'!F42) -> ID12_Bz | C42: =IF('DF raw data'!C42="","",'DF raw data'!C42) ->  | D42: =IF('DF raw data'!D42="","",'DF raw data'!D42) -> 
A43: =IF('DF raw data'!E43="","",'DF raw data'!E43) -> Probe Type | B43: =IF('DF raw data'!F43="","",'DF raw data'!F43) -> DF_ID_3D_Bxyz | C43: =IF('DF raw data'!C43="","",'DF raw data'!C43) ->  | D43: =IF('DF raw data'!D43="","",'DF raw data'!D43) -> 
A44: =IF('DF raw data'!E44="","",'DF raw data'!E44) -> Probe Danfysik Reg. Number | B44: =IF('DF raw data'!F44="","",'DF raw data'!F44) -> 2277 | C44: =IF('DF raw data'!C44="","",'DF raw data'!C44) ->  | D44: =IF('DF raw data'!D44="","",'DF raw data'!D44) -> 
A45: =IF('DF raw data'!E45="","",'DF raw data'!E45) -> Probe Axis | B45: =IF('DF raw data'!F45="","",'DF raw data'!F45) -> Bz | C45: =IF('DF raw data'!C45="","",'DF raw data'!C45) ->  | D45: =IF('DF raw data'!D45="","",'DF raw data'!D45) -> 
A46: =IF('DF raw data'!E46="","",'DF raw data'!E46) -> Probe Current Supply | B46: =IF('DF raw data'!F46="","",'DF raw data'!F46) -> 1825-D | C46: =IF('DF raw data'!C46="","",'DF raw data'!C46) ->  | D46: =IF('DF raw data'!D46="","",'DF raw data'!D46) -> 
A47: =IF('DF raw data'!E47="","",'DF raw data'!E47) -> Probe Gain Correction | B47: =IF('DF raw data'!F47="","",'DF raw data'!F47) -> 1 | C47: =IF('DF raw data'!C47="","",'DF raw data'!C47) ->  | D47: =IF('DF raw data'!D47="","",'DF raw data'!D47) -> 
A48: =IF('DF raw data'!E48="","",'DF raw data'!E48) -> Probe Offset Correction | B48: =IF('DF raw data'!F48="","",'DF raw data'!F48) -> 0.0073107 | C48: =IF('DF raw data'!C48="","",'DF raw data'!C48) ->  | D48: =IF('DF raw data'!D48="","",'DF raw data'!D48) -> 
A49: =IF('DF raw data'!E49="","",'DF raw data'!E49) -> DVM Number | B49: =IF('DF raw data'!F49="","",'DF raw data'!F49) -> 8 | C49: =IF('DF raw data'!C49="","",'DF raw data'!C49) ->  | D49: =IF('DF raw data'!D49="","",'DF raw data'!D49) -> 
A50: =IF('DF raw data'!E50="","",'DF raw data'!E50) -> DVM Type | B50: =IF('DF raw data'!F50="","",'DF raw data'!F50) -> K2700 | C50: =IF('DF raw data'!C50="","",'DF raw data'!C50) ->  | D50: =IF('DF raw data'!D50="","",'DF raw data'!D50) -> 
A51: =IF('DF raw data'!E51="","",'DF raw data'!E51) -> DVM Danfysik Reg. Number | B51: =IF('DF raw data'!F51="","",'DF raw data'!F51) -> 1756-D | C51: =IF('DF raw data'!C51="","",'DF raw data'!C51) ->  | D51: =IF('DF raw data'!D51="","",'DF raw data'!D51) -> 
A52: =IF('DF raw data'!E52="","",'DF raw data'!E52) -> NTC voltage | B52: =IF('DF raw data'!F52="","",'DF raw data'!F52) -> 0.42454 | C52: =IF('DF raw data'!C52="","",'DF raw data'!C52) ->  | D52: =IF('DF raw data'!D52="","",'DF raw data'!D52) -> 
A53: =IF('DF raw data'!E53="","",'DF raw data'!E53) -> PS-Gap: | B53: =IF('DF raw data'!F53="","",'DF raw data'!F53) -> 15 | C53: =IF('DF raw data'!C53="","",'DF raw data'!C53) ->  | D53: =IF('DF raw data'!D53="","",'DF raw data'!D53) -> 
A54: =IF('DF raw data'!E54="","",'DF raw data'!E54) -> PS-Temperature: | B54: =IF('DF raw data'!F54="","",'DF raw data'!F54) -> 24.1 | C54: =IF('DF raw data'!C54="","",'DF raw data'!C54) ->  | D54: =IF('DF raw data'!D54="","",'DF raw data'!D54) -> 
A55: =IF('DF raw data'!E55="","",'DF raw data'!E55) -> PS-Encoder: | B55: =IF('DF raw data'!F55="","",'DF raw data'!F55) -> 24.7652 | C55: =IF('DF raw data'!C55="","",'DF raw data'!C55) ->  | D55: =IF('DF raw data'!D55="","",'DF raw data'!D55) -> 
A56: =IF('DF raw data'!E56="","",'DF raw data'!E56) ->  | B56: =IF('DF raw data'!F56="","",'DF raw data'!F56) -> 
A57: =IF('DF raw data'!E57="","",'DF raw data'!E57) -> Monitor-Index | B57: =IF('DF raw data'!F57="","",'DF raw data'!F57) -> [1,1,4]
A58: =IF('DF raw data'!E58="","",'DF raw data'!E58) ->  | B58: =IF('DF raw data'!F58="","",'DF raw data'!F58) -> 
A59: =IF('DF raw data'!E59="","",'DF raw data'!E59) -> Time [s] | B59: =IF('DF raw data'!F59="","",'DF raw data'!F59) -> Y [mm]
A60: =IF('DF raw data'!E60="","",'DF raw data'!E60) ->  | B60: =IF('DF raw data'!F60="","",'DF raw data'!F60) -> 
A61: =IF('DF raw data'!E61="","",'DF raw data'!E61) -> 207.4 | B61: =IF('DF raw data'!F61="","",'DF raw data'!F61) -> 31.65
A62: =IF('DF raw data'!E62="","",'DF raw data'!E62) ->  | B62: =IF('DF raw data'!F62="","",'DF raw data'!F62) -> 
A63: =IF('DF raw data'!E63="","",'DF raw data'!E63) -> Measurement-Index | B63: =IF('DF raw data'!F63="","",'DF raw data'!F63) -> [1,1,1201,2]
A64: =IF('DF raw data'!E64="","",'DF raw data'!E64) ->  | B64: =IF('DF raw data'!F64="","",'DF raw data'!F64) -> 
A65: =IF('DF raw data'!E65="","",'DF raw data'!E65) -> Z [mm] | B65: =IF('DF raw data'!F65="","",'DF raw data'!F65) -> By [T] | C65: =IF('DF raw data'!G65="","",'DF raw data'!G65) -> Bx [T] | D65: =IF('DF raw data'!H65="","",'DF raw data'!H65) -> Bz [T] | F65: By_corr | G65: Bx_corr | H65: Bz_corr | J65: Iy | K65: Jy | L65: Ix | M65: Jx | N65: PI
B66: =IF('DF raw data'!F66="","",'DF raw data'!F66) ->  | C66: =IF('DF raw data'!G66="","",'DF raw data'!G66) ->  | D66: =IF('DF raw data'!H66="","",'DF raw data'!H66) -> 
A67: =IF('DF raw data'!E67="","",'DF raw data'!E67) -> -300 | B67: =IF('DF raw data'!F67="","",'DF raw data'!F67) -> -8.41296e-06 | C67: =IF('DF raw data'!G67="","",'DF raw data'!G67) -> 0.000193512 | D67: =IF('DF raw data'!H67="","",'DF raw data'!H67) -> -2.25989e-05 | F67: =(1-$G$1*($B$54-$G$2))*(B67-F$5) -> 1.024928011e-06 | G67: =(1-$G$1*($B$54-$G$2))*(C67-G$5) -> 5.639912269e-05 | H67: =(1-$G$1*($B$54-$G$2))*(D67-H$5) -> 4.460397101e-06 | J67: =F67*$G$3+J66 -> 5.124640054e-07 | K67: =J67*$G$3+K66 -> 2.562320027e-07 | L67: =G67*$G$3+L66 -> 2.819956135e-05 | M67: =L67*$G$3+M66 -> 1.409978067e-05 | N67: =(J67^2+L67^2)*$G$3+N66 -> 3.977389397e-10
A68: =IF('DF raw data'!E68="","",'DF raw data'!E68) -> -299.5 | B68: =IF('DF raw data'!F68="","",'DF raw data'!F68) -> -2.71233e-06 | C68: =IF('DF raw data'!G68="","",'DF raw data'!G68) -> 0.000187561 | D68: =IF('DF raw data'!H68="","",'DF raw data'!H68) -> -2.30394e-05 | F68: 6.748930594e-06 | G68: 5.042372359e-05 | H68: 4.018091051e-06 | J68: =F68*$G$3+J67 -> 3.886929302e-06 | K68: =J68*$G$3+K67 -> 2.199696654e-06 | L68: =G68*$G$3+L67 -> 5.341142314e-05 | M68: =L68*$G$3+M67 -> 4.080549224e-05 | N68: =(J68^2+L68^2)*$G$3+N67 -> 1.831683111e-09
A69: =IF('DF raw data'!E69="","",'DF raw data'!E69) -> -299 | B69: =IF('DF raw data'!F69="","",'DF raw data'!F69) -> 2.60422e-06 | C69: =IF('DF raw data'!G69="","",'DF raw data'!G69) -> 0.000181117 | D69: =IF('DF raw data'!H69="","",'DF raw data'!H69) -> -2.4e-05 | F69: 1.208727845e-05 | G69: 4.395330319e-05 | H69: 3.053552591e-06 | J69: 9.930568527e-06 | K69: 7.164980917e-06 | L69: 7.538807474e-05 | M69: 7.849952961e-05 | N69: 4.722672113e-09
A70: =IF('DF raw data'!E70="","",'DF raw data'!E70) -> -298.5 | B70: =IF('DF raw data'!F70="","",'DF raw data'!F70) -> -3.54399e-06 | C70: =IF('DF raw data'!G70="","",'DF raw data'!G70) -> 0.000186985 | D70: =IF('DF raw data'!H70="","",'DF raw data'!H70) -> -2.47308e-05 | F70: 5.913860788e-06 | G70: 4.984536199e-05 | H70: 2.319756311e-06 | J70: 1.288749892e-05 | K70: 1.360873038e-05 | L70: 0.0001003107557 | M70: 0.0001286549075 | N70: 9.836839785e-09
A71: =IF('DF raw data'!E71="","",'DF raw data'!E71) -> -298 | B71: =IF('DF raw data'!F71="","",'DF raw data'!F71) -> -3.92811e-06 | C71: =IF('DF raw data'!G71="","",'DF raw data'!G71) -> 0.000190096 | D71: =IF('DF raw data'!H71="","",'DF raw data'!H71) -> -2.48411e-05 | F71: 5.528165896e-06 | G71: 5.296911709e-05 | H71: 2.209004081e-06 | J71: 1.565158187e-05 | K71: 2.143452131e-05 | L71: 0.0001267953143 | M71: 0.0001920525646 | N71: 1.799785165e-08
A72: =IF('DF raw data'!E72="","",'DF raw data'!E72) -> -297.5 | B72: =IF('DF raw data'!F72="","",'DF raw data'!F72) -> -8.85989e-06 | C72: =IF('DF raw data'!G72="","",'DF raw data'!G72) -> 0.000182628 | D72: =IF('DF raw data'!H72="","",'DF raw data'!H72) -> -2.44829e-05 | F72: 5.761655978e-07 | G72: 4.547049829e-05 | H72: 2.568672701e-06 | J72: 1.593966467e-05 | K72: 2.940435365e-05 | L72: 0.0001495305634 | M72: 0.0002668178463 | N72: 2.930458281e-08
A73: =IF('DF raw data'!E73="","",'DF raw data'!E73) -> -297 | B73: =IF('DF raw data'!F73="","",'DF raw data'!F73) -> -6.68249e-06 | C73: =IF('DF raw data'!G73="","",'DF raw data'!G73) -> 0.000182613 | D73: =IF('DF raw data'!H73="","",'DF raw data'!H73) -> -2.41611e-05 | F73: 2.762492938e-06 | G73: 4.545543679e-05 | H73: 2.891792081e-06 | J73: 1.732091114e-05 | K73: 3.806480921e-05 | L73: 0.0001722582818 | M73: 0.0003529469872 | N73: 4.429104762e-08
A74: =IF('DF raw data'!E74="","",'DF raw data'!E74) -> -296.5 | B74: =IF('DF raw data'!F74="","",'DF raw data'!F74) -> -5.59387e-06 | C74: =IF('DF raw data'!G74="","",'DF raw data'!G74) -> 0.00018076 | D74: =IF('DF raw data'!H74="","",'DF raw data'!H74) -> -2.40517e-05 | F74: 3.85557628e-06 | G74: 4.359483949e-05 | H74: 3.001640621e-06 | J74: 1.924869928e-05 | K74: 4.768915885e-05 | L74: 0.0001940557016 | M74: 0.000449974838 | N74: 6.330511149e-08
A75: =IF('DF raw data'!E75="","",'DF raw data'!E75) -> -296 | B75: =IF('DF raw data'!F75="","",'DF raw data'!F75) -> -7.96337e-06 | C75: =IF('DF raw data'!G75="","",'DF raw data'!G75) -> 0.000186928 | D75: =IF('DF raw data'!H75="","",'DF raw data'!H75) -> -2.40759e-05 | F75: 1.47636133e-06 | G75: 4.978812829e-05 | H75: 2.977341401e-06 | J75: 1.998687994e-05 | K75: 5.768259882e-05 | L75: 0.0002189497657 | M75: 0.0005594497209 | N75: 8.747434913e-08
A76: =IF('DF raw data'!E76="","",'DF raw data'!E76) -> -295.5 | B76: =IF('DF raw data'!F76="","",'DF raw data'!F76) -> -3.60821e-06 | C76: =IF('DF raw data'!G76="","",'DF raw data'!G76) -> 0.000182496 | D76: =IF('DF raw data'!H76="","",'DF raw data'!H76) -> -2.42841e-05 | F76: 5.849377486e-06 | G76: 4.533795709e-05 | H76: 2.768287781e-06 | J76: 2.291156868e-05 | K76: 6.913838316e-05 | L76: 0.0002416187443 | M76: 0.000680259093 | N76: 1.169266279e-07
A77: =IF('DF raw data'!E77="","",'DF raw data'!E77) -> -295 | B77: =IF('DF raw data'!F77="","",'DF raw data'!F77) -> -7.19455e-06 | C77: =IF('DF raw data'!G77="","",'DF raw data'!G77) -> 0.000179366 | D77: =IF('DF raw data'!H77="","",'DF raw data'!H77) -> -2.45339e-05 | F77: 2.248333492e-06 | G77: 4.219512409e-05 | H77: 2.517463601e-06 | J77: 2.403573543e-05 | K77: 8.115625088e-05 | L77: 0.0002627163063 | M77: 0.0008116172462 | N77: 1.51725415e-07
A78: =IF('DF raw data'!E78="","",'DF raw data'!E78) -> -294.5 | B78: =IF('DF raw data'!F78="","",'DF raw data'!F78) -> -8.5398e-06 | C78: =IF('DF raw data'!G78="","",'DF raw data'!G78) -> 0.000186431 | D78: =IF('DF raw data'!H78="","",'DF raw data'!H78) -> -2.46038e-05 | F78: 8.975679668e-07 | G78: 4.928909059e-05 | H78: 2.447277011e-06 | J78: 2.448451941e-05 | K78: 9.339851059e-05 | L78: 0.0002873608516 | M78: 0.000955297672 | N78: 1.933132904e-07
A79: =IF('DF raw data'!E79="","",'DF raw data'!E79) -> -294 | B79: =IF('DF raw data'!F79="","",'DF raw data'!F79) -> -9.88441e-06 | C79: =IF('DF raw data'!G79="","",'DF raw data'!G79) -> 0.000184247 | D79: =IF('DF raw data'!H79="","",'DF raw data'!H79) -> -2.44514e-05 | F79: -4.525549342e-07 | G79: 4.709613619e-05 | H79: 2.600301851e-06 | J79: 2.425824195e-05 | K79: 0.0001055276316 | L79: 0.0003109089197 | M79: 0.001110752132 | N79: 2.419396997e-07
A80: =IF('DF raw data'!E80="","",'DF raw data'!E80) -> -293.5 | B80: =IF('DF raw data'!F80="","",'DF raw data'!F80) -> -1.03334e-05 | C80: =IF('DF raw data'!G80="","",'DF raw data'!G80) -> 0.000179544 | D80: =IF('DF raw data'!H80="","",'DF raw data'!H80) -> -2.4017e-05 | F80: -9.033857932e-07 | G80: 4.237385389e-05 | H80: 3.036482891e-06 | J80: 2.380654905e-05 | K80: 0.0001174309061 | L80: 0.0003320958466 | M80: 0.001276800055 | N80: 2.973669013e-07
A81: =IF('DF raw data'!E81="","",'DF raw data'!E81) -> -293 | B81: =IF('DF raw data'!F81="","",'DF raw data'!F81) -> -1.20627e-05 | C81: =IF('DF raw data'!G81="","",'DF raw data'!G81) -> 0.000180141 | D81: =IF('DF raw data'!H81="","",'DF raw data'!H81) -> -2.33498e-05 | F81: -2.639775923e-06 | G81: 4.297330159e-05 | H81: 3.706418411e-06 | J81: 2.248666109e-05 | K81: 0.0001286742366 | L81: 0.0003535824974 | M81: 0.001453591304 | N81: 3.601300175e-07
A82: =IF('DF raw data'!E82="","",'DF raw data'!E82) -> -292.5 | B82: =IF('DF raw data'!F82="","",'DF raw data'!F82) -> -4.88988e-06 | C82: =IF('DF raw data'!G82="","",'DF raw data'!G82) -> 0.000171558 | D82: =IF('DF raw data'!H82="","",'DF raw data'!H82) -> -2.30861e-05 | F82: 4.562452639e-06 | G82: 3.435511129e-05 | H82: 3.971199581e-06 | J82: 2.476788741e-05 | K82: 0.0001410581803 | L82: 0.0003707600531 | M82: 0.00163897133 | N82: 4.291682501e-07
A83: =IF('DF raw data'!E83="","",'DF raw data'!E83) -> -292 | B83: =IF('DF raw data'!F83="","",'DF raw data'!F83) -> 2.41146e-06 | C83: =IF('DF raw data'!G83="","",'DF raw data'!G83) -> 0.000178855 | D83: =IF('DF raw data'!H83="","",'DF raw data'!H83) -> -2.32784e-05 | F83: 1.189372813e-05 | G83: 4.168202899e-05 | H83: 3.778111151e-06 | J83: 3.071475147e-05 | K83: 0.0001564155561 | L83: 0.0003916010676 | M83: 0.001834771864 | N83: 5.063156461e-07
A84: =IF('DF raw data'!E84="","",'DF raw data'!E84) -> -291.5 | B84: =IF('DF raw data'!F84="","",'DF raw data'!F84) -> -5.85341e-06 | C84: =IF('DF raw data'!G84="","",'DF raw data'!G84) -> 0.000172514 | D84: =IF('DF raw data'!H84="","",'DF raw data'!H84) -> -1.88692e-05 | F84: 3.594972166e-06 | G84: 3.531503089e-05 | H84: 8.205388871e-06 | J84: 3.251223756e-05 | K84: 0.0001726716748 | L84: 0.000409258583 | M84: 0.002039401156 | N84: 5.905904628e-07
A85: =IF('DF raw data'!E85="","",'DF raw data'!E85) -> -291 | B85: =IF('DF raw data'!F85="","",'DF raw data'!F85) -> 7.33928e-06 | C85: =IF('DF raw data'!G85="","",'DF raw data'!G85) -> 0.00016507 | D85: =IF('DF raw data'!H85="","",'DF raw data'!H85) -> -1.74311e-05 | F85: 1.684175219e-05 | G85: 2.784051049e-05 | H85: 9.649385081e-06 | J85: 4.093311365e-05 | K85: 0.0001931382317 | L85: 0.0004231788383 | M85: 0.002250990575 | N85: 6.809683873e-07
A86: =IF('DF raw data'!E86="","",'DF raw data'!E86) -> -290.5 | B86: =IF('DF raw data'!F86="","",'DF raw data'!F86) -> 7.5429e-06 | C86: =IF('DF raw data'!G86="","",'DF raw data'!G86) -> 0.000167781 | D86: =IF('DF raw data'!H86="","",'DF raw data'!H86) -> -3.49379e-05 | F86: 1.704620704e-05 | G86: 3.056262559e-05 | H86: -7.929192799e-06 | J86: 4.945621717e-05 | K86: 0.0002178663403 | L86: 0.0004384601511 | M86: 0.00247022065 | N86: 7.78314998e-07
A87: =IF('DF raw data'!E87="","",'DF raw data'!E87) -> -290 | B87: =IF('DF raw data'!F87="","",'DF raw data'!F87) -> 4.71511e-06 | C87: =IF('DF raw data'!G87="","",'DF raw data'!G87) -> 0.000174997 | D87: =IF('DF raw data'!H87="","",'DF raw data'!H87) -> -2.00226e-05 | F87: 1.42068231e-05 | G87: 3.780821119e-05 | H87: 7.047259931e-06 | J87: 5.655962872e-05 | K87: 0.0002461461546 | L87: 0.0004573642567 | M87: 0.002698902779 | N87: 8.845055255e-07
A88: =IF('DF raw data'!E88="","",'DF raw data'!E88) -> -289.5 | B88: =IF('DF raw data'!F88="","",'DF raw data'!F88) -> -6.04103e-06 | C88: =IF('DF raw data'!G88="","",'DF raw data'!G88) -> 0.000175705 | D88: =IF('DF raw data'!H88="","",'DF raw data'!H88) -> -2.60653e-05 | F88: 3.406582924e-06 | G88: 3.851911399e-05 | H88: 9.797848613e-07 | J88: 5.826292018e-05 | K88: 0.0002752776147 | L88: 0.0004766238137 | M88: 0.002937214686 | N88: 9.997879393e-07
A89: =IF('DF raw data'!E89="","",'DF raw data'!E89) -> -289 | B89: =IF('DF raw data'!F89="","",'DF raw data'!F89) -> -1.57041e-05 | C89: =IF('DF raw data'!G89="","",'DF raw data'!G89) -> 0.000181687 | D89: =IF('DF raw data'!H89="","",'DF raw data'!H89) -> -3.73239e-05 | F89: -6.296105663e-06 | G89: 4.452564019e-05 | H89: -1.03249754e-05 | J89: 5.511486735e-05 | K89: 0.0003028350484 | L89: 0.0004988866338 | M89: 0.003186658002 | N89: 1.1257507e-06
A90: =IF('DF raw data'!E90="","",'DF raw data'!E90) -> -288.5 | B90: =IF('DF raw data'!F90="","",'DF raw data'!F90) -> -7.25461e-06 | C90: =IF('DF raw data'!G90="","",'DF raw data'!G90) -> 0.000180198 | D90: =IF('DF raw data'!H90="","",'DF raw data'!H90) -> -3.08947e-05 | F90: 2.188027246e-06 | G90: 4.303053529e-05 | H90: -3.869415679e-06 | J90: 5.620888097e-05 | K90: 0.0003309394889 | L90: 0.0005204019014 | M90: 0.003446858953 | N90: 1.262739489e-06
A91: =IF('DF raw data'!E91="","",'DF raw data'!E91) -> -288 | B91: =IF('DF raw data'!F91="","",'DF raw data'!F91) -> -8.50183e-07 | C91: =IF('DF raw data'!G91="","",'DF raw data'!G91) -> 0.000173738 | D91: =IF('DF raw data'!H91="","",'DF raw data'!H91) -> -3.04139e-05 | F91: 8.618712396e-06 | G91: 3.654404929e-05 | H91: -3.386644399e-06 | J91: 6.051823717e-05 | K91: 0.0003611986075 | L91: 0.0005386739261 | M91: 0.003716195916 | N91: 1.409655517e-06
A92: =IF('DF raw data'!E92="","",'DF raw data'!E92) -> -287.5 | B92: =IF('DF raw data'!F92="","",'DF raw data'!F92) -> -1.16184e-05 | C92: =IF('DF raw data'!G92="","",'DF raw data'!G92) -> 0.000168981 | D92: =IF('DF raw data'!H92="","",'DF raw data'!H92) -> -1.7802e-05 | F92: -2.193654293e-06 | G92: 3.176754559e-05 | H92: 9.276964391e-06 | J92: 5.942141003e-05 | K92: 0.0003909093125 | L92: 0.0005545576989 | M92: 0.003993474766 | N92: 1.565188089e-06
A93: =IF('DF raw data'!E93="","",'DF raw data'!E93) -> -287 | B93: =IF('DF raw data'!F93="","",'DF raw data'!F93) -> -9.6296e-06 | C93: =IF('DF raw data'!G93="","",'DF raw data'!G93) -> 0.000174006 | D93: =IF('DF raw data'!H93="","",'DF raw data'!H93) -> -2.22098e-05 | F93: -1.967002132e-07 | G93: 3.681314809e-05 | H93: 4.851092411e-06 | J93: 5.932305992e-05 | K93: 0.0004205708424 | L93: 0.0005729642729 | M93: 0.004279956902 | N93: 1.731091731e-06
A94: =IF('DF raw data'!E94="","",'DF raw data'!E94) -> -286.5 | B94: =IF('DF raw data'!F94="","",'DF raw data'!F94) -> 3.02329e-07 | C94: =IF('DF raw data'!G94="","",'DF raw data'!G94) -> 0.000178017 | D94: =IF('DF raw data'!H94="","",'DF raw data'!H94) -> -3.0025e-05 | F94: 9.775949696e-06 | G94: 4.084059319e-05 | H94: -2.996149909e-06 | J94: 6.421103477e-05 | K94: 0.0004526763598 | L94: 0.0005933845695 | M94: 0.004576649187 | N94: 1.909205883e-06
A95: =IF('DF raw data'!E95="","",'DF raw data'!E95) -> -286 | B95: =IF('DF raw data'!F95="","",'DF raw data'!F95) -> -4.44225e-06 | C95: =IF('DF raw data'!G95="","",'DF raw data'!G95) -> 0.000181909 | D95: =IF('DF raw data'!H95="","",'DF raw data'!H95) -> -2.19271e-05 | F95: 5.011917922e-06 | G95: 4.474855039e-05 | H95: 5.134951481e-06 | J95: 6.671699373e-05 | K95: 0.0004860348567 | L95: 0.0006157588447 | M95: 0.004884528609 | N95: 2.101010939e-06
A96: =IF('DF raw data'!E96="","",'DF raw data'!E96) -> -285.5 | B96: =IF('DF raw data'!F96="","",'DF raw data'!F96) -> -9.82536e-06 | C96: =IF('DF raw data'!G96="","",'DF raw data'!G96) -> 0.000179045 | D96: =IF('DF raw data'!H96="","",'DF raw data'!H96) -> -1.75551e-05 | F96: -3.932628292e-07 | G96: 4.187280799e-05 | H96: 9.524876681e-06 | J96: 6.652036231e-05 | K96: 0.0005192950378 | L96: 0.0006366952487 | M96: 0.005202876234 | N96: 2.305913838e-06
A97: =IF('DF raw data'!E97="","",'DF raw data'!E97) -> -285 | B97: =IF('DF raw data'!F97="","",'DF raw data'!F97) -> -6.55639e-06 | C97: =IF('DF raw data'!G97="","",'DF raw data'!G97) -> 0.000186193 | D97: =IF('DF raw data'!H97="","",'DF raw data'!H97) -> -2.09157e-05 | F97: 2.889109948e-06 | G97: 4.905011479e-05 | H97: 6.150498221e-06 | J97: 6.796491729e-05 | K97: 0.0005532774965 | L97: 0.0006612203061 | M97: 0.005533486387 | N97: 2.5268296e-06
A98: =IF('DF raw data'!E98="","",'DF raw data'!E98) -> -284.5 | B98: =IF('DF raw data'!F98="","",'DF raw data'!F98) -> 1.44928e-06 | C98: =IF('DF raw data'!G98="","",'DF raw data'!G98) -> 0.000184412 | D98: =IF('DF raw data'!H98="","",'DF raw data'!H98) -> -2.09929e-05 | F98: 1.092760319e-05 | G98: 4.726181269e-05 | H98: 6.072981701e-06 | J98: 7.342871888e-05 | K98: 0.0005899918559 | L98: 0.0006848512124 | M98: 0.005875911993 | N98: 2.76403608e-06
A99: =IF('DF raw data'!E99="","",'DF raw data'!E99) -> -284 | B99: =IF('DF raw data'!F99="","",'DF raw data'!F99) -> -6.04409e-06 | C99: =IF('DF raw data'!G99="","",'DF raw data'!G99) -> 0.000179499 | D99: =IF('DF raw data'!H99="","",'DF raw data'!H99) -> -2.08508e-05 | F99: 3.403510378e-06 | G99: 4.232866939e-05 | H99: 6.215664311e-06 | J99: 7.513047407e-05 | K99: 0.000627557093 | L99: 0.0007060155471 | M99: 0.006228919766 | N99: 3.01608735e-06
A100: =IF('DF raw data'!E100="","",'DF raw data'!E100) -> -283.5 | B100: =IF('DF raw data'!F100="","",'DF raw data'!F100) -> -2.71378e-06 | C100: =IF('DF raw data'!G100="","",'DF raw data'!G100) -> 0.000173309 | D100: =IF('DF raw data'!H100="","",'DF raw data'!H100) -> -2.09883e-05 | F100: 6.747474649e-06 | G100: 3.611329039e-05 | H100: 6.077600561e-06 | J100: 7.85042114e-05 | K100: 0.0006668091987 | L100: 0.0007240721923 | M100: 0.006590955863 | N100: 3.281309076e-06
A101: =IF('DF raw data'!E101="","",'DF raw data'!E101) -> -283 | B101: =IF('DF raw data'!F101="","",'DF raw data'!F101) -> -6.62124e-07 | C101: =IF('DF raw data'!G101="","",'DF raw data'!G101) -> 0.000169053 | D101: =IF('DF raw data'!H101="","",'DF raw data'!H101) -> -2.39288e-05 | F101: 8.807542438e-06 | G101: 3.183984079e-05 | H101: 3.125044511e-06 | J101: 8.290798262e-05 | K101: 0.00070826319 | L101: 0.0007399921127 | M101: 0.006960951919 | N101: 3.558540106e-06
A102: =IF('DF raw data'!E102="","",'DF raw data'!E102) -> -282.5 | B102: =IF('DF raw data'!F102="","",'DF raw data'!F102) -> -2.06411e-05 | C102: =IF('DF raw data'!G102="","",'DF raw data'!G102) -> 0.000164905 | D102: =IF('DF raw data'!H102="","",'DF raw data'!H102) -> -3.07271e-05 | F102: -1.125334736e-05 | G102: 2.767483399e-05 | H102: -3.701128519e-06 | J102: 7.728130894e-05 | K102: 0.0007469038444 | L102: 0.0007538295297 | M102: 0.007337866684 | N102: 3.845655786e-06
A103: =IF('DF raw data'!E103="","",'DF raw data'!E103) -> -282 | B103: =IF('DF raw data'!F103="","",'DF raw data'!F103) -> 1.70662e-06 | C103: =IF('DF raw data'!G103="","",'DF raw data'!G103) -> 0.000163585 | D103: =IF('DF raw data'!H103="","",'DF raw data'!H103) -> -2.29406e-05 | F103: 1.118599829e-05 | G103: 2.634942199e-05 | H103: 4.117296131e-06 | J103: 8.287430808e-05 | K103: 0.0007883409985 | L103: 0.0007670042407 | M103: 0.007721368804 | N103: 4.143237615e-06
A104: =IF('DF raw data'!E104="","",'DF raw data'!E104) -> -281.5 | B104: =IF('DF raw data'!F104="","",'DF raw data'!F104) -> -1.98785e-05 | C104: =IF('DF raw data'!G104="","",'DF raw data'!G104) -> 0.000177206 | D104: =IF('DF raw data'!H104="","",'DF raw data'!H104) -> -2.11991e-05 | F104: -1.04876207e-05 | G104: 4.002626809e-05 | H104: 5.865936281e-06 | J104: 7.763049773e-05 | K104: 0.0008271562473 | L104: 0.0007870173748 | M104: 0.008114877491 | N104: 4.455949036e-06
A105: =IF('DF raw data'!E105="","",'DF raw data'!E105) -> -281 | B105: =IF('DF raw data'!F105="","",'DF raw data'!F105) -> -1.3924e-05 | C105: =IF('DF raw data'!G105="","",'DF raw data'!G105) -> 0.000169266 | D105: =IF('DF raw data'!H105="","",'DF raw data'!H105) -> -1.71162e-05 | F105: -4.508707253e-06 | G105: 3.205371409e-05 | H105: 9.965576171e-06 | J105: 7.53761441e-05 | K105: 0.0008648443194 | L105: 0.0008030442318 | M105: 0.008516399607 | N105: 4.781229836e-06
A106: =IF('DF raw data'!E106="","",'DF raw data'!E106) -> -280.5 | B106: =IF('DF raw data'!F106="","",'DF raw data'!F106) -> -9.18242e-06 | C106: =IF('DF raw data'!G106="","",'DF raw data'!G106) -> 0.000178857 | D106: =IF('DF raw data'!H106="","",'DF raw data'!H106) -> -2.14332e-05 | F106: 2.523132248e-07 | G106: 4.168403719e-05 | H106: 5.630876471e-06 | J106: 7.550230071e-05 | K106: 0.0009025954697 | L106: 0.0008238862504 | M106: 0.008928342733 | N106: 5.123474412e-06
A107: =IF('DF raw data'!E107="","",'DF raw data'!E107) -> -280 | B107: =IF('DF raw data'!F107="","",'DF raw data'!F107) -> -1.21257e-05 | C107: =IF('DF raw data'!G107="","",'DF raw data'!G107) -> 0.000181747 | D107: =IF('DF raw data'!H107="","",'DF raw data'!H107) -> -2.45811e-05 | F107: -2.703034223e-06 | G107: 4.458588619e-05 | H107: 2.470070081e-06 | J107: 7.41507836e-05 | K107: 0.0009396708616 | L107: 0.0008461791935 | M107: 0.009351432329 | N107: 5.484233195e-06
A108: =IF('DF raw data'!E108="","",'DF raw data'!E108) -> -279.5 | B108: =IF('DF raw data'!F108="","",'DF raw data'!F108) -> -1.56446e-05 | C108: =IF('DF raw data'!G108="","",'DF raw data'!G108) -> 0.000167406 | D108: =IF('DF raw data'!H108="","",'DF raw data'!H108) -> -3.18244e-05 | F108: -6.236361713e-06 | G108: 3.018608809e-05 | H108: -4.802927449e-06 | J108: 7.103260275e-05 | K108: 0.0009751871629 | L108: 0.0008612722375 | M108: 0.009782068448 | N108: 5.857650944e-06
A109: =IF('DF raw data'!E109="","",'DF raw data'!E109) -> -279 | B109: =IF('DF raw data'!F109="","",'DF raw data'!F109) -> -2.77243e-06 | C109: =IF('DF raw data'!G109="","",'DF raw data'!G109) -> 0.000174332 | D109: =IF('DF raw data'!H109="","",'DF raw data'!H109) -> -2.88432e-05 | F109: 6.688584184e-06 | G109: 3.714048469e-05 | H109: -1.809504529e-06 | J109: 7.437689484e-05 | K109: 0.00101237561 | L109: 0.0008798424799 | M109: 0.01022198969 | N109: 6.2474783e-06
A110: =IF('DF raw data'!E110="","",'DF raw data'!E110) -> -278.5 | B110: =IF('DF raw data'!F110="","",'DF raw data'!F110) -> 3.50221e-06 | C110: =IF('DF raw data'!G110="","",'DF raw data'!G110) -> 0.00017314 | D110: =IF('DF raw data'!H110="","",'DF raw data'!H110) -> -2.59881e-05 | F110: 1.298895021e-05 | G110: 3.594359749e-05 | H110: 1.057301381e-06 | J110: 8.087136994e-05 | K110: 0.001052811295 | L110: 0.0008978142786 | M110: 0.01067089683 | N110: 6.653783629e-06
A111: =IF('DF raw data'!E111="","",'DF raw data'!E111) -> -278 | B111: =IF('DF raw data'!F111="","",'DF raw data'!F111) -> -4.77191e-06 | C111: =IF('DF raw data'!G111="","",'DF raw data'!G111) -> 0.000172634 | D111: =IF('DF raw data'!H111="","",'DF raw data'!H111) -> -7.16334e-06 | F111: 4.680906316e-06 | G111: 3.543552289e-05 | H111: 1.99592429e-05 | J111: 8.32118231e-05 | K111: 0.001094417207 | L111: 0.0009155320401 | M111: 0.01112866285 | N111: 7.076345191e-06
A112: =IF('DF raw data'!E112="","",'DF raw data'!E112) -> -277.5 | B112: =IF('DF raw data'!F112="","",'DF raw data'!F112) -> -5.5361e-06 | C112: =IF('DF raw data'!G112="","",'DF raw data'!G112) -> 0.000171264 | D112: =IF('DF raw data'!H112="","",'DF raw data'!H112) -> -1.42473e-05 | F112: 3.913583137e-06 | G112: 3.405990589e-05 | H112: 1.284623866e-05 | J112: 8.516861467e-05 | K112: 0.001137001514 | L112: 0.000932561993 | M112: 0.01159494384 | N112: 7.514807972e-06
A113: =IF('DF raw data'!E113="","",'DF raw data'!E113) -> -277 | B113: =IF('DF raw data'!F113="","",'DF raw data'!F113) -> -4.57265e-06 | C113: =IF('DF raw data'!G113="","",'DF raw data'!G113) -> 0.000166693 | D113: =IF('DF raw data'!H113="","",'DF raw data'!H113) -> -1.83877e-05 | F113: 4.880983282e-06 | G113: 2.947016479e-05 | H113: 8.688863021e-06 | J113: 8.760910631e-05 | K113: 0.001180806067 | L113: 0.0009472970754 | M113: 0.01206859238 | N113: 7.967331525e-06
A114: =IF('DF raw data'!E114="","",'DF raw data'!E114) -> -276.5 | B114: =IF('DF raw data'!F114="","",'DF raw data'!F114) -> -1.32188e-05 | C114: =IF('DF raw data'!G114="","",'DF raw data'!G114) -> 0.000170404 | D114: =IF('DF raw data'!H114="","",'DF raw data'!H114) -> -1.92182e-05 | F114: -3.800615933e-06 | G114: 3.319637989e-05 | H114: 7.854957971e-06 | J114: 8.570879834e-05 | K114: 0.001223660467 | L114: 0.0009638952654 | M114: 0.01255054001 | N114: 8.435551565e-06
A115: =IF('DF raw data'!E115="","",'DF raw data'!E115) -> -276 | B115: =IF('DF raw data'!F115="","",'DF raw data'!F115) -> -5.01617e-06 | C115: =IF('DF raw data'!G115="","",'DF raw data'!G115) -> 0.000176368 | D115: =IF('DF raw data'!H115="","",'DF raw data'!H115) -> -2.55358e-05 | F115: 4.43564485e-06 | G115: 3.918483229e-05 | H115: 1.511455811e-06 | J115: 8.792662077e-05 | K115: 0.001267623777 | L115: 0.0009834876815 | M115: 0.01304228386 | N115: 8.92304112e-06
A116: =IF('DF raw data'!E116="","",'DF raw data'!E116) -> -275.5 | B116: =IF('DF raw data'!F116="","",'DF raw data'!F116) -> -9.17781e-06 | C116: =IF('DF raw data'!G116="","",'DF raw data'!G116) -> 0.000176538 | D116: =IF('DF raw data'!H116="","",'DF raw data'!H116) -> -2.84495e-05 | F116: 2.569421258e-07 | G116: 3.935552929e-05 | H116: -1.414190359e-06 | J116: 8.805509183e-05 | K116: 0.001311651323 | L116: 0.001003165446 | M116: 0.01354386658 | N116: 9.430088426e-06
A117: =IF('DF raw data'!E117="","",'DF raw data'!E117) -> -275 | B117: =IF('DF raw data'!F117="","",'DF raw data'!F117) -> -1.17124e-06 | C117: =IF('DF raw data'!G117="","",'DF raw data'!G117) -> 0.000170906 | D117: =IF('DF raw data'!H117="","",'DF raw data'!H117) -> -2.93084e-05 | F117: 8.296339063e-06 | G117: 3.370043809e-05 | H117: -2.276611849e-06 | J117: 9.220326136e-05 | K117: 0.001357752954 | L117: 0.001020015665 | M117: 0.01405387441 | N117: 9.954555125e-06
A118: =IF('DF raw data'!E118="","",'DF raw data'!E118) -> -274.5 | B118: =IF('DF raw data'!F118="","",'DF raw data'!F118) -> -9.82138e-06 | C118: =IF('DF raw data'!G118="","",'DF raw data'!G118) -> 0.000165474 | D118: =IF('DF raw data'!H118="","",'DF raw data'!H118) -> -2.3675e-05 | F118: -3.892665112e-07 | G118: 2.824616689e-05 | H118: 3.379885091e-06 | J118: 9.200862811e-05 | K118: 0.001403757268 | L118: 0.001034138749 | M118: 0.01457094379 | N118: 1.04935094e-05
A119: =IF('DF raw data'!E119="","",'DF raw data'!E119) -> -274 | B119: =IF('DF raw data'!F119="","",'DF raw data'!F119) -> -1.55199e-05 | C119: =IF('DF raw data'!G119="","",'DF raw data'!G119) -> 0.000168425 | D119: =IF('DF raw data'!H119="","",'DF raw data'!H119) -> -2.52746e-05 | F119: -6.111150443e-06 | G119: 3.120926599e-05 | H119: 1.773726731e-06 | J119: 8.895305288e-05 | K119: 0.001448233794 | L119: 0.001049743382 | M119: 0.01509581548 | N119: 1.10484463e-05
A120: =IF('DF raw data'!E120="","",'DF raw data'!E120) -> -273.5 | B120: =IF('DF raw data'!F120="","",'DF raw data'!F120) -> -7.13017e-06 | C120: =IF('DF raw data'!G120="","",'DF raw data'!G120) -> 0.000167407 | D120: =IF('DF raw data'!H120="","",'DF raw data'!H120) -> -2.53364e-05 | F120: 2.31297745e-06 | G120: 3.018709219e-05 | H120: 1.711673351e-06 | J120: 9.010954161e-05 | K120: 0.001493288565 | L120: 0.001064836928 | M120: 0.01562823394 | N120: 1.161944501e-05
A121: =IF('DF raw data'!E121="","",'DF raw data'!E121) -> -273 | B121: =IF('DF raw data'!F121="","",'DF raw data'!F121) -> -8.86567e-06 | C121: =IF('DF raw data'!G121="","",'DF raw data'!G121) -> 0.000160579 | D121: =IF('DF raw data'!H121="","",'DF raw data'!H121) -> -1.50563e-05 | F121: 5.703618998e-07 | G121: 2.333109739e-05 | H121: 1.203392176e-05 | J121: 9.039472256e-05 | K121: 0.001538485926 | L121: 0.001076502476 | M121: 0.01616648518 | N121: 1.22029594e-05
A122: =IF('DF raw data'!E122="","",'DF raw data'!E122) -> -272.5 | B122: =IF('DF raw data'!F122="","",'DF raw data'!F122) -> -1.0718e-05 | C122: =IF('DF raw data'!G122="","",'DF raw data'!G122) -> 0.000159515 | D122: =IF('DF raw data'!H122="","",'DF raw data'!H122) -> -2.37738e-05 | F122: -1.289562653e-06 | G122: 2.226273499e-05 | H122: 3.280680011e-06 | J122: 8.974994123e-05 | K122: 0.001583360897 | L122: 0.001087633844 | M122: 0.0167103021 | N122: 1.279846062e-05
A123: =IF('DF raw data'!E123="","",'DF raw data'!E123) -> -272 | B123: =IF('DF raw data'!F123="","",'DF raw data'!F123) -> -7.06417e-06 | C123: =IF('DF raw data'!G123="","",'DF raw data'!G123) -> 0.000169506 | D123: =IF('DF raw data'!H123="","",'DF raw data'!H123) -> -2.79071e-05 | F123: 2.37924805e-06 | G123: 3.229469809e-05 | H123: -8.695665187e-07 | J123: 9.093956526e-05 | K123: 0.001628830679 | L123: 0.001103781193 | M123: 0.0172621927 | N123: 1.341176208e-05
A124: =IF('DF raw data'!E124="","",'DF raw data'!E124) -> -271.5 | B124: =IF('DF raw data'!F124="","",'DF raw data'!F124) -> -2.32097e-05 | C124: =IF('DF raw data'!G124="","",'DF raw data'!G124) -> 0.000170292 | D124: =IF('DF raw data'!H124="","",'DF raw data'!H124) -> -2.02717e-05 | F124: -1.383247862e-05 | G124: 3.308392069e-05 | H124: 6.797138621e-06 | J124: 8.402332595e-05 | K124: 0.001670842342 | L124: 0.001120323153 | M124: 0.01782235427 | N124: 1.404285402e-05
A125: =IF('DF raw data'!E125="","",'DF raw data'!E125) -> -271 | B125: =IF('DF raw data'!F125="","",'DF raw data'!F125) -> -1.98676e-05 | C125: =IF('DF raw data'!G125="","",'DF raw data'!G125) -> 0.000169626 | D125: =IF('DF raw data'!H125="","",'DF raw data'!H125) -> -3.61176e-05 | F125: -1.047667601e-05 | G125: 3.241519009e-05 | H125: -9.113729569e-06 | J125: 7.878498794e-05 | K125: 0.001710234836 | L125: 0.001136530748 | M125: 0.01839061965 | N125: 1.469180863e-05
A126: =IF('DF raw data'!E126="","",'DF raw data'!E126) -> -270.5 | B126: =IF('DF raw data'!F126="","",'DF raw data'!F126) -> -2.00712e-05 | C126: =IF('DF raw data'!G126="","",'DF raw data'!G126) -> 0.000173867 | D126: =IF('DF raw data'!H126="","",'DF raw data'!H126) -> -2.06142e-05 | F126: -1.068111077e-05 | G126: 3.667357819e-05 | H126: 6.453234371e-06 | J126: 7.344443255e-05 | K126: 0.001746957053 | L126: 0.001154867537 | M126: 0.01896805342 | N126: 1.536136519e-05
A127: =IF('DF raw data'!E127="","",'DF raw data'!E127) -> -270 | B127: =IF('DF raw data'!F127="","",'DF raw data'!F127) -> -1.31595e-05 | C127: =IF('DF raw data'!G127="","",'DF raw data'!G127) -> 0.000176897 | D127: =IF('DF raw data'!H127="","",'DF raw data'!H127) -> -1.08153e-05 | F127: -3.741072803e-06 | G127: 3.971600119e-05 | H127: 1.629230986e-05 | J127: 7.157389615e-05 | K127: 0.001782744001 | L127: 0.001174725538 | M127: 0.01955541619 | N127: 1.605391664e-05
A128: =IF('DF raw data'!E128="","",'DF raw data'!E128) -> -269.5 | B128: =IF('DF raw data'!F128="","",'DF raw data'!F128) -> -1.05186e-05 | C128: =IF('DF raw data'!G128="","",'DF raw data'!G128) -> 0.00017236 | D128: =IF('DF raw data'!H128="","",'DF raw data'!H128) -> -3.48379e-05 | F128: -1.089345113e-06 | G128: 3.516039949e-05 | H128: -7.828782799e-06 | J128: 7.102922359e-05 | K128: 0.001818258612 | L128: 0.001192305738 | M128: 0.02015156905 | N128: 1.676723571e-05
A129: =IF('DF raw data'!E129="","",'DF raw data'!E129) -> -269 | B129: =IF('DF raw data'!F129="","",'DF raw data'!F129) -> -1.88091e-06 | C129: =IF('DF raw data'!G129="","",'DF raw data'!G129) -> 0.000170906 | D129: =IF('DF raw data'!H129="","",'DF raw data'!H129) -> -2.10286e-05 | F129: 7.583759416e-06 | G129: 3.370043809e-05 | H129: 6.037135331e-06 | J129: 7.48211033e-05 | K129: 0.001855669164 | L129: 0.001209155957 | M129: 0.02075614703 | N129: 1.750106387e-05
A130: =IF('DF raw data'!E130="","",'DF raw data'!E130) -> -268.5 | B130: =IF('DF raw data'!F130="","",'DF raw data'!F130) -> -8.03067e-06 | C130: =IF('DF raw data'!G130="","",'DF raw data'!G130) -> 0.00016785 | D130: =IF('DF raw data'!H130="","",'DF raw data'!H130) -> -1.94479e-05 | F130: 1.4087854e-06 | G130: 3.063190849e-05 | H130: 7.624316201e-06 | J130: 7.5525496e-05 | K130: 0.001893431912 | L130: 0.001224471911 | M130: 0.02136838299 | N130: 1.825358165e-05
A131: =IF('DF raw data'!E131="","",'DF raw data'!E131) -> -268 | B131: =IF('DF raw data'!F131="","",'DF raw data'!F131) -> -7.19757e-06 | C131: =IF('DF raw data'!G131="","",'DF raw data'!G131) -> 0.00016688 | D131: =IF('DF raw data'!H131="","",'DF raw data'!H131) -> -1.96567e-05 | F131: =(1-$G$1*($B$54-$G$2))*(B131-F$5) -> 2.24530111e-06 | G131: =(1-$G$1*($B$54-$G$2))*(C131-G$5) -> 2.965793149e-05 | H131: =(1-$G$1*($B$54-$G$2))*(D131-H$5) -> 7.414660121e-06 | J131: 7.664814656e-05 | K131: 0.001931755985 | L131: 0.001239300877 | M131: 0.02198803343 | N131: 1.902445245e-05
A132: =IF('DF raw data'!E132="","",'DF raw data'!E132) -> -267.5 | B132: =IF('DF raw data'!F132="","",'DF raw data'!F132) -> 2.93678e-07 | C132: =IF('DF raw data'!G132="","",'DF raw data'!G132) -> 0.000169139 | D132: =IF('DF raw data'!H132="","",'DF raw data'!H132) -> -1.66811e-05 | F132: 9.767263227e-06 | G132: 3.192619339e-05 | H132: 1.040246008e-05 | J132: =F132*$G$3+J131 -> 8.153177817e-05 | K132: =J132*$G$3+K131 -> 0.001972521874 | L132: =G132*$G$3+L131 -> 0.001255263974 | M132: =L132*$G$3+M131 -> 0.02261566541 | N132: =(J132^2+L132^2)*$G$3+N131 -> 1.981561999e-05
A133: =IF('DF raw data'!E133="","",'DF raw data'!E133) -> -267 | B133: =IF('DF raw data'!F133="","",'DF raw data'!F133) -> -8.66733e-06 | C133: =IF('DF raw data'!G133="","",'DF raw data'!G133) -> 0.000165688 | D133: =IF('DF raw data'!H133="","",'DF raw data'!H133) -> -2.47595e-05 | F133: 7.695150938e-07 | G133: 2.846104429e-05 | H133: 2.290938641e-06 | J133: 8.191653572e-05 | K133: 0.002013480142 | L133: 0.001269494496 | M133: 0.02325041266 | N133: 2.062478328e-05
A134: =IF('DF raw data'!E134="","",'DF raw data'!E134) -> -266.5 | B134: =IF('DF raw data'!F134="","",'DF raw data'!F134) -> -6.69138e-06 | C134: =IF('DF raw data'!G134="","",'DF raw data'!G134) -> 0.000167411 | D134: =IF('DF raw data'!H134="","",'DF raw data'!H134) -> -1.09195e-05 | F134: 2.753566489e-06 | G134: 3.019110859e-05 | H134: 1.618768264e-05 | J134: 8.329331896e-05 | K134: 0.002055126802 | L134: 0.00128459005 | M134: 0.02389270769 | N134: 2.145333797e-05
A135: =IF('DF raw data'!E135="","",'DF raw data'!E135) -> -266 | B135: =IF('DF raw data'!F135="","",'DF raw data'!F135) -> -1.83951e-05 | C135: =IF('DF raw data'!G135="","",'DF raw data'!G135) -> 0.000176139 | D135: =IF('DF raw data'!H135="","",'DF raw data'!H135) -> -3.54543e-05 | F135: -8.998138763e-06 | G135: 3.895489339e-05 | H135: -8.447710039e-06 | J135: 7.879424958e-05 | K135: 0.002094523927 | L135: 0.001304067497 | M135: 0.02454474143 | N135: 2.230673826e-05
A136: =IF('DF raw data'!E136="","",'DF raw data'!E136) -> -265.5 | B136: =IF('DF raw data'!F136="","",'DF raw data'!F136) -> -3.86424e-06 | C136: =IF('DF raw data'!G136="","",'DF raw data'!G136) -> 0.000180429 | D136: =IF('DF raw data'!H136="","",'DF raw data'!H136) -> -2.46295e-05 | F136: 5.592297763e-06 | G136: 4.326248239e-05 | H136: 2.421471641e-06 | J136: 8.159039846e-05 | K136: 0.002135319126 | L136: 0.001325698738 | M136: 0.0252075908 | N136: 2.318880532e-05
A137: =IF('DF raw data'!E137="","",'DF raw data'!E137) -> -265 | B137: =IF('DF raw data'!F137="","",'DF raw data'!F137) -> -1.00154e-05 | C137: =IF('DF raw data'!G137="","",'DF raw data'!G137) -> 0.000175294 | D137: =IF('DF raw data'!H137="","",'DF raw data'!H137) -> -1.96469e-05 | F137: -5.840819932e-07 | G137: 3.810642889e-05 | H137: 7.424500301e-06 | J137: 8.129835747e-05 | K137: 0.002175968305 | L137: 0.001344751952 | M137: 0.02587996678 | N137: 2.409628894e-05
A138: =IF('DF raw data'!E138="","",'DF raw data'!E138) -> -264.5 | B138: =IF('DF raw data'!F138="","",'DF raw data'!F138) -> -1.07785e-05 | C138: =IF('DF raw data'!G138="","",'DF raw data'!G138) -> 0.00017353 | D138: =IF('DF raw data'!H138="","",'DF raw data'!H138) -> -2.9401e-05 | F138: -1.350310703e-06 | G138: 3.633519649e-05 | H138: -2.369591509e-06 | J138: 8.062320211e-05 | K138: 0.002216279906 | L138: 0.001362919551 | M138: 0.02656142655 | N138: 2.502831384e-05
A139: =IF('DF raw data'!E139="","",'DF raw data'!E139) -> -264 | B139: =IF('DF raw data'!F139="","",'DF raw data'!F139) -> -8.02974e-06 | C139: =IF('DF raw data'!G139="","",'DF raw data'!G139) -> 0.000169296 | D139: =IF('DF raw data'!H139="","",'DF raw data'!H139) -> -2.00372e-05 | F139: 1.409719213e-06 | G139: 3.208383709e-05 | H139: 7.032600071e-06 | J139: 8.132806172e-05 | K139: 0.002256943936 | L139: 0.001378961469 | M139: 0.02725090729 | N139: 2.598238834e-05
A140: =IF('DF raw data'!E140="","",'DF raw data'!E140) -> -263.5 | B140: =IF('DF raw data'!F140="","",'DF raw data'!F140) -> -1.34686e-05 | C140: =IF('DF raw data'!G140="","",'DF raw data'!G140) -> 0.000171537 | D140: =IF('DF raw data'!H140="","",'DF raw data'!H140) -> -2.90582e-05 | F140: -4.051440113e-06 | G140: 3.433402519e-05 | H140: -2.025386029e-06 | J140: 7.930234166e-05 | K140: 0.002296595107 | L140: 0.001396128482 | M140: 0.02794897153 | N140: 2.696012014e-05
A141: =IF('DF raw data'!E141="","",'DF raw data'!E141) -> -263 | B141: =IF('DF raw data'!F141="","",'DF raw data'!F141) -> -1.42975e-05 | C141: =IF('DF raw data'!G141="","",'DF raw data'!G141) -> 0.000167367 | D141: =IF('DF raw data'!H141="","",'DF raw data'!H141) -> -3.36437e-05 | F141: -4.883738603e-06 | G141: 3.014692819e-05 | H141: -6.629686579e-06 | J141: 7.686047236e-05 | K141: 0.002335025343 | L141: 0.001411201946 | M141: 0.0286545725 | N141: 2.795881937e-05
A142: =IF('DF raw data'!E142="","",'DF raw data'!E142) -> -262.5 | B142: =IF('DF raw data'!F142="","",'DF raw data'!F142) -> -3.41767e-06 | C142: =IF('DF raw data'!G142="","",'DF raw data'!G142) -> 0.000168028 | D142: =IF('DF raw data'!H142="","",'DF raw data'!H142) -> -2.21232e-05 | F142: 6.0406987e-06 | G142: 3.081063829e-05 | H142: 4.938047471e-06 | J142: 7.988082171e-05 | K142: 0.002374965754 | L142: 0.001426607265 | M142: 0.02936787614 | N142: 2.897961399e-05
A143: =IF('DF raw data'!E143="","",'DF raw data'!E143) -> -262 | B143: =IF('DF raw data'!F143="","",'DF raw data'!F143) -> -1.23184e-06 | C143: =IF('DF raw data'!G143="","",'DF raw data'!G143) -> 0.000169741 | D143: =IF('DF raw data'!H143="","",'DF raw data'!H143) -> -3.43983e-05 | F143: 8.235490603e-06 | G143: 3.253066159e-05 | H143: -7.387380439e-06 | J143: 8.399856701e-05 | K143: 0.002416965038 | L143: 0.001442872596 | M143: 0.03008931243 | N143: 3.002408253e-05
A144: =IF('DF raw data'!E144="","",'DF raw data'!E144) -> -261.5 | B144: =IF('DF raw data'!F144="","",'DF raw data'!F144) -> -1.05223e-05 | C144: =IF('DF raw data'!G144="","",'DF raw data'!G144) -> 0.000166139 | D144: =IF('DF raw data'!H144="","",'DF raw data'!H144) -> -2.90134e-05 | F144: -1.093060283e-06 | G144: 2.891389339e-05 | H144: -1.980402349e-06 | J144: 8.345203687e-05 | K144: 0.002458691056 | L144: 0.001457329542 | M144: 0.0308179772 | N144: 3.108946935e-05
A145: =IF('DF raw data'!E145="","",'DF raw data'!E145) -> -261 | B145: =IF('DF raw data'!F145="","",'DF raw data'!F145) -> -5.4002e-06 | C145: =IF('DF raw data'!G145="","",'DF raw data'!G145) -> 0.000165981 | D145: =IF('DF raw data'!H145="","",'DF raw data'!H145) -> -2.58144e-05 | F145: 4.050040327e-06 | G145: 2.875524559e-05 | H145: 1.231713551e-06 | J145: 8.547705703e-05 | K145: 0.002501429585 | L145: 0.001471707165 | M145: 0.03155383079 | N145: 3.21760835e-05
A146: =IF('DF raw data'!E146="","",'DF raw data'!E146) -> -260.5 | B146: =IF('DF raw data'!F146="","",'DF raw data'!F146) -> -3.79441e-06 | C146: =IF('DF raw data'!G146="","",'DF raw data'!G146) -> 0.00017604 | D146: =IF('DF raw data'!H146="","",'DF raw data'!H146) -> -3.37388e-05 | F146: 5.662414066e-06 | G146: 3.885548749e-05 | H146: -6.725176489e-06 | J146: 8.830826407e-05 | K146: 0.002545583717 | L146: 0.001491134909 | M146: 0.03229939824 | N146: 3.329172434e-05
A147: =IF('DF raw data'!E147="","",'DF raw data'!E147) -> -260 | B147: =IF('DF raw data'!F147="","",'DF raw data'!F147) -> -1.54495e-05 | C147: =IF('DF raw data'!G147="","",'DF raw data'!G147) -> 0.000158265 | D147: =IF('DF raw data'!H147="","",'DF raw data'!H147) -> -3.47921e-05 | F147: -6.040461803e-06 | G147: 2.100760999e-05 | H147: -7.782795019e-06 | J147: 8.528803317e-05 | K147: 0.002588227733 | L147: 0.001501638714 | M147: 0.0330502176 | N147: 3.442282077e-05
A148: =IF('DF raw data'!E148="","",'DF raw data'!E148) -> -259.5 | B148: =IF('DF raw data'!F148="","",'DF raw data'!F148) -> -1.30147e-05 | C148: =IF('DF raw data'!G148="","",'DF raw data'!G148) -> 0.000157792 | D148: =IF('DF raw data'!H148="","",'DF raw data'!H148) -> -3.74908e-05 | F148: -3.595679123e-06 | G148: 2.053267069e-05 | H148: -1.049255969e-05 | J148: 8.34901936e-05 | K148: 0.00262997283 | L148: 0.001511905049 | M148: 0.03380617012 | N148: 3.556923452e-05
A149: =IF('DF raw data'!E149="","",'DF raw data'!E149) -> -259 | B149: =IF('DF raw data'!F149="","",'DF raw data'!F149) -> -2.01248e-05 | C149: =IF('DF raw data'!G149="","",'DF raw data'!G149) -> 0.000164442 | D149: =IF('DF raw data'!H149="","",'DF raw data'!H149) -> -3.45864e-05 | F149: -1.073493053e-05 | G149: 2.720993569e-05 | H149: -7.576251649e-06 | J149: 7.812272834e-05 | K149: 0.002669034194 | L149: 0.001525510017 | M149: 0.03456892513 | N149: 3.673587651e-05
A150: =IF('DF raw data'!E150="","",'DF raw data'!E150) -> -258.5 | B150: =IF('DF raw data'!F150="","",'DF raw data'!F150) -> -1.21207e-05 | C150: =IF('DF raw data'!G150="","",'DF raw data'!G150) -> 0.000164232 | D150: =IF('DF raw data'!H150="","",'DF raw data'!H150) -> -3.34673e-05 | F150: -2.698013723e-06 | G150: 2.699907469e-05 | H150: -6.452563339e-06 | J150: 7.677372148e-05 | K150: 0.002707421055 | L150: 0.001539009555 | M150: 0.03533842991 | N150: 3.792309881e-05
A151: =IF('DF raw data'!E151="","",'DF raw data'!E151) -> -258 | B151: =IF('DF raw data'!F151="","",'DF raw data'!F151) -> -7.32373e-06 | C151: =IF('DF raw data'!G151="","",'DF raw data'!G151) -> 0.000167491 | D151: =IF('DF raw data'!H151="","",'DF raw data'!H151) -> -2.26639e-05 | F151: 2.118623854e-06 | G151: 3.027143659e-05 | H151: 4.395130601e-06 | J151: 7.78330334e-05 | K151: 0.002746337572 | L151: 0.001554145273 | M151: 0.03611550255 | N151: 3.913381157e-05
A152: =IF('DF raw data'!E152="","",'DF raw data'!E152) -> -257.5 | B152: =IF('DF raw data'!F152="","",'DF raw data'!F152) -> -6.42213e-06 | C152: =IF('DF raw data'!G152="","",'DF raw data'!G152) -> 0.000164316 | D152: =IF('DF raw data'!H152="","",'DF raw data'!H152) -> -3.108e-05 | F152: 3.023920414e-06 | G152: 2.708341909e-05 | H152: -4.055475409e-06 | J152: 7.934499361e-05 | K152: 0.002786010069 | L152: 0.001567686982 | M152: 0.03689934604 | N152: 4.036578062e-05
A153: =IF('DF raw data'!E153="","",'DF raw data'!E153) -> -257 | B153: =IF('DF raw data'!F153="","",'DF raw data'!F153) -> -7.07021e-06 | C153: =IF('DF raw data'!G153="","",'DF raw data'!G153) -> 0.00016195 | D153: =IF('DF raw data'!H153="","",'DF raw data'!H153) -> -1.85744e-05 | F153: 2.373183286e-06 | G153: 2.470771849e-05 | H153: 8.501397551e-06 | J153: 8.053158525e-05 | K153: 0.002826275861 | L153: 0.001580040842 | M153: 0.03768936646 | N153: 4.161728782e-05
A154: =IF('DF raw data'!E154="","",'DF raw data'!E154) -> -256.5 | B154: =IF('DF raw data'!F154="","",'DF raw data'!F154) -> -1.30878e-05 | C154: =IF('DF raw data'!G154="","",'DF raw data'!G154) -> 0.000162167 | D154: =IF('DF raw data'!H154="","",'DF raw data'!H154) -> -2.38826e-05 | F154: -3.669078833e-06 | G154: 2.492560819e-05 | H154: 3.171433931e-06 | J154: 7.869704584e-05 | K154: 0.002865624384 | L154: 0.001592503646 | M154: 0.03848561828 | N154: 4.288841836e-05
A155: =IF('DF raw data'!E155="","",'DF raw data'!E155) -> -256 | B155: =IF('DF raw data'!F155="","",'DF raw data'!F155) -> -6.17181e-06 | C155: =IF('DF raw data'!G155="","",'DF raw data'!G155) -> 0.000167441 | D155: =IF('DF raw data'!H155="","",'DF raw data'!H155) -> -2.13671e-05 | F155: 3.275266726e-06 | G155: 3.022123159e-05 | H155: 5.697247481e-06 | J155: 8.03346792e-05 | K155: 0.002905791724 | L155: 0.001607614262 | M155: 0.03928942541 | N155: 4.4183857e-05
A156: =IF('DF raw data'!E156="","",'DF raw data'!E156) -> -255.5 | B156: =IF('DF raw data'!F156="","",'DF raw data'!F156) -> -1.80789e-05 | C156: =IF('DF raw data'!G156="","",'DF raw data'!G156) -> 0.000175238 | D156: =IF('DF raw data'!H156="","",'DF raw data'!H156) -> -3.12484e-05 | F156: -8.680642343e-06 | G156: 3.805019929e-05 | H156: -4.224565849e-06 | J156: 7.599435803e-05 | K156: 0.002943788903 | L156: 0.001626639361 | M156: 0.04010274509 | N156: 4.550972237e-05
A157: =IF('DF raw data'!E157="","",'DF raw data'!E157) -> -255 | B157: =IF('DF raw data'!F157="","",'DF raw data'!F157) -> -1.77646e-05 | C157: =IF('DF raw data'!G157="","",'DF raw data'!G157) -> 0.00017813 | D157: =IF('DF raw data'!H157="","",'DF raw data'!H157) -> -1.96779e-05 | F157: -8.365053713e-06 | G157: 4.095405649e-05 | H157: 7.393373201e-06 | J157: 7.181183117e-05 | K157: 0.002979694818 | L157: 0.001647116389 | M157: 0.04092630329 | N157: 4.686879704e-05
A158: =IF('DF raw data'!E158="","",'DF raw data'!E158) -> -254.5 | B158: =IF('DF raw data'!F158="","",'DF raw data'!F158) -> -1.70623e-05 | C158: =IF('DF raw data'!G158="","",'DF raw data'!G158) -> 0.000176299 | D158: =IF('DF raw data'!H158="","",'DF raw data'!H158) -> -1.87214e-05 | F158: -7.659874283e-06 | G158: 3.911554939e-05 | H158: 8.353794851e-06 | J158: 6.798189403e-05 | K158: 0.003013685765 | L158: 0.001666674164 | M158: 0.04175964037 | N158: 4.82600092e-05
A159: =IF('DF raw data'!E159="","",'DF raw data'!E159) -> -254 | B159: =IF('DF raw data'!F159="","",'DF raw data'!F159) -> -1.53281e-05 | C159: =IF('DF raw data'!G159="","",'DF raw data'!G159) -> 0.000185033 | D159: =IF('DF raw data'!H159="","",'DF raw data'!H159) -> -2.4212e-05 | F159: -5.918564063e-06 | G159: 4.788535879e-05 | H159: 2.840683391e-06 | J159: 6.5022612e-05 | K159: 0.003046197071 | L159: 0.001690616844 | M159: 0.04260494879 | N159: 4.969121582e-05
A160: =IF('DF raw data'!E160="","",'DF raw data'!E160) -> -253.5 | B160: =IF('DF raw data'!F160="","",'DF raw data'!F160) -> -1.71231e-05 | C160: =IF('DF raw data'!G160="","",'DF raw data'!G160) -> 0.000175247 | D160: =IF('DF raw data'!H160="","",'DF raw data'!H160) -> -2.35266e-05 | F160: -7.720923563e-06 | G160: 3.805923619e-05 | H160: 3.528893531e-06 | J160: 6.116215022e-05 | K160: 0.003076778146 | L160: 0.001709646462 | M160: 0.04345977202 | N160: 5.115453174e-05
A161: =IF('DF raw data'!E161="","",'DF raw data'!E161) -> -253 | B161: =IF('DF raw data'!F161="","",'DF raw data'!F161) -> -1.87489e-06 | C161: =IF('DF raw data'!G161="","",'DF raw data'!G161) -> 0.000173314 | D161: =IF('DF raw data'!H161="","",'DF raw data'!H161) -> -3.02918e-05 | F161: 7.589804098e-06 | G161: 3.611831089e-05 | H161: -3.264043789e-06 | J161: 6.495705226e-05 | K161: 0.003109256673 | L161: 0.001727705617 | M161: 0.04432362483 | N161: 5.26491248e-05
A162: =IF('DF raw data'!E162="","",'DF raw data'!E162) -> -252.5 | B162: =IF('DF raw data'!F162="","",'DF raw data'!F162) -> -5.85228e-06 | C162: =IF('DF raw data'!G162="","",'DF raw data'!G162) -> 0.000176792 | D162: =IF('DF raw data'!H162="","",'DF raw data'!H162) -> -2.08295e-05 | F162: 3.596106799e-06 | G162: 3.961057069e-05 | H162: 6.237051641e-06 | J162: 6.675510566e-05 | K162: 0.003142634225 | L162: 0.001747510902 | M162: 0.04519738028 | N162: 5.41782501e-05
A163: =IF('DF raw data'!E163="","",'DF raw data'!E163) -> -252 | B163: =IF('DF raw data'!F163="","",'DF raw data'!F163) -> 1.95943e-06 | C163: =IF('DF raw data'!G163="","",'DF raw data'!G163) -> 0.000179258 | D163: =IF('DF raw data'!H163="","",'DF raw data'!H163) -> -1.73767e-05 | F163: 1.143984481e-05 | G163: 4.208668129e-05 | H163: 9.704008121e-06 | J163: 7.247502807e-05 | K163: 0.003178871739 | L163: 0.001768554243 | M163: 0.0460816574 | N163: 5.574476847e-05
A164: =IF('DF raw data'!E164="","",'DF raw data'!E164) -> -251.5 | B164: =IF('DF raw data'!F164="","",'DF raw data'!F164) -> -9.12134e-06 | C164: =IF('DF raw data'!G164="","",'DF raw data'!G164) -> 0.000174275 | D164: =IF('DF raw data'!H164="","",'DF raw data'!H164) -> -1.68326e-05 | F164: 3.136436528e-07 | G164: 3.708325099e-05 | H164: 1.025033893e-05 | J164: 7.26318499e-05 | K164: 0.003215187664 | L164: 0.001787095869 | M164: 0.04697520534 | N164: 5.734426198e-05
A165: =IF('DF raw data'!E165="","",'DF raw data'!E165) -> -251 | B165: =IF('DF raw data'!F165="","",'DF raw data'!F165) -> -3.73626e-06 | C165: =IF('DF raw data'!G165="","",'DF raw data'!G165) -> 0.000166574 | D165: =IF('DF raw data'!H165="","",'DF raw data'!H165) -> -2.40639e-05 | F165: 5.720802481e-06 | G165: 2.935067689e-05 | H165: 2.989390601e-06 | J165: 7.549225114e-05 | K165: 0.00325293379 | L165: 0.001801771207 | M165: 0.04787609094 | N165: 5.897030126e-05
A166: =IF('DF raw data'!E166="","",'DF raw data'!E166) -> -250.5 | B166: =IF('DF raw data'!F166="","",'DF raw data'!F166) -> -1.69948e-05 | C166: =IF('DF raw data'!G166="","",'DF raw data'!G166) -> 0.000179958 | D166: =IF('DF raw data'!H166="","",'DF raw data'!H166) -> -2.37772e-05 | F166: -7.592097533e-06 | G166: 4.278955129e-05 | H166: 3.277266071e-06 | J166: 7.169620237e-05 | K166: 0.003288781891 | L166: 0.001823165983 | M166: 0.04878767393 | N166: 6.063483854e-05
A167: =IF('DF raw data'!E167="","",'DF raw data'!E167) -> -250 | B167: =IF('DF raw data'!F167="","",'DF raw data'!F167) -> -2.49354e-05 | C167: =IF('DF raw data'!G167="","",'DF raw data'!G167) -> 0.00018232 | D167: =IF('DF raw data'!H167="","",'DF raw data'!H167) -> -2.33331e-05 | F167: -1.556525399e-05 | G167: 4.516123549e-05 | H167: 3.723186881e-06 | J167: 6.391357537e-05 | K167: 0.003320738679 | L167: 0.0018457466 | M167: 0.04971054723 | N167: 6.234027127e-05
A168: =IF('DF raw data'!E168="","",'DF raw data'!E168) -> -249.5 | B168: =IF('DF raw data'!F168="","",'DF raw data'!F168) -> -1.74461e-05 | C168: =IF('DF raw data'!G168="","",'DF raw data'!G168) -> 0.000183941 | D168: =IF('DF raw data'!H168="","",'DF raw data'!H168) -> -1.94538e-05 | F168: -8.045247863e-06 | G168: 4.678888159e-05 | H168: 7.618392011e-06 | J168: 5.989095144e-05 | K168: 0.003350684155 | L168: 0.001869141041 | M168: 0.05064511775 | N168: 6.408890884e-05
A169: =IF('DF raw data'!E169="","",'DF raw data'!E169) -> -249 | B169: =IF('DF raw data'!F169="","",'DF raw data'!F169) -> -5.5953e-06 | C169: =IF('DF raw data'!G169="","",'DF raw data'!G169) -> 0.000185615 | D169: =IF('DF raw data'!H169="","",'DF raw data'!H169) -> -2.13999e-05 | F169: 3.854140417e-06 | G169: 4.846974499e-05 | H169: 5.664313001e-06 | J169: 6.181802165e-05 | K169: 0.003381593165 | L169: 0.001893375914 | M169: 0.05159180571 | N169: 6.588325575e-05
A170: =IF('DF raw data'!E170="","",'DF raw data'!E170) -> -248.5 | B170: =IF('DF raw data'!F170="","",'DF raw data'!F170) -> 1.50502e-06 | C170: =IF('DF raw data'!G170="","",'DF raw data'!G170) -> 0.0001885 | D170: =IF('DF raw data'!H170="","",'DF raw data'!H170) -> -7.9701e-06 | F170: 1.098357173e-05 | G170: 5.136657349e-05 | H170: 1.914917518e-05 | J170: 6.730980751e-05 | K170: 0.003415248069 | L170: 0.0019190592 | M170: 0.05255133531 | N170: 6.772691517e-05
A171: =IF('DF raw data'!E171="","",'DF raw data'!E171) -> -248 | B171: =IF('DF raw data'!F171="","",'DF raw data'!F171) -> -1.58473e-05 | C171: =IF('DF raw data'!G171="","",'DF raw data'!G171) -> 0.000182752 | D171: =IF('DF raw data'!H171="","",'DF raw data'!H171) -> -1.38142e-05 | F171: -6.439892783e-06 | G171: 4.559500669e-05 | H171: 1.328111437e-05 | J171: 6.408986112e-05 | K171: 0.003447293 | L171: 0.001941856704 | M171: 0.05352226366 | N171: 6.961437265e-05
A172: =IF('DF raw data'!E172="","",'DF raw data'!E172) -> -247.5 | B172: =IF('DF raw data'!F172="","",'DF raw data'!F172) -> -4.18742e-06 | C172: =IF('DF raw data'!G172="","",'DF raw data'!G172) -> 0.000178975 | D172: =IF('DF raw data'!H172="","",'DF raw data'!H172) -> -2.02958e-05 | F172: 5.267792725e-06 | G172: 4.180252099e-05 | H172: 6.772939811e-06 | J172: 6.672375748e-05 | K172: 0.003480654878 | L172: 0.001962757964 | M172: 0.05450364264 | N172: 7.154280809e-05
A173: =IF('DF raw data'!E173="","",'DF raw data'!E173) -> -247 | B173: =IF('DF raw data'!F173="","",'DF raw data'!F173) -> -1.2192e-05 | C173: =IF('DF raw data'!G173="","",'DF raw data'!G173) -> 0.000177787 | D173: =IF('DF raw data'!H173="","",'DF raw data'!H173) -> -2.1256e-05 | F173: -2.769606053e-06 | G173: 4.060965019e-05 | H173: 5.808802991e-06 | J173: 6.533895446e-05 | K173: 0.003513324356 | L173: 0.001983062789 | M173: 0.05549517404 | N173: 7.35112117e-05
A174: =IF('DF raw data'!E174="","",'DF raw data'!E174) -> -246.5 | B174: =IF('DF raw data'!F174="","",'DF raw data'!F174) -> -1.46215e-05 | C174: =IF('DF raw data'!G174="","",'DF raw data'!G174) -> 0.000176964 | D174: =IF('DF raw data'!H174="","",'DF raw data'!H174) -> -2.91086e-05 | F174: -5.209067003e-06 | G174: 3.978327589e-05 | H174: -2.075992669e-06 | J174: 6.273442096e-05 | K174: 0.003544691566 | L174: 0.002002954427 | M174: 0.05649665125 | N174: 7.551909272e-05
A175: =IF('DF raw data'!E175="","",'DF raw data'!E175) -> -246 | B175: =IF('DF raw data'!F175="","",'DF raw data'!F175) -> -1.17449e-05 | C175: =IF('DF raw data'!G175="","",'DF raw data'!G175) -> 0.000167318 | D175: =IF('DF raw data'!H175="","",'DF raw data'!H175) -> -1.92291e-05 | F175: -2.320672943e-06 | G175: 3.009772729e-05 | H175: 7.844013281e-06 | J175: 6.157408449e-05 | K175: 0.003575478608 | L175: 0.002018003291 | M175: 0.0575056529 | N175: 7.755715704e-05
A176: =IF('DF raw data'!E176="","",'DF raw data'!E176) -> -245.5 | B176: =IF('DF raw data'!F176="","",'DF raw data'!F176) -> -1.43121e-05 | C176: =IF('DF raw data'!G176="","",'DF raw data'!G176) -> 0.000163071 | D176: =IF('DF raw data'!H176="","",'DF raw data'!H176) -> -1.25811e-05 | F176: -4.898398463e-06 | G176: 2.583331459e-05 | H176: 1.451927008e-05 | J176: 5.912488525e-05 | K176: 0.003605041051 | L176: 0.002030919948 | M176: 0.05852111287 | N176: 7.962122284e-05
A177: =IF('DF raw data'!E177="","",'DF raw data'!E177) -> -245 | B177: =IF('DF raw data'!F177="","",'DF raw data'!F177) -> -5.6011e-06 | C177: =IF('DF raw data'!G177="","",'DF raw data'!G177) -> 0.000170204 | D177: =IF('DF raw data'!H177="","",'DF raw data'!H177) -> -1.24899e-05 | F177: 3.848316637e-06 | G177: 3.299555989e-05 | H177: 1.4610844e-05 | J177: 6.104904357e-05 | K177: 0.003635565573 | L177: 0.002047417728 | M177: 0.05954482174 | N177: 8.171904601e-05
A178: =IF('DF raw data'!E178="","",'DF raw data'!E178) -> -244.5 | B178: =IF('DF raw data'!F178="","",'DF raw data'!F178) -> -3.36123e-06 | C178: =IF('DF raw data'!G178="","",'DF raw data'!G178) -> 0.000178437 | D178: =IF('DF raw data'!H178="","",'DF raw data'!H178) -> -1.02231e-05 | F178: 6.097370104e-06 | G178: 4.126231519e-05 | H178: 1.688693788e-05 | J178: 6.409772862e-05 | K178: 0.003667614437 | L178: 0.002068048886 | M178: 0.06057884618 | N178: 8.385951336e-05
A179: =IF('DF raw data'!E179="","",'DF raw data'!E179) -> -244 | B179: =IF('DF raw data'!F179="","",'DF raw data'!F179) -> -5.78928e-06 | C179: =IF('DF raw data'!G179="","",'DF raw data'!G179) -> 0.000176287 | D179: =IF('DF raw data'!H179="","",'DF raw data'!H179) -> -1.87683e-05 | F179: 3.659365099e-06 | G179: 3.910350019e-05 | H179: 8.306702561e-06 | J179: 6.592741117e-05 | K179: 0.003700578143 | L179: 0.002087600636 | M179: 0.0616226465 | N179: 8.604072478e-05
A180: =IF('DF raw data'!E180="","",'DF raw data'!E180) -> -243.5 | B180: =IF('DF raw data'!F180="","",'DF raw data'!F180) -> -1.87872e-05 | C180: =IF('DF raw data'!G180="","",'DF raw data'!G180) -> 0.000166557 | D180: =IF('DF raw data'!H180="","",'DF raw data'!H180) -> -2.54773e-05 | F180: -9.391846373e-06 | G180: 2.933360719e-05 | H180: 1.570195661e-06 | J180: 6.123148799e-05 | K180: 0.003731193887 | L180: 0.002102267439 | M180: 0.06267378022 | N180: 8.825236362e-05
A181: =IF('DF raw data'!E181="","",'DF raw data'!E181) -> -243 | B181: =IF('DF raw data'!F181="","",'DF raw data'!F181) -> -2.19232e-05 | C181: =IF('DF raw data'!G181="","",'DF raw data'!G181) -> 0.00016616 | D181: =IF('DF raw data'!H181="","",'DF raw data'!H181) -> -2.67131e-05 | F181: -1.254070397e-05 | G181: 2.893497949e-05 | H181: 3.293288813e-07 | J181: 5.4961136e-05 | K181: 0.003758674455 | L181: 0.002116734929 | M181: 0.06373214768 | N181: 9.049415737e-05
A182: =IF('DF raw data'!E182="","",'DF raw data'!E182) -> -242.5 | B182: =IF('DF raw data'!F182="","",'DF raw data'!F182) -> -1.35287e-05 | C182: =IF('DF raw data'!G182="","",'DF raw data'!G182) -> 0.000173561 | D182: =IF('DF raw data'!H182="","",'DF raw data'!H182) -> -3.55849e-05 | F182: -4.111786523e-06 | G182: 3.636632359e-05 | H182: -8.578845499e-06 | J182: 5.290524274e-05 | K182: 0.003785127076 | L182: 0.002134918091 | M182: 0.06479960673 | N182: 9.277449448e-05
A183: =IF('DF raw data'!E183="","",'DF raw data'!E183) -> -242 | B183: =IF('DF raw data'!F183="","",'DF raw data'!F183) -> -6.35755e-06 | C183: =IF('DF raw data'!G183="","",'DF raw data'!G183) -> 0.000176531 | D183: =IF('DF raw data'!H183="","",'DF raw data'!H183) -> -3.10086e-05 | F183: 3.088765192e-06 | G183: 3.934850059e-05 | H183: -3.983782669e-06 | J183: 5.444962533e-05 | K183: 0.003812351889 | L183: 0.002154592341 | M183: 0.0658769029 | N183: 9.509711094e-05
A184: =IF('DF raw data'!E184="","",'DF raw data'!E184) -> -241.5 | B184: =IF('DF raw data'!F184="","",'DF raw data'!F184) -> -1.51448e-05 | C184: =IF('DF raw data'!G184="","",'DF raw data'!G184) -> 0.000178788 | D184: =IF('DF raw data'!H184="","",'DF raw data'!H184) -> -1.23558e-05 | F184: -5.734512533e-06 | G184: 4.161475429e-05 | H184: 1.474549381e-05 | J184: 5.158236907e-05 | K184: 0.003838143073 | L184: 0.002175399718 | M184: 0.06696460276 | N184: 9.746462328e-05
A185: =IF('DF raw data'!E185="","",'DF raw data'!E185) -> -241 | B185: =IF('DF raw data'!F185="","",'DF raw data'!F185) -> -1.6168e-05 | C185: =IF('DF raw data'!G185="","",'DF raw data'!G185) -> 0.000181685 | D185: =IF('DF raw data'!H185="","",'DF raw data'!H185) -> -1.32325e-05 | F185: -6.761907653e-06 | G185: 4.452363199e-05 | H185: 1.386519934e-05 | J185: 4.820141524e-05 | K185: 0.003862243781 | L185: 0.002197661534 | M185: 0.06806343352 | N185: 9.988064307e-05
A186: =IF('DF raw data'!E186="","",'DF raw data'!E186) -> -240.5 | B186: =IF('DF raw data'!F186="","",'DF raw data'!F186) -> -1.71257e-05 | C186: =IF('DF raw data'!G186="","",'DF raw data'!G186) -> 0.00017688 | D186: =IF('DF raw data'!H186="","",'DF raw data'!H186) -> -1.96711e-05 | F186: -7.723534223e-06 | G186: 3.969893149e-05 | H186: 7.400201081e-06 | J186: 4.433964813e-05 | K186: 0.003884413605 | L186: 0.002217511 | M186: 0.06917218902 | N186: 0.0001023403036
A187: =IF('DF raw data'!E187="","",'DF raw data'!E187) -> -240 | B187: =IF('DF raw data'!F187="","",'DF raw data'!F187) -> -1.63577e-05 | C187: =IF('DF raw data'!G187="","",'DF raw data'!G187) -> 0.000178173 | D187: =IF('DF raw data'!H187="","",'DF raw data'!H187) -> -1.66229e-05 | F187: -6.952385423e-06 | G187: 4.099723279e-05 | H187: 1.04608987e-05 | J187: 4.086345542e-05 | K187: 0.003904845333 | L187: 0.002238009617 | M187: 0.07029119383 | N187: 0.000104845482
A188: =IF('DF raw data'!E188="","",'DF raw data'!E188) -> -239.5 | B188: =IF('DF raw data'!F188="","",'DF raw data'!F188) -> -1.7383e-05 | C188: =IF('DF raw data'!G188="","",'DF raw data'!G188) -> 0.000174889 | D188: =IF('DF raw data'!H188="","",'DF raw data'!H188) -> -1.78898e-05 | F188: -7.981889153e-06 | G188: 3.769976839e-05 | H188: 9.188804411e-06 | J188: 3.687251084e-05 | K188: 0.003923281588 | L188: 0.002256859501 | M188: 0.07141962358 | N188: 0.0001073928692
A189: =IF('DF raw data'!E189="","",'DF raw data'!E189) -> -239 | B189: =IF('DF raw data'!F189="","",'DF raw data'!F189) -> -7.96534e-06 | C189: =IF('DF raw data'!G189="","",'DF raw data'!G189) -> 0.000174819 | D189: =IF('DF raw data'!H189="","",'DF raw data'!H189) -> -2.07438e-05 | F189: 1.474383253e-06 | G189: 3.762948139e-05 | H189: 6.323103011e-06 | J189: 3.760970247e-05 | K189: 0.003942086439 | L189: 0.002275674242 | M189: 0.0725574607 | N189: 0.0001099829231
A190: =IF('DF raw data'!E190="","",'DF raw data'!E190) -> -238.5 | B190: =IF('DF raw data'!F190="","",'DF raw data'!F190) -> -5.39696e-06 | C190: =IF('DF raw data'!G190="","",'DF raw data'!G190) -> 0.000183472 | D190: =IF('DF raw data'!H190="","",'DF raw data'!H190) -> -3.14721e-05 | F190: 4.053293611e-06 | G190: 4.631795869e-05 | H190: -4.449183019e-06 | J190: 3.963634927e-05 | K190: 0.003961904614 | L190: 0.002298833221 | M190: 0.07370687731 | N190: 0.0001126260257
A191: =IF('DF raw data'!E191="","",'DF raw data'!E191) -> -238 | B191: =IF('DF raw data'!F191="","",'DF raw data'!F191) -> -1.2837e-05 | C191: =IF('DF raw data'!G191="","",'DF raw data'!G191) -> 0.000178115 | D191: =IF('DF raw data'!H191="","",'DF raw data'!H191) -> -1.41004e-05 | F191: -3.417250553e-06 | G191: 4.093899499e-05 | H191: 1.299374095e-05 | J191: 3.7927724e-05 | K191: 0.003980868476 | L191: 0.002319302718 | M191: 0.07486652867 | N191: 0.0001153163275
A192: =IF('DF raw data'!E192="","",'DF raw data'!E192) -> -237.5 | B192: =IF('DF raw data'!F192="","",'DF raw data'!F192) -> -5.21375e-06 | C192: =IF('DF raw data'!G192="","",'DF raw data'!G192) -> 0.000172606 | D192: =IF('DF raw data'!H192="","",'DF raw data'!H192) -> -1.79131e-05 | F192: 4.237254772e-06 | G192: 3.540740809e-05 | H192: 9.165408881e-06 | J192: 4.004635138e-05 | K192: 0.004000891652 | L192: 0.002337006422 | M192: 0.07603503188 | N192: 0.0001180479289
A193: =IF('DF raw data'!E193="","",'DF raw data'!E193) -> -237 | B193: =IF('DF raw data'!F193="","",'DF raw data'!F193) -> -1.00865e-05 | C193: =IF('DF raw data'!G193="","",'DF raw data'!G193) -> 0.000169386 | D193: =IF('DF raw data'!H193="","",'DF raw data'!H193) -> -8.86865e-06 | F193: -6.554735032e-07 | G193: 3.217420609e-05 | H193: 1.824694113e-05 | J193: 3.971861463e-05 | K193: 0.004020750959 | L193: 0.002353093525 | M193: 0.07721157865 | N193: 0.0001208172422
A194: =IF('DF raw data'!E194="","",'DF raw data'!E194) -> -236.5 | B194: =IF('DF raw data'!F194="","",'DF raw data'!F194) -> -2.08447e-05 | C194: =IF('DF raw data'!G194="","",'DF raw data'!G194) -> 0.000175595 | D194: =IF('DF raw data'!H194="","",'DF raw data'!H194) -> -1.33977e-05 | F194: -1.145778212e-05 | G194: 3.840866299e-05 | H194: 1.369932202e-05 | J194: 3.398972357e-05 | K194: 0.004037745821 | L194: 0.002372297857 | M194: 0.07839772758 | N194: 0.0001236317184
A195: =IF('DF raw data'!E195="","",'DF raw data'!E195) -> -236 | B195: =IF('DF raw data'!F195="","",'DF raw data'!F195) -> -2.01975e-05 | C195: =IF('DF raw data'!G195="","",'DF raw data'!G195) -> 0.000172022 | D195: =IF('DF raw data'!H195="","",'DF raw data'!H195) -> -2.10539e-05 | F195: =(1-$G$1*($B$54-$G$2))*(B195-F$5) -> -1.08079286e-05 | G195: =(1-$G$1*($B$54-$G$2))*(C195-G$5) -> 3.482101369e-05 | H195: =(1-$G$1*($B$54-$G$2))*(D195-H$5) -> 6.011731601e-06 | J195: 2.858575927e-05 | K195: 0.0040520387 | L195: 0.002389708364 | M195: 0.07959258176 | N195: 0.00012648748
A196: =IF('DF raw data'!E196="","",'DF raw data'!E196) -> -235.5 | B196: =IF('DF raw data'!F196="","",'DF raw data'!F196) -> -2.19295e-05 | C196: =IF('DF raw data'!G196="","",'DF raw data'!G196) -> 0.000177215 | D196: =IF('DF raw data'!H196="","",'DF raw data'!H196) -> -1.97267e-05 | F196: -1.25470298e-05 | G196: 4.003530499e-05 | H196: 7.344373121e-06 | J196: =F196*$G$3+J195 -> 2.231224437e-05 | K196: =J196*$G$3+K195 -> 0.004063194823 | L196: =G196*$G$3+L195 -> 0.002409726016 | M196: =L196*$G$3+M195 -> 0.08079744477 | N196: =(J196^2+L196^2)*$G$3+N195 -> 0.0001293911187
A197: =IF('DF raw data'!E197="","",'DF raw data'!E197) -> -235 | B197: =IF('DF raw data'!F197="","",'DF raw data'!F197) -> -1.27735e-05 | C197: =IF('DF raw data'!G197="","",'DF raw data'!G197) -> 0.000172238 | D197: =IF('DF raw data'!H197="","",'DF raw data'!H197) -> -1.31338e-05 | F197: -3.353490203e-06 | G197: 3.503789929e-05 | H197: 1.396430401e-05 | J197: 2.063549926e-05 | K197: 0.004073512572 | L197: 0.002427244966 | M197: 0.08201106725 | N197: 0.0001323370907
A198: =IF('DF raw data'!E198="","",'DF raw data'!E198) -> -234.5 | B198: =IF('DF raw data'!F198="","",'DF raw data'!F198) -> -2.46245e-05 | C198: =IF('DF raw data'!G198="","",'DF raw data'!G198) -> 0.00017113 | D198: =IF('DF raw data'!H198="","",'DF raw data'!H198) -> -1.17343e-05 | F198: -1.52530793e-05 | G198: 3.392535649e-05 | H198: 1.536954196e-05 | J198: 1.300895961e-05 | K198: 0.004080017052 | L198: 0.002444207644 | M198: 0.08323317107 | N198: 0.0001353242508
A199: =IF('DF raw data'!E199="","",'DF raw data'!E199) -> -234 | B199: =IF('DF raw data'!F199="","",'DF raw data'!F199) -> -1.4495e-05 | C199: =IF('DF raw data'!G199="","",'DF raw data'!G199) -> 0.000171869 | D199: =IF('DF raw data'!H199="","",'DF raw data'!H199) -> -2.50795e-05 | F199: -5.082048353e-06 | G199: 3.466738639e-05 | H199: 1.969626641e-06 | J199: 1.046793544e-05 | K199: 0.00408525102 | L199: 0.002461541337 | M199: 0.08446394174 | N199: 0.0001383538985
A200: =IF('DF raw data'!E200="","",'DF raw data'!E200) -> -233.5 | B200: =IF('DF raw data'!F200="","",'DF raw data'!F200) -> -2.51916e-05 | C200: =IF('DF raw data'!G200="","",'DF raw data'!G200) -> 0.000172966 | D200: =IF('DF raw data'!H200="","",'DF raw data'!H200) -> -2.62768e-05 | F200: -1.582250441e-05 | G200: 3.576888409e-05 | H200: 7.674177113e-07 | J200: 2.556683229e-06 | K200: 0.004086529361 | L200: 0.002479425779 | M200: 0.08570365463 | N200: 0.0001414276778
... 1079 more rows

Sheet 20 mm
A1: =IF('DF raw data'!I1="","",'DF raw data'!I1) -> Number of header lines | B1: =IF('DF raw data'!J1="","",'DF raw data'!J1) -> 54 | C1: =IF('DF raw data'!C1="","",'DF raw data'!C1) ->  | D1: =IF('DF raw data'!D1="","",'DF raw data'!D1) ->  | F1: T_coeff | G1: -0.001 | H1: /degC | J1: IBy total | K1: =J1267*1000 -> -2.444495233 | L1: muTm | M1: =L1267*1000 -> -47.95277875 | R1: DF ref | S1: 1
A2: =IF('DF raw data'!I2="","",'DF raw data'!I2) -> Measured by | B2: =IF('DF raw data'!J2="","",'DF raw data'!J2) -> Danfysik | C2: =IF('DF raw data'!C2="","",'DF raw data'!C2) ->  | D2: =IF('DF raw data'!D2="","",'DF raw data'!D2) ->  | F2: Tcorr | G2: 20 | H2: degC | J2: JBy total | K2: =K1267 -> -3.925128087 | L2: muTm^2 | M2: =M1267 -> -12.86695278
A3: =IF('DF raw data'!I3="","",'DF raw data'!I3) -> Operator | B3: =IF('DF raw data'!J3="","",'DF raw data'!J3) -> PMHA | C3: =IF('DF raw data'!C3="","",'DF raw data'!C3) ->  | D3: =IF('DF raw data'!D3="","",'DF raw data'!D3) ->  | F3: Step | G3: =A68-A67 -> 0.5 | H3: mm | J3: PI total | K3: =N1267 -> 4998.035388 | L3: T^2mm^3
A4: =IF('DF raw data'!I4="","",'DF raw data'!I4) -> Data-time | B4: =IF('DF raw data'!J4="","",'DF raw data'!J4) -> 26-09-2024, 10:38:46 | C4: =IF('DF raw data'!C4="","",'DF raw data'!C4) ->  | D4: =IF('DF raw data'!D4="","",'DF raw data'!D4) -> 
A5: =IF('DF raw data'!I5="","",'DF raw data'!I5) -> Project | B5: =IF('DF raw data'!J5="","",'DF raw data'!J5) -> 504314 | C5: =IF('DF raw data'!C5="","",'DF raw data'!C5) ->  | D5: Bamb avr | F5: =(AVERAGE(B67:B107) + AVERAGE(B1227:B1267))/2 -> -6.509109524e-06 | G5: =(AVERAGE(C67:C107) + AVERAGE(C1227:C1267))/2 -> 0.0001404039622 | H5: =(AVERAGE(D67:D107) + AVERAGE(D1227:D1267))/2 -> -2.132275317e-05
A6: =IF('DF raw data'!I6="","",'DF raw data'!I6) -> Magnet type | B6: =IF('DF raw data'!J6="","",'DF raw data'!J6) -> Dipole | C6: =IF('DF raw data'!C6="","",'DF raw data'!C6) -> 
A7: =IF('DF raw data'!I7="","",'DF raw data'!I7) -> Magnet nr. | B7: =IF('DF raw data'!J7="","",'DF raw data'!J7) -> 2410102 | C7: =IF('DF raw data'!C7="","",'DF raw data'!C7) -> 
A8: =IF('DF raw data'!I8="","",'DF raw data'!I8) -> Meas. number | B8: =IF('DF raw data'!J8="","",'DF raw data'!J8) -> 709 | C8: =IF('DF raw data'!C8="","",'DF raw data'!C8) -> 
A9: =IF('DF raw data'!I9="","",'DF raw data'!I9) -> Add. info | B9: =IF('DF raw data'!J9="","",'DF raw data'!J9) ->  | C9: =IF('DF raw data'!C9="","",'DF raw data'!C9) ->  | D9: =IF('DF raw data'!D9="","",'DF raw data'!D9) -> 
A10: =IF('DF raw data'!I10="","",'DF raw data'!I10) -> Device | B10: =IF('DF raw data'!J10="","",'DF raw data'!J10) -> (HAL) HALL-PROBE | C10: =IF('DF raw data'!C10="","",'DF raw data'!C10) ->  | D10: =IF('DF raw data'!D10="","",'DF raw data'!D10) -> 
A11: =IF('DF raw data'!I11="","",'DF raw data'!I11) -> Goal | B11: =IF('DF raw data'!J11="","",'DF raw data'!J11) -> (AXI) AXis Integral (Line, EFB) | C11: =IF('DF raw data'!C11="","",'DF raw data'!C11) ->  | D11: =IF('DF raw data'!D11="","",'DF raw data'!D11) -> 
A12: =IF('DF raw data'!I12="","",'DF raw data'!I12) -> Power supply mode | B12: =IF('DF raw data'!J12="","",'DF raw data'!J12) -> (PM) Permanent Magnet (no MPS in use) | C12: =IF('DF raw data'!C12="","",'DF raw data'!C12) ->  | D12: =IF('DF raw data'!D12="","",'DF raw data'!D12) -> 
A13: =IF('DF raw data'!I13="","",'DF raw data'!I13) -> Data format | B13: =IF('DF raw data'!J13="","",'DF raw data'!J13) -> Raw data text file | C13: =IF('DF raw data'!C13="","",'DF raw data'!C13) ->  | D13: =IF('DF raw data'!D13="","",'DF raw data'!D13) -> 
A14: =IF('DF raw data'!I14="","",'DF raw data'!I14) -> Direction of the pos. x-axis | B14: =IF('DF raw data'!J14="","",'DF raw data'!J14) -> See test program | C14: =IF('DF raw data'!C14="","",'DF raw data'!C14) ->  | D14: =IF('DF raw data'!D14="","",'DF raw data'!D14) -> 
A15: =IF('DF raw data'!I15="","",'DF raw data'!I15) -> Direction of the pos. y-axis | B15: =IF('DF raw data'!J15="","",'DF raw data'!J15) -> Vertical up | C15: =IF('DF raw data'!C15="","",'DF raw data'!C15) ->  | D15: =IF('DF raw data'!D15="","",'DF raw data'!D15) -> 
A16: =IF('DF raw data'!I16="","",'DF raw data'!I16) -> Direction of the pos. z-axis | B16: =IF('DF raw data'!J16="","",'DF raw data'!J16) -> See test program | C16: =IF('DF raw data'!C16="","",'DF raw data'!C16) ->  | D16: =IF('DF raw data'!D16="","",'DF raw data'!D16) -> 
A17: =IF('DF raw data'!I17="","",'DF raw data'!I17) -> Mapper type | B17: =IF('DF raw data'!J17="","",'DF raw data'!J17) -> Precision Hall Mapper | C17: =IF('DF raw data'!C17="","",'DF raw data'!C17) ->  | D17: =IF('DF raw data'!D17="","",'DF raw data'!D17) -> 
A18: =IF('DF raw data'!I18="","",'DF raw data'!I18) -> Mapper Danfysik Reg. Number | B18: =IF('DF raw data'!J18="","",'DF raw data'!J18) -> 2033-D (mapper 1) | C18: =IF('DF raw data'!C18="","",'DF raw data'!C18) ->  | D18: =IF('DF raw data'!D18="","",'DF raw data'!D18) -> 
A19: =IF('DF raw data'!I19="","",'DF raw data'!I19) -> Measurement consept | B19: =IF('DF raw data'!J19="","",'DF raw data'!J19) -> Square line grid | C19: =IF('DF raw data'!C19="","",'DF raw data'!C19) ->  | D19: =IF('DF raw data'!D19="","",'DF raw data'!D19) -> 
A20: =IF('DF raw data'!I20="","",'DF raw data'!I20) -> Mode | B20: =IF('DF raw data'!J20="","",'DF raw data'!J20) -> On-the-fly measurement | C20: =IF('DF raw data'!C20="","",'DF raw data'!C20) ->  | D20: =IF('DF raw data'!D20="","",'DF raw data'!D20) -> 
A21: =IF('DF raw data'!I21="","",'DF raw data'!I21) ->  | B21: =IF('DF raw data'!J21="","",'DF raw data'!J21) ->  | C21: =IF('DF raw data'!C21="","",'DF raw data'!C21) ->  | D21: =IF('DF raw data'!D21="","",'DF raw data'!D21) -> 
A22: =IF('DF raw data'!I22="","",'DF raw data'!I22) -> Probe Name | B22: =IF('DF raw data'!J22="","",'DF raw data'!J22) -> ID12_By | C22: =IF('DF raw data'!C22="","",'DF raw data'!C22) ->  | D22: =IF('DF raw data'!D22="","",'DF raw data'!D22) -> 
A23: =IF('DF raw data'!I23="","",'DF raw data'!I23) -> Probe Type | B23: =IF('DF raw data'!J23="","",'DF raw data'!J23) -> DF_ID_3D_Bxyz | C23: =IF('DF raw data'!C23="","",'DF raw data'!C23) ->  | D23: =IF('DF raw data'!D23="","",'DF raw data'!D23) -> 
A24: =IF('DF raw data'!I24="","",'DF raw data'!I24) -> Probe Danfysik Reg. Number | B24: =IF('DF raw data'!J24="","",'DF raw data'!J24) -> 2277 | C24: =IF('DF raw data'!C24="","",'DF raw data'!C24) ->  | D24: =IF('DF raw data'!D24="","",'DF raw data'!D24) -> 
A25: =IF('DF raw data'!I25="","",'DF raw data'!I25) -> Probe Axis | B25: =IF('DF raw data'!J25="","",'DF raw data'!J25) -> By | C25: =IF('DF raw data'!C25="","",'DF raw data'!C25) ->  | D25: =IF('DF raw data'!D25="","",'DF raw data'!D25) -> 
A26: =IF('DF raw data'!I26="","",'DF raw data'!I26) -> Probe Current Supply | B26: =IF('DF raw data'!J26="","",'DF raw data'!J26) -> 1825-D | C26: =IF('DF raw data'!C26="","",'DF raw data'!C26) ->  | D26: =IF('DF raw data'!D26="","",'DF raw data'!D26) -> 
A27: =IF('DF raw data'!I27="","",'DF raw data'!I27) -> Probe Gain Correction | B27: =IF('DF raw data'!J27="","",'DF raw data'!J27) -> 0.99599 | C27: =IF('DF raw data'!C27="","",'DF raw data'!C27) ->  | D27: =IF('DF raw data'!D27="","",'DF raw data'!D27) -> 
A28: =IF('DF raw data'!I28="","",'DF raw data'!I28) -> Probe Offset Correction | B28: =IF('DF raw data'!J28="","",'DF raw data'!J28) -> 0.0027595 | C28: =IF('DF raw data'!C28="","",'DF raw data'!C28) ->  | D28: =IF('DF raw data'!D28="","",'DF raw data'!D28) -> 
A29: =IF('DF raw data'!I29="","",'DF raw data'!I29) -> DVM Number | B29: =IF('DF raw data'!J29="","",'DF raw data'!J29) -> 2 | C29: =IF('DF raw data'!C29="","",'DF raw data'!C29) ->  | D29: =IF('DF raw data'!D29="","",'DF raw data'!D29) -> 
A30: =IF('DF raw data'!I30="","",'DF raw data'!I30) -> DVM Type | B30: =IF('DF raw data'!J30="","",'DF raw data'!J30) -> K2701 | C30: =IF('DF raw data'!C30="","",'DF raw data'!C30) ->  | D30: =IF('DF raw data'!D30="","",'DF raw data'!D30) -> 
A31: =IF('DF raw data'!I31="","",'DF raw data'!I31) -> DVM Danfysik Reg. Number | B31: =IF('DF raw data'!J31="","",'DF raw data'!J31) -> 1743-D | C31: =IF('DF raw data'!C31="","",'DF raw data'!C31) ->  | D31: =IF('DF raw data'!D31="","",'DF raw data'!D31) -> 
A32: =IF('DF raw data'!I32="","",'DF raw data'!I32) -> Probe Name | B32: =IF('DF raw data'!J32="","",'DF raw data'!J32) -> ID12_Bx | C32: =IF('DF raw data'!C32="","",'DF raw data'!C32) ->  | D32: =IF('DF raw data'!D32="","",'DF raw data'!D32) -> 
A33: =IF('DF raw data'!I33="","",'DF raw data'!I33) -> Probe Type | B33: =IF('DF raw data'!J33="","",'DF raw data'!J33) -> DF_ID_3D_Bxyz | C33: =IF('DF raw data'!C33="","",'DF raw data'!C33) ->  | D33: =IF('DF raw data'!D33="","",'DF raw data'!D33) -> 
A34: =IF('DF raw data'!I34="","",'DF raw data'!I34) -> Probe Danfysik Reg. Number | B34: =IF('DF raw data'!J34="","",'DF raw data'!J34) -> 2277 | C34: =IF('DF raw data'!C34="","",'DF raw data'!C34) ->  | D34: =IF('DF raw data'!D34="","",'DF raw data'!D34) -> 
A35: =IF('DF raw data'!I35="","",'DF raw data'!I35) -> Probe Axis | B35: =IF('DF raw data'!J35="","",'DF raw data'!J35) -> Bx | C35: =IF('DF raw data'!C35="","",'DF raw data'!C35) ->  | D35: =IF('DF raw data'!D35="","",'DF raw data'!D35) -> 
A36: =IF('DF raw data'!I36="","",'DF raw data'!I36) -> Probe Current Supply | B36: =IF('DF raw data'!J36="","",'DF raw data'!J36) -> 1825-D | C36: =IF('DF raw data'!C36="","",'DF raw data'!C36) ->  | D36: =IF('DF raw data'!D36="","",'DF raw data'!D36) -> 
A37: =IF('DF raw data'!I37="","",'DF raw data'!I37) -> Probe Gain Correction | B37: =IF('DF raw data'!J37="","",'DF raw data'!J37) -> 1 | C37: =IF('DF raw data'!C37="","",'DF raw data'!C37) ->  | D37: =IF('DF raw data'!D37="","",'DF raw data'!D37) -> 
A38: =IF('DF raw data'!I38="","",'DF raw data'!I38) -> Probe Offset Correction | B38: =IF('DF raw data'!J38="","",'DF raw data'!J38) -> -0.17537 | C38: =IF('DF raw data'!C38="","",'DF raw data'!C38) ->  | D38: =IF('DF raw data'!D38="","",'DF raw data'!D38) -> 
A39: =IF('DF raw data'!I39="","",'DF raw data'!I39) -> DVM Number | B39: =IF('DF raw data'!J39="","",'DF raw data'!J39) -> 3 | C39: =IF('DF raw data'!C39="","",'DF raw data'!C39) ->  | D39: =IF('DF raw data'!D39="","",'DF raw data'!D39) -> 
A40: =IF('DF raw data'!I40="","",'DF raw data'!I40) -> DVM Type | B40: =IF('DF raw data'!J40="","",'DF raw data'!J40) -> K2701 | C40: =IF('DF raw data'!C40="","",'DF raw data'!C40) ->  | D40: =IF('DF raw data'!D40="","",'DF raw data'!D40) -> 
A41: =IF('DF raw data'!I41="","",'DF raw data'!I41) -> DVM Danfysik Reg. Number | B41: =IF('DF raw data'!J41="","",'DF raw data'!J41) -> 1744-D | C41: =IF('DF raw data'!C41="","",'DF raw data'!C41) ->  | D41: =IF('DF raw data'!D41="","",'DF raw data'!D41) -> 
A42: =IF('DF raw data'!I42="","",'DF raw data'!I42) -> Probe Name | B42: =IF('DF raw data'!J42="","",'DF raw data'!J42) -> ID12_Bz | C42: =IF('DF raw data'!C42="","",'DF raw data'!C42) ->  | D42: =IF('DF raw data'!D42="","",'DF raw data'!D42) -> 
A43: =IF('DF raw data'!I43="","",'DF raw data'!I43) -> Probe Type | B43: =IF('DF raw data'!J43="","",'DF raw data'!J43) -> DF_ID_3D_Bxyz | C43: =IF('DF raw data'!C43="","",'DF raw data'!C43) ->  | D43: =IF('DF raw data'!D43="","",'DF raw data'!D43) -> 
A44: =IF('DF raw data'!I44="","",'DF raw data'!I44) -> Probe Danfysik Reg. Number | B44: =IF('DF raw data'!J44="","",'DF raw data'!J44) -> 2277 | C44: =IF('DF raw data'!C44="","",'DF raw data'!C44) ->  | D44: =IF('DF raw data'!D44="","",'DF raw data'!D44) -> 
A45: =IF('DF raw data'!I45="","",'DF raw data'!I45) -> Probe Axis | B45: =IF('DF raw data'!J45="","",'DF raw data'!J45) -> Bz | C45: =IF('DF raw data'!C45="","",'DF raw data'!C45) ->  | D45: =IF('DF raw data'!D45="","",'DF raw data'!D45) -> 
A46: =IF('DF raw data'!I46="","",'DF raw data'!I46) -> Probe Current Supply | B46: =IF('DF raw data'!J46="","",'DF raw data'!J46) -> 1825-D | C46: =IF('DF raw data'!C46="","",'DF raw data'!C46) ->  | D46: =IF('DF raw data'!D46="","",'DF raw data'!D46) -> 
A47: =IF('DF raw data'!I47="","",'DF raw data'!I47) -> Probe Gain Correction | B47: =IF('DF raw data'!J47="","",'DF raw data'!J47) -> 1 | C47: =IF('DF raw data'!C47="","",'DF raw data'!C47) ->  | D47: =IF('DF raw data'!D47="","",'DF raw data'!D47) -> 
A48: =IF('DF raw data'!I48="","",'DF raw data'!I48) -> Probe Offset Correction | B48: =IF('DF raw data'!J48="","",'DF raw data'!J48) -> 0.0073107 | C48: =IF('DF raw data'!C48="","",'DF raw data'!C48) ->  | D48: =IF('DF raw data'!D48="","",'DF raw data'!D48) -> 
A49: =IF('DF raw data'!I49="","",'DF raw data'!I49) -> DVM Number | B49: =IF('DF raw data'!J49="","",'DF raw data'!J49) -> 8 | C49: =IF('DF raw data'!C49="","",'DF raw data'!C49) ->  | D49: =IF('DF raw data'!D49="","",'DF raw data'!D49) -> 
A50: =IF('DF raw data'!I50="","",'DF raw data'!I50) -> DVM Type | B50: =IF('DF raw data'!J50="","",'DF raw data'!J50) -> K2700 | C50: =IF('DF raw data'!C50="","",'DF raw data'!C50) ->  | D50: =IF('DF raw data'!D50="","",'DF raw data'!D50) -> 
A51: =IF('DF raw data'!I51="","",'DF raw data'!I51) -> DVM Danfysik Reg. Number | B51: =IF('DF raw data'!J51="","",'DF raw data'!J51) -> 1756-D | C51: =IF('DF raw data'!C51="","",'DF raw data'!C51) ->  | D51: =IF('DF raw data'!D51="","",'DF raw data'!D51) -> 
A52: =IF('DF raw data'!I52="","",'DF raw data'!I52) -> NTC voltage | B52: =IF('DF raw data'!J52="","",'DF raw data'!J52) -> 0.42454 | C52: =IF('DF raw data'!C52="","",'DF raw data'!C52) ->  | D52: =IF('DF raw data'!D52="","",'DF raw data'!D52) -> 
A53: =IF('DF raw data'!I53="","",'DF raw data'!I53) -> PS-Gap: | B53: =IF('DF raw data'!J53="","",'DF raw data'!J53) -> 20 | C53: =IF('DF raw data'!C53="","",'DF raw data'!C53) ->  | D53: =IF('DF raw data'!D53="","",'DF raw data'!D53) -> 
A54: =IF('DF raw data'!I54="","",'DF raw data'!I54) -> PS-Temperature: | B54: =IF('DF raw data'!J54="","",'DF raw data'!J54) -> 24.1 | C54: =IF('DF raw data'!C54="","",'DF raw data'!C54) ->  | D54: =IF('DF raw data'!D54="","",'DF raw data'!D54) -> 
A55: =IF('DF raw data'!I55="","",'DF raw data'!I55) -> PS-Encoder: | B55: =IF('DF raw data'!J55="","",'DF raw data'!J55) -> 29.7649 | C55: =IF('DF raw data'!C55="","",'DF raw data'!C55) ->  | D55: =IF('DF raw data'!D55="","",'DF raw data'!D55) -> 
A56: =IF('DF raw data'!I56="","",'DF raw data'!I56) ->  | B56: =IF('DF raw data'!J56="","",'DF raw data'!J56) -> 
A57: =IF('DF raw data'!I57="","",'DF raw data'!I57) -> Monitor-Index | B57: =IF('DF raw data'!J57="","",'DF raw data'!J57) -> [1,1,4]
A58: =IF('DF raw data'!I58="","",'DF raw data'!I58) ->  | B58: =IF('DF raw data'!J58="","",'DF raw data'!J58) -> 
A59: =IF('DF raw data'!I59="","",'DF raw data'!I59) -> Time [s] | B59: =IF('DF raw data'!J59="","",'DF raw data'!J59) -> Y [mm]
A60: =IF('DF raw data'!I60="","",'DF raw data'!I60) ->  | B60: =IF('DF raw data'!J60="","",'DF raw data'!J60) -> 
A61: =IF('DF raw data'!I61="","",'DF raw data'!I61) -> 206.8 | B61: =IF('DF raw data'!J61="","",'DF raw data'!J61) -> 31.65
A62: =IF('DF raw data'!I62="","",'DF raw data'!I62) ->  | B62: =IF('DF raw data'!J62="","",'DF raw data'!J62) -> 
A63: =IF('DF raw data'!I63="","",'DF raw data'!I63) -> Measurement-Index | B63: =IF('DF raw data'!J63="","",'DF raw data'!J63) -> [1,1,1201,2]
A64: =IF('DF raw data'!I64="","",'DF raw data'!I64) ->  | B64: =IF('DF raw data'!J64="","",'DF raw data'!J64) -> 
A65: =IF('DF raw data'!I65="","",'DF raw data'!I65) -> Z [mm] | B65: =IF('DF raw data'!J65="","",'DF raw data'!J65) -> By [T] | C65: =IF('DF raw data'!K65="","",'DF raw data'!K65) -> Bx [T] | D65: =IF('DF raw data'!L65="","",'DF raw data'!L65) -> Bz [T] | F65: By_corr | G65: Bx_corr | H65: Bz_corr | J65: Iy | K65: Jy | L65: Ix | M65: Jx | N65: PI
A66: =IF('DF raw data'!I66="","",'DF raw data'!I66) -> [1, 0, 0, 0] | B66: =IF('DF raw data'!J66="","",'DF raw data'!J66) ->  | C66: =IF('DF raw data'!K66="","",'DF raw data'!K66) ->  | D66: =IF('DF raw data'!L66="","",'DF raw data'!L66) -> 
A67: =IF('DF raw data'!I67="","",'DF raw data'!I67) -> -300 | B67: =IF('DF raw data'!J67="","",'DF raw data'!J67) -> 2.14837e-06 | C67: =IF('DF raw data'!K67="","",'DF raw data'!K67) -> 0.000166807 | D67: =IF('DF raw data'!L67="","",'DF raw data'!L67) -> -2.008e-05 | F67: =(1-$G$1*($B$54-$G$2))*(B67-F$5) -> 8.69297519e-06 | G67: =(1-$G$1*($B$54-$G$2))*(C67-G$5) -> 2.651129026e-05 | H67: =(1-$G$1*($B$54-$G$2))*(D67-H$5) -> 1.247848459e-06 | J67: =F67*$G$3+J66 -> 4.346487595e-06 | K67: =J67*$G$3+K66 -> 2.173243798e-06 | L67: =G67*$G$3+L66 -> 1.325564513e-05 | M67: =L67*$G$3+M66 -> 6.627822565e-06 | N67: =(J67^2+L67^2)*$G$3+N66 -> 9.730204111e-11
A68: =IF('DF raw data'!I68="","",'DF raw data'!I68) -> -299.5 | B68: =IF('DF raw data'!J68="","",'DF raw data'!J68) -> -4.13402e-07 | C68: =IF('DF raw data'!K68="","",'DF raw data'!K68) -> 0.000160657 | D68: =IF('DF raw data'!L68="","",'DF raw data'!L68) -> -2.02408e-05 | F68: 6.120699925e-06 | G68: 2.033607526e-05 | H68: 1.086389179e-06 | J68: =F68*$G$3+J67 -> 7.406837558e-06 | K68: =J68*$G$3+K67 -> 5.876662577e-06 | L68: =G68*$G$3+L67 -> 2.342368276e-05 | M68: =L68*$G$3+M67 -> 1.833966394e-05 | N68: =(J68^2+L68^2)*$G$3+N67 -> 3.990671194e-10
A69: =IF('DF raw data'!I69="","",'DF raw data'!I69) -> -299 | B69: =IF('DF raw data'!J69="","",'DF raw data'!J69) -> -8.0353e-06 | C69: =IF('DF raw data'!K69="","",'DF raw data'!K69) -> 0.000163328 | D69: =IF('DF raw data'!L69="","",'DF raw data'!L69) -> -2.02577e-05 | F69: -1.532447857e-06 | G69: 2.301802636e-05 | H69: 1.069419889e-06 | J69: 6.64061363e-06 | K69: 9.196969391e-06 | L69: 3.493269594e-05 | M69: 3.580601191e-05 | N69: 1.031262617e-09
A70: =IF('DF raw data'!I70="","",'DF raw data'!I70) -> -298.5 | B70: =IF('DF raw data'!J70="","",'DF raw data'!J70) -> -1.52085e-05 | C70: =IF('DF raw data'!K70="","",'DF raw data'!K70) -> 0.00016284 | D70: =IF('DF raw data'!L70="","",'DF raw data'!L70) -> -1.96064e-05 | F70: -8.735057977e-06 | G70: 2.252802556e-05 | H70: 1.723390219e-06 | J70: 2.273084641e-06 | K70: 1.033351171e-05 | L70: 4.619670872e-05 | M70: 5.890436627e-05 | N70: 2.100914022e-09
A71: =IF('DF raw data'!I71="","",'DF raw data'!I71) -> -298 | B71: =IF('DF raw data'!J71="","",'DF raw data'!J71) -> -1.56581e-05 | C71: =IF('DF raw data'!K71="","",'DF raw data'!K71) -> 0.000165492 | D71: =IF('DF raw data'!L71="","",'DF raw data'!L71) -> -1.86746e-05 | F71: -9.186501337e-06 | G71: 2.519089876e-05 | H71: 2.659010599e-06 | J71: -2.320166027e-06 | K71: 9.173428698e-06 | L71: 5.87921581e-05 | M71: 8.830044532e-05 | N71: 3.831864534e-09
A72: =IF('DF raw data'!I72="","",'DF raw data'!I72) -> -297.5 | B72: =IF('DF raw data'!J72="","",'DF raw data'!J72) -> -1.27116e-05 | C72: =IF('DF raw data'!K72="","",'DF raw data'!K72) -> 0.000166792 | D72: =IF('DF raw data'!L72="","",'DF raw data'!L72) -> -1.81863e-05 | F72: -6.227920687e-06 | G72: 2.649622876e-05 | H72: 3.149312629e-06 | J72: -5.43412637e-06 | K72: 6.456365513e-06 | L72: 7.204027248e-05 | M72: 0.0001243205816 | N72: 6.441529828e-09
A73: =IF('DF raw data'!I73="","",'DF raw data'!I73) -> -297 | B73: =IF('DF raw data'!J73="","",'DF raw data'!J73) -> -1.06626e-05 | C73: =IF('DF raw data'!K73="","",'DF raw data'!K73) -> 0.000162753 | D73: =IF('DF raw data'!L73="","",'DF raw data'!L73) -> -1.8185e-05 | F73: -4.170519787e-06 | G73: 2.244066886e-05 | H73: 3.150617959e-06 | J73: -7.519386264e-06 | K73: 2.696672382e-06 | L73: 8.326060691e-05 | M73: 0.000165950885 | N73: 9.935964745e-09
A74: =IF('DF raw data'!I74="","",'DF raw data'!I74) -> -296.5 | B74: =IF('DF raw data'!J74="","",'DF raw data'!J74) -> -1.00219e-05 | C74: =IF('DF raw data'!K74="","",'DF raw data'!K74) -> 0.000169273 | D74: =IF('DF raw data'!L74="","",'DF raw data'!L74) -> -1.81245e-05 | F74: -3.527192917e-06 | G74: 2.898740086e-05 | H74: 3.211366009e-06 | J74: -9.282982722e-06 | K74: -1.944818979e-06 | L74: 9.775430734e-05 | M74: 0.0002148280387 | N74: 1.475700393e-08
A75: =IF('DF raw data'!I75="","",'DF raw data'!I75) -> -296 | B75: =IF('DF raw data'!J75="","",'DF raw data'!J75) -> -1.19435e-05 | C75: =IF('DF raw data'!K75="","",'DF raw data'!K75) -> 0.000173535 | D75: =IF('DF raw data'!L75="","",'DF raw data'!L75) -> -1.80734e-05 | F75: -5.456671477e-06 | G75: 3.326687506e-05 | H75: 3.262675519e-06 | J75: -1.201131846e-05 | K75: -7.950478209e-06 | L75: 0.0001143877449 | M75: 0.0002720219111 | N75: 2.13714179e-08
A76: =IF('DF raw data'!I76="","",'DF raw data'!I76) -> -295.5 | B76: =IF('DF raw data'!J76="","",'DF raw data'!J76) -> -9.26797e-07 | C76: =IF('DF raw data'!K76="","",'DF raw data'!K76) -> 0.000171096 | D76: =IF('DF raw data'!L76="","",'DF raw data'!L76) -> -1.86116e-05 | F76: 5.605200006e-06 | G76: 3.081787516e-05 | H76: 2.722268899e-06 | J76: -9.208718457e-06 | K76: -1.255483744e-05 | L76: 0.0001297966824 | M76: 0.0003369202523 | N76: 2.983740754e-08
A77: =IF('DF raw data'!I77="","",'DF raw data'!I77) -> -295 | B77: =IF('DF raw data'!J77="","",'DF raw data'!J77) -> -7.58755e-06 | C77: =IF('DF raw data'!K77="","",'DF raw data'!K77) -> 0.000179263 | D77: =IF('DF raw data'!L77="","",'DF raw data'!L77) -> -1.89349e-05 | F77: -1.082862082e-06 | G77: 3.901835986e-05 | H77: 2.397643369e-06 | J77: -9.750149498e-06 | K77: -1.742991219e-05 | L77: 0.0001493058624 | M77: 0.0004115731835 | N77: 4.103106052e-08
A78: =IF('DF raw data'!I78="","",'DF raw data'!I78) -> -294.5 | B78: =IF('DF raw data'!J78="","",'DF raw data'!J78) -> -1.71951e-05 | C78: =IF('DF raw data'!K78="","",'DF raw data'!K78) -> 0.000168822 | D78: =IF('DF raw data'!L78="","",'DF raw data'!L78) -> -1.8394e-05 | F78: -1.072980304e-05 | G78: 2.853455176e-05 | H78: 2.940761059e-06 | J78: -1.511505102e-05 | K78: -2.49874377e-05 | L78: 0.0001635731383 | M78: 0.0004933597527 | N78: 5.452337868e-08
A79: =IF('DF raw data'!I79="","",'DF raw data'!I79) -> -294 | B79: =IF('DF raw data'!J79="","",'DF raw data'!J79) -> -5.42839e-07 | C79: =IF('DF raw data'!K79="","",'DF raw data'!K79) -> 0.000161278 | D79: =IF('DF raw data'!L79="","",'DF raw data'!L79) -> -1.81566e-05 | F79: 5.990732234e-06 | G79: 2.095962136e-05 | H79: 3.179134399e-06 | J79: -1.21196849e-05 | K79: -3.104728015e-05 | L79: 0.0001740529489 | M79: 0.0005803862271 | N79: 6.974403658e-08
A80: =IF('DF raw data'!I80="","",'DF raw data'!I80) -> -293.5 | B80: =IF('DF raw data'!J80="","",'DF raw data'!J80) -> -5.28214e-06 | C80: =IF('DF raw data'!K80="","",'DF raw data'!K80) -> 0.000174539 | D80: =IF('DF raw data'!L80="","",'DF raw data'!L80) -> -1.85542e-05 | F80: 1.232000099e-06 | G80: 3.427499146e-05 | H80: 2.779904239e-06 | J80: -1.150368485e-05 | K80: -3.679912257e-05 | L80: 0.0001911904447 | M80: 0.0006759814495 | N80: 8.808709703e-08
A81: =IF('DF raw data'!I81="","",'DF raw data'!I81) -> -293 | B81: =IF('DF raw data'!J81="","",'DF raw data'!J81) -> -9.95731e-06 | C81: =IF('DF raw data'!K81="","",'DF raw data'!K81) -> 0.000179122 | D81: =IF('DF raw data'!L81="","",'DF raw data'!L81) -> -1.89533e-05 | F81: -3.462338098e-06 | G81: 3.887678176e-05 | H81: 2.379167929e-06 | J81: -1.32348539e-05 | K81: -4.341654952e-05 | L81: 0.0002106288355 | M81: 0.0007812958672 | N81: 1.103569309e-07
A82: =IF('DF raw data'!I82="","",'DF raw data'!I82) -> -292.5 | B82: =IF('DF raw data'!J82="","",'DF raw data'!J82) -> -2.46331e-06 | C82: =IF('DF raw data'!K82="","",'DF raw data'!K82) -> 0.000173047 | D82: =IF('DF raw data'!L82="","",'DF raw data'!L82) -> -1.94902e-05 | F82: 4.062387302e-06 | G82: 3.277687426e-05 | H82: 1.840066639e-06 | J82: -1.120366025e-05 | K82: -4.901837964e-05 | L82: 0.0002270172727 | M82: 0.0008948045036 | N82: 1.361881129e-07
A83: =IF('DF raw data'!I83="","",'DF raw data'!I83) -> -292 | B83: =IF('DF raw data'!J83="","",'DF raw data'!J83) -> -1.18783e-05 | C83: =IF('DF raw data'!K83="","",'DF raw data'!K83) -> 0.000158004 | D83: =IF('DF raw data'!L83="","",'DF raw data'!L83) -> -1.98894e-05 | F83: -5.391204157e-06 | G83: 1.767219796e-05 | H83: 1.439229919e-06 | J83: -1.389926233e-05 | K83: -5.596801081e-05 | L83: 0.0002358533717 | M83: 0.001012731189 | N83: 1.640981141e-07
A84: =IF('DF raw data'!I84="","",'DF raw data'!I84) -> -291.5 | B84: =IF('DF raw data'!J84="","",'DF raw data'!J84) -> -1.9498e-05 | C84: =IF('DF raw data'!K84="","",'DF raw data'!K84) -> 0.000159485 | D84: =IF('DF raw data'!L84="","",'DF raw data'!L84) -> -2.30116e-05 | F84: -1.304214493e-05 | G84: 1.915927006e-05 | H84: -1.695771101e-06 | J84: -2.042033479e-05 | K84: -6.61781782e-05 | L84: 0.0002454330067 | M84: 0.001135447693 | N84: 1.944252896e-07
A85: =IF('DF raw data'!I85="","",'DF raw data'!I85) -> -291 | B85: =IF('DF raw data'!J85="","",'DF raw data'!J85) -> -1.86687e-05 | C85: =IF('DF raw data'!K85="","",'DF raw data'!K85) -> 0.00015873 | D85: =IF('DF raw data'!L85="","",'DF raw data'!L85) -> -1.77386e-05 | F85: -1.22094448e-05 | G85: 1.840117456e-05 | H85: 3.598848199e-06 | J85: -2.652505719e-05 | K85: -7.944070679e-05 | L85: 0.000254633594 | M85: 0.00126276449 | N85: 2.271962125e-07
A86: =IF('DF raw data'!I86="","",'DF raw data'!I86) -> -290.5 | B86: =IF('DF raw data'!J86="","",'DF raw data'!J86) -> -1.24569e-05 | C86: =IF('DF raw data'!K86="","",'DF raw data'!K86) -> 0.000171318 | D86: =IF('DF raw data'!L86="","",'DF raw data'!L86) -> -1.62095e-05 | F86: -5.972176417e-06 | G86: 3.104078536e-05 | H86: 5.134217509e-06 | J86: -2.95111454e-05 | K86: -9.419627949e-05 | L86: 0.0002701539866 | M86: 0.001397841483 | N86: 2.641232546e-07
A87: =IF('DF raw data'!I87="","",'DF raw data'!I87) -> -290 | B87: =IF('DF raw data'!J87="","",'DF raw data'!J87) -> -4.58079e-06 | C87: =IF('DF raw data'!K87="","",'DF raw data'!K87) -> 0.000176098 | D87: =IF('DF raw data'!L87="","",'DF raw data'!L87) -> -1.35585e-05 | F87: 1.936225634e-06 | G87: 3.584038336e-05 | H87: 7.796086609e-06 | J87: -2.854303258e-05 | K87: -0.0001084677958 | L87: 0.0002880741783 | M87: 0.001541878572 | N87: 3.060239731e-07
A88: =IF('DF raw data'!I88="","",'DF raw data'!I88) -> -289.5 | B88: =IF('DF raw data'!J88="","",'DF raw data'!J88) -> 2.33895e-06 | C88: =IF('DF raw data'!K88="","",'DF raw data'!K88) -> 0.000168915 | D88: =IF('DF raw data'!L88="","",'DF raw data'!L88) -> -1.76138e-05 | F88: 8.884336568e-06 | G88: 2.862793306e-05 | H88: 3.724159879e-06 | J88: -2.410086429e-05 | K88: -0.0001205182279 | L88: 0.0003023881449 | M88: 0.001693072645 | N88: 3.52033694e-07
A89: =IF('DF raw data'!I89="","",'DF raw data'!I89) -> -289 | B89: =IF('DF raw data'!J89="","",'DF raw data'!J89) -> 2.01784e-06 | C89: =IF('DF raw data'!K89="","",'DF raw data'!K89) -> 0.000164552 | D89: =IF('DF raw data'!L89="","",'DF raw data'!L89) -> -1.64352e-05 | F89: 8.561910017e-06 | G89: 2.424704476e-05 | H89: 4.907592139e-06 | J89: -1.981990929e-05 | K89: -0.0001304281826 | L89: 0.0003145116672 | M89: 0.001850328478 | N89: 4.016889028e-07
A90: =IF('DF raw data'!I90="","",'DF raw data'!I90) -> -288.5 | B90: =IF('DF raw data'!J90="","",'DF raw data'!J90) -> -7.06553e-06 | C90: =IF('DF raw data'!K90="","",'DF raw data'!K90) -> 0.00016028 | D90: =IF('DF raw data'!L90="","",'DF raw data'!L90) -> -3.37666e-05 | F90: -5.587017996e-07 | G90: 1.995752956e-05 | H90: -1.24948666e-05 | J90: -2.009926019e-05 | K90: -0.0001404778127 | L90: 0.000324490432 | M90: 0.002012573694 | N90: 4.545379131e-07
A91: =IF('DF raw data'!I91="","",'DF raw data'!I91) -> -288 | B91: =IF('DF raw data'!J91="","",'DF raw data'!J91) -> -9.88062e-06 | C91: =IF('DF raw data'!K91="","",'DF raw data'!K91) -> 0.000161984 | D91: =IF('DF raw data'!L91="","",'DF raw data'!L91) -> -3.86589e-05 | F91: -3.385333669e-06 | G91: 2.166851596e-05 | H91: -1.740722503e-05 | J91: -2.179192702e-05 | K91: -0.0001513737762 | L91: 0.00033532469 | M91: 0.002180236039 | N91: 5.10996681e-07
A92: =IF('DF raw data'!I92="","",'DF raw data'!I92) -> -287.5 | B92: =IF('DF raw data'!J92="","",'DF raw data'!J92) -> -1.50769e-05 | C92: =IF('DF raw data'!K92="","",'DF raw data'!K92) -> 0.000156232 | D92: =IF('DF raw data'!L92="","",'DF raw data'!L92) -> -2.55401e-05 | F92: -8.602918417e-06 | G92: 1.589293276e-05 | H92: -4.234637951e-06 | J92: -2.609338623e-05 | K92: -0.0001644204693 | L92: 0.0003432711564 | M92: 0.002351871617 | N92: 5.702546568e-07
A93: =IF('DF raw data'!I93="","",'DF raw data'!I93) -> -287 | B93: =IF('DF raw data'!J93="","",'DF raw data'!J93) -> -1.81832e-06 | C93: =IF('DF raw data'!K93="","",'DF raw data'!K93) -> 0.000150086 | D93: =IF('DF raw data'!L93="","",'DF raw data'!L93) -> -2.65111e-05 | F93: 4.710021761e-06 | G93: 9.72173416e-06 | H93: -5.209619051e-06 | J93: -2.373837535e-05 | K93: -0.000176289657 | L93: 0.0003481320235 | M93: 0.002525937629 | N93: 6.31134365e-07
A94: =IF('DF raw data'!I94="","",'DF raw data'!I94) -> -286.5 | B94: =IF('DF raw data'!J94="","",'DF raw data'!J94) -> -5.14744e-06 | C94: =IF('DF raw data'!K94="","",'DF raw data'!K94) -> 0.000144477 | D94: =IF('DF raw data'!L94="","",'DF raw data'!L94) -> -2.8765e-05 | F94: 1.367252369e-06 | G94: 4.08973726e-06 | H94: -7.472760041e-06 | J94: -2.305474916e-05 | K94: -0.0001878170315 | L94: 0.0003501768921 | M94: 0.002701026075 | N94: 6.927120536e-07
A95: =IF('DF raw data'!I95="","",'DF raw data'!I95) -> -286 | B95: =IF('DF raw data'!J95="","",'DF raw data'!J95) -> -7.07428e-06 | C95: =IF('DF raw data'!K95="","",'DF raw data'!K95) -> 0.000146383 | D95: =IF('DF raw data'!L95="","",'DF raw data'!L95) -> -2.03115e-05 | F95: -5.674876746e-07 | G95: 6.00355186e-06 | H95: 1.015399309e-06 | J95: -2.3338493e-05 | K95: -0.000199486278 | L95: 0.000353178668 | M95: 0.002877615409 | N95: 7.55351982e-07
A96: =IF('DF raw data'!I96="","",'DF raw data'!I96) -> -285.5 | B96: =IF('DF raw data'!J96="","",'DF raw data'!J96) -> -8.22392e-06 | C96: =IF('DF raw data'!K96="","",'DF raw data'!K96) -> 0.000157604 | D96: =IF('DF raw data'!L96="","",'DF raw data'!L96) -> -2.55755e-05 | F96: -1.721841199e-06 | G96: 1.727055796e-05 | H96: -4.270183091e-06 | J96: -2.41994136e-05 | K96: -0.0002115859848 | L96: 0.000361813947 | M96: 0.003058522383 | N96: 8.210994539e-07
A97: =IF('DF raw data'!I97="","",'DF raw data'!I97) -> -285 | B97: =IF('DF raw data'!J97="","",'DF raw data'!J97) -> -1.78277e-05 | C97: =IF('DF raw data'!K97="","",'DF raw data'!K97) -> 0.000163681 | D97: =IF('DF raw data'!L97="","",'DF raw data'!L97) -> -3.06202e-05 | F97: -1.13649967e-05 | G97: 2.337247366e-05 | H97: -9.335566361e-06 | J97: -2.988191195e-05 | K97: -0.0002265269408 | L97: 0.0003735001838 | M97: 0.003245272475 | N97: 8.912971119e-07
A98: =IF('DF raw data'!I98="","",'DF raw data'!I98) -> -284.5 | B98: =IF('DF raw data'!J98="","",'DF raw data'!J98) -> -9.70349e-06 | C98: =IF('DF raw data'!K98="","",'DF raw data'!K98) -> 0.000163842 | D98: =IF('DF raw data'!L98="","",'DF raw data'!L98) -> -1.5299e-05 | F98: -3.207477436e-06 | G98: 2.353413376e-05 | H98: 6.048450559e-06 | J98: -3.148565066e-05 | K98: -0.0002422697661 | L98: 0.0003852672507 | M98: 0.0034379061 | N98: 9.660082122e-07
A99: =IF('DF raw data'!I99="","",'DF raw data'!I99) -> -284 | B99: =IF('DF raw data'!J99="","",'DF raw data'!J99) -> -4.06681e-06 | C99: =IF('DF raw data'!K99="","",'DF raw data'!K99) -> 0.000164951 | D99: =IF('DF raw data'!L99="","",'DF raw data'!L99) -> -1.60359e-05 | F99: 2.452312952e-06 | G99: 2.464768066e-05 | H99: 5.308529269e-06 | J99: -3.025949419e-05 | K99: -0.0002573995132 | L99: 0.000397591091 | M99: 0.003636701646 | N99: 1.045505369e-06
A100: =IF('DF raw data'!I100="","",'DF raw data'!I100) -> -283.5 | B100: =IF('DF raw data'!J100="","",'DF raw data'!J100) -> -8.7311e-06 | C100: =IF('DF raw data'!K100="","",'DF raw data'!K100) -> 0.000165201 | D100: =IF('DF raw data'!L100="","",'DF raw data'!L100) -> -3.35689e-05 | F100: -2.231100637e-06 | G100: 2.489870566e-05 | H100: -1.229635603e-05 | J100: -3.137504451e-05 | K100: -0.0002730870355 | L100: 0.0004100404439 | M100: 0.003841721867 | N100: 1.130064148e-06
A101: =IF('DF raw data'!I101="","",'DF raw data'!I101) -> -283 | B101: =IF('DF raw data'!J101="","",'DF raw data'!J101) -> -1.81169e-06 | C101: =IF('DF raw data'!K101="","",'DF raw data'!K101) -> 0.000168987 | D101: =IF('DF raw data'!L101="","",'DF raw data'!L101) -> -3.67216e-05 | F101: 4.716678944e-06 | G101: 2.870022826e-05 | H101: -1.54619821e-05 | J101: -2.901670503e-05 | K101: -0.000287595388 | L101: 0.000424390558 | M101: 0.004053917146 | N101: 1.220538806e-06
A102: =IF('DF raw data'!I102="","",'DF raw data'!I102) -> -282.5 | B102: =IF('DF raw data'!J102="","",'DF raw data'!J102) -> 7.21147e-06 | C102: =IF('DF raw data'!K102="","",'DF raw data'!K102) -> 0.00016343 | D102: =IF('DF raw data'!L102="","",'DF raw data'!L102) -> -2.50876e-05 | F102: 1.37768339e-05 | G102: 2.312044456e-05 | H102: -3.780282701e-06 | J102: -2.212828808e-05 | K102: -0.0002986595321 | L102: 0.0004359507803 | M102: 0.004271892537 | N102: 1.315810177e-06
A103: =IF('DF raw data'!I103="","",'DF raw data'!I103) -> -282 | B103: =IF('DF raw data'!J103="","",'DF raw data'!J103) -> -2.97335e-06 | C103: =IF('DF raw data'!K103="","",'DF raw data'!K103) -> 0.00016569 | D103: =IF('DF raw data'!L103="","",'DF raw data'!L103) -> -2.34872e-05 | F103: 3.550256138e-06 | G103: 2.538971056e-05 | H103: -2.173321061e-06 | J103: -2.035316002e-05 | K103: -0.0003088361121 | L103: 0.0004486456356 | M103: 0.004496215354 | N103: 1.416658756e-06
A104: =IF('DF raw data'!I104="","",'DF raw data'!I104) -> -281.5 | B104: =IF('DF raw data'!J104="","",'DF raw data'!J104) -> -6.62607e-06 | C104: =IF('DF raw data'!K104="","",'DF raw data'!K104) -> 0.000158725 | D104: =IF('DF raw data'!L104="","",'DF raw data'!L104) -> -2.03409e-05 | F104: -1.174400136e-07 | G104: 1.839615406e-05 | H104: 9.858787687e-07 | J104: -2.041188002e-05 | K104: -0.0003190420521 | L104: 0.0004578437126 | M104: 0.004725137211 | N104: 1.521677511e-06
A105: =IF('DF raw data'!I105="","",'DF raw data'!I105) -> -281 | B105: =IF('DF raw data'!J105="","",'DF raw data'!J105) -> -6.94849e-06 | C105: =IF('DF raw data'!K105="","",'DF raw data'!K105) -> 0.000163333 | D105: =IF('DF raw data'!L105="","",'DF raw data'!L105) -> -1.67654e-05 | F105: -4.411819356e-07 | G105: 2.302304686e-05 | H105: 4.576038319e-06 | J105: -2.063247099e-05 | K105: -0.0003293582876 | L105: 0.000469355236 | M105: 0.004959814829 | N105: 1.632037529e-06
A106: =IF('DF raw data'!I106="","",'DF raw data'!I106) -> -280.5 | B106: =IF('DF raw data'!J106="","",'DF raw data'!J106) -> -1.18774e-05 | C106: =IF('DF raw data'!K106="","",'DF raw data'!K106) -> 0.000168736 | D106: =IF('DF raw data'!L106="","",'DF raw data'!L106) -> -2.1252e-05 | F106: -5.390300467e-06 | G106: 2.844819916e-05 | H106: 7.104325873e-08 | J106: -2.332762122e-05 | K106: -0.0003410220982 | L106: 0.0004835793356 | M106: 0.005201604497 | N106: 1.749234105e-06
A107: =IF('DF raw data'!I107="","",'DF raw data'!I107) -> -280 | B107: =IF('DF raw data'!J107="","",'DF raw data'!J107) -> -1.71206e-05 | C107: =IF('DF raw data'!K107="","",'DF raw data'!K107) -> 0.000169661 | D107: =IF('DF raw data'!L107="","",'DF raw data'!L107) -> -3.47712e-05 | F107: -1.065499759e-05 | G107: 2.937699166e-05 | H107: -1.350358546e-05 | J107: -2.865512002e-05 | K107: -0.0003553496582 | L107: 0.0004982678314 | M107: 0.005450738412 | N107: 1.873780079e-06
A108: =IF('DF raw data'!I108="","",'DF raw data'!I108) -> -279.5 | B108: =IF('DF raw data'!J108="","",'DF raw data'!J108) -> -7.06814e-06 | C108: =IF('DF raw data'!K108="","",'DF raw data'!K108) -> 0.000175864 | D108: =IF('DF raw data'!L108="","",'DF raw data'!L108) -> -2.9762e-05 | F108: -5.613225006e-07 | G108: 3.560542396e-05 | H108: -8.473847741e-06 | J108: -2.893578127e-05 | K108: -0.0003698175488 | L108: 0.0005160705434 | M108: 0.005708773684 | N108: 2.007363122e-06
A109: =IF('DF raw data'!I109="","",'DF raw data'!I109) -> -279 | B109: =IF('DF raw data'!J109="","",'DF raw data'!J109) -> -1.77005e-05 | C109: =IF('DF raw data'!K109="","",'DF raw data'!K109) -> 0.00016926 | D109: =IF('DF raw data'!L109="","",'DF raw data'!L109) -> -2.91989e-05 | F109: -1.123727518e-05 | G109: 2.897434756e-05 | H109: -7.908439031e-06 | J109: -3.455441885e-05 | K109: -0.0003870947582 | L109: 0.0005305577172 | M109: 0.005974052543 | N109: 2.148705871e-06
A110: =IF('DF raw data'!I110="","",'DF raw data'!I110) -> -278.5 | B110: =IF('DF raw data'!J110="","",'DF raw data'!J110) -> -2.64922e-06 | C110: =IF('DF raw data'!K110="","",'DF raw data'!K110) -> 0.000167452 | D110: =IF('DF raw data'!L110="","",'DF raw data'!L110) -> -2.92916e-05 | F110: 3.875715071e-06 | G110: 2.715893476e-05 | H110: -8.001519101e-06 | J110: -3.261656132e-05 | K110: -0.0004034030389 | L110: 0.0005441371846 | M110: 0.006246121135 | N110: 2.297280429e-06
A111: =IF('DF raw data'!I111="","",'DF raw data'!I111) -> -278 | B111: =IF('DF raw data'!J111="","",'DF raw data'!J111) -> -7.20088e-06 | C111: =IF('DF raw data'!K111="","",'DF raw data'!K111) -> 0.000166229 | D111: =IF('DF raw data'!L111="","",'DF raw data'!L111) -> -2.26058e-05 | F111: -6.946067346e-07 | G111: 2.593092046e-05 | H111: -1.288307321e-06 | J111: -3.296386469e-05 | K111: -0.0004198849713 | L111: 0.0005571026448 | M111: 0.006524672457 | N111: 2.453005416e-06
A112: =IF('DF raw data'!I112="","",'DF raw data'!I112) -> -277.5 | B112: =IF('DF raw data'!J112="","",'DF raw data'!J112) -> -7.13558e-06 | C112: =IF('DF raw data'!K112="","",'DF raw data'!K112) -> 0.000160983 | D112: =IF('DF raw data'!L112="","",'DF raw data'!L112) -> -2.47272e-05 | F112: -6.290390046e-07 | G112: 2.066341186e-05 | H112: -3.418405061e-06 | J112: -3.327838419e-05 | K112: -0.0004365241633 | L112: 0.0005674343507 | M112: 0.006808389633 | N112: 2.614550012e-06
A113: =IF('DF raw data'!I113="","",'DF raw data'!I113) -> -277 | B113: =IF('DF raw data'!J113="","",'DF raw data'!J113) -> -1.20089e-05 | C113: =IF('DF raw data'!K113="","",'DF raw data'!K113) -> 0.000152625 | D113: =IF('DF raw data'!L113="","",'DF raw data'!L113) -> -1.60342e-05 | F113: -5.522339617e-06 | G113: 1.227114406e-05 | H113: 5.310236239e-06 | J113: -3.6039554e-05 | K113: -0.0004545439403 | L113: 0.0005735699228 | M113: 0.007095174594 | N113: 2.779690665e-06
A114: =IF('DF raw data'!I114="","",'DF raw data'!I114) -> -276.5 | B114: =IF('DF raw data'!J114="","",'DF raw data'!J114) -> -1.11733e-06 | C114: =IF('DF raw data'!K114="","",'DF raw data'!K114) -> 0.000158724 | D114: =IF('DF raw data'!L114="","",'DF raw data'!L114) -> -2.13084e-05 | F114: 5.41388582e-06 | G114: 1.839514996e-05 | H114: 1.441201873e-08 | J114: -3.333261109e-05 | K114: -0.0004712102459 | L114: 0.0005827674977 | M114: 0.007386558343 | N114: 2.950055175e-06
A115: =IF('DF raw data'!I115="","",'DF raw data'!I115) -> -276 | B115: =IF('DF raw data'!J115="","",'DF raw data'!J115) -> -9.37744e-06 | C115: =IF('DF raw data'!K115="","",'DF raw data'!K115) -> 0.000163487 | D115: =IF('DF raw data'!L115="","",'DF raw data'!L115) -> -2.45e-05 | F115: -2.880090631e-06 | G115: 2.317767826e-05 | H115: -3.190273541e-06 | J115: -3.47726564e-05 | K115: -0.0004885965741 | L115: 0.0005943563369 | M115: 0.007683736511 | N115: 3.127289471e-06
A116: =IF('DF raw data'!I116="","",'DF raw data'!I116) -> -275.5 | B116: =IF('DF raw data'!J116="","",'DF raw data'!J116) -> -7.40018e-06 | C116: =IF('DF raw data'!K116="","",'DF raw data'!K116) -> 0.000163515 | D116: =IF('DF raw data'!L116="","",'DF raw data'!L116) -> -1.174e-05 | F116: -8.947238646e-07 | G116: 2.320579306e-05 | H116: 9.622042459e-06 | J116: -3.522001833e-05 | K116: -0.0005062065833 | L116: 0.0006059592334 | M116: 0.007986716128 | N116: 3.311502992e-06
A117: =IF('DF raw data'!I117="","",'DF raw data'!I117) -> -275 | B117: =IF('DF raw data'!J117="","",'DF raw data'!J117) -> -7.39375e-06 | C117: =IF('DF raw data'!K117="","",'DF raw data'!K117) -> 0.000165143 | D117: =IF('DF raw data'!L117="","",'DF raw data'!L117) -> -2.16818e-05 | F117: -8.882675016e-07 | G117: 2.484046786e-05 | H117: -3.605189213e-07 | J117: -3.566415209e-05 | K117: -0.0005240386593 | L117: 0.0006183794673 | M117: 0.008295905862 | N117: 3.503335541e-06
A118: =IF('DF raw data'!I118="","",'DF raw data'!I118) -> -274.5 | B118: =IF('DF raw data'!J118="","",'DF raw data'!J118) -> -1.32857e-05 | C118: =IF('DF raw data'!K118="","",'DF raw data'!K118) -> 0.000163261 | D118: =IF('DF raw data'!L118="","",'DF raw data'!L118) -> -2.23716e-05 | F118: -6.804374497e-06 | G118: 2.295075166e-05 | H118: -1.053147101e-06 | J118: -3.906633933e-05 | K118: -0.000543571829 | L118: 0.0006298548432 | M118: 0.008610833283 | N118: 3.702457192e-06
A119: =IF('DF raw data'!I119="","",'DF raw data'!I119) -> -274 | B119: =IF('DF raw data'!J119="","",'DF raw data'!J119) -> -1.20058e-05 | C119: =IF('DF raw data'!K119="","",'DF raw data'!K119) -> 0.000160783 | D119: =IF('DF raw data'!L119="","",'DF raw data'!L119) -> -2.08883e-05 | F119: -5.519226907e-06 | G119: 2.046259186e-05 | H119: 4.362344287e-07 | J119: -4.182595279e-05 | K119: -0.0005644848054 | L119: 0.0006400861391 | M119: 0.008930876353 | N119: 3.90818703e-06
A120: =IF('DF raw data'!I120="","",'DF raw data'!I120) -> -273.5 | B120: =IF('DF raw data'!J120="","",'DF raw data'!J120) -> -9.63711e-06 | C120: =IF('DF raw data'!K120="","",'DF raw data'!K120) -> 0.000159248 | D120: =IF('DF raw data'!L120="","",'DF raw data'!L120) -> -1.90964e-05 | F120: -3.140825278e-06 | G120: 1.892129836e-05 | H120: 2.235481219e-06 | J120: -4.339636543e-05 | K120: -0.0005861829881 | L120: 0.0006495467883 | M120: 0.009255649747 | N120: 4.120084168e-06
A121: =IF('DF raw data'!I121="","",'DF raw data'!I121) -> -273 | B121: =IF('DF raw data'!J121="","",'DF raw data'!J121) -> -1.1617e-05 | C121: =IF('DF raw data'!K121="","",'DF raw data'!K121) -> 0.000171652 | D121: =IF('DF raw data'!L121="","",'DF raw data'!L121) -> -2.78518e-05 | F121: -5.128832827e-06 | G121: 3.137615476e-05 | H121: -6.555815921e-06 | J121: -4.596078184e-05 | K121: -0.000609163379 | L121: 0.0006652348656 | M121: 0.00958826718 | N121: 4.342409078e-06
A122: =IF('DF raw data'!I122="","",'DF raw data'!I122) -> -272.5 | B122: =IF('DF raw data'!J122="","",'DF raw data'!J122) -> -1.03957e-05 | C122: =IF('DF raw data'!K122="","",'DF raw data'!K122) -> 0.000170773 | D122: =IF('DF raw data'!L122="","",'DF raw data'!L122) -> -3.45168e-05 | F122: -3.902525497e-06 | G122: 3.049355086e-05 | H122: -1.324814242e-05 | J122: -4.791204459e-05 | K122: -0.0006331194013 | L122: 0.0006804816411 | M122: 0.009928508 | N122: 4.575084491e-06
A123: =IF('DF raw data'!I123="","",'DF raw data'!I123) -> -272 | B123: =IF('DF raw data'!J123="","",'DF raw data'!J123) -> -8.28588e-06 | C123: =IF('DF raw data'!K123="","",'DF raw data'!K123) -> 0.000160996 | D123: =IF('DF raw data'!L123="","",'DF raw data'!L123) -> -2.86112e-05 | F123: -1.784055235e-06 | G123: 2.067646516e-05 | H123: -7.318329461e-06 | J123: -4.88040722e-05 | K123: -0.0006575214374 | L123: 0.0006908198737 | M123: 0.01027391794 | N123: 4.814891459e-06
A124: =IF('DF raw data'!I124="","",'DF raw data'!I124) -> -271.5 | B124: =IF('DF raw data'!J124="","",'DF raw data'!J124) -> 2.9149e-07 | C124: =IF('DF raw data'!K124="","",'DF raw data'!K124) -> 0.000148881 | D124: =IF('DF raw data'!L124="","",'DF raw data'!L124) -> -2.06421e-05 | F124: 6.828481982e-06 | G124: 8.51179366e-06 | H124: 6.834438487e-07 | J124: -4.538983121e-05 | K124: -0.000680216353 | L124: 0.0006950757705 | M124: 0.01062145582 | N124: 5.057486741e-06
A125: =IF('DF raw data'!I125="","",'DF raw data'!I125) -> -271 | B125: =IF('DF raw data'!J125="","",'DF raw data'!J125) -> -1.22626e-05 | C125: =IF('DF raw data'!K125="","",'DF raw data'!K125) -> 0.000154573 | D125: =IF('DF raw data'!L125="","",'DF raw data'!L125) -> -1.99082e-05 | F125: -5.777079787e-06 | G125: 1.422713086e-05 | H125: 1.420352839e-06 | J125: -4.827837111e-05 | K125: -0.0007043555385 | L125: 0.0007021893359 | M125: 0.01097255049 | N125: 5.305187073e-06
A126: =IF('DF raw data'!I126="","",'DF raw data'!I126) -> -270.5 | B126: =IF('DF raw data'!J126="","",'DF raw data'!J126) -> -6.04623e-06 | C126: =IF('DF raw data'!K126="","",'DF raw data'!K126) -> 0.000163878 | D126: =IF('DF raw data'!L126="","",'DF raw data'!L126) -> -2.54411e-05 | F126: 4.647773304e-07 | G126: 2.357028136e-05 | H126: -4.135232051e-06 | J126: -4.804598244e-05 | K126: -0.0007283785298 | L126: 0.0007139744766 | M126: 0.01132953773 | N126: 5.561221058e-06
A127: =IF('DF raw data'!I127="","",'DF raw data'!I127) -> -270 | B127: =IF('DF raw data'!J127="","",'DF raw data'!J127) -> -3.93879e-06 | C127: =IF('DF raw data'!K127="","",'DF raw data'!K127) -> 0.000161807 | D127: =IF('DF raw data'!L127="","",'DF raw data'!L127) -> -1.59258e-05 | F127: 2.580857834e-06 | G127: 2.149079026e-05 | H127: 5.419080679e-06 | J127: -4.675555352e-05 | K127: -0.0007517563065 | L127: 0.0007247198717 | M127: 0.01169189766 | N127: 5.824923545e-06
A128: =IF('DF raw data'!I128="","",'DF raw data'!I128) -> -269.5 | B128: =IF('DF raw data'!J128="","",'DF raw data'!J128) -> -2.302e-05 | C128: =IF('DF raw data'!K128="","",'DF raw data'!K128) -> 0.000171156 | D128: =IF('DF raw data'!L128="","",'DF raw data'!L128) -> -2.39268e-05 | F128: -1.657858513e-05 | G128: 3.087812116e-05 | H128: -2.614723421e-06 | J128: -5.504484609e-05 | K128: -0.0007792787296 | L128: 0.0007401589323 | M128: 0.01206197713 | N128: 6.100356135e-06
A129: =IF('DF raw data'!I129="","",'DF raw data'!I129) -> -269 | B129: =IF('DF raw data'!J129="","",'DF raw data'!J129) -> -6.68631e-06 | C129: =IF('DF raw data'!K129="","",'DF raw data'!K129) -> 0.000161889 | D129: =IF('DF raw data'!L129="","",'DF raw data'!L129) -> -2.60246e-05 | F129: -1.779269976e-07 | G129: 2.157312646e-05 | H129: -4.721124401e-06 | J129: -5.513380959e-05 | K129: -0.0008068456344 | L129: 0.0007509454955 | M129: 0.01243744988 | N129: 6.383835572e-06
A130: =IF('DF raw data'!I130="","",'DF raw data'!I130) -> -268.5 | B130: =IF('DF raw data'!J130="","",'DF raw data'!J130) -> -1.43125e-05 | C130: =IF('DF raw data'!K130="","",'DF raw data'!K130) -> 0.000158257 | D130: =IF('DF raw data'!L130="","",'DF raw data'!L130) -> -1.91723e-05 | F130: -7.835384377e-06 | G130: 1.792623526e-05 | H130: 2.159270029e-06 | J130: -5.905150177e-05 | K130: -0.0008363713853 | L130: 0.0007599086132 | M130: 0.01281740418 | N130: 6.674309662e-06
A131: =IF('DF raw data'!I131="","",'DF raw data'!I131) -> -268 | B131: =IF('DF raw data'!J131="","",'DF raw data'!J131) -> -1.34082e-05 | C131: =IF('DF raw data'!K131="","",'DF raw data'!K131) -> 0.000161017 | D131: =IF('DF raw data'!L131="","",'DF raw data'!L131) -> -3.10402e-05 | F131: =(1-$G$1*($B$54-$G$2))*(B131-F$5) -> -6.927376747e-06 | G131: =(1-$G$1*($B$54-$G$2))*(C131-G$5) -> 2.069755126e-05 | H131: =(1-$G$1*($B$54-$G$2))*(D131-H$5) -> -9.757288361e-06 | J131: -6.251519015e-05 | K131: -0.0008676289803 | L131: 0.0007702573888 | M131: 0.01320253288 | N131: 6.972911959e-06
A132: =IF('DF raw data'!I132="","",'DF raw data'!I132) -> -267.5 | B132: =IF('DF raw data'!J132="","",'DF raw data'!J132) -> -1.59064e-05 | C132: =IF('DF raw data'!K132="","",'DF raw data'!K132) -> 0.000158225 | D132: =IF('DF raw data'!L132="","",'DF raw data'!L132) -> -3.05232e-05 | F132: -9.435819367e-06 | G132: 1.789410406e-05 | H132: -9.238168661e-06 | J132: =F132*$G$3+J131 -> -6.723309983e-05 | K132: =J132*$G$3+K131 -> -0.0009012455302 | L132: =G132*$G$3+L131 -> 0.0007792044408 | M132: =L132*$G$3+M131 -> 0.0135921351 | N132: =(J132^2+L132^2)*$G$3+N131 -> 7.278751885e-06
A133: =IF('DF raw data'!I133="","",'DF raw data'!I133) -> -267 | B133: =IF('DF raw data'!J133="","",'DF raw data'!J133) -> -2.07967e-06 | C133: =IF('DF raw data'!K133="","",'DF raw data'!K133) -> 0.000151666 | D133: =IF('DF raw data'!L133="","",'DF raw data'!L133) -> -1.85373e-05 | F133: 4.447600226e-06 | G133: 1.130821216e-05 | H133: 2.796873529e-06 | J133: -6.500929972e-05 | K133: -0.0009337501801 | L133: 0.0007848585469 | M133: 0.01398456437 | N133: 7.588866458e-06
A134: =IF('DF raw data'!I134="","",'DF raw data'!I134) -> -266.5 | B134: =IF('DF raw data'!J134="","",'DF raw data'!J134) -> -4.11899e-06 | C134: =IF('DF raw data'!K134="","",'DF raw data'!K134) -> 0.000151349 | D134: =IF('DF raw data'!L134="","",'DF raw data'!L134) -> -3.45358e-05 | F134: 2.399919014e-06 | G134: 1.098991246e-05 | H134: -1.326722032e-05 | J134: -6.380934021e-05 | K134: -0.0009656548502 | L134: 0.0007903535031 | M134: 0.01437974112 | N134: 7.903231604e-06
A135: =IF('DF raw data'!I135="","",'DF raw data'!I135) -> -266 | B135: =IF('DF raw data'!J135="","",'DF raw data'!J135) -> -1.34755e-05 | C135: =IF('DF raw data'!K135="","",'DF raw data'!K135) -> 0.000146903 | D135: =IF('DF raw data'!L135="","",'DF raw data'!L135) -> -2.61927e-05 | F135: -6.994952677e-06 | G135: 6.52568386e-06 | H135: -4.889913611e-06 | J135: -6.730681655e-05 | K135: -0.0009993082585 | L135: 0.0007936163451 | M135: 0.0147765493 | N135: 8.22041016e-06
A136: =IF('DF raw data'!I136="","",'DF raw data'!I136) -> -265.5 | B136: =IF('DF raw data'!J136="","",'DF raw data'!J136) -> -1.04679e-05 | C136: =IF('DF raw data'!K136="","",'DF raw data'!K136) -> 0.000155106 | D136: =IF('DF raw data'!L136="","",'DF raw data'!L136) -> -2.16599e-05 | F136: -3.975021517e-06 | G136: 1.476231616e-05 | H136: -3.385291313e-07 | J136: -6.929432731e-05 | K136: -0.001033955422 | L136: 0.0008009975031 | M136: 0.01517704805 | N136: 8.543609512e-06
A137: =IF('DF raw data'!I137="","",'DF raw data'!I137) -> -265 | B137: =IF('DF raw data'!J137="","",'DF raw data'!J137) -> -1.14951e-05 | C137: =IF('DF raw data'!K137="","",'DF raw data'!K137) -> 0.000159568 | D137: =IF('DF raw data'!L137="","",'DF raw data'!L137) -> -1.83009e-05 | F137: -5.006433037e-06 | G137: 1.924261036e-05 | H137: 3.034242769e-06 | J137: -7.179754383e-05 | K137: -0.001069854194 | L137: 0.0008106188083 | M137: 0.01558235745 | N137: 8.874738381e-06
A138: =IF('DF raw data'!I138="","",'DF raw data'!I138) -> -264.5 | B138: =IF('DF raw data'!J138="","",'DF raw data'!J138) -> -2.03864e-05 | C138: =IF('DF raw data'!K138="","",'DF raw data'!K138) -> 0.000158137 | D138: =IF('DF raw data'!L138="","",'DF raw data'!L138) -> -3.57991e-05 | F138: -1.393418737e-05 | G138: 1.780574326e-05 | H138: -1.453569985e-05 | J138: -7.876463751e-05 | K138: -0.001109236513 | L138: 0.00081952168 | M138: 0.01599211829 | N138: 9.213648207e-06
A139: =IF('DF raw data'!I139="","",'DF raw data'!I139) -> -264 | B139: =IF('DF raw data'!J139="","",'DF raw data'!J139) -> -1.31435e-05 | C139: =IF('DF raw data'!K139="","",'DF raw data'!K139) -> 0.000158346 | D139: =IF('DF raw data'!L139="","",'DF raw data'!L139) -> -4.41598e-05 | F139: -6.661591477e-06 | G139: 1.801560016e-05 | H139: -2.293067872e-05 | J139: -8.209543325e-05 | K139: -0.001150284229 | L139: 0.00082852948 | M139: 0.01640638303 | N139: 9.560248587e-06
A140: =IF('DF raw data'!I140="","",'DF raw data'!I140) -> -263.5 | B140: =IF('DF raw data'!J140="","",'DF raw data'!J140) -> -2.17928e-05 | C140: =IF('DF raw data'!K140="","",'DF raw data'!K140) -> 0.000155128 | D140: =IF('DF raw data'!L140="","",'DF raw data'!L140) -> -3.96677e-05 | F140: -1.534635361e-05 | G140: 1.478440636e-05 | H140: -1.842016111e-05 | J140: -8.976861005e-05 | K140: -0.001195168534 | L140: 0.0008359216832 | M140: 0.01682434387 | N140: 9.913660319e-06
A141: =IF('DF raw data'!I141="","",'DF raw data'!I141) -> -263 | B141: =IF('DF raw data'!J141="","",'DF raw data'!J141) -> -7.38949e-06 | C141: =IF('DF raw data'!K141="","",'DF raw data'!K141) -> 0.000160298 | D141: =IF('DF raw data'!L141="","",'DF raw data'!L141) -> -2.82525e-05 | F141: -8.839900356e-07 | G141: 1.997560336e-05 | H141: -6.958158791e-06 | J141: -9.021060507e-05 | K141: -0.001240273837 | L141: 0.0008459094849 | M141: 0.01724729862 | N141: 1.027551072e-05
A142: =IF('DF raw data'!I142="","",'DF raw data'!I142) -> -262.5 | B142: =IF('DF raw data'!J142="","",'DF raw data'!J142) -> -1.41862e-05 | C142: =IF('DF raw data'!K142="","",'DF raw data'!K142) -> 0.000169294 | D142: =IF('DF raw data'!L142="","",'DF raw data'!L142) -> -1.63872e-05 | F142: -7.708566547e-06 | G142: 2.900848696e-05 | H142: 4.955788939e-06 | J142: -9.406488834e-05 | K142: -0.001287306281 | L142: 0.0008604137284 | M142: 0.01767750548 | N142: 1.065009072e-05
A143: =IF('DF raw data'!I143="","",'DF raw data'!I143) -> -262 | B143: =IF('DF raw data'!J143="","",'DF raw data'!J143) -> -1.05902e-05 | C143: =IF('DF raw data'!K143="","",'DF raw data'!K143) -> 0.000155487 | D143: =IF('DF raw data'!L143="","",'DF raw data'!L143) -> -3.10232e-05 | F143: -4.097822947e-06 | G143: 1.514487826e-05 | H143: -9.740218661e-06 | J143: -9.611379981e-05 | K143: -0.001335363181 | L143: 0.0008679861675 | M143: 0.01811149857 | N143: 1.103140964e-05
A144: =IF('DF raw data'!I144="","",'DF raw data'!I144) -> -261.5 | B144: =IF('DF raw data'!J144="","",'DF raw data'!J144) -> -8.1579e-06 | C144: =IF('DF raw data'!K144="","",'DF raw data'!K144) -> 0.000149621 | D144: =IF('DF raw data'!L144="","",'DF raw data'!L144) -> -2.84433e-05 | F144: -1.655550517e-06 | G144: 9.25482766e-06 | H144: -7.149741071e-06 | J144: -9.694157507e-05 | K144: -0.001383833969 | L144: 0.0008726135813 | M144: 0.01854780536 | N144: 1.141683571e-05
A145: =IF('DF raw data'!I145="","",'DF raw data'!I145) -> -261 | B145: =IF('DF raw data'!J145="","",'DF raw data'!J145) -> -9.18493e-06 | C145: =IF('DF raw data'!K145="","",'DF raw data'!K145) -> 0.0001539 | D145: =IF('DF raw data'!L145="","",'DF raw data'!L145) -> -2.49085e-05 | F145: -2.68679134e-06 | G145: 1.355137156e-05 | H145: -3.600448391e-06 | J145: -9.828497074e-05 | K145: -0.001432976454 | L145: 0.0008793892671 | M145: 0.01898749999 | N145: 1.180832842e-05
A146: =IF('DF raw data'!I146="","",'DF raw data'!I146) -> -260.5 | B146: =IF('DF raw data'!J146="","",'DF raw data'!J146) -> -1.78939e-05 | C146: =IF('DF raw data'!K146="","",'DF raw data'!K146) -> 0.00015517 | D146: =IF('DF raw data'!L146="","",'DF raw data'!L146) -> -2.7383e-05 | F146: -1.143146812e-05 | G146: 1.482657856e-05 | H146: -6.085093841e-06 | J146: -0.0001040007048 | K146: -0.001484976806 | L146: 0.0008868025564 | M146: 0.01943090127 | N146: 1.220694588e-05
A147: =IF('DF raw data'!I147="","",'DF raw data'!I147) -> -260 | B147: =IF('DF raw data'!J147="","",'DF raw data'!J147) -> -2.98088e-05 | C147: =IF('DF raw data'!K147="","",'DF raw data'!K147) -> 0.000153244 | D147: =IF('DF raw data'!L147="","",'DF raw data'!L147) -> -2.43476e-05 | F147: -2.339521921e-05 | G147: 1.289268196e-05 | H147: -3.037248701e-06 | J147: -0.0001156983144 | K147: -0.001542825964 | L147: 0.0008932488974 | M147: 0.01987752572 | N147: 1.261258572e-05
A148: =IF('DF raw data'!I148="","",'DF raw data'!I148) -> -259.5 | B148: =IF('DF raw data'!J148="","",'DF raw data'!J148) -> -8.41762e-06 | C148: =IF('DF raw data'!K148="","",'DF raw data'!K148) -> 0.000142922 | D148: =IF('DF raw data'!L148="","",'DF raw data'!L148) -> -2.29833e-05 | F148: -1.916335369e-06 | G148: 2.52836176e-06 | H148: -1.667355071e-06 | J148: -0.0001166564821 | K148: -0.001601154205 | L148: 0.0008945130783 | M148: 0.02032478226 | N148: 1.301946691e-05
A149: =IF('DF raw data'!I149="","",'DF raw data'!I149) -> -259 | B149: =IF('DF raw data'!J149="","",'DF raw data'!J149) -> -1.87308e-05 | C149: =IF('DF raw data'!K149="","",'DF raw data'!K149) -> 0.000145621 | D149: =IF('DF raw data'!L149="","",'DF raw data'!L149) -> -2.09843e-05 | F149: -1.227179941e-05 | G149: 5.23842766e-06 | H149: 3.398408287e-07 | J149: -0.0001227923818 | K149: -0.001662550396 | L149: 0.0008971322921 | M149: 0.0207733484 | N149: 1.342942907e-05
A150: =IF('DF raw data'!I150="","",'DF raw data'!I150) -> -258.5 | B150: =IF('DF raw data'!J150="","",'DF raw data'!J150) -> -9.49997e-06 | C150: =IF('DF raw data'!K150="","",'DF raw data'!K150) -> 0.000146169 | D150: =IF('DF raw data'!L150="","",'DF raw data'!L150) -> -3.30898e-05 | F150: -3.003123004e-06 | G150: 5.78867446e-06 | H150: -1.181529172e-05 | J150: -0.0001242939433 | K150: -0.001724697367 | L150: 0.0009000266293 | M150: 0.02122336172 | N150: 1.384217753e-05
A151: =IF('DF raw data'!I151="","",'DF raw data'!I151) -> -258 | B151: =IF('DF raw data'!J151="","",'DF raw data'!J151) -> -1.37306e-05 | C151: =IF('DF raw data'!K151="","",'DF raw data'!K151) -> 0.000138095 | D151: =IF('DF raw data'!L151="","",'DF raw data'!L151) -> -2.78888e-05 | F151: -7.251098587e-06 | G151: -2.31842894e-06 | H151: -6.592967621e-06 | J151: -0.0001279194926 | K151: -0.001788657113 | L151: 0.0008988674148 | M151: 0.02167279542 | N151: 1.425434055e-05
A152: =IF('DF raw data'!I152="","",'DF raw data'!I152) -> -257.5 | B152: =IF('DF raw data'!J152="","",'DF raw data'!J152) -> -9.30949e-06 | C152: =IF('DF raw data'!K152="","",'DF raw data'!K152) -> 0.000134786 | D152: =IF('DF raw data'!L152="","",'DF raw data'!L152) -> -3.03295e-05 | F152: -2.811862036e-06 | G152: -5.64099584e-06 | H152: -9.043674491e-06 | J152: -0.0001293254236 | K152: -0.001853319825 | L152: 0.0008960469169 | M152: 0.02212081888 | N152: 1.466415312e-05
A153: =IF('DF raw data'!I153="","",'DF raw data'!I153) -> -257 | B153: =IF('DF raw data'!J153="","",'DF raw data'!J153) -> -1.46231e-05 | C153: =IF('DF raw data'!K153="","",'DF raw data'!K153) -> 0.000140764 | D153: =IF('DF raw data'!L153="","",'DF raw data'!L153) -> -3.42785e-05 | F153: -8.147257837e-06 | G153: 3.615139599e-07 | H153: -1.300886539e-05 | J153: -0.0001333990525 | K153: -0.001920019352 | L153: 0.0008962276739 | M153: 0.02256893272 | N153: 1.507466279e-05
A154: =IF('DF raw data'!I154="","",'DF raw data'!I154) -> -256.5 | B154: =IF('DF raw data'!J154="","",'DF raw data'!J154) -> -7.70855e-06 | C154: =IF('DF raw data'!K154="","",'DF raw data'!K154) -> 0.000146811 | D154: =IF('DF raw data'!L154="","",'DF raw data'!L154) -> -2.9847e-05 | F154: -1.204358182e-06 | G154: 6.43330666e-06 | H154: -8.559196241e-06 | J154: -0.0001340012316 | K154: -0.001987019967 | L154: 0.0008994443272 | M154: 0.02301865488 | N154: 1.548814101e-05
A155: =IF('DF raw data'!I155="","",'DF raw data'!I155) -> -256 | B155: =IF('DF raw data'!J155="","",'DF raw data'!J155) -> -1.39234e-05 | C155: =IF('DF raw data'!K155="","",'DF raw data'!K155) -> 0.000145198 | D155: =IF('DF raw data'!L155="","",'DF raw data'!L155) -> -2.66481e-05 | F155: -7.444689067e-06 | G155: 4.81369336e-06 | H155: -5.347180751e-06 | J155: -0.0001377235761 | K155: -0.002055881755 | L155: 0.0009018511739 | M155: 0.02346958047 | N155: 1.590429267e-05
A156: =IF('DF raw data'!I156="","",'DF raw data'!I156) -> -255.5 | B156: =IF('DF raw data'!J156="","",'DF raw data'!J156) -> -1.91665e-05 | C156: =IF('DF raw data'!K156="","",'DF raw data'!K156) -> 0.000143566 | D156: =IF('DF raw data'!L156="","",'DF raw data'!L156) -> -4.02506e-05 | F156: -1.270928578e-05 | G156: 3.17500216e-06 | H156: -1.9005451e-05 | J156: -0.000144078219 | K156: -0.002127920865 | L156: 0.000903438675 | M156: 0.02392129981 | N156: 1.632277265e-05
A157: =IF('DF raw data'!I157="","",'DF raw data'!I157) -> -255 | B157: =IF('DF raw data'!J157="","",'DF raw data'!J157) -> -1.7446e-05 | C157: =IF('DF raw data'!K157="","",'DF raw data'!K157) -> 0.000141084 | D157: =IF('DF raw data'!L157="","",'DF raw data'!L157) -> -2.6606e-05 | F157: -1.098173173e-05 | G157: 6.828259599e-07 | H157: -5.304908141e-06 | J157: -0.0001495690849 | K157: -0.002202705407 | L157: 0.000903780088 | M157: 0.02437318985 | N157: 1.674236733e-05
A158: =IF('DF raw data'!I158="","",'DF raw data'!I158) -> -254.5 | B158: =IF('DF raw data'!J158="","",'DF raw data'!J158) -> -1.8021e-05 | C158: =IF('DF raw data'!K158="","",'DF raw data'!K158) -> 0.000141924 | D158: =IF('DF raw data'!L158="","",'DF raw data'!L158) -> -2.89941e-05 | F158: -1.155908923e-05 | G158: 1.52626996e-06 | H158: -7.702799351e-06 | J158: -0.0001553486295 | K158: -0.002280379722 | L158: 0.000904543223 | M158: 0.02482546146 | N158: 1.716353315e-05
A159: =IF('DF raw data'!I159="","",'DF raw data'!I159) -> -254 | B159: =IF('DF raw data'!J159="","",'DF raw data'!J159) -> -2.16821e-05 | C159: =IF('DF raw data'!K159="","",'DF raw data'!K159) -> 0.00014686 | D159: =IF('DF raw data'!L159="","",'DF raw data'!L159) -> -1.30621e-05 | F159: -1.523519974e-05 | G159: 6.48250756e-06 | H159: 8.294521849e-06 | J159: -0.0001629662294 | K159: -0.002361862837 | L159: 0.0009077844767 | M159: 0.0252793537 | N159: 1.758884848e-05
A160: =IF('DF raw data'!I160="","",'DF raw data'!I160) -> -253.5 | B160: =IF('DF raw data'!J160="","",'DF raw data'!J160) -> -2.43017e-05 | C160: =IF('DF raw data'!K160="","",'DF raw data'!K160) -> 0.000147137 | D160: =IF('DF raw data'!L160="","",'DF raw data'!L160) -> -2.2867e-05 | F160: -1.78655401e-05 | G160: 6.76064326e-06 | H160: -1.550578241e-06 | J160: -0.0001718989994 | K160: -0.002447812337 | L160: 0.0009111647984 | M160: 0.0257349361 | N160: 1.801873376e-05
A161: =IF('DF raw data'!I161="","",'DF raw data'!I161) -> -253 | B161: =IF('DF raw data'!J161="","",'DF raw data'!J161) -> -1.85422e-05 | C161: =IF('DF raw data'!K161="","",'DF raw data'!K161) -> 0.00014509 | D161: =IF('DF raw data'!L161="","",'DF raw data'!L161) -> -1.54429e-05 | F161: -1.208242615e-05 | G161: 4.70525056e-06 | H161: 5.903960569e-06 | J161: -0.0001779402125 | K161: -0.002536782443 | L161: 0.0009135174236 | M161: 0.02619169481 | N161: 1.845182216e-05
A162: =IF('DF raw data'!I162="","",'DF raw data'!I162) -> -252.5 | B162: =IF('DF raw data'!J162="","",'DF raw data'!J162) -> -1.45575e-05 | C162: =IF('DF raw data'!K162="","",'DF raw data'!K162) -> 0.0001399 | D162: =IF('DF raw data'!L162="","",'DF raw data'!L162) -> -3.63776e-05 | F162: -8.081388877e-06 | G162: -5.060284401e-07 | H162: -1.51165717e-05 | J162: -0.0001819809069 | K162: -0.002627772896 | L162: 0.0009132644094 | M162: 0.02664832702 | N162: 1.888540662e-05
A163: =IF('DF raw data'!I163="","",'DF raw data'!I163) -> -252 | B163: =IF('DF raw data'!J163="","",'DF raw data'!J163) -> -7.44972e-06 | C163: =IF('DF raw data'!K163="","",'DF raw data'!K163) -> 0.000144836 | D163: =IF('DF raw data'!L163="","",'DF raw data'!L163) -> -3.39548e-05 | F163: -9.444669786e-07 | G163: 4.45020916e-06 | H163: -1.268383822e-05 | J163: -0.0001824531404 | K163: -0.002718999466 | L163: 0.000915489514 | M163: 0.02710607177 | N163: 1.932111172e-05
A164: =IF('DF raw data'!I164="","",'DF raw data'!I164) -> -251.5 | B164: =IF('DF raw data'!J164="","",'DF raw data'!J164) -> -1.39132e-05 | C164: =IF('DF raw data'!K164="","",'DF raw data'!K164) -> 0.000143741 | D164: =IF('DF raw data'!L164="","",'DF raw data'!L164) -> -4.23023e-05 | F164: -7.434447247e-06 | G164: 3.35071966e-06 | H164: -2.106556297e-05 | J164: -0.0001861703641 | K164: -0.002812084648 | L164: 0.0009171648738 | M164: 0.02756465421 | N164: 1.975903713e-05
A165: =IF('DF raw data'!I165="","",'DF raw data'!I165) -> -251 | B165: =IF('DF raw data'!J165="","",'DF raw data'!J165) -> -2.16681e-05 | C165: =IF('DF raw data'!K165="","",'DF raw data'!K165) -> 0.000152655 | D165: =IF('DF raw data'!L165="","",'DF raw data'!L165) -> -3.46617e-05 | F165: -1.522114234e-05 | G165: 1.230126706e-05 | H165: -1.339363651e-05 | J165: -0.0001937809352 | K165: -0.002908975116 | L165: 0.0009233155074 | M165: 0.02802631196 | N165: 2.020406842e-05
A166: =IF('DF raw data'!I166="","",'DF raw data'!I166) -> -250.5 | B166: =IF('DF raw data'!J166="","",'DF raw data'!J166) -> -2.92321e-05 | C166: =IF('DF raw data'!K166="","",'DF raw data'!K166) -> 0.000155363 | D166: =IF('DF raw data'!L166="","",'DF raw data'!L166) -> -2.51004e-05 | F166: -2.281615474e-05 | G166: 1.502036986e-05 | H166: -3.793135181e-06 | J166: -0.0002051890126 | K166: -0.003011569622 | L166: 0.0009308256923 | M166: 0.02849172481 | N166: 2.065833792e-05
A167: =IF('DF raw data'!I167="","",'DF raw data'!I167) -> -250 | B167: =IF('DF raw data'!J167="","",'DF raw data'!J167) -> -2.61554e-05 | C167: =IF('DF raw data'!K167="","",'DF raw data'!K167) -> 0.00015011 | D167: =IF('DF raw data'!L167="","",'DF raw data'!L167) -> -2.85895e-05 | F167: -1.972684027e-05 | G167: 9.74583256e-06 | H167: -7.296540491e-06 | J167: -0.0002150524327 | K167: -0.003119095839 | L167: 0.0009356986086 | M167: 0.02895957411 | N167: 2.111922763e-05
A168: =IF('DF raw data'!I168="","",'DF raw data'!I168) -> -249.5 | B168: =IF('DF raw data'!J168="","",'DF raw data'!J168) -> -1.09828e-05 | C168: =IF('DF raw data'!K168="","",'DF raw data'!K168) -> 0.000145167 | D168: =IF('DF raw data'!L168="","",'DF raw data'!L168) -> -1.81428e-05 | F168: -4.492032607e-06 | G168: 4.78256626e-06 | H168: 3.192990979e-06 | J168: -0.000217298449 | K168: -0.003227745063 | L168: 0.0009380898917 | M168: 0.02942861906 | N168: 2.158284326e-05
A169: =IF('DF raw data'!I169="","",'DF raw data'!I169) -> -249 | B169: =IF('DF raw data'!J169="","",'DF raw data'!J169) -> -1.27094e-05 | C169: =IF('DF raw data'!K169="","",'DF raw data'!K169) -> 0.000152364 | D169: =IF('DF raw data'!L169="","",'DF raw data'!L169) -> -2.20257e-05 | F169: -6.225711667e-06 | G169: 1.200907396e-05 | H169: -7.058289113e-07 | J169: -0.0002204113049 | K169: -0.003337950716 | L169: 0.0009440944287 | M169: 0.02990066627 | N169: 2.205279098e-05
A170: =IF('DF raw data'!I170="","",'DF raw data'!I170) -> -248.5 | B170: =IF('DF raw data'!J170="","",'DF raw data'!J170) -> -1.50787e-05 | C170: =IF('DF raw data'!K170="","",'DF raw data'!K170) -> 0.000147442 | D170: =IF('DF raw data'!L170="","",'DF raw data'!L170) -> -2.2852e-05 | F170: -8.604725797e-06 | G170: 7.06689376e-06 | H170: -1.535516741e-06 | J170: -0.0002247136678 | K170: -0.00345030755 | L170: 0.0009476278756 | M170: 0.03037448021 | N170: 2.252703839e-05
A171: =IF('DF raw data'!I171="","",'DF raw data'!I171) -> -248 | B171: =IF('DF raw data'!J171="","",'DF raw data'!J171) -> -1.89191e-05 | C171: =IF('DF raw data'!K171="","",'DF raw data'!K171) -> 0.000142094 | D171: =IF('DF raw data'!L171="","",'DF raw data'!L171) -> -2.67848e-05 | F171: -1.246087144e-05 | G171: 1.69696696e-06 | H171: -5.484441221e-06 | J171: -0.0002309441035 | K171: -0.003565779601 | L171: 0.000948476359 | M171: 0.03084871839 | N171: 2.300350968e-05
A172: =IF('DF raw data'!I172="","",'DF raw data'!I172) -> -247.5 | B172: =IF('DF raw data'!J172="","",'DF raw data'!J172) -> -1.15541e-05 | C172: =IF('DF raw data'!K172="","",'DF raw data'!K172) -> 0.000144778 | D172: =IF('DF raw data'!L172="","",'DF raw data'!L172) -> -2.58091e-05 | F172: -5.065674937e-06 | G172: 4.39197136e-06 | H172: -4.504740851e-06 | J172: -0.0002334769409 | K172: -0.003682518072 | L172: 0.0009506723447 | M172: 0.03132405456 | N172: 2.348265438e-05
A173: =IF('DF raw data'!I173="","",'DF raw data'!I173) -> -247 | B173: =IF('DF raw data'!J173="","",'DF raw data'!J173) -> -7.52254e-06 | C173: =IF('DF raw data'!K173="","",'DF raw data'!K173) -> 0.000146477 | D173: =IF('DF raw data'!L173="","",'DF raw data'!L173) -> -2.06353e-05 | F173: -1.017585541e-06 | G173: 6.09793726e-06 | H173: 6.902717287e-07 | J173: -0.0002339857337 | K173: -0.003799510939 | L173: 0.0009537213134 | M173: 0.03180091522 | N173: 2.396482121e-05
A174: =IF('DF raw data'!I174="","",'DF raw data'!I174) -> -246.5 | B174: =IF('DF raw data'!J174="","",'DF raw data'!J174) -> -8.1557e-06 | C174: =IF('DF raw data'!K174="","",'DF raw data'!K174) -> 0.000146948 | D174: =IF('DF raw data'!L174="","",'DF raw data'!L174) -> -3.18791e-05 | F174: -1.653341497e-06 | G174: 6.57086836e-06 | H174: -1.059962785e-05 | J174: -0.0002348124045 | K174: -0.003916917141 | L174: 0.0009570067475 | M174: 0.03227941859 | N174: 2.44503206e-05
A175: =IF('DF raw data'!I175="","",'DF raw data'!I175) -> -246 | B175: =IF('DF raw data'!J175="","",'DF raw data'!J175) -> -7.65152e-06 | C175: =IF('DF raw data'!K175="","",'DF raw data'!K175) -> 0.000148045 | D175: =IF('DF raw data'!L175="","",'DF raw data'!L175) -> -1.92747e-05 | F175: -1.147094359e-06 | G175: 7.67236606e-06 | H175: 2.056450189e-06 | J175: -0.0002353859516 | K175: -0.004034610117 | L175: 0.0009608429306 | M175: 0.03275984006 | N175: 2.493963344e-05
A176: =IF('DF raw data'!I176="","",'DF raw data'!I176) -> -245.5 | B176: =IF('DF raw data'!J176="","",'DF raw data'!J176) -> -1.1298e-05 | C176: =IF('DF raw data'!K176="","",'DF raw data'!K176) -> 0.000145639 | D176: =IF('DF raw data'!L176="","",'DF raw data'!L176) -> -2.57332e-05 | F176: -4.808524927e-06 | G176: 5.25650146e-06 | H176: -4.428529661e-06 | J176: -0.0002377902141 | K176: -0.004153505224 | L176: 0.0009634711813 | M176: 0.03324157565 | N176: 2.543204389e-05
A177: =IF('DF raw data'!I177="","",'DF raw data'!I177) -> -245 | B177: =IF('DF raw data'!J177="","",'DF raw data'!J177) -> -2.26319e-05 | C177: =IF('DF raw data'!K177="","",'DF raw data'!K177) -> 0.00014714 | D177: =IF('DF raw data'!L177="","",'DF raw data'!L177) -> -3.00673e-05 | F177: -1.618889392e-05 | G177: 6.76365556e-06 | H177: -8.780399471e-06 | J177: -0.0002458846611 | K177: -0.004276447554 | L177: 0.0009668530091 | M177: 0.03372500216 | N177: 2.59296759e-05
A178: =IF('DF raw data'!I178="","",'DF raw data'!I178) -> -244.5 | B178: =IF('DF raw data'!J178="","",'DF raw data'!J178) -> -1.58379e-05 | C178: =IF('DF raw data'!K178="","",'DF raw data'!K178) -> 0.000140211 | D178: =IF('DF raw data'!L178="","",'DF raw data'!L178) -> -3.75898e-05 | F178: -9.367038517e-06 | G178: -1.937533401e-07 | H178: -1.633374172e-05 | J178: -0.0002505681803 | K178: -0.004401731644 | L178: 0.0009667561324 | M178: 0.03420838022 | N178: 2.642837681e-05
A179: =IF('DF raw data'!I179="","",'DF raw data'!I179) -> -244 | B179: =IF('DF raw data'!J179="","",'DF raw data'!J179) -> -1.34062e-05 | C179: =IF('DF raw data'!K179="","",'DF raw data'!K179) -> 0.000126992 | D179: =IF('DF raw data'!L179="","",'DF raw data'!L179) -> -3.41025e-05 | F179: -6.925368547e-06 | G179: -1.346695124e-05 | H179: -1.283214379e-05 | J179: -0.0002540308646 | K179: -0.004528747077 | L179: 0.0009600226568 | M179: 0.03468839155 | N179: 2.692146441e-05
A180: =IF('DF raw data'!I180="","",'DF raw data'!I180) -> -243.5 | B180: =IF('DF raw data'!J180="","",'DF raw data'!J180) -> -2.4622e-05 | C180: =IF('DF raw data'!K180="","",'DF raw data'!K180) -> 0.000127961 | D180: =IF('DF raw data'!L180="","",'DF raw data'!L180) -> -2.29063e-05 | F180: -1.818715333e-05 | G180: -1.249397834e-05 | H180: -1.590039371e-06 | J180: -0.0002631244413 | K180: -0.004660309297 | L180: 0.0009537756676 | M180: 0.03516527938 | N180: 2.741092565e-05
A181: =IF('DF raw data'!I181="","",'DF raw data'!I181) -> -243 | B181: =IF('DF raw data'!J181="","",'DF raw data'!J181) -> -2.42403e-05 | C181: =IF('DF raw data'!K181="","",'DF raw data'!K181) -> 0.000133461 | D181: =IF('DF raw data'!L181="","",'DF raw data'!L181) -> -1.89717e-05 | F181: -1.780388836e-05 | G181: -6.97142834e-06 | H181: 2.360692489e-06 | J181: -0.0002720263854 | K181: -0.00479632249 | L181: 0.0009502899534 | M181: 0.03564042436 | N181: 2.789945033e-05
A182: =IF('DF raw data'!I182="","",'DF raw data'!I182) -> -242.5 | B182: =IF('DF raw data'!J182="","",'DF raw data'!J182) -> -2.10327e-05 | C182: =IF('DF raw data'!K182="","",'DF raw data'!K182) -> 0.000137855 | D182: =IF('DF raw data'!L182="","",'DF raw data'!L182) -> -2.67931e-05 | F182: -1.45831372e-05 | G182: -2.55941294e-06 | H182: -5.492775251e-06 | J182: -0.000279317954 | K182: -0.004935981467 | L182: 0.000949010247 | M182: 0.03611492948 | N182: 2.838876981e-05
A183: =IF('DF raw data'!I183="","",'DF raw data'!I183) -> -242 | B183: =IF('DF raw data'!J183="","",'DF raw data'!J183) -> -2.48762e-05 | C183: =IF('DF raw data'!K183="","",'DF raw data'!K183) -> 0.000136612 | D183: =IF('DF raw data'!L183="","",'DF raw data'!L183) -> -2.60469e-05 | F183: -1.844239555e-05 | G183: -3.80750924e-06 | H183: -4.743515831e-06 | J183: -0.0002885391518 | K183: -0.005080251043 | L183: 0.0009471064924 | M183: 0.03658848273 | N183: 2.887890259e-05
A184: =IF('DF raw data'!I184="","",'DF raw data'!I184) -> -241.5 | B184: =IF('DF raw data'!J184="","",'DF raw data'!J184) -> -2.15443e-05 | C184: =IF('DF raw data'!K184="","",'DF raw data'!K184) -> 0.000125143 | D184: =IF('DF raw data'!L184="","",'DF raw data'!L184) -> -2.81182e-05 | F184: -1.509683476e-05 | G184: -1.532353214e-05 | H184: -6.823308161e-06 | J184: -0.0002960875692 | K184: -0.005228294828 | L184: 0.0009394447263 | M184: 0.03705820509 | N184: 2.936401471e-05
A185: =IF('DF raw data'!I185="","",'DF raw data'!I185) -> -241 | B185: =IF('DF raw data'!J185="","",'DF raw data'!J185) -> -1.55876e-05 | C185: =IF('DF raw data'!K185="","",'DF raw data'!K185) -> 0.000127944 | D185: =IF('DF raw data'!L185="","",'DF raw data'!L185) -> -2.80899e-05 | F185: -9.115712287e-06 | G185: -1.251104804e-05 | H185: -6.794892131e-06 | J185: -0.0003006454253 | K185: -0.00537861754 | L185: 0.0009331892023 | M185: 0.03752479969 | N185: 2.984462959e-05
A186: =IF('DF raw data'!I186="","",'DF raw data'!I186) -> -240.5 | B186: =IF('DF raw data'!J186="","",'DF raw data'!J186) -> -1.8278e-05 | C186: =IF('DF raw data'!K186="","",'DF raw data'!K186) -> 0.00014626 | D186: =IF('DF raw data'!L186="","",'DF raw data'!L186) -> -2.78171e-05 | F186: -1.181714293e-05 | G186: 5.88004756e-06 | H186: -6.520973651e-06 | J186: -0.0003065539968 | K186: -0.005531894539 | L186: 0.000936129226 | M186: 0.03799286431 | N186: 3.032978623e-05
A187: =IF('DF raw data'!I187="","",'DF raw data'!I187) -> -240 | B187: =IF('DF raw data'!J187="","",'DF raw data'!J187) -> -3.44143e-05 | C187: =IF('DF raw data'!K187="","",'DF raw data'!K187) -> 0.000159849 | D187: =IF('DF raw data'!L187="","",'DF raw data'!L187) -> -3.37093e-05 | F187: -2.801960176e-05 | G187: 1.952476246e-05 | H187: -1.243733167e-05 | J187: -0.0003205637977 | K187: -0.005692176437 | L187: 0.0009458916073 | M187: 0.03846581011 | N187: 3.082852227e-05
A188: =IF('DF raw data'!I188="","",'DF raw data'!I188) -> -239.5 | B188: =IF('DF raw data'!J188="","",'DF raw data'!J188) -> -2.50014e-05 | C188: =IF('DF raw data'!K188="","",'DF raw data'!K188) -> 0.000157129 | D188: =IF('DF raw data'!L188="","",'DF raw data'!L188) -> -3.05656e-05 | F188: -1.856810887e-05 | G188: 1.679361046e-05 | H188: -9.280742501e-06 | J188: -0.0003298478521 | K188: -0.005857100364 | L188: 0.0009542884125 | M188: 0.03894295432 | N188: 3.133825526e-05
A189: =IF('DF raw data'!I189="","",'DF raw data'!I189) -> -239 | B189: =IF('DF raw data'!J189="","",'DF raw data'!J189) -> -2.72504e-05 | C189: =IF('DF raw data'!K189="","",'DF raw data'!K189) -> 0.000151278 | D189: =IF('DF raw data'!L189="","",'DF raw data'!L189) -> -1.91671e-05 | F189: -2.082632977e-05 | G189: 1.091862136e-05 | H189: 2.164491349e-06 | J189: -0.000340261017 | K189: -0.006027230872 | L189: 0.0009597477232 | M189: 0.03942282818 | N189: 3.185670189e-05
A190: =IF('DF raw data'!I190="","",'DF raw data'!I190) -> -238.5 | B190: =IF('DF raw data'!J190="","",'DF raw data'!J190) -> -3.43594e-05 | C190: =IF('DF raw data'!K190="","",'DF raw data'!K190) -> 0.000152473 | D190: =IF('DF raw data'!L190="","",'DF raw data'!L190) -> -2.00372e-05 | F190: -2.796447667e-05 | G190: 1.211852086e-05 | H190: 1.290823939e-06 | J190: -0.0003542432553 | K190: -0.0062043525 | L190: 0.0009658069836 | M190: 0.03990573167 | N190: 3.238583759e-05
A191: =IF('DF raw data'!I191="","",'DF raw data'!I191) -> -238 | B191: =IF('DF raw data'!J191="","",'DF raw data'!J191) -> -2.44986e-05 | C191: =IF('DF raw data'!K191="","",'DF raw data'!K191) -> 0.000150623 | D191: =IF('DF raw data'!L191="","",'DF raw data'!L191) -> -1.55832e-05 | F191: -1.806324739e-05 | G191: 1.026093586e-05 | H191: 5.763085339e-06 | J191: -0.000363274879 | K191: -0.006385989939 | L191: 0.0009709374515 | M191: 0.0403912004 | N191: 3.292318168e-05
A192: =IF('DF raw data'!I192="","",'DF raw data'!I192) -> -237.5 | B192: =IF('DF raw data'!J192="","",'DF raw data'!J192) -> -2.20614e-05 | C192: =IF('DF raw data'!K192="","",'DF raw data'!K192) -> 0.000153012 | D192: =IF('DF raw data'!L192="","",'DF raw data'!L192) -> -2.08784e-05 | F192: -1.561605487e-05 | G192: 1.265973076e-05 | H192: 4.461750187e-07 | J192: -0.0003710829064 | K192: -0.006571531392 | L192: 0.0009772673169 | M192: 0.04087983405 | N192: 3.346955864e-05
A193: =IF('DF raw data'!I193="","",'DF raw data'!I193) -> -237 | B193: =IF('DF raw data'!J193="","",'DF raw data'!J193) -> -3.05765e-05 | C193: =IF('DF raw data'!K193="","",'DF raw data'!K193) -> 0.000146652 | D193: =IF('DF raw data'!L193="","",'DF raw data'!L193) -> -2.55985e-05 | F193: -2.416606678e-05 | G193: 6.27365476e-06 | H193: -4.293277391e-06 | J193: -0.0003831659398 | K193: -0.006763114362 | L193: 0.0009804041443 | M193: 0.04137003613 | N193: 3.402356286e-05
A194: =IF('DF raw data'!I194="","",'DF raw data'!I194) -> -236.5 | B194: =IF('DF raw data'!J194="","",'DF raw data'!J194) -> -2.5138e-05 | C194: =IF('DF raw data'!K194="","",'DF raw data'!K194) -> 0.000136476 | D194: =IF('DF raw data'!L194="","",'DF raw data'!L194) -> -1.75042e-05 | F194: -1.870526893e-05 | G194: -3.94406684e-06 | H194: 3.834209239e-06 | J194: -0.0003925185743 | K194: -0.006959373649 | L194: 0.0009784321109 | M194: 0.04185925218 | N194: 3.457926297e-05
A195: =IF('DF raw data'!I195="","",'DF raw data'!I195) -> -236 | B195: =IF('DF raw data'!J195="","",'DF raw data'!J195) -> -3.07688e-05 | C195: =IF('DF raw data'!K195="","",'DF raw data'!K195) -> 0.0001345 | D195: =IF('DF raw data'!L195="","",'DF raw data'!L195) -> -2.55699e-05 | F195: =(1-$G$1*($B$54-$G$2))*(B195-F$5) -> -2.435915521e-05 | G195: =(1-$G$1*($B$54-$G$2))*(C195-G$5) -> -5.92816844e-06 | H195: =(1-$G$1*($B$54-$G$2))*(D195-H$5) -> -4.264560131e-06 | J195: -0.0004046981519 | K195: -0.007161722725 | L195: 0.0009754680267 | M195: 0.0423469862 | N195: 3.51369222e-05
A196: =IF('DF raw data'!I196="","",'DF raw data'!I196) -> -235.5 | B196: =IF('DF raw data'!J196="","",'DF raw data'!J196) -> -2.16098e-05 | C196: =IF('DF raw data'!K196="","",'DF raw data'!K196) -> 0.000143326 | D196: =IF('DF raw data'!L196="","",'DF raw data'!L196) -> -2.611e-05 | F196: -1.516260331e-05 | G196: 2.93401816e-06 | H196: -4.806874541e-06 | J196: =F196*$G$3+J195 -> -0.0004122794536 | K196: =J196*$G$3+K195 -> -0.007367862452 | L196: =G196*$G$3+L195 -> 0.0009769350357 | M196: =L196*$G$3+M195 -> 0.04283545371 | N196: =(J196^2+L196^2)*$G$3+N195 -> 3.569911041e-05
A197: =IF('DF raw data'!I197="","",'DF raw data'!I197) -> -235 | B197: =IF('DF raw data'!J197="","",'DF raw data'!J197) -> -1.40538e-05 | C197: =IF('DF raw data'!K197="","",'DF raw data'!K197) -> 0.000141528 | D197: =IF('DF raw data'!L197="","",'DF raw data'!L197) -> -2.30253e-05 | F197: -7.575623707e-06 | G197: 1.12864636e-06 | H197: -1.709527271e-06 | J197: -0.0004160672654 | K197: -0.007575896085 | L197: 0.0009774993589 | M197: 0.04332420339 | N197: 3.626341889e-05
A198: =IF('DF raw data'!I198="","",'DF raw data'!I198) -> -234.5 | B198: =IF('DF raw data'!J198="","",'DF raw data'!J198) -> -1.8024e-05 | C198: =IF('DF raw data'!K198="","",'DF raw data'!K198) -> 0.000143935 | D198: =IF('DF raw data'!L198="","",'DF raw data'!L198) -> -2.44991e-05 | F198: -1.156210153e-05 | G198: 3.54551506e-06 | H198: -3.189369851e-06 | J198: -0.0004218483162 | K198: -0.007786820243 | L198: 0.0009792721165 | M198: 0.04381383945 | N198: 3.683188383e-05
A199: =IF('DF raw data'!I199="","",'DF raw data'!I199) -> -234 | B199: =IF('DF raw data'!J199="","",'DF raw data'!J199) -> -1.86043e-05 | C199: =IF('DF raw data'!K199="","",'DF raw data'!K199) -> 0.000142396 | D199: =IF('DF raw data'!L199="","",'DF raw data'!L199) -> -1.86686e-05 | F199: -1.214478076e-05 | G199: 2.00020516e-06 | H199: 2.665035199e-06 | J199: -0.0004279207066 | K199: -0.008000780596 | L199: 0.000980272219 | M199: 0.04430397556 | N199: 3.740390871e-05
A200: =IF('DF raw data'!I200="","",'DF raw data'!I200) -> -233.5 | B200: =IF('DF raw data'!J200="","",'DF raw data'!J200) -> -1.70011e-05 | C200: =IF('DF raw data'!K200="","",'DF raw data'!K200) -> 0.000141284 | D200: =IF('DF raw data'!L200="","",'DF raw data'!L200) -> -2.16532e-05 | F200: -1.053500764e-05 | G200: 8.836459599e-07 | H200: -3.318016613e-07 | J200: -0.0004331882104 | K200: -0.008217374701 | L200: 0.000980714042 | M200: 0.04479433258 | N200: 3.797863474e-05
... 1079 more rows

Sheet 30 mm
A1: =IF('DF raw data'!M1="","",'DF raw data'!M1) -> Number of header lines | B1: =IF('DF raw data'!N1="","",'DF raw data'!N1) -> 54 | C1: =IF('DF raw data'!C1="","",'DF raw data'!C1) ->  | D1: =IF('DF raw data'!D1="","",'DF raw data'!D1) ->  | F1: T_coeff | G1: -0.001 | H1: /degC | J1: IBy total | K1: =J1267*1000 -> -5.822278916 | L1: muTm | M1: =L1267*1000 -> -38.52709455 | R1: DF ref | S1: 1
A2: =IF('DF raw data'!M2="","",'DF raw data'!M2) -> Measured by | B2: =IF('DF raw data'!N2="","",'DF raw data'!N2) -> Danfysik | C2: =IF('DF raw data'!C2="","",'DF raw data'!C2) ->  | D2: =IF('DF raw data'!D2="","",'DF raw data'!D2) ->  | F2: Tcorr | G2: 20 | H2: degC | J2: JBy total | K2: =K1267 -> -4.570285342 | L2: muTm^2 | M2: =M1267 -> -11.04911553
A3: =IF('DF raw data'!M3="","",'DF raw data'!M3) -> Operator | B3: =IF('DF raw data'!N3="","",'DF raw data'!N3) -> PMHA | C3: =IF('DF raw data'!C3="","",'DF raw data'!C3) ->  | D3: =IF('DF raw data'!D3="","",'DF raw data'!D3) ->  | F3: Step | G3: =A68-A67 -> 0.5 | H3: mm | J3: PI total | K3: =N1267 -> 2461.259631 | L3: T^2mm^3
A4: =IF('DF raw data'!M4="","",'DF raw data'!M4) -> Data-time | B4: =IF('DF raw data'!N4="","",'DF raw data'!N4) -> 26-09-2024, 10:20:20 | C4: =IF('DF raw data'!C4="","",'DF raw data'!C4) ->  | D4: =IF('DF raw data'!D4="","",'DF raw data'!D4) -> 
A5: =IF('DF raw data'!M5="","",'DF raw data'!M5) -> Project | B5: =IF('DF raw data'!N5="","",'DF raw data'!N5) -> 504314 | C5: =IF('DF raw data'!C5="","",'DF raw data'!C5) ->  | D5: Bamb avr | F5: =(AVERAGE(B67:B107) + AVERAGE(B1227:B1267))/2 -> -1.094228763e-05 | G5: =(AVERAGE(C67:C107) + AVERAGE(C1227:C1267))/2 -> 0.0001128603256 | H5: =(AVERAGE(D67:D107) + AVERAGE(D1227:D1267))/2 -> -3.286360732e-05
A6: =IF('DF raw data'!M6="","",'DF raw data'!M6) -> Magnet type | B6: =IF('DF raw data'!N6="","",'DF raw data'!N6) -> Dipole | C6: =IF('DF raw data'!C6="","",'DF raw data'!C6) -> 
A7: =IF('DF raw data'!M7="","",'DF raw data'!M7) -> Magnet nr. | B7: =IF('DF raw data'!N7="","",'DF raw data'!N7) -> 2410102 | C7: =IF('DF raw data'!C7="","",'DF raw data'!C7) -> 
A8: =IF('DF raw data'!M8="","",'DF raw data'!M8) -> Meas. number | B8: =IF('DF raw data'!N8="","",'DF raw data'!N8) -> 705 | C8: =IF('DF raw data'!C8="","",'DF raw data'!C8) -> 
A9: =IF('DF raw data'!M9="","",'DF raw data'!M9) -> Add. info | B9: =IF('DF raw data'!N9="","",'DF raw data'!N9) -> X-alignment scan 3) | C9: =IF('DF raw data'!C9="","",'DF raw data'!C9) ->  | D9: =IF('DF raw data'!D9="","",'DF raw data'!D9) -> 
A10: =IF('DF raw data'!M10="","",'DF raw data'!M10) -> Device | B10: =IF('DF raw data'!N10="","",'DF raw data'!N10) -> (HAL) HALL-PROBE | C10: =IF('DF raw data'!C10="","",'DF raw data'!C10) ->  | D10: =IF('DF raw data'!D10="","",'DF raw data'!D10) -> 
A11: =IF('DF raw data'!M11="","",'DF raw data'!M11) -> Goal | B11: =IF('DF raw data'!N11="","",'DF raw data'!N11) -> (AXI) AXis Integral (Line, EFB) | C11: =IF('DF raw data'!C11="","",'DF raw data'!C11) ->  | D11: =IF('DF raw data'!D11="","",'DF raw data'!D11) -> 
A12: =IF('DF raw data'!M12="","",'DF raw data'!M12) -> Power supply mode | B12: =IF('DF raw data'!N12="","",'DF raw data'!N12) -> (PM) Permanent Magnet (no MPS in use) | C12: =IF('DF raw data'!C12="","",'DF raw data'!C12) ->  | D12: =IF('DF raw data'!D12="","",'DF raw data'!D12) -> 
A13: =IF('DF raw data'!M13="","",'DF raw data'!M13) -> Data format | B13: =IF('DF raw data'!N13="","",'DF raw data'!N13) -> Raw data text file | C13: =IF('DF raw data'!C13="","",'DF raw data'!C13) ->  | D13: =IF('DF raw data'!D13="","",'DF raw data'!D13) -> 
A14: =IF('DF raw data'!M14="","",'DF raw data'!M14) -> Direction of the pos. x-axis | B14: =IF('DF raw data'!N14="","",'DF raw data'!N14) -> See test program | C14: =IF('DF raw data'!C14="","",'DF raw data'!C14) ->  | D14: =IF('DF raw data'!D14="","",'DF raw data'!D14) -> 
A15: =IF('DF raw data'!M15="","",'DF raw data'!M15) -> Direction of the pos. y-axis | B15: =IF('DF raw data'!N15="","",'DF raw data'!N15) -> Vertical up | C15: =IF('DF raw data'!C15="","",'DF raw data'!C15) ->  | D15: =IF('DF raw data'!D15="","",'DF raw data'!D15) -> 
A16: =IF('DF raw data'!M16="","",'DF raw data'!M16) -> Direction of the pos. z-axis | B16: =IF('DF raw data'!N16="","",'DF raw data'!N16) -> See test program | C16: =IF('DF raw data'!C16="","",'DF raw data'!C16) ->  | D16: =IF('DF raw data'!D16="","",'DF raw data'!D16) -> 
A17: =IF('DF raw data'!M17="","",'DF raw data'!M17) -> Mapper type | B17: =IF('DF raw data'!N17="","",'DF raw data'!N17) -> Precision Hall Mapper | C17: =IF('DF raw data'!C17="","",'DF raw data'!C17) ->  | D17: =IF('DF raw data'!D17="","",'DF raw data'!D17) -> 
A18: =IF('DF raw data'!M18="","",'DF raw data'!M18) -> Mapper Danfysik Reg. Number | B18: =IF('DF raw data'!N18="","",'DF raw data'!N18) -> 2033-D (mapper 1) | C18: =IF('DF raw data'!C18="","",'DF raw data'!C18) ->  | D18: =IF('DF raw data'!D18="","",'DF raw data'!D18) -> 
A19: =IF('DF raw data'!M19="","",'DF raw data'!M19) -> Measurement consept | B19: =IF('DF raw data'!N19="","",'DF raw data'!N19) -> Square line grid | C19: =IF('DF raw data'!C19="","",'DF raw data'!C19) ->  | D19: =IF('DF raw data'!D19="","",'DF raw data'!D19) -> 
A20: =IF('DF raw data'!M20="","",'DF raw data'!M20) -> Mode | B20: =IF('DF raw data'!N20="","",'DF raw data'!N20) -> On-the-fly measurement | C20: =IF('DF raw data'!C20="","",'DF raw data'!C20) ->  | D20: =IF('DF raw data'!D20="","",'DF raw data'!D20) -> 
A21: =IF('DF raw data'!M21="","",'DF raw data'!M21) ->  | B21: =IF('DF raw data'!N21="","",'DF raw data'!N21) ->  | C21: =IF('DF raw data'!C21="","",'DF raw data'!C21) ->  | D21: =IF('DF raw data'!D21="","",'DF raw data'!D21) -> 
A22: =IF('DF raw data'!M22="","",'DF raw data'!M22) -> Probe Name | B22: =IF('DF raw data'!N22="","",'DF raw data'!N22) -> ID12_By | C22: =IF('DF raw data'!C22="","",'DF raw data'!C22) ->  | D22: =IF('DF raw data'!D22="","",'DF raw data'!D22) -> 
A23: =IF('DF raw data'!M23="","",'DF raw data'!M23) -> Probe Type | B23: =IF('DF raw data'!N23="","",'DF raw data'!N23) -> DF_ID_3D_Bxyz | C23: =IF('DF raw data'!C23="","",'DF raw data'!C23) ->  | D23: =IF('DF raw data'!D23="","",'DF raw data'!D23) -> 
A24: =IF('DF raw data'!M24="","",'DF raw data'!M24) -> Probe Danfysik Reg. Number | B24: =IF('DF raw data'!N24="","",'DF raw data'!N24) -> 2277 | C24: =IF('DF raw data'!C24="","",'DF raw data'!C24) ->  | D24: =IF('DF raw data'!D24="","",'DF raw data'!D24) -> 
A25: =IF('DF raw data'!M25="","",'DF raw data'!M25) -> Probe Axis | B25: =IF('DF raw data'!N25="","",'DF raw data'!N25) -> By | C25: =IF('DF raw data'!C25="","",'DF raw data'!C25) ->  | D25: =IF('DF raw data'!D25="","",'DF raw data'!D25) -> 
A26: =IF('DF raw data'!M26="","",'DF raw data'!M26) -> Probe Current Supply | B26: =IF('DF raw data'!N26="","",'DF raw data'!N26) -> 1825-D | C26: =IF('DF raw data'!C26="","",'DF raw data'!C26) ->  | D26: =IF('DF raw data'!D26="","",'DF raw data'!D26) -> 
A27: =IF('DF raw data'!M27="","",'DF raw data'!M27) -> Probe Gain Correction | B27: =IF('DF raw data'!N27="","",'DF raw data'!N27) -> 0.99599 | C27: =IF('DF raw data'!C27="","",'DF raw data'!C27) ->  | D27: =IF('DF raw data'!D27="","",'DF raw data'!D27) -> 
A28: =IF('DF raw data'!M28="","",'DF raw data'!M28) -> Probe Offset Correction | B28: =IF('DF raw data'!N28="","",'DF raw data'!N28) -> 0.0027595 | C28: =IF('DF raw data'!C28="","",'DF raw data'!C28) ->  | D28: =IF('DF raw data'!D28="","",'DF raw data'!D28) -> 
A29: =IF('DF raw data'!M29="","",'DF raw data'!M29) -> DVM Number | B29: =IF('DF raw data'!N29="","",'DF raw data'!N29) -> 2 | C29: =IF('DF raw data'!C29="","",'DF raw data'!C29) ->  | D29: =IF('DF raw data'!D29="","",'DF raw data'!D29) -> 
A30: =IF('DF raw data'!M30="","",'DF raw data'!M30) -> DVM Type | B30: =IF('DF raw data'!N30="","",'DF raw data'!N30) -> K2701 | C30: =IF('DF raw data'!C30="","",'DF raw data'!C30) ->  | D30: =IF('DF raw data'!D30="","",'DF raw data'!D30) -> 
A31: =IF('DF raw data'!M31="","",'DF raw data'!M31) -> DVM Danfysik Reg. Number | B31: =IF('DF raw data'!N31="","",'DF raw data'!N31) -> 1743-D | C31: =IF('DF raw data'!C31="","",'DF raw data'!C31) ->  | D31: =IF('DF raw data'!D31="","",'DF raw data'!D31) -> 
A32: =IF('DF raw data'!M32="","",'DF raw data'!M32) -> Probe Name | B32: =IF('DF raw data'!N32="","",'DF raw data'!N32) -> ID12_Bx | C32: =IF('DF raw data'!C32="","",'DF raw data'!C32) ->  | D32: =IF('DF raw data'!D32="","",'DF raw data'!D32) -> 
A33: =IF('DF raw data'!M33="","",'DF raw data'!M33) -> Probe Type | B33: =IF('DF raw data'!N33="","",'DF raw data'!N33) -> DF_ID_3D_Bxyz | C33: =IF('DF raw data'!C33="","",'DF raw data'!C33) ->  | D33: =IF('DF raw data'!D33="","",'DF raw data'!D33) -> 
A34: =IF('DF raw data'!M34="","",'DF raw data'!M34) -> Probe Danfysik Reg. Number | B34: =IF('DF raw data'!N34="","",'DF raw data'!N34) -> 2277 | C34: =IF('DF raw data'!C34="","",'DF raw data'!C34) ->  | D34: =IF('DF raw data'!D34="","",'DF raw data'!D34) -> 
A35: =IF('DF raw data'!M35="","",'DF raw data'!M35) -> Probe Axis | B35: =IF('DF raw data'!N35="","",'DF raw data'!N35) -> Bx | C35: =IF('DF raw data'!C35="","",'DF raw data'!C35) ->  | D35: =IF('DF raw data'!D35="","",'DF raw data'!D35) -> 
A36: =IF('DF raw data'!M36="","",'DF raw data'!M36) -> Probe Current Supply | B36: =IF('DF raw data'!N36="","",'DF raw data'!N36) -> 1825-D | C36: =IF('DF raw data'!C36="","",'DF raw data'!C36) ->  | D36: =IF('DF raw data'!D36="","",'DF raw data'!D36) -> 
A37: =IF('DF raw data'!M37="","",'DF raw data'!M37) -> Probe Gain Correction | B37: =IF('DF raw data'!N37="","",'DF raw data'!N37) -> 1 | C37: =IF('DF raw data'!C37="","",'DF raw data'!C37) ->  | D37: =IF('DF raw data'!D37="","",'DF raw data'!D37) -> 
A38: =IF('DF raw data'!M38="","",'DF raw data'!M38) -> Probe Offset Correction | B38: =IF('DF raw data'!N38="","",'DF raw data'!N38) -> -0.17537 | C38: =IF('DF raw data'!C38="","",'DF raw data'!C38) ->  | D38: =IF('DF raw data'!D38="","",'DF raw data'!D38) -> 
A39: =IF('DF raw data'!M39="","",'DF raw data'!M39) -> DVM Number | B39: =IF('DF raw data'!N39="","",'DF raw data'!N39) -> 3 | C39: =IF('DF raw data'!C39="","",'DF raw data'!C39) ->  | D39: =IF('DF raw data'!D39="","",'DF raw data'!D39) -> 
A40: =IF('DF raw data'!M40="","",'DF raw data'!M40) -> DVM Type | B40: =IF('DF raw data'!N40="","",'DF raw data'!N40) -> K2701 | C40: =IF('DF raw data'!C40="","",'DF raw data'!C40) ->  | D40: =IF('DF raw data'!D40="","",'DF raw data'!D40) -> 
A41: =IF('DF raw data'!M41="","",'DF raw data'!M41) -> DVM Danfysik Reg. Number | B41: =IF('DF raw data'!N41="","",'DF raw data'!N41) -> 1744-D | C41: =IF('DF raw data'!C41="","",'DF raw data'!C41) ->  | D41: =IF('DF raw data'!D41="","",'DF raw data'!D41) -> 
A42: =IF('DF raw data'!M42="","",'DF raw data'!M42) -> Probe Name | B42: =IF('DF raw data'!N42="","",'DF raw data'!N42) -> ID12_Bz | C42: =IF('DF raw data'!C42="","",'DF raw data'!C42) ->  | D42: =IF('DF raw data'!D42="","",'DF raw data'!D42) -> 
A43: =IF('DF raw data'!M43="","",'DF raw data'!M43) -> Probe Type | B43: =IF('DF raw data'!N43="","",'DF raw data'!N43) -> DF_ID_3D_Bxyz | C43: =IF('DF raw data'!C43="","",'DF raw data'!C43) ->  | D43: =IF('DF raw data'!D43="","",'DF raw data'!D43) -> 
A44: =IF('DF raw data'!M44="","",'DF raw data'!M44) -> Probe Danfysik Reg. Number | B44: =IF('DF raw data'!N44="","",'DF raw data'!N44) -> 2277 | C44: =IF('DF raw data'!C44="","",'DF raw data'!C44) ->  | D44: =IF('DF raw data'!D44="","",'DF raw data'!D44) -> 
A45: =IF('DF raw data'!M45="","",'DF raw data'!M45) -> Probe Axis | B45: =IF('DF raw data'!N45="","",'DF raw data'!N45) -> Bz | C45: =IF('DF raw data'!C45="","",'DF raw data'!C45) ->  | D45: =IF('DF raw data'!D45="","",'DF raw data'!D45) -> 
A46: =IF('DF raw data'!M46="","",'DF raw data'!M46) -> Probe Current Supply | B46: =IF('DF raw data'!N46="","",'DF raw data'!N46) -> 1825-D | C46: =IF('DF raw data'!C46="","",'DF raw data'!C46) ->  | D46: =IF('DF raw data'!D46="","",'DF raw data'!D46) -> 
A47: =IF('DF raw data'!M47="","",'DF raw data'!M47) -> Probe Gain Correction | B47: =IF('DF raw data'!N47="","",'DF raw data'!N47) -> 1 | C47: =IF('DF raw data'!C47="","",'DF raw data'!C47) ->  | D47: =IF('DF raw data'!D47="","",'DF raw data'!D47) -> 
A48: =IF('DF raw data'!M48="","",'DF raw data'!M48) -> Probe Offset Correction | B48: =IF('DF raw data'!N48="","",'DF raw data'!N48) -> 0.0073107 | C48: =IF('DF raw data'!C48="","",'DF raw data'!C48) ->  | D48: =IF('DF raw data'!D48="","",'DF raw data'!D48) -> 
A49: =IF('DF raw data'!M49="","",'DF raw data'!M49) -> DVM Number | B49: =IF('DF raw data'!N49="","",'DF raw data'!N49) -> 8 | C49: =IF('DF raw data'!C49="","",'DF raw data'!C49) ->  | D49: =IF('DF raw data'!D49="","",'DF raw data'!D49) -> 
A50: =IF('DF raw data'!M50="","",'DF raw data'!M50) -> DVM Type | B50: =IF('DF raw data'!N50="","",'DF raw data'!N50) -> K2700 | C50: =IF('DF raw data'!C50="","",'DF raw data'!C50) ->  | D50: =IF('DF raw data'!D50="","",'DF raw data'!D50) -> 
A51: =IF('DF raw data'!M51="","",'DF raw data'!M51) -> DVM Danfysik Reg. Number | B51: =IF('DF raw data'!N51="","",'DF raw data'!N51) -> 1756-D | C51: =IF('DF raw data'!C51="","",'DF raw data'!C51) ->  | D51: =IF('DF raw data'!D51="","",'DF raw data'!D51) -> 
A52: =IF('DF raw data'!M52="","",'DF raw data'!M52) -> NTC voltage | B52: =IF('DF raw data'!N52="","",'DF raw data'!N52) -> 0.42454 | C52: =IF('DF raw data'!C52="","",'DF raw data'!C52) ->  | D52: =IF('DF raw data'!D52="","",'DF raw data'!D52) -> 
A53: =IF('DF raw data'!M53="","",'DF raw data'!M53) -> PS-Gap: | B53: =IF('DF raw data'!N53="","",'DF raw data'!N53) -> 30 | C53: =IF('DF raw data'!C53="","",'DF raw data'!C53) ->  | D53: =IF('DF raw data'!D53="","",'DF raw data'!D53) -> 
A54: =IF('DF raw data'!M54="","",'DF raw data'!M54) -> PS-Temperature: | B54: =IF('DF raw data'!N54="","",'DF raw data'!N54) -> 24.2 | C54: =IF('DF raw data'!C54="","",'DF raw data'!C54) ->  | D54: =IF('DF raw data'!D54="","",'DF raw data'!D54) -> 
A55: =IF('DF raw data'!M55="","",'DF raw data'!M55) -> PS-Encoder: | B55: =IF('DF raw data'!N55="","",'DF raw data'!N55) -> 39.762 | C55: =IF('DF raw data'!C55="","",'DF raw data'!C55) ->  | D55: =IF('DF raw data'!D55="","",'DF raw data'!D55) -> 
A56: =IF('DF raw data'!M56="","",'DF raw data'!M56) ->  | B56: =IF('DF raw data'!N56="","",'DF raw data'!N56) -> 
A57: =IF('DF raw data'!M57="","",'DF raw data'!M57) -> Monitor-Index | B57: =IF('DF raw data'!N57="","",'DF raw data'!N57) -> [1,1,4]
A58: =IF('DF raw data'!M58="","",'DF raw data'!M58) ->  | B58: =IF('DF raw data'!N58="","",'DF raw data'!N58) -> 
A59: =IF('DF raw data'!M59="","",'DF raw data'!M59) -> Time [s] | B59: =IF('DF raw data'!N59="","",'DF raw data'!N59) -> Y [mm]
A60: =IF('DF raw data'!M60="","",'DF raw data'!M60) ->  | B60: =IF('DF raw data'!N60="","",'DF raw data'!N60) -> 
A61: =IF('DF raw data'!M61="","",'DF raw data'!M61) -> 207.5 | B61: =IF('DF raw data'!N61="","",'DF raw data'!N61) -> 31.65
A62: =IF('DF raw data'!M62="","",'DF raw data'!M62) ->  | B62: =IF('DF raw data'!N62="","",'DF raw data'!N62) -> 
A63: =IF('DF raw data'!M63="","",'DF raw data'!M63) -> Measurement-Index | B63: =IF('DF raw data'!N63="","",'DF raw data'!N63) -> [1,1,1201,2]
A64: =IF('DF raw data'!M64="","",'DF raw data'!M64) ->  | B64: =IF('DF raw data'!N64="","",'DF raw data'!N64) -> 
A65: =IF('DF raw data'!M65="","",'DF raw data'!M65) -> Z [mm] | B65: =IF('DF raw data'!N65="","",'DF raw data'!N65) -> By [T] | C65: =IF('DF raw data'!O65="","",'DF raw data'!O65) -> Bx [T] | D65: =IF('DF raw data'!P65="","",'DF raw data'!P65) -> Bz [T] | F65: By_corr | G65: Bx_corr | H65: Bz_corr | J65: Iy | K65: Jy | L65: Ix | M65: Jx | N65: PI
B66: =IF('DF raw data'!N66="","",'DF raw data'!N66) ->  | C66: =IF('DF raw data'!O66="","",'DF raw data'!O66) ->  | D66: =IF('DF raw data'!P66="","",'DF raw data'!P66) -> 
A67: =IF('DF raw data'!M67="","",'DF raw data'!M67) -> -300 | B67: =IF('DF raw data'!N67="","",'DF raw data'!N67) -> -7.27054e-06 | C67: =IF('DF raw data'!O67="","",'DF raw data'!O67) -> 9.89065e-05 | D67: =IF('DF raw data'!P67="","",'DF raw data'!P67) -> -3.98119e-05 | F67: =(1-$G$1*($B$54-$G$2))*(B67-F$5) -> 3.687168974e-06 | G67: =(1-$G$1*($B$54-$G$2))*(C67-G$5) -> -1.401243168e-05 | H67: =(1-$G$1*($B$54-$G$2))*(D67-H$5) -> -6.977475512e-06 | J67: =F67*$G$3+J66 -> 1.843584487e-06 | K67: =J67*$G$3+K66 -> 9.217922436e-07 | L67: =G67*$G$3+L66 -> -7.006215839e-06 | M67: =L67*$G$3+M66 -> -3.503107919e-06 | N67: =(J67^2+L67^2)*$G$3+N66 -> 2.624293207e-11
A68: =IF('DF raw data'!M68="","",'DF raw data'!M68) -> -299.5 | B68: =IF('DF raw data'!N68="","",'DF raw data'!N68) -> -1.46375e-05 | C68: =IF('DF raw data'!O68="","",'DF raw data'!O68) -> 9.36758e-05 | D68: =IF('DF raw data'!P68="","",'DF raw data'!P68) -> -3.89725e-05 | F68: -3.710732258e-06 | G68: -1.926510062e-05 | H68: -6.134550032e-06 | J68: =F68*$G$3+J67 -> -1.178164179e-08 | K68: =J68*$G$3+K67 -> 9.159014227e-07 | L68: =G68*$G$3+L67 -> -1.663876615e-05 | M68: =L68*$G$3+M67 -> -1.182249099e-05 | N68: =(J68^2+L68^2)*$G$3+N67 -> 1.646672709e-10
A69: =IF('DF raw data'!M69="","",'DF raw data'!M69) -> -299 | B69: =IF('DF raw data'!N69="","",'DF raw data'!N69) -> -2.21974e-05 | C69: =IF('DF raw data'!O69="","",'DF raw data'!O69) -> 9.59281e-05 | D69: =IF('DF raw data'!P69="","",'DF raw data'!P69) -> -3.72508e-05 | F69: -1.130238384e-05 | G69: -1.700334096e-05 | H69: -4.405618892e-06 | J69: -5.662973561e-06 | K69: -1.915585358e-06 | L69: -2.514043663e-05 | M69: -2.439270931e-05 | N69: 4.967226826e-10
A70: =IF('DF raw data'!M70="","",'DF raw data'!M70) -> -298.5 | B70: =IF('DF raw data'!N70="","",'DF raw data'!N70) -> -7.5286e-06 | C70: =IF('DF raw data'!O70="","",'DF raw data'!O70) -> 0.000109738 | D70: =IF('DF raw data'!P70="","",'DF raw data'!P70) -> -3.65419e-05 | F70: 3.428025122e-06 | G70: -3.135439377e-06 | H70: -3.693741512e-06 | J70: -3.948961e-06 | K70: -3.890065857e-06 | L70: -2.670815631e-05 | M70: -3.774678746e-05 | N70: 8.611826359e-10
A71: =IF('DF raw data'!M71="","",'DF raw data'!M71) -> -298 | B71: =IF('DF raw data'!N71="","",'DF raw data'!N71) -> 3.50154e-07 | C71: =IF('DF raw data'!O71="","",'DF raw data'!O71) -> 0.000109963 | D71: =IF('DF raw data'!P71="","",'DF raw data'!P71) -> -3.73353e-05 | F71: 1.133986989e-05 | G71: -2.909494377e-06 | H71: -4.490473792e-06 | J71: 1.720973945e-06 | K71: -3.029578885e-06 | L71: -2.81629035e-05 | M71: -5.182823921e-05 | N71: 1.259238078e-09
A72: =IF('DF raw data'!M72="","",'DF raw data'!M72) -> -297.5 | B72: =IF('DF raw data'!N72="","",'DF raw data'!N72) -> -9.57715e-06 | C72: =IF('DF raw data'!O72="","",'DF raw data'!O72) -> 0.000109119 | D72: =IF('DF raw data'!P72="","",'DF raw data'!P72) -> -3.80158e-05 | F72: 1.370871212e-06 | G72: -3.757039177e-06 | H72: -5.173831892e-06 | J72: 2.406409551e-06 | K72: -1.826374109e-06 | L72: -3.004142309e-05 | M72: -6.684895076e-05 | N72: 1.713377033e-09
A73: =IF('DF raw data'!M73="","",'DF raw data'!M73) -> -297 | B73: =IF('DF raw data'!N73="","",'DF raw data'!N73) -> -8.87314e-06 | C73: =IF('DF raw data'!O73="","",'DF raw data'!O73) -> 0.000103461 | D73: =IF('DF raw data'!P73="","",'DF raw data'!P73) -> -3.79845e-05 | F73: 2.077838054e-06 | G73: -9.438802777e-06 | H73: -5.142400432e-06 | J73: 3.445328578e-06 | K73: -1.037098204e-07 | L73: -3.476082448e-05 | M73: -8.4229363e-05 | N73: 2.323469636e-09
A74: =IF('DF raw data'!M74="","",'DF raw data'!M74) -> -296.5 | B74: =IF('DF raw data'!N74="","",'DF raw data'!N74) -> -2.72364e-06 | C74: =IF('DF raw data'!O74="","",'DF raw data'!O74) -> 0.000104975 | D74: =IF('DF raw data'!P74="","",'DF raw data'!P74) -> -3.81229e-05 | F74: 8.253165954e-06 | G74: -7.918443977e-06 | H74: -5.281381712e-06 | J74: 7.571911555e-06 | K74: 3.682245957e-06 | L74: -3.872004647e-05 | M74: -0.0001035893862 | N74: 3.101757558e-09
A75: =IF('DF raw data'!M75="","",'DF raw data'!M75) -> -296 | B75: =IF('DF raw data'!N75="","",'DF raw data'!N75) -> -1.10509e-05 | C75: =IF('DF raw data'!O75="","",'DF raw data'!O75) -> 0.000105112 | D75: =IF('DF raw data'!P75="","",'DF raw data'!P75) -> -3.83501e-05 | F75: -1.090685378e-07 | G75: -7.780868577e-06 | H75: -5.509535952e-06 | J75: 7.517377286e-06 | K75: 7.4409346e-06 | L75: -4.261048076e-05 | M75: -0.0001248946266 | N75: 4.037839574e-09
A76: =IF('DF raw data'!M76="","",'DF raw data'!M76) -> -295.5 | B76: =IF('DF raw data'!N76="","",'DF raw data'!N76) -> -8.61639e-06 | C76: =IF('DF raw data'!O76="","",'DF raw data'!O76) -> 0.000107488 | D76: =IF('DF raw data'!P76="","",'DF raw data'!P76) -> -3.79196e-05 | F76: 2.335666404e-06 | G76: -5.394889377e-06 | H76: -5.077227852e-06 | J76: 8.685210488e-06 | K76: 1.178353984e-05 | L76: -4.530792545e-05 | M76: -0.0001475485893 | N76: 5.101960069e-09
A77: =IF('DF raw data'!M77="","",'DF raw data'!M77) -> -295 | B77: =IF('DF raw data'!N77="","",'DF raw data'!N77) -> -1.68804e-05 | C77: =IF('DF raw data'!O77="","",'DF raw data'!O77) -> 0.000109649 | D77: =IF('DF raw data'!P77="","",'DF raw data'!P77) -> -3.71572e-05 | F77: -5.963052438e-06 | G77: -3.224813177e-06 | H77: -4.311625772e-06 | J77: 5.70368427e-06 | K77: 1.463538198e-05 | L77: -4.692033204e-05 | M77: -0.0001710087554 | N77: 6.218984855e-09
A78: =IF('DF raw data'!M78="","",'DF raw data'!M78) -> -294.5 | B78: =IF('DF raw data'!N78="","",'DF raw data'!N78) -> 2.46389e-06 | C78: =IF('DF raw data'!O78="","",'DF raw data'!O78) -> 0.000106375 | D78: =IF('DF raw data'!P78="","",'DF raw data'!P78) -> -3.73909e-05 | F78: 1.346248358e-05 | G78: -6.512563977e-06 | H78: -4.546307312e-06 | J78: 1.243492606e-05 | K78: 2.085284501e-05 | L78: -5.017661402e-05 | M78: -0.0001960970624 | N78: 7.555144845e-09
A79: =IF('DF raw data'!M79="","",'DF raw data'!M79) -> -294 | B79: =IF('DF raw data'!N79="","",'DF raw data'!N79) -> -6.37479e-06 | C79: =IF('DF raw data'!O79="","",'DF raw data'!O79) -> 0.000105355 | D79: =IF('DF raw data'!P79="","",'DF raw data'!P79) -> -3.81669e-05 | F79: 4.586681124e-06 | G79: -7.536847977e-06 | H79: -5.325566512e-06 | J79: 1.472826662e-05 | K79: 2.821697832e-05 | L79: -5.394503801e-05 | M79: -0.0002230695814 | N79: 9.118639327e-09
A80: =IF('DF raw data'!M80="","",'DF raw data'!M80) -> -293.5 | B80: =IF('DF raw data'!N80="","",'DF raw data'!N80) -> -9.51285e-06 | C80: =IF('DF raw data'!O80="","",'DF raw data'!O80) -> 0.000109164 | D80: =IF('DF raw data'!P80="","",'DF raw data'!P80) -> -3.84394e-05 | F80: 1.435441272e-06 | G80: -3.711850177e-06 | H80: -5.599211012e-06 | J80: 1.544598726e-05 | K80: 3.593997195e-05 | L80: -5.58009631e-05 | M80: -0.0002509700629 | N80: 1.079480233e-08
A81: =IF('DF raw data'!M81="","",'DF raw data'!M81) -> -293 | B81: =IF('DF raw data'!N81="","",'DF raw data'!N81) -> -9.89774e-06 | C81: =IF('DF raw data'!O81="","",'DF raw data'!O81) -> 0.000107801 | D81: =IF('DF raw data'!P81="","",'DF raw data'!P81) -> -3.83557e-05 | F81: 1.048934734e-06 | G81: -5.080574777e-06 | H81: -5.515159472e-06 | J81: 1.597045462e-05 | K81: 4.392519926e-05 | L81: -5.834125049e-05 | M81: -0.0002801406882 | N81: 1.262418079e-08
A82: =IF('DF raw data'!M82="","",'DF raw data'!M82) -> -292.5 | B82: =IF('DF raw data'!N82="","",'DF raw data'!N82) -> -6.4388e-06 | C82: =IF('DF raw data'!O82="","",'DF raw data'!O82) -> 0.00010779 | D82: =IF('DF raw data'!P82="","",'DF raw data'!P82) -> -3.81158e-05 | F82: 4.522402282e-06 | G82: -5.091620977e-06 | H82: -5.274251892e-06 | J82: 1.823165577e-05 | K82: 5.304102714e-05 | L82: -6.088706098e-05 | M82: -0.0003105842187 | N82: 1.464399453e-08
A83: =IF('DF raw data'!M83="","",'DF raw data'!M83) -> -292 | B83: =IF('DF raw data'!N83="","",'DF raw data'!N83) -> -2.1492e-05 | C83: =IF('DF raw data'!O83="","",'DF raw data'!O83) -> 0.000115532 | D83: =IF('DF raw data'!P83="","",'DF raw data'!P83) -> -3.73626e-05 | F83: -1.059402116e-05 | G83: 2.682895423e-06 | H83: -4.517888452e-06 | J83: 1.293464519e-05 | K83: 5.950834974e-05 | L83: -5.954561327e-05 | M83: -0.0003403570253 | N83: 1.650048708e-08
A84: =IF('DF raw data'!M84="","",'DF raw data'!M84) -> -291.5 | B84: =IF('DF raw data'!N84="","",'DF raw data'!N84) -> -2.08128e-06 | C84: =IF('DF raw data'!O84="","",'DF raw data'!O84) -> 0.000111865 | D84: =IF('DF raw data'!P84="","",'DF raw data'!P84) -> -4.10803e-05 | F84: 8.898223866e-06 | G84: -9.995059773e-07 | H84: -8.251202792e-06 | J84: 1.738375712e-05 | K84: 6.82002283e-05 | L84: -6.004536626e-05 | M84: -0.0003703797084 | N84: 1.845430759e-08
A85: =IF('DF raw data'!M85="","",'DF raw data'!M85) -> -291 | B85: =IF('DF raw data'!N85="","",'DF raw data'!N85) -> -2.85311e-06 | C85: =IF('DF raw data'!O85="","",'DF raw data'!O85) -> 0.000105064 | D85: =IF('DF raw data'!P85="","",'DF raw data'!P85) -> -3.6194e-05 | F85: 8.12315218e-06 | G85: -7.829070177e-06 | H85: -3.344380332e-06 | J85: 2.144533321e-05 | K85: 7.89228949e-05 | L85: -6.395990134e-05 | M85: -0.0004023596591 | N85: 2.072969324e-08
A86: =IF('DF raw data'!M86="","",'DF raw data'!M86) -> -290.5 | B86: =IF('DF raw data'!N86="","",'DF raw data'!N86) -> -1.39943e-05 | C86: =IF('DF raw data'!O86="","",'DF raw data'!O86) -> 9.99221e-05 | D86: =IF('DF raw data'!P86="","",'DF raw data'!P86) -> -4.192e-05 | F86: -3.064830818e-06 | G86: -1.299256616e-05 | H86: -9.094429532e-06 | J86: 1.99129178e-05 | K86: 8.88793538e-05 | L86: -7.045618442e-05 | M86: -0.0004375877513 | N86: 2.340999235e-08
A87: =IF('DF raw data'!M87="","",'DF raw data'!M87) -> -290 | B87: =IF('DF raw data'!N87="","",'DF raw data'!N87) -> -2.51455e-05 | C87: =IF('DF raw data'!O87="","",'DF raw data'!O87) -> 9.41762e-05 | D87: =IF('DF raw data'!P87="","",'DF raw data'!P87) -> -3.3517e-05 | F87: -1.426286586e-05 | G87: -1.876259894e-05 | H87: -6.561369322e-07 | J87: 1.278148487e-05 | K87: 9.527009624e-05 | L87: -7.983748389e-05 | M87: -0.0004775064933 | N87: 2.667868744e-08
A88: =IF('DF raw data'!M88="","",'DF raw data'!M88) -> -289.5 | B88: =IF('DF raw data'!N88="","",'DF raw data'!N88) -> -1.24629e-05 | C88: =IF('DF raw data'!O88="","",'DF raw data'!O88) -> 0.000106518 | D88: =IF('DF raw data'!P88="","",'DF raw data'!P88) -> -3.31718e-05 | F88: -1.526998938e-06 | G88: -6.368963377e-06 | H88: -3.094870922e-07 | J88: 1.20179854e-05 | K88: 0.0001012790889 | L88: -8.302196558e-05 | M88: -0.000519017476 | N88: 3.019722681e-08
A89: =IF('DF raw data'!M89="","",'DF raw data'!M89) -> -289 | B89: =IF('DF raw data'!N89="","",'DF raw data'!N89) -> -3.136e-05 | C89: =IF('DF raw data'!O89="","",'DF raw data'!O89) -> 0.000111943 | D89: =IF('DF raw data'!P89="","",'DF raw data'!P89) -> -3.12708e-05 | F89: -2.050346676e-05 | G89: -9.211783773e-07 | H89: 1.599497108e-06 | J89: 1.766252025e-06 | K89: 0.000102162215 | L89: -8.348255477e-05 | M89: -0.0005607587534 | N89: 3.368345511e-08
A90: =IF('DF raw data'!M90="","",'DF raw data'!M90) -> -288.5 | B90: =IF('DF raw data'!N90="","",'DF raw data'!N90) -> -8.36062e-06 | C90: =IF('DF raw data'!O90="","",'DF raw data'!O90) -> 0.000115881 | D90: =IF('DF raw data'!P90="","",'DF raw data'!P90) -> -3.75553e-05 | F90: 2.592510638e-06 | G90: 3.033361223e-06 | H90: -4.711397792e-06 | J90: 3.062507344e-06 | K90: 0.0001036934686 | L90: -8.196587416e-05 | M90: -0.0006017416905 | N90: 3.704734685e-08
A91: =IF('DF raw data'!M91="","",'DF raw data'!M91) -> -288 | B91: =IF('DF raw data'!N91="","",'DF raw data'!N91) -> -8.74943e-06 | C91: =IF('DF raw data'!O91="","",'DF raw data'!O91) -> 0.000106458 | D91: =IF('DF raw data'!P91="","",'DF raw data'!P91) -> -3.08082e-05 | F91: 2.202067636e-06 | G91: -6.429215377e-06 | H91: 2.064040028e-06 | J91: 4.163541162e-06 | K91: 0.0001057752392 | L91: -8.518048185e-05 | M91: -0.0006443319314 | N91: 4.068387163e-08
A92: =IF('DF raw data'!M92="","",'DF raw data'!M92) -> -287.5 | B92: =IF('DF raw data'!N92="","",'DF raw data'!N92) -> -1.035e-05 | C92: =IF('DF raw data'!O92="","",'DF raw data'!O92) -> 0.000101032 | D92: =IF('DF raw data'!P92="","",'DF raw data'!P92) -> -3.19034e-05 | F92: 5.947752422e-07 | G92: -1.187800458e-05 | H92: 9.642401878e-07 | J92: 4.460928783e-06 | K92: 0.0001080057036 | L92: -9.111948414e-05 | M92: -0.0006898916735 | N92: 4.484520177e-08
A93: =IF('DF raw data'!M93="","",'DF raw data'!M93) -> -287 | B93: =IF('DF raw data'!N93="","",'DF raw data'!N93) -> -1.57063e-06 | C93: =IF('DF raw data'!O93="","",'DF raw data'!O93) -> 0.000104503 | D93: =IF('DF raw data'!P93="","",'DF raw data'!P93) -> -3.84432e-05 | F93: 9.411018596e-06 | G93: -8.392426377e-06 | H93: -5.603026972e-06 | J93: 9.166438081e-06 | K93: 0.0001125889226 | L93: -9.531569732e-05 | M93: -0.0007375495222 | N93: 4.942975464e-08
A94: =IF('DF raw data'!M94="","",'DF raw data'!M94) -> -286.5 | B94: =IF('DF raw data'!N94="","",'DF raw data'!N94) -> -8.10556e-06 | C94: =IF('DF raw data'!O94="","",'DF raw data'!O94) -> 0.000106852 | D94: =IF('DF raw data'!P94="","",'DF raw data'!P94) -> -3.59394e-05 | F94: 2.84864189e-06 | G94: -6.033560577e-06 | H94: -3.088711012e-06 | J94: 1.059075903e-05 | K94: 0.0001178843022 | L94: -9.833247761e-05 | M94: -0.000786715761 | N94: 5.432047481e-08
A95: =IF('DF raw data'!M95="","",'DF raw data'!M95) -> -286 | B95: =IF('DF raw data'!N95="","",'DF raw data'!N95) -> -1.09301e-05 | C95: =IF('DF raw data'!O95="","",'DF raw data'!O95) -> 0.000108709 | D95: =IF('DF raw data'!P95="","",'DF raw data'!P95) -> -2.65703e-05 | F95: 1.223882221e-08 | G95: -4.168761177e-06 | H95: 6.319739208e-06 | J95: 1.059687844e-05 | K95: 0.0001231827414 | L95: -0.0001004168582 | M95: -0.0008369241901 | N95: 5.941839443e-08
A96: =IF('DF raw data'!M96="","",'DF raw data'!M96) -> -285.5 | B96: =IF('DF raw data'!N96="","",'DF raw data'!N96) -> -1.63053e-06 | C96: =IF('DF raw data'!O96="","",'DF raw data'!O96) -> 0.000108942 | D96: =IF('DF raw data'!P96="","",'DF raw data'!P96) -> -4.50407e-05 | F96: 9.350867016e-06 | G96: -3.934782577e-06 | H96: -1.222823647e-05 | J96: 1.527231195e-05 | K96: 0.0001308188973 | L96: -0.0001023842495 | M96: -0.0008881163148 | N96: 6.477628346e-08
A97: =IF('DF raw data'!M97="","",'DF raw data'!M97) -> -285 | B97: =IF('DF raw data'!N97="","",'DF raw data'!N97) -> -7.97062e-06 | C97: =IF('DF raw data'!O97="","",'DF raw data'!O97) -> 0.000109468 | D97: =IF('DF raw data'!P97="","",'DF raw data'!P97) -> -4.65045e-05 | F97: 2.984148638e-06 | G97: -3.406573377e-06 | H97: -1.369818443e-05 | J97: 1.676438626e-05 | K97: 0.0001392010905 | L97: -0.0001040875362 | M97: -0.0009401600829 | N97: 7.033391337e-08
A98: =IF('DF raw data'!M98="","",'DF raw data'!M98) -> -284.5 | B98: =IF('DF raw data'!N98="","",'DF raw data'!N98) -> -2.40444e-05 | C98: =IF('DF raw data'!O98="","",'DF raw data'!O98) -> 0.000115742 | D98: =IF('DF raw data'!P98="","",'DF raw data'!P98) -> -5.19062e-05 | F98: -1.315714124e-05 | G98: 2.893777423e-06 | H98: -1.912257157e-05 | J98: 1.018581565e-05 | K98: 0.0001442939983 | L98: -0.0001026406475 | M98: -0.0009914804066 | N98: 7.565334005e-08
A99: =IF('DF raw data'!M99="","",'DF raw data'!M99) -> -284 | B99: =IF('DF raw data'!N99="","",'DF raw data'!N99) -> -9.12909e-06 | C99: =IF('DF raw data'!O99="","",'DF raw data'!O99) -> 0.000106442 | D99: =IF('DF raw data'!P99="","",'DF raw data'!P99) -> -3.79114e-05 | F99: 1.820813064e-06 | G99: -6.445282577e-06 | H99: -5.068993412e-06 | J99: 1.109622218e-05 | K99: 0.0001498421094 | L99: -0.0001058632888 | M99: -0.001044412051 | N99: 8.131842108e-08
A100: =IF('DF raw data'!M100="","",'DF raw data'!M100) -> -283.5 | B100: =IF('DF raw data'!N100="","",'DF raw data'!N100) -> -1.57865e-05 | C100: =IF('DF raw data'!O100="","",'DF raw data'!O100) -> 0.000107474 | D100: =IF('DF raw data'!P100="","",'DF raw data'!P100) -> -4.44949e-05 | F100: -4.864558058e-06 | G100: -5.408948177e-06 | H100: -1.168014411e-05 | J100: 8.663943149e-06 | K100: 0.000154174081 | L100: -0.0001085677628 | M100: -0.001098695932 | N100: 8.72494326e-08
A101: =IF('DF raw data'!M101="","",'DF raw data'!M101) -> -283 | B101: =IF('DF raw data'!N101="","",'DF raw data'!N101) -> -1.35448e-05 | C101: =IF('DF raw data'!O101="","",'DF raw data'!O101) -> 0.000110278 | D101: =IF('DF raw data'!P101="","",'DF raw data'!P101) -> -4.4203e-05 | F101: -2.613442918e-06 | G101: -2.593171377e-06 | H101: -1.138701813e-05 | J101: 7.35722169e-06 | K101: 0.0001578526918 | L101: -0.0001098643485 | M101: -0.001153628107 | N101: 9.331158449e-08
A102: =IF('DF raw data'!M102="","",'DF raw data'!M102) -> -282.5 | B102: =IF('DF raw data'!N102="","",'DF raw data'!N102) -> -3.0586e-05 | C102: =IF('DF raw data'!O102="","",'DF raw data'!O102) -> 0.000109048 | D102: =IF('DF raw data'!P102="","",'DF raw data'!P102) -> -3.92735e-05 | F102: -1.972621596e-05 | G102: -3.828337377e-06 | H102: -6.436814232e-06 | J102: -2.505886289e-06 | K102: 0.0001565997487 | L102: -0.0001117785172 | M102: -0.001209517365 | N102: 9.956194268e-08
A103: =IF('DF raw data'!M103="","",'DF raw data'!M103) -> -282 | B103: =IF('DF raw data'!N103="","",'DF raw data'!N103) -> -1.84854e-05 | C103: =IF('DF raw data'!O103="","",'DF raw data'!O103) -> 0.00010811 | D103: =IF('DF raw data'!P103="","",'DF raw data'!P103) -> -3.08803e-05 | F103: -7.574793438e-06 | G103: -4.770276977e-06 | H103: 1.991637208e-06 | J103: -6.293283008e-06 | K103: 0.0001534531072 | L103: -0.0001141636557 | M103: -0.001266599193 | N103: 1.060984155e-07
A104: =IF('DF raw data'!M104="","",'DF raw data'!M104) -> -281.5 | B104: =IF('DF raw data'!N104="","",'DF raw data'!N104) -> -1.54738e-05 | C104: =IF('DF raw data'!O104="","",'DF raw data'!O104) -> 0.000105514 | D104: =IF('DF raw data'!P104="","",'DF raw data'!P104) -> -3.26034e-05 | F104: -4.550544718e-06 | G104: -7.377180177e-06 | H104: 2.613001878e-07 | J104: -8.568555367e-06 | K104: 0.0001491688295 | L104: -0.0001178522458 | M104: -0.001325525316 | N104: 1.130797015e-07
A105: =IF('DF raw data'!M105="","",'DF raw data'!M105) -> -281 | B105: =IF('DF raw data'!N105="","",'DF raw data'!N105) -> -1.27157e-05 | C105: =IF('DF raw data'!O105="","",'DF raw data'!O105) -> 0.000114286 | D105: =IF('DF raw data'!P105="","",'DF raw data'!P105) -> -3.86088e-05 | F105: -1.780860698e-06 | G105: 1.431662223e-06 | H105: -5.769322492e-06 | J105: -9.458985716e-06 | K105: 0.0001444393366 | L105: -0.0001171364147 | M105: -0.001384093523 | N105: 1.199849075e-07
A106: =IF('DF raw data'!M106="","",'DF raw data'!M106) -> -280.5 | B106: =IF('DF raw data'!N106="","",'DF raw data'!N106) -> -7.32994e-06 | C106: =IF('DF raw data'!O106="","",'DF raw data'!O106) -> 0.000110974 | D106: =IF('DF raw data'!P106="","",'DF raw data'!P106) -> -4.67624e-05 | F106: 3.627519494e-06 | G106: -1.894248177e-06 | H106: -1.395716761e-05 | J106: -7.645225968e-06 | K106: 0.0001406167236 | L106: -0.0001180835388 | M106: -0.001443135293 | N106: 1.269859934e-07
A107: =IF('DF raw data'!M107="","",'DF raw data'!M107) -> -280 | B107: =IF('DF raw data'!N107="","",'DF raw data'!N107) -> -1.6501e-05 | C107: =IF('DF raw data'!O107="","",'DF raw data'!O107) -> 0.000109689 | D107: =IF('DF raw data'!P107="","",'DF raw data'!P107) -> -2.89249e-05 | F107: -5.582058958e-06 | G107: -3.184645177e-06 | H107: 3.955249888e-06 | J107: -1.043625545e-05 | K107: 0.0001353985959 | L107: -0.0001196758614 | M107: -0.001502973223 | N107: 1.34201607e-07
A108: =IF('DF raw data'!M108="","",'DF raw data'!M108) -> -279.5 | B108: =IF('DF raw data'!N108="","",'DF raw data'!N108) -> -5.34727e-06 | C108: =IF('DF raw data'!O108="","",'DF raw data'!O108) -> 0.000109081 | D108: =IF('DF raw data'!P108="","",'DF raw data'!P108) -> -4.21534e-05 | F108: 5.618516708e-06 | G108: -3.795198777e-06 | H108: -9.328809812e-06 | J108: -7.626997093e-06 | K108: 0.0001315850974 | L108: -0.0001215734608 | M108: -0.001563759954 | N108: 1.416207457e-07
A109: =IF('DF raw data'!M109="","",'DF raw data'!M109) -> -279 | B109: =IF('DF raw data'!N109="","",'DF raw data'!N109) -> -1.31632e-05 | C109: =IF('DF raw data'!O109="","",'DF raw data'!O109) -> 0.000112887 | D109: =IF('DF raw data'!P109="","",'DF raw data'!P109) -> -4.01351e-05 | F109: -2.230240198e-06 | G109: 2.678642268e-08 | H109: -7.302032952e-06 | J109: -8.742117192e-06 | K109: 0.0001272140388 | L109: -0.0001215600675 | M109: -0.001624539988 | N109: 1.49047383e-07
A110: =IF('DF raw data'!M110="","",'DF raw data'!M110) -> -278.5 | B110: =IF('DF raw data'!N110="","",'DF raw data'!N110) -> -2.81587e-05 | C110: =IF('DF raw data'!O110="","",'DF raw data'!O110) -> 0.000114366 | D110: =IF('DF raw data'!P110="","",'DF raw data'!P110) -> -2.86006e-05 | F110: -1.72887213e-05 | G110: 1.511998223e-06 | H110: 4.280911948e-06 | J110: -1.738647784e-05 | K110: 0.0001185207998 | L110: -0.0001208040684 | M110: -0.001684942022 | N110: 1.564953393e-07
A111: =IF('DF raw data'!M111="","",'DF raw data'!M111) -> -278 | B111: =IF('DF raw data'!N111="","",'DF raw data'!N111) -> -1.90681e-05 | C111: =IF('DF raw data'!O111="","",'DF raw data'!O111) -> 0.000109682 | D111: =IF('DF raw data'!P111="","",'DF raw data'!P111) -> -2.14302e-05 | F111: -8.159940778e-06 | G111: -3.191674577e-06 | H111: 1.148142763e-05 | J111: -2.146644823e-05 | K111: 0.0001077875757 | L111: -0.0001223999057 | M111: -0.001746141975 | N111: 1.642166119e-07
A112: =IF('DF raw data'!M112="","",'DF raw data'!M112) -> -277.5 | B112: =IF('DF raw data'!N112="","",'DF raw data'!N112) -> -1.23984e-05 | C112: =IF('DF raw data'!O112="","",'DF raw data'!O112) -> 9.37847e-05 | D112: =IF('DF raw data'!P112="","",'DF raw data'!P112) -> -3.3851e-05 | F112: -1.462228038e-06 | G112: -1.915574324e-05 | H112: -9.915397322e-07 | J112: -2.219756225e-05 | K112: 9.668879461e-05 | L112: -0.0001319777773 | M112: -0.001812130863 | N112: 1.731720447e-07
A113: =IF('DF raw data'!M113="","",'DF raw data'!M113) -> -277 | B113: =IF('DF raw data'!N113="","",'DF raw data'!N113) -> -8.9332e-06 | C113: =IF('DF raw data'!O113="","",'DF raw data'!O113) -> 9.06907e-05 | D113: =IF('DF raw data'!P113="","",'DF raw data'!P113) -> -4.38831e-05 | F113: 2.017525802e-06 | G113: -2.226273804e-05 | H113: -1.106577455e-05 | J113: -2.118879935e-05 | K113: 8.609439493e-05 | L113: -0.0001431091464 | M113: -0.001883685437 | N113: 1.836366412e-07
A114: =IF('DF raw data'!M114="","",'DF raw data'!M114) -> -276.5 | B114: =IF('DF raw data'!N114="","",'DF raw data'!N114) -> -2.30975e-05 | C114: =IF('DF raw data'!O114="","",'DF raw data'!O114) -> 9.91201e-05 | D114: =IF('DF raw data'!P114="","",'DF raw data'!P114) -> -3.04549e-05 | F114: -1.220626426e-05 | G114: -1.379793456e-05 | H114: 2.418823888e-06 | J114: -2.729193148e-05 | K114: 7.24484292e-05 | L114: -0.0001500081136 | M114: -0.001958689493 | N114: 1.95260283e-07
A115: =IF('DF raw data'!M115="","",'DF raw data'!M115) -> -276 | B115: =IF('DF raw data'!N115="","",'DF raw data'!N115) -> -1.45688e-05 | C115: =IF('DF raw data'!O115="","",'DF raw data'!O115) -> 9.37318e-05 | D115: =IF('DF raw data'!P115="","",'DF raw data'!P115) -> -4.54675e-05 | F115: -3.641743718e-06 | G115: -1.920886542e-05 | H115: -1.265682903e-05 | J115: -2.911280334e-05 | K115: 5.789202753e-05 | L115: -0.0001596125463 | M115: -0.002038495767 | N115: 2.084221432e-07
A116: =IF('DF raw data'!M116="","",'DF raw data'!M116) -> -275.5 | B116: =IF('DF raw data'!N116="","",'DF raw data'!N116) -> -2.64833e-05 | C116: =IF('DF raw data'!O116="","",'DF raw data'!O116) -> 8.96677e-05 | D116: =IF('DF raw data'!P116="","",'DF raw data'!P116) -> -4.42665e-05 | F116: -1.560628462e-05 | G116: -2.329003464e-05 | H116: -1.145078483e-05 | J116: -3.691594564e-05 | K116: 3.943405471e-05 | L116: -0.0001712575637 | M116: -0.002124124548 | N116: 2.237681132e-07
A117: =IF('DF raw data'!M117="","",'DF raw data'!M117) -> -275 | B117: =IF('DF raw data'!N117="","",'DF raw data'!N117) -> -2.21297e-05 | C117: =IF('DF raw data'!O117="","",'DF raw data'!O117) -> 9.51407e-05 | D117: =IF('DF raw data'!P117="","",'DF raw data'!P117) -> -4.12456e-05 | F117: -1.12343995e-05 | G117: -1.779404804e-05 | H117: -8.417197052e-06 | J117: -4.253314539e-05 | K117: 1.816748201e-05 | L117: -0.0001801545877 | M117: -0.002214201842 | N117: 2.409004852e-07
A118: =IF('DF raw data'!M118="","",'DF raw data'!M118) -> -274.5 | B118: =IF('DF raw data'!N118="","",'DF raw data'!N118) -> -1.65545e-05 | C118: =IF('DF raw data'!O118="","",'DF raw data'!O118) -> 9.36134e-05 | D118: =IF('DF raw data'!P118="","",'DF raw data'!P118) -> -4.53454e-05 | F118: -5.635783658e-06 | G118: -1.93277627e-05 | H118: -1.253421621e-05 | J118: -4.535103722e-05 | K118: -4.508036601e-06 | L118: -0.000189818469 | M118: -0.002309111077 | N118: 2.599443691e-07
A119: =IF('DF raw data'!M119="","",'DF raw data'!M119) -> -274 | B119: =IF('DF raw data'!N119="","",'DF raw data'!N119) -> -1.4257e-05 | C119: =IF('DF raw data'!O119="","",'DF raw data'!O119) -> 0.000100396 | D119: =IF('DF raw data'!P119="","",'DF raw data'!P119) -> -3.22368e-05 | F119: -3.328634158e-06 | G119: -1.251667578e-05 | H119: 6.294399078e-07 | J119: -4.70153543e-05 | K119: -2.801571375e-05 | L119: -0.0001960768069 | M119: -0.00240714948 | N119: 2.802726479e-07
A120: =IF('DF raw data'!M120="","",'DF raw data'!M120) -> -273.5 | B120: =IF('DF raw data'!N120="","",'DF raw data'!N120) -> -2.71916e-05 | C120: =IF('DF raw data'!O120="","",'DF raw data'!O120) -> 0.000101778 | D120: =IF('DF raw data'!P120="","",'DF raw data'!P120) -> -3.86321e-05 | F120: -1.631755948e-05 | G120: -1.112887138e-05 | H120: -5.792720352e-06 | J120: -5.517413404e-05 | K120: -5.560278077e-05 | L120: -0.0002016412426 | M120: -0.002507970101 | N120: 3.021243358e-07
A121: =IF('DF raw data'!M121="","",'DF raw data'!M121) -> -273 | B121: =IF('DF raw data'!N121="","",'DF raw data'!N121) -> -1.35554e-05 | C121: =IF('DF raw data'!O121="","",'DF raw data'!O121) -> 0.000102416 | D121: =IF('DF raw data'!P121="","",'DF raw data'!P121) -> -2.79373e-05 | F121: -2.624087438e-06 | G121: -1.048819178e-05 | H121: 4.946997808e-06 | J121: -5.648617776e-05 | K121: -8.384586965e-05 | L121: -0.0002068853385 | M121: -0.002611412771 | N121: 3.251204516e-07
A122: =IF('DF raw data'!M122="","",'DF raw data'!M122) -> -272.5 | B122: =IF('DF raw data'!N122="","",'DF raw data'!N122) -> -1.36112e-05 | C122: =IF('DF raw data'!O122="","",'DF raw data'!O122) -> 9.99109e-05 | D122: =IF('DF raw data'!P122="","",'DF raw data'!P122) -> -4.04475e-05 | F122: -2.680121798e-06 | G122: -1.30038132e-05 | H122: -7.615745032e-06 | J122: -5.782623866e-05 | K122: -0.000112758989 | L122: -0.0002133872451 | M122: -0.002718106393 | N122: 3.495594467e-07
A123: =IF('DF raw data'!M123="","",'DF raw data'!M123) -> -272 | B123: =IF('DF raw data'!N123="","",'DF raw data'!N123) -> -1.68801e-05 | C123: =IF('DF raw data'!O123="","",'DF raw data'!O123) -> 0.000100703 | D123: =IF('DF raw data'!P123="","",'DF raw data'!P123) -> -3.69325e-05 | F123: -5.962751178e-06 | G123: -1.220838638e-05 | H123: -4.085982032e-06 | J123: -6.080761425e-05 | K123: -0.0001431627961 | L123: -0.0002194914383 | M123: -0.002827852112 | N123: 3.754964755e-07
A124: =IF('DF raw data'!M124="","",'DF raw data'!M124) -> -271.5 | B124: =IF('DF raw data'!N124="","",'DF raw data'!N124) -> -1.35553e-05 | C124: =IF('DF raw data'!O124="","",'DF raw data'!O124) -> 0.000100602 | D124: =IF('DF raw data'!P124="","",'DF raw data'!P124) -> -2.80862e-05 | F124: -2.623987018e-06 | G124: -1.230981058e-05 | H124: 4.797472428e-06 | J124: -6.211960776e-05 | K124: -0.0001742226 | L124: -0.0002256463436 | M124: -0.002940675284 | N124: 4.028840345e-07
A125: =IF('DF raw data'!M125="","",'DF raw data'!M125) -> -271 | B125: =IF('DF raw data'!N125="","",'DF raw data'!N125) -> -1.49615e-05 | C125: =IF('DF raw data'!O125="","",'DF raw data'!O125) -> 0.00010367 | D125: =IF('DF raw data'!P125="","",'DF raw data'!P125) -> -3.2464e-05 | F125: -4.036093058e-06 | G125: -9.228924977e-06 | H125: 4.012856678e-07 | J125: -6.413765428e-05 | K125: -0.0002062914271 | L125: -0.0002302608061 | M125: -0.003055805687 | N125: 4.314508732e-07
A126: =IF('DF raw data'!M126="","",'DF raw data'!M126) -> -270.5 | B126: =IF('DF raw data'!N126="","",'DF raw data'!N126) -> -1.79082e-05 | C126: =IF('DF raw data'!O126="","",'DF raw data'!O126) -> 0.000106764 | D126: =IF('DF raw data'!P126="","",'DF raw data'!P126) -> -3.18852e-05 | F126: -6.995169198e-06 | G126: -6.121930177e-06 | H126: 9.825166278e-07 | J126: -6.763523888e-05 | K126: -0.0002401090466 | L126: -0.0002333217711 | M126: -0.003172466573 | N126: 4.609576604e-07
A127: =IF('DF raw data'!M127="","",'DF raw data'!M127) -> -270 | B127: =IF('DF raw data'!N127="","",'DF raw data'!N127) -> -1.2729e-05 | C127: =IF('DF raw data'!O127="","",'DF raw data'!O127) -> 0.000118135 | D127: =IF('DF raw data'!P127="","",'DF raw data'!P127) -> -1.81052e-05 | F127: -1.794216558e-06 | G127: 5.296828023e-06 | H127: 1.482039263e-05 | J127: -6.853234716e-05 | K127: -0.0002743752201 | L127: -0.0002306733571 | M127: -0.003287803251 | N127: 4.899111006e-07
A128: =IF('DF raw data'!M128="","",'DF raw data'!M128) -> -269.5 | B128: =IF('DF raw data'!N128="","",'DF raw data'!N128) -> -2.201e-05 | C128: =IF('DF raw data'!O128="","",'DF raw data'!O128) -> 0.000117982 | D128: =IF('DF raw data'!P128="","",'DF raw data'!P128) -> -2.82182e-05 | F128: -1.111419676e-05 | G128: 5.143185423e-06 | H128: 4.664918028e-06 | J128: -7.408944554e-05 | K128: -0.0003114199429 | L128: -0.0002281017644 | M128: -0.003401854134 | N128: 5.18670931e-07
A129: =IF('DF raw data'!M129="","",'DF raw data'!M129) -> -269 | B129: =IF('DF raw data'!N129="","",'DF raw data'!N129) -> -2.23304e-05 | C129: =IF('DF raw data'!O129="","",'DF raw data'!O129) -> 0.00011652 | D129: =IF('DF raw data'!P129="","",'DF raw data'!P129) -> -2.82222e-05 | F129: -1.143594244e-05 | G129: 3.675045023e-06 | H129: 4.660901228e-06 | J129: -7.980741676e-05 | K129: -0.0003513236513 | L129: -0.0002262642419 | M129: -0.003514986255 | N129: 5.474532965e-07
A130: =IF('DF raw data'!M130="","",'DF raw data'!M130) -> -268.5 | B130: =IF('DF raw data'!N130="","",'DF raw data'!N130) -> -1.44551e-05 | C130: =IF('DF raw data'!O130="","",'DF raw data'!O130) -> 0.000120722 | D130: =IF('DF raw data'!P130="","",'DF raw data'!P130) -> -2.32702e-05 | F130: -3.527566178e-06 | G130: 7.894693423e-06 | H130: 9.633699628e-06 | J130: -8.157119985e-05 | K130: -0.0003921092512 | L130: -0.0002223168952 | M130: -0.003626144702 | N130: 5.754926278e-07
A131: =IF('DF raw data'!M131="","",'DF raw data'!M131) -> -268 | B131: =IF('DF raw data'!N131="","",'DF raw data'!N131) -> -1.45137e-05 | C131: =IF('DF raw data'!O131="","",'DF raw data'!O131) -> 0.000120722 | D131: =IF('DF raw data'!P131="","",'DF raw data'!P131) -> -3.14359e-05 | F131: =(1-$G$1*($B$54-$G$2))*(B131-F$5) -> -3.586412298e-06 | G131: =(1-$G$1*($B$54-$G$2))*(C131-G$5) -> 7.894693423e-06 | H131: =(1-$G$1*($B$54-$G$2))*(D131-H$5) -> 1.433703688e-06 | J131: -8.3364406e-05 | K131: -0.0004337914542 | L131: -0.0002183695485 | M131: -0.003735329476 | N131: 6.028100697e-07
A132: =IF('DF raw data'!M132="","",'DF raw data'!M132) -> -267.5 | B132: =IF('DF raw data'!N132="","",'DF raw data'!N132) -> -6.18005e-06 | C132: =IF('DF raw data'!O132="","",'DF raw data'!O132) -> 0.000112799 | D132: =IF('DF raw data'!P132="","",'DF raw data'!P132) -> -4.21522e-05 | F132: 4.782239032e-06 | G132: -6.158317732e-08 | H132: -9.327604772e-06 | J132: =F132*$G$3+J131 -> -8.097328648e-05 | K132: =J132*$G$3+K131 -> -0.0004742780975 | L132: =G132*$G$3+L131 -> -0.0002184003401 | M132: =L132*$G$3+M131 -> -0.003844529646 | N132: =(J132^2+L132^2)*$G$3+N131 -> 6.299377606e-07
A133: =IF('DF raw data'!M133="","",'DF raw data'!M133) -> -267 | B133: =IF('DF raw data'!N133="","",'DF raw data'!N133) -> -7.52835e-06 | C133: =IF('DF raw data'!O133="","",'DF raw data'!O133) -> 0.000108517 | D133: =IF('DF raw data'!P133="","",'DF raw data'!P133) -> -3.73419e-05 | F133: 3.428276172e-06 | G133: -4.361567577e-06 | H133: -4.497101512e-06 | J133: -7.92591484e-05 | K133: -0.0005139076717 | L133: -0.0002205811239 | M133: -0.003954820208 | N133: 6.57406783e-07
A134: =IF('DF raw data'!M134="","",'DF raw data'!M134) -> -266.5 | B134: =IF('DF raw data'!N134="","",'DF raw data'!N134) -> -2.6108e-05 | C134: =IF('DF raw data'!O134="","",'DF raw data'!O134) -> 0.000111332 | D134: =IF('DF raw data'!P134="","",'DF raw data'!P134) -> -3.03712e-05 | F134: -1.522940836e-05 | G134: -1.534744577e-06 | H134: 2.502875428e-06 | J134: -8.687385257e-05 | K134: -0.0005573445979 | L134: -0.0002213484962 | M134: -0.004065494456 | N134: 6.856778945e-07
A135: =IF('DF raw data'!M135="","",'DF raw data'!M135) -> -266 | B135: =IF('DF raw data'!N135="","",'DF raw data'!N135) -> -2.63716e-05 | C135: =IF('DF raw data'!O135="","",'DF raw data'!O135) -> 0.000114724 | D135: =IF('DF raw data'!P135="","",'DF raw data'!P135) -> -1.90282e-05 | F135: -1.549411548e-05 | G135: 1.871501823e-06 | H135: 1.389351603e-05 | J135: -9.462091031e-05 | K135: -0.0006046550531 | L135: -0.0002204127452 | M135: -0.004175700829 | N135: 7.144453419e-07
A136: =IF('DF raw data'!M136="","",'DF raw data'!M136) -> -265.5 | B136: =IF('DF raw data'!N136="","",'DF raw data'!N136) -> -1.17582e-05 | C136: =IF('DF raw data'!O136="","",'DF raw data'!O136) -> 0.000112368 | D136: =IF('DF raw data'!P136="","",'DF raw data'!P136) -> -3.3398e-05 | F136: -8.193391978e-07 | G136: -4.943933773e-07 | H136: -5.366371322e-07 | J136: -9.503057991e-05 | K136: -0.0006521703431 | L136: -0.0002206599419 | M136: -0.0042860308 | N136: 7.433061525e-07
A137: =IF('DF raw data'!M137="","",'DF raw data'!M137) -> -265 | B137: =IF('DF raw data'!N137="","",'DF raw data'!N137) -> -1.60573e-05 | C137: =IF('DF raw data'!O137="","",'DF raw data'!O137) -> 0.000106545 | D137: =IF('DF raw data'!P137="","",'DF raw data'!P137) -> -2.20068e-05 | F137: -5.136495418e-06 | G137: -6.341849977e-06 | H137: 1.090240591e-05 | J137: -9.759882762e-05 | K137: -0.0007009697569 | L137: -0.0002238308669 | M137: -0.004397946234 | N137: 7.731190466e-07
A138: =IF('DF raw data'!M138="","",'DF raw data'!M138) -> -264.5 | B138: =IF('DF raw data'!N138="","",'DF raw data'!N138) -> -1.66354e-05 | C138: =IF('DF raw data'!O138="","",'DF raw data'!O138) -> 0.000115327 | D138: =IF('DF raw data'!P138="","",'DF raw data'!P138) -> -1.92054e-05 | F138: -5.717023438e-06 | G138: 2.477034423e-06 | H138: 1.371557179e-05 | J138: -0.0001004573393 | K138: -0.0007511984265 | L138: -0.0002225923497 | M138: -0.004509242408 | N138: 8.029385621e-07
A139: =IF('DF raw data'!M139="","",'DF raw data'!M139) -> -264 | B139: =IF('DF raw data'!N139="","",'DF raw data'!N139) -> -1.41933e-05 | C139: =IF('DF raw data'!O139="","",'DF raw data'!O139) -> 0.000114321 | D139: =IF('DF raw data'!P139="","",'DF raw data'!P139) -> -3.19149e-05 | F139: -3.264666618e-06 | G139: 1.466809223e-06 | H139: 9.526918878e-07 | J139: -0.0001020896726 | K139: -0.0008022432629 | L139: -0.0002218589451 | M139: -0.004620171881 | N139: 8.327604085e-07
A140: =IF('DF raw data'!M140="","",'DF raw data'!M140) -> -263.5 | B140: =IF('DF raw data'!N140="","",'DF raw data'!N140) -> -1.36759e-05 | C140: =IF('DF raw data'!O140="","",'DF raw data'!O140) -> 0.000113151 | D140: =IF('DF raw data'!P140="","",'DF raw data'!P140) -> -3.95376e-05 | F140: -2.745093538e-06 | G140: 2.918952227e-07 | H140: -6.702023452e-06 | J140: -0.0001034622194 | K140: -0.0008539743726 | L140: -0.0002217129975 | M140: -0.00473102838 | N140: 8.626909506e-07
A141: =IF('DF raw data'!M141="","",'DF raw data'!M141) -> -263 | B141: =IF('DF raw data'!N141="","",'DF raw data'!N141) -> -1.53409e-05 | C141: =IF('DF raw data'!O141="","",'DF raw data'!O141) -> 0.000117201 | D141: =IF('DF raw data'!P141="","",'DF raw data'!P141) -> -4.01118e-05 | F141: -4.417086538e-06 | G141: 4.358905223e-06 | H141: -7.278635092e-06 | J141: -0.0001056707627 | K141: -0.0009068097539 | L141: -0.0002195335449 | M141: -0.004840795152 | N141: 8.923715943e-07
A142: =IF('DF raw data'!M142="","",'DF raw data'!M142) -> -262.5 | B142: =IF('DF raw data'!N142="","",'DF raw data'!N142) -> -1.13622e-05 | C142: =IF('DF raw data'!O142="","",'DF raw data'!O142) -> 0.000109301 | D142: =IF('DF raw data'!P142="","",'DF raw data'!P142) -> -5.13268e-05 | F142: -4.216759978e-07 | G142: -3.574274777e-06 | H142: -1.854073809e-05 | J142: -0.0001058816007 | K142: -0.0009597505543 | L142: -0.0002213206823 | M142: -0.004951455493 | N142: 9.224684732e-07
A143: =IF('DF raw data'!M143="","",'DF raw data'!M143) -> -262 | B143: =IF('DF raw data'!N143="","",'DF raw data'!N143) -> -2.16213e-05 | C143: =IF('DF raw data'!O143="","",'DF raw data'!O143) -> 0.000104292 | D143: =IF('DF raw data'!P143="","",'DF raw data'!P143) -> -3.50394e-05 | F143: -1.072386422e-05 | G143: -8.604312577e-06 | H143: -2.184931012e-06 | J143: -0.0001112435328 | K143: -0.001015372321 | L143: -0.0002256228386 | M143: -0.005064266913 | N143: 9.541088676e-07
A144: =IF('DF raw data'!M144="","",'DF raw data'!M144) -> -261.5 | B144: =IF('DF raw data'!N144="","",'DF raw data'!N144) -> -1.27184e-05 | C144: =IF('DF raw data'!O144="","",'DF raw data'!O144) -> 0.000102703 | D144: =IF('DF raw data'!P144="","",'DF raw data'!P144) -> -3.44042e-05 | F144: -1.783572038e-06 | G144: -1.019998638e-05 | H144: -1.547063172e-06 | J144: -0.0001121353188 | K144: -0.00107143998 | L144: -0.0002307228317 | M144: -0.005179628328 | N144: 9.87012545e-07
A145: =IF('DF raw data'!M145="","",'DF raw data'!M145) -> -261 | B145: =IF('DF raw data'!N145="","",'DF raw data'!N145) -> -1.84173e-05 | C145: =IF('DF raw data'!O145="","",'DF raw data'!O145) -> 9.59613e-05 | D145: =IF('DF raw data'!P145="","",'DF raw data'!P145) -> -3.74199e-05 | F145: -7.506407418e-06 | G145: -1.697000152e-05 | H145: -4.575429112e-06 | J145: -0.0001158885225 | K145: -0.001129384241 | L145: -0.0002392078325 | M145: -0.005299232245 | N145: 1.022337813e-06
A146: =IF('DF raw data'!M146="","",'DF raw data'!M146) -> -260.5 | B146: =IF('DF raw data'!N146="","",'DF raw data'!N146) -> -2.44374e-05 | C146: =IF('DF raw data'!O146="","",'DF raw data'!O146) -> 9.98659e-05 | D146: =IF('DF raw data'!P146="","",'DF raw data'!P146) -> -3.84822e-05 | F146: -1.355179184e-05 | G146: -1.30490022e-05 | H146: -5.642190772e-06 | J146: -0.0001226644184 | K146: -0.001190716451 | L146: -0.0002457323336 | M146: -0.005422098411 | N146: 1.060053283e-06
A147: =IF('DF raw data'!M147="","",'DF raw data'!M147) -> -260 | B147: =IF('DF raw data'!N147="","",'DF raw data'!N147) -> -1.78413e-05 | C147: =IF('DF raw data'!O147="","",'DF raw data'!O147) -> 9.89219e-05 | D147: =IF('DF raw data'!P147="","",'DF raw data'!P147) -> -3.65135e-05 | F147: -6.927988218e-06 | G147: -1.3996967e-05 | H147: -3.665222232e-06 | J147: -0.0001261284126 | K147: -0.001253780657 | L147: -0.0002527308171 | M147: -0.00554846382 | N147: 1.099943904e-06
A148: =IF('DF raw data'!M148="","",'DF raw data'!M148) -> -259.5 | B148: =IF('DF raw data'!N148="","",'DF raw data'!N148) -> -2.09835e-05 | C148: =IF('DF raw data'!O148="","",'DF raw data'!O148) -> 0.000108308 | D148: =IF('DF raw data'!P148="","",'DF raw data'!P148) -> -3.07808e-05 | F148: -1.008338546e-05 | G148: -4.571445377e-06 | H148: 2.091555108e-06 | J148: -0.0001311701053 | K148: -0.001319365709 | L148: -0.0002550165398 | M148: -0.00567597209 | N148: 1.14106342e-06
A149: =IF('DF raw data'!M149="","",'DF raw data'!M149) -> -259 | B149: =IF('DF raw data'!N149="","",'DF raw data'!N149) -> -2.23252e-05 | C149: =IF('DF raw data'!O149="","",'DF raw data'!O149) -> 0.000112455 | D149: =IF('DF raw data'!P149="","",'DF raw data'!P149) -> -3.61827e-05 | F149: -1.14307206e-05 | G149: -4.070279773e-07 | H149: -3.333032872e-06 | J149: -0.0001368854656 | K149: -0.001387808442 | L149: -0.0002552200538 | M149: -0.005803582117 | N149: 1.183000874e-06
A150: =IF('DF raw data'!M150="","",'DF raw data'!M150) -> -258.5 | B150: =IF('DF raw data'!N150="","",'DF raw data'!N150) -> -1.98942e-05 | C150: =IF('DF raw data'!O150="","",'DF raw data'!O150) -> 0.000115189 | D150: =IF('DF raw data'!P150="","",'DF raw data'!P150) -> -3.13745e-05 | F150: -8.989510398e-06 | G150: 2.338454823e-06 | H150: 1.495361568e-06 | J150: -0.0001413802208 | K150: -0.001458498553 | L150: -0.0002540508264 | M150: -0.00593060753 | N150: 1.225265968e-06
A151: =IF('DF raw data'!M151="","",'DF raw data'!M151) -> -258 | B151: =IF('DF raw data'!N151="","",'DF raw data'!N151) -> -1.44511e-05 | C151: =IF('DF raw data'!O151="","",'DF raw data'!O151) -> 0.000111528 | D151: =IF('DF raw data'!P151="","",'DF raw data'!P151) -> -2.943e-05 | F151: -3.523549378e-06 | G151: -1.337921377e-06 | H151: 3.448028468e-06 | J151: -0.0001431419955 | K151: -0.00153006955 | L151: -0.0002547197871 | M151: -0.006057967423 | N151: 1.267951869e-06
A152: =IF('DF raw data'!M152="","",'DF raw data'!M152) -> -257.5 | B152: =IF('DF raw data'!N152="","",'DF raw data'!N152) -> -1.52203e-05 | C152: =IF('DF raw data'!O152="","",'DF raw data'!O152) -> 0.000101512 | D152: =IF('DF raw data'!P152="","",'DF raw data'!P152) -> -2.83803e-05 | F152: -4.295980018e-06 | G152: -1.139598858e-05 | H152: 4.502137208e-06 | J152: -0.0001452899855 | K152: -0.001602714543 | L152: -0.0002604177813 | M152: -0.006188176314 | N152: 1.312415169e-06
A153: =IF('DF raw data'!M153="","",'DF raw data'!M153) -> -257 | B153: =IF('DF raw data'!N153="","",'DF raw data'!N153) -> -1.38084e-05 | C153: =IF('DF raw data'!O153="","",'DF raw data'!O153) -> 0.000109036 | D153: =IF('DF raw data'!P153="","",'DF raw data'!P153) -> -3.28747e-05 | F153: -2.878150038e-06 | G153: -3.840387777e-06 | H153: -1.11392722e-08 | J153: -0.0001467290605 | K153: -0.001676079073 | L153: -0.0002623379752 | M153: -0.006319345302 | N153: 1.357590484e-06
A154: =IF('DF raw data'!M154="","",'DF raw data'!M154) -> -256.5 | B154: =IF('DF raw data'!N154="","",'DF raw data'!N154) -> -1.82219e-05 | C154: =IF('DF raw data'!O154="","",'DF raw data'!O154) -> 0.000107525 | D154: =IF('DF raw data'!P154="","",'DF raw data'!P154) -> -4.20692e-05 | F154: -7.310186738e-06 | G154: -5.357733977e-06 | H154: -9.244256172e-06 | J154: -0.0001503841539 | K154: -0.00175127115 | L154: -0.0002650168422 | M154: -0.006451853723 | N154: 1.404015144e-06
A155: =IF('DF raw data'!M155="","",'DF raw data'!M155) -> -256 | B155: =IF('DF raw data'!N155="","",'DF raw data'!N155) -> -2.44435e-05 | C155: =IF('DF raw data'!O155="","",'DF raw data'!O155) -> 0.000101112 | D155: =IF('DF raw data'!P155="","",'DF raw data'!P155) -> -2.91446e-05 | F155: -1.355791746e-05 | G155: -1.179766858e-05 | H155: 3.734627148e-06 | J155: -0.0001571631126 | K155: -0.001829852707 | L155: -0.0002709156765 | M155: -0.006587311561 | N155: 1.453062918e-06
A156: =IF('DF raw data'!M156="","",'DF raw data'!M156) -> -255.5 | B156: =IF('DF raw data'!N156="","",'DF raw data'!N156) -> -2.45064e-05 | C156: =IF('DF raw data'!O156="","",'DF raw data'!O156) -> 0.000104172 | D156: =IF('DF raw data'!P156="","",'DF raw data'!P156) -> -3.06803e-05 | F156: -1.362108164e-05 | G156: -8.724816577e-06 | H156: 2.192477208e-06 | J156: -0.0001639736534 | K156: -0.001911839533 | L156: -0.0002752780848 | M156: -0.006724950604 | N156: 1.50439561e-06
A157: =IF('DF raw data'!M157="","",'DF raw data'!M157) -> -255 | B157: =IF('DF raw data'!N157="","",'DF raw data'!N157) -> -1.93814e-05 | C157: =IF('DF raw data'!O157="","",'DF raw data'!O157) -> 0.000106163 | D157: =IF('DF raw data'!P157="","",'DF raw data'!P157) -> -3.1851e-05 | F157: -8.474556638e-06 | G157: -6.725454377e-06 | H157: 1.016860268e-06 | J157: -0.0001682109317 | K157: -0.001995944999 | L157: -0.000278640812 | M157: -0.00686427101 | N157: 1.55736342e-06
A158: =IF('DF raw data'!M158="","",'DF raw data'!M158) -> -254.5 | B158: =IF('DF raw data'!N158="","",'DF raw data'!N158) -> -2.14958e-05 | C158: =IF('DF raw data'!O158="","",'DF raw data'!O158) -> 0.00010666 | D158: =IF('DF raw data'!P158="","",'DF raw data'!P158) -> -3.09808e-05 | F158: -1.059783712e-05 | G158: -6.226366977e-06 | H158: 1.890715108e-06 | J158: -0.0001735098503 | K158: -0.002082699924 | L158: -0.0002817539955 | M158: -0.007005148007 | N158: 1.612108911e-06
A159: =IF('DF raw data'!M159="","",'DF raw data'!M159) -> -254 | B159: =IF('DF raw data'!N159="","",'DF raw data'!N159) -> -2.03379e-05 | C159: =IF('DF raw data'!O159="","",'DF raw data'!O159) -> 0.000105325 | D159: =IF('DF raw data'!P159="","",'DF raw data'!P159) -> -3.85957e-05 | F159: -9.435073938e-06 | G159: -7.566973977e-06 | H159: -5.756167472e-06 | J159: -0.0001782273873 | K159: -0.002171813618 | L159: -0.0002855374825 | M159: -0.007147916749 | N159: 1.668757238e-06
A160: =IF('DF raw data'!M160="","",'DF raw data'!M160) -> -253.5 | B160: =IF('DF raw data'!N160="","",'DF raw data'!N160) -> -3.32768e-05 | C160: =IF('DF raw data'!O160="","",'DF raw data'!O160) -> 0.000106771 | D160: =IF('DF raw data'!P160="","",'DF raw data'!P160) -> -3.80864e-05 | F160: -2.242831732e-05 | G160: -6.114900777e-06 | H160: -5.244728412e-06 | J160: -0.0001894415459 | K160: -0.002266534391 | L160: -0.0002885949329 | M160: -0.007292214215 | N160: 1.728344806e-06
A161: =IF('DF raw data'!M161="","",'DF raw data'!M161) -> -253 | B161: =IF('DF raw data'!N161="","",'DF raw data'!N161) -> -2.0213e-05 | C161: =IF('DF raw data'!O161="","",'DF raw data'!O161) -> 0.000107465 | D161: =IF('DF raw data'!P161="","",'DF raw data'!P161) -> -3.36812e-05 | F161: -9.309649358e-06 | G161: -5.417985977e-06 | H161: -8.210265722e-07 | J161: -0.0001940963706 | K161: -0.002363582576 | L161: -0.0002913039258 | M161: -0.007437866178 | N161: 1.789610495e-06
